Workbook

Sheet План ввода основ. ср-в
A5: План ввода основных средств АО "Самарская сетевая компания" на период реализации инвестиционной программы 2016-2020 гг.
X9: Утверждаю
AC10: Генеральный директор АО "ССК"
AC11: Мухаметшин В. С.
Z12: __________________
V13: «___»_______________ 2016 года
X14: М.П.
A16: № | B16: Наименование объекта | C16: План вводимой мощности в 2016-2020 гг. на основные фонды
C17: 2016 | E17: План I кв. | G17: План II кв. | I17: План III кв. | K17: План IV кв. | M17: 2017 | O17: 2018 | Q17: 2019 | S17: 2020 | U17: 2016 | V17: План I кв. | W17: План II кв. | X17: План III кв. | Y17: План IV кв. | Z17: 2017 | AA17: 2018 | AB17: 2019 | AC17: 2020
C18: МВА | D18: Км | E18: МВА | F18: Км | G18: МВА | H18: Км | I18: МВА | J18: Км | K18: МВА | L18: Км | M18: МВА | N18: км | O18: МВА | P18: км | Q18: МВА | R18: км | S18: МВА | T18: км | U18: млн. руб. (без НДС)
A19: 1 | B19: 2 | C19: 3 | D19: 4 | E19: 5 | F19: 6 | G19: 7 | H19: 8 | I19: 9 | J19: 10 | K19: 11 | L19: 12 | M19: 13 | N19: 14 | O19: 15 | P19: 16 | Q19: 17 | R19: 18 | S19: 19 | T19: 20 | U19: 21 | V19: 22 | W19: 23 | X19: 24 | Y19: 25 | Z19: 26 | AA19: 27 | AB19: 28 | AC19: 29
B20: ВСЕГО | C20: =C21+C396 -> 32.34 | D20: 264.88 | E20: 0 | F20: 0 | G20: 0 | H20: 0 | I20: 0 | J20: 0 | K20: 32.34 | L20: 264.88 | M20: 80.35 | N20: 537.24 | O20: 113.27 | P20: 529.375 | Q20: 238.459 | R20: 500.385 | S20: 175.38 | T20: 504 | U20: 1756.577814 | V20: 0 | W20: 263.4866721 | X20: 614.802235 | Y20: 878.2889072 | Z20: 2898.651847 | AA20: 3199.735424 | AB20: 3486.355932 | AC20: 3759.005508
A21: 1 | B21: Техническое перевооружение и реконструкция | C21: =C22 -> 18.18 | D21: =D22 -> 216.24 | E21: 0 | F21: 0 | G21: 0 | H21: 0 | I21: 0 | J21: 0 | K21: 18.18 | L21: 216.24 | M21: 71.63 | N21: 476.84 | O21: 106.07 | P21: 465.975 | Q21: 230.519 | R21: 436.585 | S21: 167.84 | T21: 450.2 | U21: =SUM(U24:U382) -> 1381.885038 | V21: 0 | W21: 207.2827557 | X21: 483.6597632 | Y21: 690.9425189 | Z21: 2578.511847 | AA21: 2828.225424 | AB21: 3102.955932 | AC21: 3405.305508
A22: 1.1. | B22: Энергосбережение и повышение энергетической эффективности | C22: =SUM(C24:C386) -> 18.18 | D22: 216.24 | E22: 0 | F22: 0 | G22: 0 | H22: 0 | I22: 0 | J22: 0 | K22: 18.18 | L22: 216.24 | M22: 71.63 | N22: 476.84 | O22: 106.07 | P22: 465.975 | Q22: 230.519 | R22: 436.585 | S22: 167.84 | T22: 450.2 | U22: =SUM(U24:U381) -> 1299.995292 | W22: =SUM(W24:W381) -> 194.9992938 | X22: 454.9983522 | Y22: 649.997646 | Z22: 2507.689831 | AA22: 2754.50339 | AB22: 3030.842373 | AC22: 3319.364407
A23: 1 | B23: Алексеевский район
A24: 2 | B24: Реконструкция ВЛ-0,4кВ от КТП А 1917/160 кВА с заменой КТП на 250 кВА | C24: 0.25 | D24: 3 | K24: =C24 -> 0.25 | L24: =D24 -> 3 | M24: 0 | N24: 0 | O24: 0 | P24: 0 | Q24: 0 | R24: 0 | S24: 0 | T24: 0 | U24: 10.84745763 | W24: =U24*0.15 -> 1.627118644 | X24: =U24*0.35 -> 3.796610169 | Y24: =U24*0.5 -> 5.423728814 | Z24: 0 | AA24: 0 | AB24: 0 | AC24: 0
A25: 3 | B25: Реконструкция ВЛ-10 кВ Ф-17 ПС Алексеевка | C25: 0 | D25: 4.6 | K25: =C25 -> 0 | L25: =D25 -> 4.6 | M25: 0 | N25: 0 | O25: 0 | P25: 0 | Q25: 0 | R25: 0 | S25: 0 | T25: 0 | U25: 9.05 | W25: =U25*0.15 -> 1.3575 | X25: =U25*0.35 -> 3.1675 | Y25: =U25*0.5 -> 4.525 | Z25: 0 | AA25: 0 | AB25: 0 | AC25: 0
A26: 4 | B26: Реконструкция ВЛ-0,4кВ от КТП А 2109/160 кВА с заменой КТП | C26: 0 | D26: 0 | K26: 0 | L26: 0 | M26: 0.16 | N26: 2.81 | O26: 0 | P26: 0 | Q26: 0 | R26: 0 | S26: 0 | T26: 0 | U26: 0 | W26: =U26*0.15 -> 0 | X26: =U26*0.35 -> 0 | Y26: =U26*0.5 -> 0 | Z26: 7.684745763 | AA26: 0 | AB26: 0 | AC26: 0
A27: 5 | B27: Реконструкция ВЛ-0,4кВ от КТП А 216/250 кВА с заменой КТП | C27: 0 | D27: 0 | K27: 0 | L27: 0 | M27: 0.25 | N27: 4.52 | O27: 0 | P27: 0 | Q27: 0 | R27: 0 | S27: 0 | T27: 0 | U27: 0 | W27: 0 | X27: 0 | Y27: 0 | Z27: 11.74237288 | AA27: 0 | AB27: 0 | AC27: 0
A28: 6 | B28: Реконструкция ВЛ-0,4кВ от КТП А 207/250 кВА с заменой КТП | C28: 0 | D28: 0 | K28: 0 | L28: 0 | M28: 0 | N28: 0 | O28: 0.25 | P28: 1.92 | Q28: 0 | R28: 0 | S28: 0 | T28: 0 | U28: 0 | W28: 0 | X28: 0 | Y28: 0 | Z28: 0 | AA28: 5.572881356 | AB28: 0 | AC28: 0
A29: 7 | B29: Реконструкция ВЛ-0,4кВ от КТП А 203/250 кВА с заменой КТП | C29: 0 | D29: 0 | K29: 0 | L29: 0 | M29: 0 | N29: 0 | O29: 0.25 | P29: 4.67 | Q29: 0 | R29: 0 | S29: 0 | T29: 0 | U29: 0 | W29: 0 | X29: 0 | Y29: 0 | Z29: 0 | AA29: 12.09830508 | AB29: 0 | AC29: 0
A30: 8 | B30: Реконструкция ВЛ-0,4кВ от КТП А 2101/160 кВА с заменой КТП | C30: 0 | D30: 0 | K30: 0 | L30: 0 | M30: 0 | N30: 0 | O30: 0 | P30: 0 | Q30: 0.16 | R30: 2.92 | S30: 0 | T30: 0 | U30: 0 | W30: 0 | X30: 0 | Y30: 0 | Z30: 0 | AA30: 0 | AB30: 7.945762712 | AC30: 0
A31: 9 | B31: Реконструкция ВЛ-0,4кВ от КТП А 217/400 кВА с заменой КТП | C31: 0 | D31: 0 | K31: 0 | L31: 0 | M31: 0 | N31: 0 | O31: 0 | P31: 0 | Q31: 0.4 | R31: 3.08 | S31: 0 | T31: 0 | U31: 0 | W31: 0 | X31: 0 | Y31: 0 | Z31: 0 | AA31: 0 | AB31: 8.325423729 | AC31: 0
A32: 10 | B32: Реконструкция ВЛ-0,4кВ от КТП А 2003/400 кВА с заменой КТП | C32: 0 | D32: 0 | K32: 0 | L32: 0 | M32: 0 | N32: 0 | O32: 0 | P32: 0 | Q32: 0 | R32: 0 | S32: 0.4 | T32: 1.035 | U32: 0 | W32: 0 | X32: 0 | Y32: 0 | Z32: 0 | AA32: 0 | AB32: 0 | AC32: 3.472881356
A33: 11 | B33: Реконструкция ВЛ-0,4кВ от КТП А 2110/160 кВА с заменой КТП | C33: 0 | D33: 0 | K33: 0 | L33: 0 | M33: 0 | N33: 0 | O33: 0 | P33: 0 | Q33: 0 | R33: 0 | S33: 0.16 | T33: 1.6 | U33: 0 | W33: 0 | X33: 0 | Y33: 0 | Z33: 0 | AA33: 0 | AB33: 0 | AC33: 4.813559322
A34: 12 | B34: Больше-Черниговский район | C34: 0 | D34: 0 | K34: 0 | L34: 0 | M34: 0 | N34: 0 | O34: 0 | P34: 0 | Q34: 0 | R34: 0 | S34: 0 | T34: 0 | U34: 0 | W34: 0 | X34: 0 | Y34: 0 | Z34: 0 | AA34: 0 | AB34: 0 | AC34: 0
A35: 13 | B35: Реконструкция ВЛ-0,4кВ от ЗТП 1208/400 кВА с заменой ЗТП на КТП | C35: 0.4 | D35: 1.58 | K35: 0.4 | L35: 1.58 | M35: 0 | N35: 0 | O35: 0 | P35: 0 | Q35: 0 | R35: 0 | S35: 0 | T35: 0 | U35: 5.996610169 | W35: 0.8994915254 | X35: 2.098813559 | Y35: 2.998305085 | Z35: 0 | AA35: 0 | AB35: 0 | AC35: 0
A36: 14 | B36: Реконструкция ВЛ-0,4кВ от КТП 1204/400 кВА с заменой КТП | C36: 0 | D36: 0 | K36: 0 | L36: 0 | M36: 0.4 | N36: 0.7 | O36: 0 | P36: 0 | Q36: 0 | R36: 0 | S36: 0 | T36: 0 | U36: 0 | W36: 0 | X36: 0 | Y36: 0 | Z36: 2.677966102 | AA36: 0 | AB36: 0 | AC36: 0
A37: 15 | B37: Реконструкция ВЛ-0,4кВ от КТП 1205/400 кВА с заменой КТП | C37: 0 | D37: 0 | K37: 0 | L37: 0 | M37: 0.4 | N37: 1.68 | O37: 0 | P37: 0 | Q37: 0 | R37: 0 | S37: 0 | T37: 0 | U37: 0 | W37: 0 | X37: 0 | Y37: 0 | Z37: 5.003389831 | AA37: 0 | AB37: 0 | AC37: 0
A38: 16 | B38: Реконструкция ВЛ-0,4кВ от КТП 1206/160 кВА с заменой КТП | C38: 0 | D38: 0 | K38: 0 | L38: 0 | M38: 0.16 | N38: 2.2 | O38: 0 | P38: 0 | Q38: 0 | R38: 0 | S38: 0 | T38: 0 | U38: 0 | W38: 0 | X38: 0 | Y38: 0 | Z38: 6.237288136 | AA38: 0 | AB38: 0 | AC38: 0
A39: 17 | B39: Реконструкция ВЛ-0,4кВ от КТП 415/250 кВА с заменой КТП | K39: 0 | M39: 0.25 | N39: 0.8 | O39: 0 | P39: 0 | Q39: 0 | R39: 0 | S39: 0 | T39: 0 | Z39: 2.915254237 | AA39: 0 | AB39: 0 | AC39: 0
A40: 18 | B40: Реконструкция ВЛ-0,4кВ от КТП 709/250 кВА с заменой КТП | C40: 0 | D40: 0 | K40: 0 | L40: 0 | M40: 0 | N40: 0 | O40: 0.25 | P40: 0.42 | Q40: 0 | R40: 0 | S40: 0 | T40: 0 | U40: 0 | W40: 0 | X40: 0 | Y40: 0 | Z40: 0 | AA40: 2.013559322 | AB40: 0 | AC40: 0
A41: 19 | B41: Реконструкция ВЛ-0,4кВ от КТП 501/320 кВА с заменой КТП | C41: 0 | D41: 0 | K41: 0 | L41: 0 | M41: 0 | N41: 0 | O41: 0.32 | P41: 0.42 | Q41: 0 | R41: 0 | S41: 0 | T41: 0 | U41: 0 | W41: 0 | X41: 0 | Y41: 0 | Z41: 0 | AA41: 2.013559322 | AB41: 0 | AC41: 0
A42: 20 | B42: Реконструкция ВЛ-0,4кВ от КТП 809/100 кВА с заменой КТП | C42: 0 | D42: 0 | K42: 0 | L42: 0 | M42: 0 | N42: 0 | O42: 0 | P42: 0 | Q42: 0.1 | R42: 1.36 | S42: 0 | T42: 0 | U42: 0 | W42: 0 | X42: 0 | Y42: 0 | Z42: 0 | AA42: 0 | AB42: 4.244067797 | AC42: 0
A43: 21 | B43: Реконструкция ВЛ-0,4кВ от КТП 201/400 кВА с заменой КТП | C43: 0 | D43: 0 | K43: 0 | L43: 0 | M43: 0 | N43: 0 | O43: 0 | P43: 0 | Q43: 0.4 | R43: 1.6 | S43: 0 | T43: 0 | U43: 0 | W43: 0 | X43: 0 | Y43: 0 | Z43: 0 | AA43: 0 | AB43: 4.813559322 | AC43: 0
A44: 22 | B44: Реконструкция ВЛ-0,4кВ от КТП 109/400 кВА с заменой КТП | C44: 0 | D44: 0 | K44: 0 | L44: 0 | M44: 0 | N44: 0 | O44: 0 | P44: 0 | Q44: 0.4 | R44: 1.22 | S44: 0 | T44: 0 | U44: 0 | W44: 0 | X44: 0 | Y44: 0 | Z44: 0 | AA44: 0 | AB44: 3.911864407 | AC44: 0
A45: 23 | B45: Реконструкция ВЛ-0,4кВ от КТП 905/400 кВА с заменой КТП | C45: 0 | D45: 0 | K45: 0 | L45: 0 | M45: 0 | N45: 0 | O45: 0 | P45: 0 | Q45: 0.4 | R45: 1.62 | S45: 0 | T45: 0 | U45: 0 | W45: 0 | X45: 0 | Y45: 0 | Z45: 0 | AA45: 0 | AB45: 4.861016949 | AC45: 0
A46: 24 | B46: Реконструкция ВЛ-0,4кВ от КТП 114/400 кВА с заменой КТП | C46: 0 | D46: 0 | K46: 0 | L46: 0 | M46: 0 | N46: 0 | O46: 0 | P46: 0 | Q46: 0 | R46: 0 | S46: 0.4 | T46: 0.72 | U46: 0 | W46: 0 | X46: 0 | Y46: 0 | Z46: 0 | AA46: 0 | AB46: 0 | AC46: 2.725423729
A47: 25 | B47: Реконструкция ВЛ-0,4кВ от КТП 407/400 кВА с заменой КТП | C47: 0 | D47: 0 | K47: 0 | L47: 0 | M47: 0 | N47: 0 | O47: 0 | P47: 0 | Q47: 0 | R47: 0 | S47: 0.4 | T47: 0.52 | U47: 0 | W47: 0 | X47: 0 | Y47: 0 | Z47: 0 | AA47: 0 | AB47: 0 | AC47: 2.250847458
A48: 26 | B48: Реконструкция ВЛ-0,4кВ от КТП 122/400 кВА с заменой КТП | C48: 0 | D48: 0 | K48: 0 | L48: 0 | M48: 0 | N48: 0 | O48: 0 | P48: 0 | Q48: 0 | R48: 0 | S48: 0.4 | T48: 1.9 | U48: 0 | W48: 0 | X48: 0 | Y48: 0 | Z48: 0 | AA48: 0 | AB48: 0 | AC48: 2.250847458
A49: 27 | B49: Реконструкция ВЛ-0,4кВ от КТП 906/250 кВА с заменой КТП | C49: 0 | D49: 0 | K49: 0 | L49: 0 | M49: 0 | N49: 0 | O49: 0 | P49: 0 | Q49: 0 | R49: 0 | S49: 0.25 | T49: 3.85 | U49: 0 | W49: 0 | X49: 0 | Y49: 0 | Z49: 0 | AA49: 0 | AB49: 0 | AC49: 10.15254237
A50: 28 | B50: Волжский район | C50: 0 | D50: 0 | K50: =C50 -> 0 | L50: =D50 -> 0 | M50: 0 | N50: 0 | O50: 0 | P50: 0 | Q50: 0 | R50: 0 | S50: 0 | T50: 0 | U50: 0 | W50: =U50*0.15 -> 0 | X50: =U50*0.35 -> 0 | Y50: =U50*0.5 -> 0 | Z50: 0 | AA50: 0 | AB50: 0 | AC50: 0
A51: 29 | B51: Повышение надежности энергоснабжения электросетевого района с. Лопатино | C51: 0 | D51: 0 | K51: 0 | L51: 0 | M51: 0 | N51: 0 | O51: 0 | P51: 0 | Q51: 0 | R51: 0 | S51: 0 | T51: 0 | U51: 11.08135593 | W51: 1.66220339 | X51: 3.878474576 | Y51: 5.540677966 | Z51: 0 | AA51: 0 | AB51: 0 | AC51: 0
A52: 30 | B52: Реконструкция ВЛ-0,4кВ от КТП Р 603/250 кВА с заменой КТП | C52: 0.25 | D52: 2 | K52: 0.25 | L52: 2 | M52: 0 | N52: 0 | O52: 0 | P52: 0 | Q52: 0 | R52: 0 | S52: 0 | T52: 0 | U52: 7.191525424 | W52: 1.078728814 | X52: 2.517033898 | Y52: 3.595762712 | Z52: 0 | AA52: 0 | AB52: 0 | AC52: 0
A53: 31 | B53: Реконструкция ВЛ-6 кВ Кур-9 | C53: 0 | D53: 1.1 | K53: 0 | L53: 1.1 | M53: 0 | N53: 0 | O53: 0 | P53: 0 | Q53: 0 | R53: 0 | S53: 0 | T53: 0 | U53: 3.03559322 | W53: 0.4553389831 | X53: 1.062457627 | Y53: 1.51779661 | Z53: 0 | AA53: 0 | AB53: 0 | AC53: 0
A54: 32 | B54: Реконструкция ВЛ-6 кВ Кур-12 | C54: 0 | D54: 0.17 | K54: 0 | L54: 0.17 | M54: 0 | N54: 0 | O54: 0 | P54: 0 | Q54: 0 | R54: 0 | S54: 0 | T54: 0 | U54: 0.5 | W54: 0.075 | X54: 0.175 | Y54: 0.25 | Z54: 0 | AA54: 0 | AB54: 0 | AC54: 0
A55: 33 | B55: Реконструкция ВЛ-0,4кВ от ЗТП Кур 1621/160 кВА с заменой ЗТП на КТП 400 кВА | C55: 0.4 | D55: 0.3 | K55: 0.4 | L55: 0.3 | M55: 0 | N55: 0 | O55: 0 | P55: 0 | Q55: 0 | R55: 0 | S55: 0 | T55: 0 | U55: 2.628813559 | W55: 0.3943220339 | X55: 0.9200847458 | Y55: 1.31440678 | Z55: 0 | AA55: 0 | AB55: 0 | AC55: 0
A56: 34 | B56: Реконструкция ВЛ-10 кВ Ф-3 ПС Выползово | C56: 0 | D56: 1.8 | K56: 0 | L56: 1.8 | M56: 0 | N56: 0 | O56: 0 | P56: 0 | Q56: 0 | R56: 0 | S56: 0 | T56: 0 | U56: 4.216101695 | W56: 0.6324152542 | X56: 1.475635593 | Y56: 2.108050847 | Z56: 0 | AA56: 0 | AB56: 0 | AC56: 0
A57: 35 | B57: Реконструкция ВЛ-0,4 кВ от КТП Р 306/250 кВА с заменой КТП | C57: 0.25 | D57: 3.5 | K57: 0.25 | L57: 3.5 | M57: 0 | N57: 0 | O57: 0 | P57: 0 | Q57: 0 | R57: 0 | S57: 0 | T57: 0 | U57: 7.07 | W57: 1.0605 | X57: 2.4745 | Y57: 3.535 | Z57: 0 | AA57: 0 | AB57: 0 | AC57: 0
A58: 36 | B58: Реконструкция ВЛ-0,4 кВ от КТП Р 213/100 кВА с заменой КТП на 160 кВА | C58: 0.16 | D58: 0.95 | K58: 0.16 | L58: 0.95 | M58: 0 | N58: 0 | O58: 0 | P58: 0 | Q58: 0 | R58: 0 | S58: 0 | T58: 0 | U58: 2.738983051 | W58: 0.4108474576 | X58: 0.9586440678 | Y58: 1.369491525 | Z58: 0 | AA58: 0 | AB58: 0 | AC58: 0
A59: 37 | B59: Реконструкция ВЛ-10 кВ Ф-21 от КТП 2106 до оп. №2100/26 с заменой КТП на 250 кВА | C59: 0.25 | D59: 1 | K59: 0.25 | L59: 1 | M59: 0 | N59: 0 | O59: 0 | P59: 0 | Q59: 0 | R59: 0 | S59: 0 | T59: 0 | U59: 2.966949153 | W59: 0.4450423729 | X59: 1.038432203 | Y59: 1.483474576 | Z59: 0 | AA59: 0 | AB59: 0 | AC59: 0
A60: 38 | B60: Реконструкция ВЛ-10 кВ Ф-23 от КТП 2309 до оп №2300/8 с заменой КТП на 630 кВА | C60: 0.63 | D60: 0.34 | K60: 0.63 | L60: 0.34 | M60: 0 | N60: 0 | O60: 0 | P60: 0 | Q60: 0 | R60: 0 | S60: 0 | T60: 0 | U60: 2.838135593 | W60: 0.425720339 | X60: 0.9933474576 | Y60: 1.419067797 | Z60: 0 | AA60: 0 | AB60: 0 | AC60: 0
A61: 39 | B61: Реконструкция ВЛ-6 кВ Ф-6 от ТП 603 до оп. № 613/1 с заменой КТП на 250 кВА | C61: 0.25 | D61: 0.05 | K61: 0.25 | L61: 0.05 | M61: 0 | N61: 0 | O61: 0 | P61: 0 | Q61: 0 | R61: 0 | S61: 0 | T61: 0 | U61: 1.327118644 | W61: 0.1990677966 | X61: 0.4644915254 | Y61: 0.663559322 | Z61: 0 | AA61: 0 | AB61: 0 | AC61: 0
A62: 40 | B62: Реконструкция ВЛ-6 кВ Ф-2 от ТП Подлесная до опоры № 201/1 с заменой КТП на 400 кВА | C62: 0.4 | D62: 1.05 | K62: 0.4 | L62: 1.05 | M62: 0 | N62: 0 | O62: 0 | P62: 0 | Q62: 0 | R62: 0 | S62: 0 | T62: 0 | U62: 3.433898305 | W62: 0.5150847458 | X62: 1.201864407 | Y62: 1.716949153 | Z62: 0 | AA62: 0 | AB62: 0 | AC62: 0
A63: 41 | B63: Реконструкция ВЛ-6 кВ Ф-13 от ТП 21 до оп №1301/7 с заменой ТП на КТП 630 кВА и установкой дополнительной КТП 630 кВА | C63: 1.26 | D63: 0.31 | K63: 1.26 | L63: 0.31 | M63: 0 | N63: 0 | O63: 0 | P63: 0 | Q63: 0 | R63: 0 | S63: 0 | T63: 0 | U63: 3.895762712 | W63: 0.5843644068 | X63: 1.363516949 | Y63: 1.947881356 | Z63: 0 | AA63: 0 | AB63: 0 | AC63: 0
A64: 42 | B64: Реконструкция ВЛ-10 кВ Ф-12 от оп №1200/62 до ТП 1205/250 кВА с заменой КТП 400 кВА | C64: 0.4 | D64: 0.27 | K64: 0.4 | L64: 0.27 | M64: 0 | N64: 0 | O64: 0 | P64: 0 | Q64: 0 | R64: 0 | S64: 0 | T64: 0 | U64: 2.219491525 | W64: 0.3329237288 | X64: 0.7768220339 | Y64: 1.109745763 | Z64: 0 | AA64: 0 | AB64: 0 | AC64: 0
A65: 43 | B65: Реконструкция ТП 24/160 кВА с заменой на КТП 250 кВА | C65: 0.25 | D65: 0 | K65: 0.25 | L65: 0 | M65: 0 | N65: 0 | O65: 0 | P65: 0 | Q65: 0 | R65: 0 | S65: 0 | T65: 0 | U65: 0.9466101695 | W65: 0.1419915254 | X65: 0.3313135593 | Y65: 0.4733050847 | Z65: 0 | AA65: 0 | AB65: 0 | AC65: 0
A66: 44 | B66: Реконструкция ВЛ-0,4 кВ от КТП 217 | C66: 0 | D66: 4.29 | K66: 0 | L66: 4.29 | M66: 0 | N66: 0 | O66: 0 | P66: 0 | Q66: 0 | R66: 0 | S66: 0 | T66: 0 | U66: 13.64745763 | W66: 2.047118644 | X66: 4.776610169 | Y66: 6.823728814 | Z66: 0 | AA66: 0 | AB66: 0 | AC66: 0
A67: 45 | B67: Реконструкция ВЛ-0,4 кВ от ЗТП 15/16 | C67: 0 | D67: 4.82 | K67: 0 | L67: 4.82 | M67: 0 | N67: 0 | O67: 0 | P67: 0 | Q67: 0 | R67: 0 | S67: 0 | T67: 0 | U67: 10.09576271 | W67: 1.514364407 | X67: 3.533516949 | Y67: 5.047881356 | Z67: 0 | AA67: 0 | AB67: 0 | AC67: 0
A68: 46 | B68: Реконструкция КЛ-6 кВ Ф-18 ПС ГПП "Коммунар" | C68: 0 | D68: 0.85 | K68: 0 | L68: 0.85 | M68: 0 | N68: 0 | O68: 0 | P68: 0 | Q68: 0 | R68: 0 | S68: 0 | T68: 0 | U68: 3.587288136 | W68: 0.5380932203 | X68: 1.255550847 | Y68: 1.793644068 | Z68: 0 | AA68: 0 | AB68: 0 | AC68: 0
A69: 47 | B69: Реконструкция ВЛ-0,4 кВ от КТП 224 | C69: 0 | D69: 4.3 | K69: 0 | L69: 4.3 | M69: 0 | N69: 0 | O69: 0 | P69: 0 | Q69: 0 | R69: 0 | S69: 0 | T69: 0 | U69: 13.98050847 | W69: 2.097076271 | X69: 4.893177966 | Y69: 6.990254237 | Z69: 0 | AA69: 0 | AB69: 0 | AC69: 0
A70: 48 | B70: Реконструкция существующей инфраструктуры объектов электросетевого хозяйства в районе с. Ширяево в целях обеспечения надежности электроснабжения туристического комплекса "Жигулевская жемчужина" | C70: 0 | D70: 0 | K70: 0 | L70: 0 | M70: 1.26 | N70: 2.1 | O70: 2.4 | P70: 42 | Q70: 16 | R70: 15 | S70: 16 | T70: 15 | U70: 0 | W70: 0 | X70: 0 | Y70: 0 | Z70: 20 | AA70: 50 | AB70: 60 | AC70: 80
A71: 49 | B71: Реконструкция, инфраструктуры объектов электросетевого хозяйства в г.о. Самара в целях обеспечения надежности электроснабжения объектов Южный город, Заречье в Волжском районе | C71: 0 | D71: 0 | K71: 0 | L71: 0 | M71: 41.6 | N71: 22 | O71: 80 | P71: 18 | Q71: 63 | R71: 16 | S71: 63 | T71: 16 | U71: 0 | W71: 0 | X71: 0 | Y71: 0 | Z71: 188.3898305 | AA71: 340 | AB71: 320.9322034 | AC71: 250
A72: 50 | B72: Реконструкция инфраструктуры объектов электросетевого хозяйства в целях обеспечения надежности электроснабжения п. Петра-Дубрава, п. Стройкерамика | C72: 0 | D72: 0 | K72: 0 | L72: 0 | M72: 1.26 | N72: 2 | O72: 1.26 | P72: 2 | Q72: 2.4 | R72: 6 | S72: 4.8 | T72: 12 | U72: 50.84745763 | W72: 7.627118644 | X72: 17.79661017 | Y72: 25.42372881 | Z72: 25.59322034 | AA72: 25 | AB72: 60 | AC72: 157.0338983
A73: 51 | B73: Реконструкция ВЛ-0,4кВ от ЗТП Кур 904/250 кВА с заменой ЗТП на КТП | C73: 0 | D73: 0 | K73: 0 | L73: 0 | M73: 0.25 | N73: 0.5 | O73: 0 | P73: 0 | Q73: 0 | R73: 0 | S73: 0 | T73: 0 | U73: 0 | W73: 0 | X73: 0 | Y73: 0 | Z73: 2.203389831 | AA73: 0 | AB73: 0 | AC73: 0
A74: 52 | B74: Реконструкция ВЛ-0,4кВ от ЗТП Кур 905/250 кВА с заменой ЗТП на КТП | C74: 0 | D74: 0 | K74: 0 | L74: 0 | M74: 0.25 | N74: 2.4 | O74: 0 | P74: 0 | Q74: 0 | R74: 0 | S74: 0 | T74: 0 | U74: 0 | W74: 0 | X74: 0 | Y74: 0 | Z74: 6.711864407 | AA74: 0 | AB74: 0 | AC74: 0
A75: 53 | B75: Реконструкция ВЛ-0,4 кВ от КТП Р 601/250 кВА | C75: 0 | D75: 0 | K75: 0 | L75: 0 | M75: 0 | N75: 2.5 | O75: 0 | P75: 0 | Q75: 0 | R75: 0 | S75: 0 | T75: 0 | U75: 0 | W75: 0 | X75: 0 | Y75: 0 | Z75: 5.93220339 | AA75: 0 | AB75: 0 | AC75: 0
A76: 54 | B76: Реконструкция ВЛ-0,4 кВ от КТП Р 603/250 кВА с заменой КТП на 400 кВА | C76: 0 | D76: 0 | K76: 0 | L76: 0 | M76: 0.4 | N76: 2.65 | O76: 0 | P76: 0 | Q76: 0 | R76: 0 | S76: 0 | T76: 0 | U76: 0 | W76: 0 | X76: 0 | Y76: 0 | Z76: 7.305084746 | AA76: 0 | AB76: 0 | AC76: 0
A77: 55 | B77: Реконструкция ВЛ-0,4 кВ от КТП Пр 906/400 кВА с заменой КТП | C77: 0 | D77: 0 | K77: 0 | L77: 0 | M77: 0.4 | N77: 3.5 | O77: 0 | P77: 0 | Q77: 0 | R77: 0 | S77: 0 | T77: 0 | U77: 0 | W77: 0 | X77: 0 | Y77: 0 | Z77: 8.305084746 | AA77: 0 | AB77: 0 | AC77: 0
A78: 56 | B78: Реконструкция ВЛ-0,4 кВ от КТП Ду 2127/160 кВА с заменой КТП | C78: 0 | D78: 0 | K78: 0 | L78: 0 | M78: 0.16 | N78: 0.3 | O78: 0 | P78: 0 | Q78: 0 | R78: 0 | S78: 0 | T78: 0 | U78: 0 | W78: 0 | X78: 0 | Y78: 0 | Z78: 1.728813559 | AA78: 0 | AB78: 0 | AC78: 0
A79: 57 | B79: Реконструкция ВЛ-6 кВ от Ф-20 оп 2500/34 до ЗТП Л 2513/630 кВА | C79: 0 | D79: 0 | K79: 0 | L79: 0 | M79: 0 | N79: 0.3 | O79: 0 | P79: 0 | Q79: 0 | R79: 0 | S79: 0 | T79: 0 | U79: 0 | W79: 0 | X79: 0 | Y79: 0 | Z79: 0.7118644068 | AA79: 0 | AB79: 0 | AC79: 0
A80: 58 | B80: Реконструкция ВЛ-0,4 кВ от КТП 212 с перераспределением нагрузок от КТП 216 | C80: 0 | D80: 0 | K80: 0 | L80: 0 | M80: 0 | N80: 1.5 | O80: 0 | P80: 0 | Q80: 0 | R80: 0 | S80: 0 | T80: 0 | U80: 0 | W80: 0 | X80: 0 | Y80: 0 | Z80: 3.559322034 | AA80: 0 | AB80: 0 | AC80: 0
A81: 59 | B81: Реконструкция КЛ-0,4кВ от ТП 404 | C81: 0 | D81: 0 | K81: 0 | L81: 0 | M81: 0 | N81: 1.8 | O81: 0 | P81: 0 | Q81: 0 | R81: 0 | S81: 0 | T81: 0 | U81: 0 | W81: 0 | X81: 0 | Y81: 0 | Z81: 6.101694915 | AA81: 0 | AB81: 0 | AC81: 0
A82: 60 | B82: Реконструкция КЛ-0,4кВ от ТП 405 | C82: 0 | D82: 0 | K82: 0 | L82: 0 | M82: 0 | N82: 1.7 | O82: 0 | P82: 0 | Q82: 0 | R82: 0 | S82: 0 | T82: 0 | U82: 0 | W82: 0 | X82: 0 | Y82: 0 | Z82: 5.762711864 | AA82: 0 | AB82: 0 | AC82: 0
A83: 61 | B83: Реконструкция КЛ-0,4кВ от ТП 406 | C83: 0 | D83: 0 | K83: 0 | L83: 0 | M83: 0 | N83: 1 | O83: 0 | P83: 0 | Q83: 0 | R83: 0 | S83: 0 | T83: 0 | U83: 0 | W83: 0 | X83: 0 | Y83: 0 | Z83: 3.389830508 | AA83: 0 | AB83: 0 | AC83: 0
A84: 62 | B84: Реконструкция КЛ-0,4кВ от ТП 426 | C84: 0 | D84: 0 | K84: 0 | L84: 0 | M84: 0 | N84: 1.7 | O84: 0 | P84: 0 | Q84: 0 | R84: 0 | S84: 0 | T84: 0 | U84: 0 | W84: 0 | X84: 0 | Y84: 0 | Z84: 5.762711864 | AA84: 0 | AB84: 0 | AC84: 0
A85: 63 | B85: Реконструкция КЛ-0,4кВ от КТП 603 | C85: 0 | D85: 0 | K85: =C85 -> 0 | L85: =D85 -> 0 | M85: 0 | N85: 0.7 | O85: 0 | P85: 0 | Q85: 0 | R85: 0 | S85: 0 | T85: 0 | U85: 0 | W85: 0 | X85: 0 | Y85: 0 | Z85: 2.372881356 | AA85: 0 | AB85: 0 | AC85: 0
A86: 64 | B86: Реконструкция КЛ-0,4кВ от КТП 605 | C86: 0 | D86: 0 | K86: 0 | L86: 0 | M86: 0 | N86: 0.1 | O86: 0 | P86: 0 | Q86: 0 | R86: 0 | S86: 0 | T86: 0 | U86: 0 | W86: 0 | X86: 0 | Y86: 0 | Z86: 0.3389830508 | AA86: 0 | AB86: 0 | AC86: 0
A87: 65 | B87: Реконструкция КЛ-0,4кВ от ЗТП10 | C87: 0 | D87: 0 | K87: 0 | L87: 0 | M87: 0 | N87: 0.95 | O87: 0 | P87: 0 | Q87: 0 | R87: 0 | S87: 0 | T87: 0 | U87: 0 | W87: 0 | X87: 0 | Y87: 0 | Z87: 3.389830508 | AA87: 0 | AB87: 0 | AC87: 0
A88: 66 | B88: Реконструкция КЛ-0,4кВ от ЗТП20 | C88: 0 | D88: 0 | K88: 0 | L88: 0 | M88: 0 | N88: 0.3 | O88: 0 | P88: 0 | Q88: 0 | R88: 0 | S88: 0 | T88: 0 | U88: 0 | W88: =U88*0.15 -> 0 | X88: =U88*0.35 -> 0 | Y88: =U88*0.5 -> 0 | Z88: 1.016949153 | AA88: 0 | AB88: 0 | AC88: 0
A89: 67 | B89: Реконструкция КЛ-0,4кВ Ф-8 ЗТП5 от оп№800/10 до оп№800/11 (под ж/д) | C89: 0 | D89: 0 | K89: 0 | L89: 0 | M89: 0 | N89: 0.9 | O89: 0 | P89: 0 | Q89: 0 | R89: 0 | S89: 0 | T89: 0 | U89: 0 | W89: 0 | X89: 0 | Y89: 0 | Z89: 3.050847458 | AA89: 0 | AB89: 0 | AC89: 0
A90: 68 | B90: Реконструкция КЛ-0,4кВ от КТП 215 | C90: 0 | D90: 0 | K90: 0 | L90: 0 | M90: 0 | N90: 0.25 | O90: 0 | P90: 0 | Q90: 0 | R90: 0 | S90: 0 | T90: 0 | U90: 0 | W90: 0 | X90: 0 | Y90: 0 | Z90: 1.016949153 | AA90: 0 | AB90: 0 | AC90: 0
A91: 69 | B91: Реконструкция КЛ-0,4кВ от КТП 218 | C91: 0 | D91: 0 | K91: 0 | L91: 0 | M91: 0 | N91: 0.26 | O91: 0 | P91: 0 | Q91: 0 | R91: 0 | S91: 0 | T91: 0 | U91: 0 | W91: 0 | X91: 0 | Y91: 0 | Z91: 1.016949153 | AA91: 0 | AB91: 0 | AC91: 0
A92: 70 | B92: Реконструкция КЛ-0,4кВ от КТП 213 | C92: 0 | D92: 0 | K92: 0 | L92: 0 | M92: 0 | N92: 0.3 | O92: 0 | P92: 0 | Q92: 0 | R92: 0 | S92: 0 | T92: 0 | U92: 0 | W92: 0 | X92: 0 | Y92: 0 | Z92: 1.016949153 | AA92: 0 | AB92: 0 | AC92: 0
A93: 71 | B93: Реконструкция КЛ-0,4кВ от КТП 211 | C93: 0 | D93: 0 | K93: 0 | L93: 0 | M93: 0 | N93: 0.48 | O93: 0 | P93: 0 | Q93: 0 | R93: 0 | S93: 0 | T93: 0 | U93: 0 | W93: 0 | X93: 0 | Y93: 0 | Z93: 1.694915254 | AA93: 0 | AB93: 0 | AC93: 0
A94: 72 | B94: Реконструкция ВЛ-0,4кВ КТП 228 | C94: 0 | D94: 0 | K94: 0 | L94: 0 | M94: 0 | N94: 3.4 | O94: 0 | P94: 0 | Q94: 0 | R94: 0 | S94: 0 | T94: 0 | U94: 0 | W94: 0 | X94: 0 | Y94: 0 | Z94: 8.06779661 | AA94: 0 | AB94: 0 | AC94: 0
A95: 73 | B95: Реконструкция КЛ-0,4кВ от КТП 602 | C95: 0 | D95: 0 | K95: 0 | L95: 0 | M95: 0 | N95: 0.4 | O95: 0 | P95: 0 | Q95: 0 | R95: 0 | S95: 0 | T95: 0 | U95: 0 | W95: 0 | X95: 0 | Y95: 0 | Z95: 1.355932203 | AA95: 0 | AB95: 0 | AC95: 0
A96: 74 | B96: Реконструкция ВЛ-0,4кВ от ЗТП Кур 906/400 кВА с заменой ЗТП на КТП | C96: 0 | D96: 0 | K96: 0 | L96: 0 | M96: 0 | N96: 0 | O96: 0.4 | P96: 0.85 | Q96: 0 | R96: 0 | S96: 0 | T96: 0 | U96: 0 | W96: 0 | X96: 0 | Y96: 0 | Z96: 0 | AA96: 3.033898305 | AB96: 0 | AC96: 0
A97: 75 | B97: Реконструкция ВЛ-0,4кВ от ЗТП Кур 901/250 кВА с заменой ЗТП на КТП | C97: 0 | D97: 0 | K97: 0 | L97: 0 | M97: 0 | N97: 0 | O97: 0.25 | P97: 1.4 | Q97: 0 | R97: 0 | S97: 0 | T97: 0 | U97: 0 | W97: 0 | X97: 0 | Y97: 0 | Z97: 0 | AA97: 4.338983051 | AB97: 0 | AC97: 0
A98: 76 | B98: Реконструкция ВЛ-0,4 кВ от КТП Р 402/400 кВА | C98: 0 | D98: 0 | K98: 0 | L98: 0 | M98: 0 | N98: 0 | O98: 0 | P98: 1 | Q98: 0 | R98: 0 | S98: 0 | T98: 0 | U98: 0 | W98: 0 | X98: 0 | Y98: 0 | Z98: 0 | AA98: 2.372881356 | AB98: 0 | AC98: 0
A99: 77 | B99: Реконструкция ВЛ-10 кВ Ф-8 отпайка к КТП Пм 802/100 кВА с заменой КТП | C99: 0 | D99: 0 | K99: 0 | L99: 0 | M99: 0 | N99: 0 | O99: 0.1 | P99: 3.6 | Q99: 0 | R99: 0 | S99: 0 | T99: 0 | U99: 0 | W99: 0 | X99: 0 | Y99: 0 | Z99: 0 | AA99: 9.322033898 | AB99: 0 | AC99: 0
A100: 78 | B100: Реконструкция ВЛ-0,4 кВ Ф-1 КТП Л 2502/320 кВА | C100: 0 | D100: 0 | K100: 0 | L100: 0 | M100: 0 | N100: 0 | O100: 0 | P100: 0.7 | Q100: 0 | R100: 0 | S100: 0 | T100: 0 | U100: 0 | W100: 0 | X100: 0 | Y100: 0 | Z100: 0 | AA100: 1.661016949 | AB100: 0 | AC100: 0
A101: 79 | B101: Реконструкция ВЛ-0,4 кВ от КТП 211/250 кВА с заменой КТП на 400 кВА. | C101: 0 | D101: 0 | K101: 0 | L101: 0 | M101: 0 | N101: 0 | O101: 0.4 | P101: 1.5 | Q101: 0 | R101: 0 | S101: 0 | T101: 0 | U101: 0 | W101: 0 | X101: 0 | Y101: 0 | Z101: 0 | AA101: 4.576271186 | AB101: 0 | AC101: 0
A102: 80 | B102: Реконструкция ВЛ-0,4 кВ от КТП 213 | C102: 0 | D102: 0 | K102: 0 | L102: 0 | M102: 0 | N102: 0 | O102: 0 | P102: 1.8 | Q102: 0 | R102: 0 | S102: 0 | T102: 0 | U102: 0 | W102: 0 | X102: 0 | Y102: 0 | Z102: 0 | AA102: 4.271186441 | AB102: 0 | AC102: 0
A103: 81 | B103: Реконструкция ВЛ-0,4 кВ от КТП Р 106/400 кВА с заменой КТП | C103: 0 | D103: 0 | K103: 0 | L103: 0 | M103: 0 | N103: 0 | O103: 0 | P103: 0 | Q103: 0.4 | R103: 3.2 | S103: 0 | T103: 0 | U103: 0 | W103: 0 | X103: 0 | Y103: 0 | Z103: 0 | AA103: 0 | AB103: 8.610169492 | AC103: 0
A104: 82 | B104: Реконструкция ВЛ-6 кВ Ф-30 ПС Овощная отпайка до КТП Ов 3008/250 кВА с заменой КТП на 400 кВА | C104: 0 | D104: 0 | K104: 0 | L104: 0 | M104: 0 | N104: 0 | O104: 0 | P104: 0 | Q104: 0.4 | R104: 0.36 | S104: 0 | T104: 0 | U104: 0 | W104: 0 | X104: 0 | Y104: 0 | Z104: 0 | AA104: 0 | AB104: 1.871186441 | AC104: 0
A105: 83 | B105: Реконструкция ВЛ-6 кВ Ф-1 отпайка до КТП Пм 102/250 кВА с заменой КТП | C105: 0 | D105: 0 | K105: 0 | L105: 0 | M105: 0 | N105: 0 | O105: 0 | P105: 0 | Q105: 0.25 | R105: 0.06 | S105: 0 | T105: 0 | U105: 0 | W105: 0 | X105: 0 | Y105: 0 | Z105: 0 | AA105: 0 | AB105: 1.159322034 | AC105: 0
A106: 84 | B106: Реконструкция ВЛ-0,4 кВ от КТП 215 | C106: 0 | D106: 0 | K106: 0 | L106: 0 | M106: 0 | N106: 0 | O106: 0 | P106: 0 | Q106: 0 | R106: 1.6 | S106: 0 | T106: 0 | U106: 0 | W106: 0 | X106: 0 | Y106: 0 | Z106: 0 | AA106: 0 | AB106: 3.796610169 | AC106: 0
A107: 85 | B107: Реконструкция ВЛ-0,4 кВ от КТП 218 | C107: 0 | D107: 0 | K107: 0 | L107: 0 | M107: 0 | N107: 0 | O107: 0 | P107: 0 | Q107: 0 | R107: 0.8 | S107: 0 | T107: 0 | U107: 0 | W107: 0 | X107: 0 | Y107: 0 | Z107: 0 | AA107: 0 | AB107: 1.898305085 | AC107: 0
A108: 86 | B108: Реконструкция ВЛ-0,4 кВ от КТП Р 304/400 кВА с заменой КТП | C108: 0 | D108: 0 | K108: 0 | L108: 0 | M108: 0 | N108: 0 | O108: 0 | P108: 0 | Q108: 0 | R108: 0 | S108: 0.4 | T108: 1.8 | U108: 0 | W108: 0 | X108: 0 | Y108: 0 | Z108: 0 | AA108: 0 | AB108: 0 | AC108: 5.288135593
A109: 87 | B109: Елховский район | C109: 0 | D109: 0 | K109: 0 | L109: 0 | M109: 0 | N109: 0 | O109: 0 | P109: 0 | Q109: 0 | R109: 0 | S109: 0 | T109: 0 | U109: 0 | W109: 0 | X109: 0 | Y109: 0 | Z109: 0 | AA109: 0 | AB109: 0 | AC109: 0
A110: 88 | B110: Реконструкция ВЛ-0,4кВ от КТП КМ 304/630 кВА с заменой КТП на 250 кВА | C110: 0.25 | D110: 1.2 | K110: 0.25 | L110: 1.2 | M110: 0 | N110: 0 | O110: 0 | P110: 0 | Q110: 0 | R110: 0 | S110: 0 | T110: 0 | U110: 4.112711864 | W110: 0.6169067797 | X110: 1.439449153 | Y110: 2.056355932 | Z110: 0 | AA110: 0 | AB110: 0 | AC110: 0
A111: 89 | B111: Реконструкция ВЛ-0,4кВ от КТП КМ 603/400 кВА с заменой КТП на 250 кВА | C111: 0.25 | D111: 1 | K111: 0.25 | L111: 1 | M111: 0 | N111: 0 | O111: 0 | P111: 0 | Q111: 0 | R111: 0 | S111: 0 | T111: 0 | U111: 3.716101695 | W111: 0.5574152542 | X111: 1.300635593 | Y111: 1.858050847 | Z111: 0 | AA111: 0 | AB111: 0 | AC111: 0
A112: 90 | B112: Реконструкция ВЛ-0,4кВ от КТП КМ 810/100 кВА с заменой КТП | C112: 0 | D112: 0 | K112: 0 | L112: 0 | M112: 0.1 | N112: 0.92 | O112: 0 | P112: 0 | Q112: 0 | R112: 0 | S112: 0 | T112: 0 | U112: 0 | W112: 0 | X112: 0 | Y112: 0 | Z112: 3.2 | AA112: 0 | AB112: 0 | AC112: 0
A113: 91 | B113: Реконструкция ВЛ-0,4кВ от КТП КМ 811/160 кВА с заменой КТП | C113: 0 | D113: 0 | K113: 0 | L113: 0 | M113: 0.16 | N113: 0.92 | O113: 0 | P113: 0 | Q113: 0 | R113: 0 | S113: 0 | T113: 0 | U113: 0 | W113: 0 | X113: 0 | Y113: 0 | Z113: 3.2 | AA113: 0 | AB113: 0 | AC113: 0
A114: 92 | B114: Реконструкция ВЛ-0,4кВ от КТП Елх 713/400 кВА с заменой КТП | C114: 0 | D114: 0 | K114: 0 | L114: 0 | M114: 0 | N114: 0 | O114: 0.4 | P114: 0.64 | Q114: 0 | R114: 0 | S114: 0 | T114: 0 | U114: 0 | W114: 0 | X114: 0 | Y114: 0 | Z114: 0 | AA114: 2.53559322 | AB114: 0 | AC114: 0
A115: 93 | B115: Реконструкция ВЛ-0,4кВ от КТП Елх 403/160 кВА с заменой КТП | C115: 0 | D115: 0 | K115: 0 | L115: 0 | M115: 0 | N115: 0 | O115: 0.16 | P115: 0.48 | Q115: 0 | R115: 0 | S115: 0 | T115: 0 | U115: 0 | W115: 0 | X115: 0 | Y115: 0 | Z115: 0 | AA115: 2.155932203 | AB115: 0 | AC115: 0
A116: 94 | B116: Камышлинский район | C116: 0 | D116: 0 | K116: 0 | L116: 0 | M116: 0 | N116: 0 | O116: 0 | P116: 0 | Q116: 0 | R116: 0 | S116: 0 | T116: 0 | U116: 0 | W116: 0 | X116: 0 | Y116: 0 | Z116: 0 | AA116: 0 | AB116: 0 | AC116: 0
A117: 95 | B117: Реконструкция ВЛ-0,4 кВ от КТП КМШ 502/250 кВА с заменой КТП на 400 кВА | C117: 0.4 | D117: 6.6 | K117: 0.4 | L117: 6.6 | M117: 0 | N117: 0 | O117: 0 | P117: 0 | Q117: 0 | R117: 0 | S117: 0 | T117: 0 | U117: 22.69745763 | W117: 3.404618644 | X117: 7.944110169 | Y117: 11.34872881 | Z117: 0 | AA117: 0 | AB117: 0 | AC117: 0
A118: 96 | B118: Реконструкция ВЛ-6 кВ УС-2 ПС "Байтуган" | C118: 0 | D118: 1.4 | K118: 0 | L118: 1.4 | M118: 0 | N118: 0 | O118: 0 | P118: 0 | Q118: 0 | R118: 0 | S118: 0 | T118: 0 | U118: 2.615254237 | W118: 0.3922881356 | X118: 0.9153389831 | Y118: 1.307627119 | Z118: 0 | AA118: 0 | AB118: 0 | AC118: 0
A119: 97 | B119: Кинель-Черкасский район | C119: 0 | D119: 0 | K119: =C119 -> 0 | L119: =D119 -> 0 | M119: 0 | N119: 0 | O119: 0 | P119: 0 | Q119: 0 | R119: 0 | S119: 0 | T119: 0 | U119: 0 | W119: =U119*0.15 -> 0 | X119: =U119*0.35 -> 0 | Y119: =U119*0.5 -> 0 | Z119: 0 | AA119: 0 | AB119: 0 | AC119: 0
A120: 98 | B120: Реконструкция ВЛ-0,4 кВ от КТП СИД 311/250 кВА с заменой КТП | C120: 0.25 | D120: 4.06 | K120: 0.25 | L120: 4.06 | M120: 0 | N120: 0 | O120: 0 | P120: 0 | Q120: 0 | R120: 0 | S120: 0 | T120: 0 | U120: 12.74152542 | W120: 1.911228814 | X120: 4.459533898 | Y120: 6.370762712 | Z120: 0 | AA120: 0 | AB120: 0 | AC120: 0
A121: 99 | B121: Реконструкция ВЛ-6 кВ Кр-9 | C121: 0 | D121: 7.52 | K121: 0 | L121: 7.52 | M121: 0 | N121: 0 | O121: 0 | P121: 0 | Q121: 0 | R121: 0 | S121: 0 | T121: 0 | U121: 25.68813559 | W121: 3.853220339 | X121: 8.990847458 | Y121: 12.8440678 | Z121: 0 | AA121: 0 | AB121: 0 | AC121: 0
A122: 100 | B122: Реконструкция ВЛ-0,4 кВ от КТП Ч 1710/250 кВА с заменой КТП | C122: 0 | D122: 0 | K122: 0 | L122: 0 | M122: 0.25 | N122: 2.3 | O122: 0 | P122: 0 | Q122: 0 | R122: 0 | S122: 0 | T122: 0 | U122: 0 | W122: 0 | X122: 0 | Y122: 0 | Z122: 6.474576271 | AA122: 0 | AB122: 0 | AC122: 0
A123: 101 | B123: Реконструкция ВЛ-0,4 кВ от КТП Ч 416/250 кВА | C123: 0 | D123: 0 | K123: 0 | L123: 0 | M123: 0 | N123: 4.32 | O123: 0 | P123: 0 | Q123: 0 | R123: 0 | S123: 0 | T123: 0 | U123: 0 | W123: 0 | X123: 0 | Y123: 0 | Z123: 10.25084746 | AA123: 0 | AB123: 0 | AC123: 0
A124: 102 | B124: Реконструкция ВЛ-0,4 кВ от ЗТП Кр 907/400 кВА | C124: 0 | D124: 0 | K124: 0 | L124: 0 | M124: 0 | N124: 2.5 | O124: 0 | P124: 0 | Q124: 0 | R124: 0 | S124: 0 | T124: 0 | U124: 0 | W124: 0 | X124: 0 | Y124: 0 | Z124: 5.93220339 | AA124: 0 | AB124: 0 | AC124: 0
A125: 103 | B125: Реконструкция ВЛ-0,4 кВ от КТП Ку 1309/250 кВА | C125: 0 | D125: 0 | K125: 0 | L125: 0 | M125: 0 | N125: 6 | O125: 0 | P125: 0 | Q125: 0 | R125: 0 | S125: 0 | T125: 0 | U125: 0 | W125: 0 | X125: 0 | Y125: 0 | Z125: 14.23728814 | AA125: 0 | AB125: 0 | AC125: 0
A126: 104 | B126: Реконструкция ВЛ-0,4кВ от КТП Ку 1316/400кВА с заменой КТП | C126: 0 | D126: 0 | K126: 0 | L126: 0 | M126: 0.4 | N126: 1.6 | O126: 0 | P126: 0 | Q126: 0 | R126: 0 | S126: 0 | T126: 0 | U126: 0 | W126: 0 | X126: 0 | Y126: 0 | Z126: 4.813559322 | AA126: 0 | AB126: 0 | AC126: 0
A127: 105 | B127: Реконструкция ВЛ-0,4 кВ от ЗТП Ч 1703/400 кВА | C127: 0 | D127: 0 | K127: 0 | L127: 0 | M127: 0 | N127: 0 | O127: 0 | P127: 7.6 | Q127: 0 | R127: 0 | S127: 0 | T127: 0 | U127: 0 | W127: 0 | X127: 0 | Y127: 0 | Z127: 0 | AA127: 18.03389831 | AB127: 0 | AC127: 0
A128: 106 | B128: Реконструкция ВЛ-0,4 кВ от КТП Ч 417/250 кВА | C128: 0 | D128: 0 | K128: 0 | L128: 0 | M128: 0 | N128: 0 | O128: 0 | P128: 3.4 | Q128: 0 | R128: 0 | S128: 0 | T128: 0 | U128: 0 | W128: 0 | X128: 0 | Y128: 0 | Z128: 0 | AA128: 8.06779661 | AB128: 0 | AC128: 0
A129: 107 | B129: Реконструкция ВЛ-0,4 кВ от КТП Ку 1312/250 кВА | C129: 0 | D129: 0 | K129: 0 | L129: 0 | M129: 0 | N129: 0 | O129: 0 | P129: 2.5 | Q129: 0 | R129: 0 | S129: 0 | T129: 0 | U129: 0 | W129: 0 | X129: 0 | Y129: 0 | Z129: 0 | AA129: 5.93220339 | AB129: 0 | AC129: 0
A130: 108 | B130: Реконструкция ВЛ-0,4 кВ от КТП Кр 1906/400 кВА | C130: 0 | D130: 0 | K130: 0 | L130: 0 | M130: 0 | N130: 0 | O130: 0 | P130: 2.5 | Q130: 0 | R130: 0 | S130: 0 | T130: 0 | U130: 0 | W130: 0 | X130: 0 | Y130: 0 | Z130: 0 | AA130: 5.93220339 | AB130: 0 | AC130: 0
A131: 109 | B131: Реконструкция ВЛ-0,4 кВ от КТП Кр 1914/250 кВА | C131: 0 | D131: 0 | K131: 0 | L131: 0 | M131: 0 | N131: 0 | O131: 0 | P131: 1.6 | Q131: 0 | R131: 0 | S131: 0 | T131: 0 | U131: 0 | W131: 0 | X131: 0 | Y131: 0 | Z131: 0 | AA131: 3.796610169 | AB131: 0 | AC131: 0
A132: 110 | B132: Реконструкция ВЛ-0,4 кВ от КТП Кр 1909/400 кВА | C132: 0 | D132: 0 | K132: 0 | L132: 0 | M132: 0 | N132: 0 | O132: 0 | P132: 1.6 | Q132: 0 | R132: 0 | S132: 0 | T132: 0 | U132: 0 | W132: 0 | X132: 0 | Y132: 0 | Z132: 0 | AA132: 3.796610169 | AB132: 0 | AC132: 0
A133: 111 | B133: Реконструкция ВЛ-0,4 кВ от КТП Сид 305/250 кВА | C133: 0 | D133: 0 | K133: 0 | L133: 0 | M133: 0 | N133: 0 | O133: 0 | P133: 0 | Q133: 0 | R133: 3.4 | S133: 0 | T133: 0 | U133: 0 | W133: 0 | X133: 0 | Y133: 0 | Z133: 0 | AA133: 0 | AB133: 8.06779661 | AC133: 0
A134: 112 | B134: Реконструкция ВЛ-0,4 кВ от КТП Сид 316/160 кВА с заменой КТП | C134: 0 | D134: 0 | K134: 0 | L134: 0 | M134: 0 | N134: 0 | O134: 0 | P134: 0 | Q134: 0.16 | R134: 1.5 | S134: 0 | T134: 0 | U134: 0 | W134: 0 | X134: 0 | Y134: 0 | Z134: 0 | AA134: 0 | AB134: 4.576271186 | AC134: 0
A135: 113 | B135: Реконструкция ВЛ-0,4 кВ от ЗТП Ку 801/250 кВА | C135: 0 | D135: 0 | K135: 0 | L135: 0 | M135: 0 | N135: 0 | O135: 0 | P135: 0 | Q135: 0 | R135: 2 | S135: 0 | T135: 0 | U135: 0 | W135: 0 | X135: 0 | Y135: 0 | Z135: 0 | AA135: 0 | AB135: 4.745762712 | AC135: 0
A136: 114 | B136: Реконструкция ВЛ-0,4 кВ от ЗТП Ку 802/250 кВА с заменой трансформатора | C136: 0 | D136: 0 | K136: 0 | L136: 0 | M136: 0 | N136: 0 | O136: 0 | P136: 0 | Q136: 0.25 | R136: 1 | S136: 0 | T136: 0 | U136: 0 | W136: 0 | X136: 0 | Y136: 0 | Z136: 0 | AA136: 0 | AB136: 3.389830508 | AC136: 0
A137: 115 | B137: Реконструкция ВЛ-0,4 кВ от ЗТП Ку 803/250 кВА | C137: 0 | D137: 0 | K137: 0 | L137: 0 | M137: 0 | N137: 0 | O137: 0 | P137: 0 | Q137: 0 | R137: 1.2 | S137: 0 | T137: 0 | U137: 0 | W137: 0 | X137: 0 | Y137: 0 | Z137: 0 | AA137: 0 | AB137: 2.847457627 | AC137: 0
A138: 116 | B138: Реконструкция ВЛ-0,4 кВ от КТП Ку 703/250 кВА с заменой КТП | C138: 0 | D138: 0 | K138: 0 | L138: 0 | M138: 0 | N138: 0 | O138: 0 | P138: 0 | Q138: 0.25 | R138: 1.2 | S138: 0 | T138: 0 | U138: 0 | W138: 0 | X138: 0 | Y138: 0 | Z138: 0 | AA138: 0 | AB138: 3.86440678 | AC138: 0
A139: 117 | B139: Реконструкция ВЛ-0,4 кВ от КТП Ч 112/400 кВА с заменой КТП | C139: 0 | D139: 0 | K139: 0 | L139: 0 | M139: 0 | N139: 0 | O139: 0 | P139: 0 | Q139: 0 | R139: 0 | S139: 0.4 | T139: 3.6 | U139: 0 | W139: 0 | X139: 0 | Y139: 0 | Z139: 0 | AA139: 0 | AB139: 0 | AC139: 9.559322034
A140: 118 | B140: Реконструкция ВЛ-0,4 кВ от КТП Ч 1701/160 кВА | C140: 0 | D140: 0 | K140: 0 | L140: 0 | M140: 0 | N140: 0 | O140: 0 | P140: 0 | Q140: 0 | R140: 0 | S140: 0 | T140: 2 | U140: 0 | W140: 0 | X140: 0 | Y140: 0 | Z140: 0 | AA140: 0 | AB140: 0 | AC140: 4.745762712
A141: 119 | B141: Реконструкция ВЛ-0,4 кВ от КТП Ч 303/400 кВА | C141: 0 | D141: 0 | K141: 0 | L141: 0 | M141: 0 | N141: 0 | O141: 0 | P141: 0 | Q141: 0 | R141: 0 | S141: 0 | T141: 2.4 | U141: 0 | W141: 0 | X141: 0 | Y141: 0 | Z141: 0 | AA141: 0 | AB141: 0 | AC141: 5.694915254
A142: 120 | B142: Реконструкция ВЛ-0,4 кВ от ЗТП Ку 1601/160 кВА с заменой трансформатора на 250 кВА | C142: 0 | D142: 0 | K142: 0 | L142: 0 | M142: 0 | N142: 0 | O142: 0 | P142: 0 | Q142: 0 | R142: 0 | S142: 0.25 | T142: 1 | U142: 0 | W142: 0 | X142: 0 | Y142: 0 | Z142: 0 | AA142: 0 | AB142: 0 | AC142: 3.389830508
A143: 121 | B143: Реконструкция КЛ-0,4 кВ от ЗТП Ку 1602/2х250 кВА | C143: 0 | D143: 0 | K143: =C143 -> 0 | L143: =D143 -> 0 | M143: 0 | N143: 0 | O143: 0 | P143: 0 | Q143: 0 | R143: 0 | S143: 0 | T143: 0.6 | U143: 0 | W143: 0 | X143: 0 | Y143: 0 | Z143: 0 | AA143: 0 | AB143: 0 | AC143: 2.033898305
A144: 122 | B144: Реконструкция ВКЛ-0,4 кВ от ЗТП Ку 1603/630 кВА | C144: 0 | D144: 0 | K144: 0 | L144: 0 | M144: 0 | N144: 0 | O144: 0 | P144: 0 | Q144: 0 | R144: 0 | S144: 0 | T144: 2.6 | U144: 0 | W144: 0 | X144: 0 | Y144: 0 | Z144: 0 | AA144: 0 | AB144: 0 | AC144: 6.779661017
A145: 123 | B145: Кинельский район | C145: 0 | D145: 0 | K145: 0 | L145: 0 | M145: 0 | N145: 0 | O145: 0 | P145: 0 | Q145: 0 | R145: 0 | S145: 0 | T145: 0 | U145: 0 | W145: 0 | X145: 0 | Y145: 0 | Z145: 0 | AA145: 0 | AB145: 0 | AC145: 0
A146: 124 | B146: Реконструкция ВЛ-0,4 кВ от КТП Гр 1610/160 кВА с заменой КТП | C146: 0.16 | D146: 2.03 | K146: 0.16 | L146: 2.03 | M146: 0 | N146: 0 | O146: 0 | P146: 0 | Q146: 0 | R146: 0 | S146: 0 | T146: 0 | U146: 6.216949153 | W146: =U146*0.15 -> 0.9325423729 | X146: =U146*0.35 -> 2.175932203 | Y146: =U146*0.5 -> 3.108474576 | Z146: 0 | AA146: 0 | AB146: 0 | AC146: 0
A147: 125 | B147: Реконструкция ВЛ-0,4 кВ от КТП Ком 2004/250кВА с заменой КТП | C147: 0.25 | D147: 1.8 | K147: 0.25 | L147: 1.8 | M147: 0 | N147: 0 | O147: 0 | P147: 0 | Q147: 0 | R147: 0 | S147: 0 | T147: 0 | U147: 6.889830508 | W147: 1.033474576 | X147: 2.411440678 | Y147: 3.444915254 | Z147: 0 | AA147: 0 | AB147: 0 | AC147: 0
A148: 126 | B148: Реконструкция ВЛ-0,4кВ от ЗТП ММ 213/250 кВА | C148: 0 | D148: 2.4 | K148: 0 | L148: 2.4 | M148: 0 | N148: 0 | O148: 0 | P148: 0 | Q148: 0 | R148: 0 | S148: 0 | T148: 0 | U148: 7.357627119 | W148: 1.103644068 | X148: 2.575169492 | Y148: 3.678813559 | Z148: 0 | AA148: 0 | AB148: 0 | AC148: 0
A149: 127 | B149: Реконструкция ВЛ-0,4 кВ от КТП ММ 612/400кВА с заменой КТП | C149: 0.4 | D149: 1.48 | K149: 0.4 | L149: 1.48 | M149: 0 | N149: 0 | O149: 0 | P149: 0 | Q149: 0 | R149: 0 | S149: 0 | T149: 0 | U149: 5.130508475 | W149: 0.7695762712 | X149: 1.795677966 | Y149: 2.565254237 | Z149: 0 | AA149: 0 | AB149: 0 | AC149: 0
A150: 128 | B150: Реконструкция ВЛ-0,4 кВ от КТП Алк 54/250 кВА с заменой на КТП 400 кВА | C150: 0 | D150: 0 | K150: 0 | L150: 0 | M150: 0.4 | N150: 1.8 | O150: 0 | P150: 0 | Q150: 0 | R150: 0 | S150: 0 | T150: 0 | U150: 0 | W150: 0 | X150: 0 | Y150: 0 | Z150: 5.288135593 | AA150: 0 | AB150: 0 | AC150: 0
A151: 129 | B151: Реконструкция ВЛ-0,4 кВ от КТП Алк 30/160 кВА с заменой на КТП 250 кВА | C151: 0 | D151: 0 | K151: 0 | L151: 0 | M151: 0.25 | N151: 1.45 | O151: 0 | P151: 0 | Q151: 0 | R151: 0 | S151: 0 | T151: 0 | U151: 0 | W151: 0 | X151: 0 | Y151: 0 | Z151: 4.457627119 | AA151: 0 | AB151: 0 | AC151: 0
A152: 130 | B152: Реконструкция ВЛ-0,4кВ от КТП Шев 208/250 кВА | C152: 0 | D152: 0 | K152: 0 | L152: 0 | M152: 0 | N152: 2.22 | O152: 0 | P152: 0 | Q152: 0 | R152: 0 | S152: 0 | T152: 0 | U152: 0 | W152: 0 | X152: 0 | Y152: 0 | Z152: 5.26779661 | AA152: 0 | AB152: 0 | AC152: 0
A153: 131 | B153: Реконструкция ВЛ-0,4кВ от МТП Кр 903/100 кВА с заменой КТП | C153: 0 | D153: 0 | K153: 0 | L153: 0 | M153: 0 | N153: 0 | O153: 0.1 | P153: 1.25 | Q153: 0 | R153: 0 | S153: 0 | T153: 0 | U153: 0 | W153: 0 | X153: 0 | Y153: 0 | Z153: 0 | AA153: 3.983050847 | AB153: 0 | AC153: 0
A154: 132 | B154: Реконструкция ВЛ-0,4кВ от МТП 704/250 кВА с заменой КТП | C154: 0 | D154: 0 | K154: 0 | L154: 0 | M154: 0 | N154: 0 | O154: 0.25 | P154: 1 | Q154: 0 | R154: 0 | S154: 0 | T154: 0 | U154: 0 | W154: 0 | X154: 0 | Y154: 0 | Z154: 0 | AA154: 3.389830508 | AB154: 0 | AC154: 0
A155: 133 | B155: Реконструкция ВЛ-0,4кВ от КТП 210/160 кВА | C155: 0 | D155: 0 | K155: 0 | L155: 0 | M155: 0 | N155: 0 | O155: 0 | P155: 1.45 | Q155: 0 | R155: 0 | S155: 0 | T155: 0 | U155: 0 | W155: 0 | X155: 0 | Y155: 0 | Z155: 0 | AA155: 3.440677966 | AB155: 0 | AC155: 0
A156: 134 | B156: Реконструкция ВЛ-0,4 кВ от КТП Алк 90/160 кВА с заменой КТП | C156: 0 | D156: 0 | K156: 0 | L156: 0 | M156: 0 | N156: 0 | O156: 0 | P156: 0 | Q156: 0.16 | R156: 1 | S156: 0 | T156: 0 | U156: 0 | W156: 0 | X156: 0 | Y156: 0 | Z156: 0 | AA156: 0 | AB156: 3.389830508 | AC156: 0
A157: 135 | B157: Реконструкция ВЛ-0,4 кВ от КТП Алк 91/160 кВА с заменой КТП | C157: 0 | D157: 0 | K157: 0 | L157: 0 | M157: 0 | N157: 0 | O157: 0 | P157: 0 | Q157: 0.16 | R157: 0.65 | S157: 0 | T157: 0 | U157: 0 | W157: 0 | X157: 0 | Y157: 0 | Z157: 0 | AA157: 0 | AB157: 2.559322034 | AC157: 0
A158: 136 | B158: Реконструкция ВЛ-0,4 кВ от ЗТП Ком 2007/400 кВА | C158: 0 | D158: 0 | K158: 0 | L158: 0 | M158: 0 | N158: 0 | O158: 0 | P158: 0 | Q158: 0 | R158: 2 | S158: 0 | T158: 0 | U158: 0 | W158: 0 | X158: 0 | Y158: 0 | Z158: 0 | AA158: 0 | AB158: 4.745762712 | AC158: 0
A159: 137 | B159: Реконструкция ВЛ-0,4 кВ от КТП Тур 717/160 кВА с заменой КТП | C159: 0 | D159: 0 | K159: 0 | L159: 0 | M159: 0 | N159: 0 | O159: 0 | P159: 0 | Q159: 0 | R159: 0 | S159: 0.16 | T159: 0.86 | U159: 0 | W159: 0 | X159: 0 | Y159: 0 | Z159: 0 | AA159: 0 | AB159: 0 | AC159: 3.057627119
A160: 138 | B160: Клявлинский район | C160: 0 | D160: 0 | K160: 0 | L160: 0 | M160: 0 | N160: 0 | O160: 0 | P160: 0 | Q160: 0 | R160: 0 | S160: 0 | T160: 0 | U160: 0 | W160: 0 | X160: 0 | Y160: 0 | Z160: 0 | AA160: 0 | AB160: 0 | AC160: 0
A161: 139 | B161: Реконструкция ВЛ-10 кВ Ф-17 КЛВ | C161: 0 | D161: 0.4 | K161: 0 | L161: 0.4 | M161: 0 | N161: 0 | O161: 0 | P161: 0 | Q161: 0 | R161: 0 | S161: 0 | T161: 0 | U161: 1.640677966 | W161: 0.2461016949 | X161: 0.5742372881 | Y161: 0.8203389831 | Z161: 0 | AA161: 0 | AB161: 0 | AC161: 0
A162: 140 | B162: Реконструкция КЛ-6 кВ ЕЛЗ-4 | C162: 0 | D162: 1.04 | K162: 0 | L162: 1.04 | M162: 0 | N162: 0 | O162: 0 | P162: 0 | Q162: 0 | R162: 0 | S162: 0 | T162: 0 | U162: 4.233050847 | W162: 0.6349576271 | X162: 1.481567797 | Y162: 2.116525424 | Z162: 0 | AA162: 0 | AB162: 0 | AC162: 0
A163: 141 | B163: Реконструкция ВЛ-0,4кВ от КТП КЛВ 418/250кВА с заменой КТП и установкой дополнительной КТП 250кВА для перераспределения нагрузки | C163: 0.5 | D163: 3.56 | K163: 0.5 | L163: 3.56 | M163: 0 | N163: 0 | O163: 0 | P163: 0 | Q163: 0 | R163: 0 | S163: 0 | T163: 0 | U163: 12.26271186 | W163: 1.83940678 | X163: 4.291949153 | Y163: 6.131355932 | Z163: 0 | AA163: 0 | AB163: 0 | AC163: 0
A164: 142 | B164: Реконструкция ВЛ-0,4кВ от КТП КЛВ 1206/400 кВА с заменой КТП и установкой дополнительной КТП 250 кВА для перераспределения нагрузки | C164: 0 | D164: 0 | K164: 0 | L164: 0 | M164: 0.65 | N164: 1.3 | O164: 0 | P164: 0 | Q164: 0 | R164: 0 | S164: 0 | T164: 0 | U164: 0 | W164: 0 | X164: 0 | Y164: 0 | Z164: 5.118644068 | AA164: 0 | AB164: 0 | AC164: 0
A165: 143 | B165: Реконструкция ВЛ-0,4кВ от КТП КЛВ1208/160 кВА с переключением на КТП КЛВ 1206/400 кВА | C165: 0 | D165: 0 | K165: 0 | L165: 0 | M165: 0 | N165: 0.95 | O165: 0 | P165: 0 | Q165: 0 | R165: 0 | S165: 0 | T165: 0 | U165: 0 | W165: 0 | X165: 0 | Y165: 0 | Z165: 2.254237288 | AA165: 0 | AB165: 0 | AC165: 0
A166: 144 | B166: Реконструкция ВЛ-0,4кВ от КТП КЛВ 1209/250 кВА с заменой КТП | C166: 0 | D166: 0 | K166: 0 | L166: 0 | M166: 0.25 | N166: 2.1 | O166: 0 | P166: 0 | Q166: 0 | R166: 0 | S166: 0 | T166: 0 | U166: 0 | W166: 0 | X166: 0 | Y166: 0 | Z166: 6 | AA166: 0 | AB166: 0 | AC166: 0
A167: 145 | B167: Реконструкция ВЛ-0,4кВ от КТП КЛВ 1207/250 кВА | C167: 0 | D167: 0 | K167: 0 | L167: 0 | M167: 0 | N167: 1.5 | O167: 0 | P167: 0 | Q167: 0 | R167: 0 | S167: 0 | T167: 0 | U167: 0 | W167: 0 | X167: 0 | Y167: 0 | Z167: 3.559322034 | AA167: 0 | AB167: 0 | AC167: 0
A168: 146 | B168: Реконструкция ВЛ-0,4кВ от КТП 416/100 кВА с заменой КТП | C168: 0 | D168: 0 | K168: 0 | L168: 0 | M168: 0.1 | N168: 2.1 | O168: 0 | P168: 0 | Q168: 0 | R168: 0 | S168: 0 | T168: 0 | U168: 0 | W168: 0 | X168: 0 | Y168: 0 | Z168: 6 | AA168: 0 | AB168: 0 | AC168: 0
A169: 147 | B169: Реконструкция ВЛ-0,4кВ от КТП КЛВ 421/160 кВА с заменой КТП | C169: 0 | D169: 0 | K169: 0 | L169: 0 | M169: 0 | N169: 0 | O169: 0.16 | P169: 3.1 | Q169: 0 | R169: 0 | S169: 0 | T169: 0 | U169: 0 | W169: 0 | X169: 0 | Y169: 0 | Z169: 0 | AA169: 8.372881356 | AB169: 0 | AC169: 0
A170: 148 | B170: Реконструкция ВЛ-0,4кВ от КТП КЛВ 1404/160 кВА с заменой КТП | C170: 0 | D170: 0 | K170: 0 | L170: 0 | M170: 0 | N170: 0 | O170: 0.16 | P170: 3.1 | Q170: 0 | R170: 0 | S170: 0 | T170: 0 | U170: 0 | W170: 0 | X170: 0 | Y170: 0 | Z170: 0 | AA170: 8.372881356 | AB170: 0 | AC170: 0
A171: 149 | B171: Реконструкция ВЛ-0,4кВ от КТП КЛВ 1412/100 кВА | C171: 0 | D171: 0 | K171: 0 | L171: 0 | M171: 0 | N171: 0 | O171: 0 | P171: 1.78 | Q171: 0 | R171: 0 | S171: 0 | T171: 0 | U171: 0 | W171: 0 | X171: 0 | Y171: 0 | Z171: 0 | AA171: 4.223728814 | AB171: 0 | AC171: 0
A172: 150 | B172: Реконструкция ВЛ-0,4кВ от КТП КЛВ 1411/160 кВА | C172: 0 | D172: 0 | K172: 0 | L172: 0 | M172: 0 | N172: 0 | O172: 0 | P172: 2.1 | Q172: 0 | R172: 0 | S172: 0 | T172: 0 | U172: 0 | W172: 0 | X172: 0 | Y172: 0 | Z172: 0 | AA172: 4.983050847 | AB172: 0 | AC172: 0
A173: 151 | B173: Реконструкция ВЛ-0,4кВ от КТП ЕЛЗ 401/100 кВА | C173: 0 | D173: 0 | K173: 0 | L173: 0 | M173: 0 | N173: 0 | O173: 0 | P173: 0.5 | Q173: 0 | R173: 0 | S173: 0 | T173: 0 | U173: 0 | W173: 0 | X173: 0 | Y173: 0 | Z173: 0 | AA173: 1.186440678 | AB173: 0 | AC173: 0
A174: 152 | B174: Реконструкция ВЛ-0,4кВ от КТП КЛВ1407/250 кВА с заменой КТП | C174: 0 | D174: 0 | K174: 0 | L174: 0 | M174: 0 | N174: 0 | O174: 0 | P174: 0 | Q174: 0.25 | R174: 1.07 | S174: 0 | T174: 0 | U174: 0 | W174: 0 | X174: 0 | Y174: 0 | Z174: 0 | AA174: 0 | AB174: 3.555932203 | AC174: 0
A175: 153 | B175: Реконструкция ВЛ-0,4кВ от КТП КЛВ422/160 кВА с заменой КТП | C175: 0 | D175: 0 | K175: 0 | L175: 0 | M175: 0 | N175: 0 | O175: 0 | P175: 0 | Q175: 0.16 | R175: 1.6 | S175: 0 | T175: 0 | U175: 0 | W175: 0 | X175: 0 | Y175: 0 | Z175: 0 | AA175: 0 | AB175: 4.813559322 | AC175: 0
A176: 154 | B176: Реконструкция ВЛ-0,4кВ от КТП КЛВ1408/160 кВА с заменой КТП | C176: 0 | D176: 0 | K176: 0 | L176: 0 | M176: 0 | N176: 0 | O176: 0 | P176: 0 | Q176: 0.16 | R176: 2.3 | S176: 0 | T176: 0 | U176: 0 | W176: 0 | X176: 0 | Y176: 0 | Z176: 0 | AA176: 0 | AB176: 6.474576271 | AC176: 0
A177: 155 | B177: Реконструкция ВЛ-0,4кВ от КТП КЛВ1017/400 кВА с заменой КТП | C177: 0 | D177: 0 | K177: 0 | L177: 0 | M177: 0 | N177: 0 | O177: 0 | P177: 0 | Q177: 0.4 | R177: 1.1 | S177: 0 | T177: 0 | U177: 0 | W177: 0 | X177: 0 | Y177: 0 | Z177: 0 | AA177: 0 | AB177: 3.627118644 | AC177: 0
A178: 156 | B178: Реконструкция ВЛ-0,4кВ от КТП КЛВ1027/160 кВА с заменой КТП | C178: 0 | D178: 0 | K178: 0 | L178: 0 | M178: 0 | N178: 0 | O178: 0 | P178: 0 | Q178: 0.16 | R178: 0.81 | S178: 0 | T178: 0 | U178: 0 | W178: 0 | X178: 0 | Y178: 0 | Z178: 0 | AA178: 0 | AB178: 2.938983051 | AC178: 0
A179: 157 | B179: Реконструкция ВЛ-0,4кВ от КТП ЧКЛ 703/100 кВА с заменой КТП | C179: 0 | D179: 0 | K179: 0 | L179: 0 | M179: 0 | N179: 0 | O179: 0 | P179: 0 | Q179: 0 | R179: 0 | S179: 0.1 | T179: 4.8 | U179: 0 | W179: 0 | X179: 0 | Y179: 0 | Z179: 0 | AA179: 0 | AB179: 0 | AC179: 12.40677966
A180: 158 | B180: Реконструкция ВЛ-0,4кВ от КТП ЧКЛ 705/160 кВА с заменой КТП | C180: 0 | D180: 0 | K180: 0 | L180: 0 | M180: 0 | N180: 0 | O180: 0 | P180: 0 | Q180: 0 | R180: 0 | S180: 0.16 | T180: 0.65 | U180: 0 | W180: 0 | X180: 0 | Y180: 0 | Z180: 0 | AA180: 0 | AB180: 0 | AC180: 2.559322034
A181: 159 | B181: Реконструкция ВЛ-0,4кВ от КТП ЧКЛ 707/160 кВА с заменой КТП | C181: 0 | D181: 0 | K181: 0 | L181: 0 | M181: 0 | N181: 0 | O181: 0 | P181: 0 | Q181: 0 | R181: 0 | S181: 0.16 | T181: 0.98 | U181: 0 | W181: 0 | X181: 0 | Y181: 0 | Z181: 0 | AA181: 0 | AB181: 0 | AC181: 3.342372881
A182: 160 | B182: Реконструкция ВЛ-0,4кВ от КТП ЧКЛ 708/100 кВА с заменой КТП | C182: 0 | D182: 0 | K182: 0 | L182: 0 | M182: 0 | N182: 0 | O182: 0 | P182: 0 | Q182: 0 | R182: 0 | S182: 0.1 | T182: 3.03 | U182: 0 | W182: 0 | X182: 0 | Y182: 0 | Z182: 0 | AA182: 0 | AB182: 0 | AC182: 8.206779661
A183: 161 | B183: Реконструкция ВЛ-0,4кВ от КТП КЛВ 818/160 кВА с заменой КТП | C183: 0 | D183: 0 | K183: 0 | L183: 0 | M183: 0 | N183: 0 | O183: 0 | P183: 0 | Q183: 0 | R183: 0 | S183: 0.16 | T183: 1.52 | U183: 0 | W183: 0 | X183: 0 | Y183: 0 | Z183: 0 | AA183: 0 | AB183: 0 | AC183: 4.623728814
A184: 162 | B184: Кошкинский район | C184: 0 | D184: 0 | K184: 0 | L184: 0 | M184: 0 | N184: 0 | O184: 0 | P184: 0 | Q184: 0 | R184: 0 | S184: 0 | T184: 0 | U184: 0 | W184: 0 | X184: 0 | Y184: 0 | Z184: 0 | AA184: 0 | AB184: 0 | AC184: 0
A185: 163 | B185: Реконструкция ВЛ-10кВ КШК-7 | C185: 0 | D185: 6 | K185: 0 | L185: 6 | M185: 0 | N185: 0 | O185: 0 | P185: 0 | Q185: 0 | R185: 0 | S185: 0 | T185: 0 | U185: 17.56186441 | W185: 2.634279661 | X185: 6.146652542 | Y185: 8.780932203 | Z185: 0 | AA185: 0 | AB185: 0 | AC185: 0
A186: 164 | B186: Реконструкция ВЛ-10кВ КШК-5 | C186: 0 | D186: 12.1 | K186: 0 | L186: 12.1 | M186: 0 | N186: 0 | O186: 0 | P186: 0 | Q186: 0 | R186: 0 | S186: 0 | T186: 0 | U186: 32.82118644 | W186: 4.923177966 | X186: 11.48741525 | Y186: 16.41059322 | Z186: 0 | AA186: 0 | AB186: 0 | AC186: 0
A187: 165 | B187: Реконструкция ВЛ-0,4 кВ от КТП КРМ 408/160 кВА с заменой КТП на 250 кВА | C187: 0.25 | D187: 2.4 | K187: 0.25 | L187: 2.4 | M187: 0 | N187: 0 | O187: 0 | P187: 0 | Q187: 0 | R187: 0 | S187: 0 | T187: 0 | U187: 6.986440678 | W187: 1.047966102 | X187: 2.445254237 | Y187: 3.493220339 | Z187: 0 | AA187: 0 | AB187: 0 | AC187: 0
A188: 166 | B188: Реконструкция ВЛ-0,4 кВ от КТП КШК 702/250 кВА с заменой КТП | C188: 0.25 | D188: 0.8 | K188: 0.25 | L188: 0.8 | M188: 0 | N188: 0 | O188: 0 | P188: 0 | Q188: 0 | R188: 0 | S188: 0 | T188: 0 | U188: 4.552542373 | W188: 0.6828813559 | X188: 1.593389831 | Y188: 2.276271186 | Z188: 0 | AA188: 0 | AB188: 0 | AC188: 0
A189: 167 | B189: Реконструкция ВЛ-10 кВ КШК-11 | C189: 0 | D189: 0 | K189: 0 | L189: 0 | M189: 0 | N189: 3.47 | O189: 0 | P189: 0 | Q189: 0 | R189: 0 | S189: 0 | T189: 0 | U189: 0 | W189: 0 | X189: 0 | Y189: 0 | Z189: 8.233898305 | AA189: 0 | AB189: 0 | AC189: 0
A190: 168 | B190: Реконструкция ВЛ-0,4 кВ от КТП КШК 510/160 кВА с заменой на КТП 250 кВА | C190: 0 | D190: 0 | K190: 0 | L190: 0 | M190: 0.25 | N190: 2.68 | O190: 0 | P190: 0 | Q190: 0 | R190: 0 | S190: 0 | T190: 0 | U190: 0 | W190: 0 | X190: 0 | Y190: 0 | Z190: 7.376271186 | AA190: 0 | AB190: 0 | AC190: 0
A191: 169 | B191: Реконструкция ВЛ-0,4 кВ от КТП КШК 1103/400 кВА с заменой КТП 400 кВА | C191: 0 | D191: 0 | K191: 0 | L191: 0 | M191: 0.4 | N191: 2.03 | O191: 0 | P191: 0 | Q191: 0 | R191: 0 | S191: 0 | T191: 0 | U191: 0 | W191: 0 | X191: 0 | Y191: 0 | Z191: 5.833898305 | AA191: 0 | AB191: 0 | AC191: 0
A192: 170 | B192: Реконструкция ВЛ-0,4 кВ от КТП КРМ 304/100 кВА с заменой на КТП 160 кВА | C192: 0 | D192: 0 | K192: 0 | L192: 0 | M192: 0.16 | N192: 2 | O192: 0 | P192: 0 | Q192: 0 | R192: 0 | S192: 0 | T192: 0 | U192: 0 | W192: 0 | X192: 0 | Y192: 0 | Z192: 5.762711864 | AA192: 0 | AB192: 0 | AC192: 0
A193: 171 | B193: Реконструкция ВЛ-0,4 кВ от КТП КШК 1108/160 с заменой на КТП 250 кВА | C193: 0 | D193: 0 | K193: 0 | L193: 0 | M193: 0.25 | N193: 2.3 | O193: 0 | P193: 0 | Q193: 0 | R193: 0 | S193: 0 | T193: 0 | U193: 0 | W193: 0 | X193: 0 | Y193: 0 | Z193: 6.474576271 | AA193: 0 | AB193: 0 | AC193: 0
A194: 172 | B194: Реконструкция ВЛ-0,4 кВ от КТП САД 709/160 кВА с заменой КТП на 250 кВА | C194: 0 | D194: 0 | K194: 0 | L194: 0 | M194: 0.25 | N194: 1.3 | O194: 0 | P194: 0 | Q194: 0 | R194: 0 | S194: 0 | T194: 0 | U194: 0 | W194: 0 | X194: 0 | Y194: 0 | Z194: 4.101694915 | AA194: 0 | AB194: 0 | AC194: 0
A195: 173 | B195: Реконструкция ВЛ-0,4 кВ от КТП КШК 109/160 с заменой ЗТП на КТП 160 кВА | C195: 0 | D195: 0 | K195: 0 | L195: 0 | M195: 0 | N195: 0 | O195: 0.16 | P195: 0.4 | Q195: 0 | R195: 0 | S195: 0 | T195: 0 | U195: 0 | W195: 0 | X195: 0 | Y195: 0 | Z195: 0 | AA195: 1.966101695 | AB195: 0 | AC195: 0
A196: 174 | B196: Реконструкция ВЛ-0,4 кВ от КТП КШК 1115/250 с заменой КТП | C196: 0 | D196: 0 | K196: =C196 -> 0 | L196: =D196 -> 0 | M196: 0 | N196: 0 | O196: 0.25 | P196: 1.2 | Q196: 0 | R196: 0 | S196: 0 | T196: 0 | U196: 0 | W196: 0 | X196: 0 | Y196: 0 | Z196: 0 | AA196: 3.86440678 | AB196: 0 | AC196: 0
A197: 175 | B197: Реконструкция ВЛ-0,4 кВ от КТП КШК 1113/250 кВА с заменой КТП | C197: 0 | D197: 0 | K197: 0 | L197: 0 | M197: 0 | N197: 0 | O197: 0.25 | P197: 1.1 | Q197: 0 | R197: 0 | S197: 0 | T197: 0 | U197: 0 | W197: 0 | X197: 0 | Y197: 0 | Z197: 0 | AA197: 3.627118644 | AB197: 0 | AC197: 0
A198: 176 | B198: Реконструкция ВЛ-0,4 кВ от КТП КШК 504/160 с заменой КТП на 250 кВА | C198: 0 | D198: 0 | K198: 0 | L198: 0 | M198: 0 | N198: 0 | O198: 0.25 | P198: 2.5 | Q198: 0 | R198: 0 | S198: 0 | T198: 0 | U198: 0 | W198: 0 | X198: 0 | Y198: 0 | Z198: 0 | AA198: 6.949152542 | AB198: 0 | AC198: 0
A199: 177 | B199: Реконструкция ВЛ-0,4 кВ от КТП КРМ 502/100 кВА с заменой КТП на 63 кВА | C199: 0 | D199: 0 | K199: 0 | L199: 0 | M199: 0 | N199: 0 | O199: 0 | P199: 0 | Q199: 0.063 | R199: 0.2 | S199: 0 | T199: 0 | U199: 0 | W199: =U199*0.15 -> 0 | X199: =U199*0.35 -> 0 | Y199: =U199*0.5 -> 0 | Z199: 0 | AA199: 0 | AB199: 1.491525424 | AC199: 0
A200: 178 | B200: Реконструкция ВЛ-0,4 кВ от КТП КШК 1204/63 кВА с переносом и заменой на КТП | C200: 0 | D200: 0 | K200: 0 | L200: 0 | M200: 0 | N200: 0 | O200: 0 | P200: 0 | Q200: 0.063 | R200: 0.2 | S200: 0 | T200: 0 | U200: 0 | W200: 0 | X200: 0 | Y200: 0 | Z200: 0 | AA200: 0 | AB200: 1.491525424 | AC200: 0
A201: 179 | B201: Реконструкция ВЛ-0,4 кВ от ЗТП САД 703/400 кВА с заменой КТП на 400 кВА | C201: 0 | D201: 0 | K201: 0 | L201: 0 | M201: 0 | N201: 0 | O201: 0 | P201: 0 | Q201: 0.4 | R201: 0.1 | S201: 0 | T201: 0 | U201: 0 | W201: 0 | X201: 0 | Y201: 0 | Z201: 0 | AA201: 0 | AB201: 1.254237288 | AC201: 0
A202: 180 | B202: Реконструкция ВЛ-0,4 кВ от КТП НБК 117/160 кВА с заменой КТП на 63 кВА | C202: 0 | D202: 0 | K202: 0 | L202: 0 | M202: 0 | N202: 0 | O202: 0 | P202: 0 | Q202: 0.063 | R202: 0.5 | S202: 0 | T202: 0 | U202: 0 | W202: 0 | X202: 0 | Y202: 0 | Z202: 0 | AA202: 0 | AB202: 2.203389831 | AC202: 0
A203: 181 | B203: Реконструкция ВЛ-0,4 кВ от ЗТП КШК 1301/400*2 с заменой ЗТП на КТП 400/*2 кВА | C203: 0 | D203: 0 | K203: 0 | L203: 0 | M203: 0 | N203: 0 | O203: 0 | P203: 0 | Q203: 0 | R203: 0 | S203: 0.8 | T203: 0.75 | U203: 0 | W203: 0 | X203: 0 | Y203: 0 | Z203: 0 | AA203: 0 | AB203: 0 | AC203: 2.796610169
A204: 182 | B204: Реконструкция ВЛ-0,4 кВ от КТП КШК 506/250 кВА с заменой КТП | C204: 0 | D204: 0 | K204: 0 | L204: 0 | M204: 0 | N204: 0 | O204: 0 | P204: 0 | Q204: 0 | R204: 0 | S204: 0.25 | T204: 2.7 | U204: 0 | W204: 0 | X204: 0 | Y204: 0 | Z204: 0 | AA204: 0 | AB204: 0 | AC204: 7.423728814
A205: 183 | B205: Реконструкция ВЛ-0,4 кВ от КТП КШК 908/100 кВА с заменой КТП на 250 кВА | C205: 0 | D205: 0 | K205: 0 | L205: 0 | M205: 0 | N205: 0 | O205: 0 | P205: 0 | Q205: 0 | R205: 0 | S205: 0.25 | T205: 0.2 | U205: 0 | W205: 0 | X205: 0 | Y205: 0 | Z205: 0 | AA205: 0 | AB205: 0 | AC205: 1.491525424
A206: 184 | B206: Красноармейский район | C206: 0 | D206: 0 | K206: 0 | L206: 0 | M206: 0 | N206: 0 | O206: 0 | P206: 0 | Q206: 0 | R206: 0 | S206: 0 | T206: 0 | U206: 0 | W206: 0 | X206: 0 | Y206: 0 | Z206: 0 | AA206: 0 | AB206: 0 | AC206: 0
A207: 185 | B207: Реконструкция ВЛ-10 кВ Ф-7 ПС Колдыбань | C207: 0 | D207: 2.9 | K207: 0 | L207: 2.9 | M207: 0 | N207: 4.61 | O207: 0 | P207: 0 | Q207: 0 | R207: 0 | S207: 0 | T207: 0 | U207: 9.849152542 | W207: 1.477372881 | X207: 3.44720339 | Y207: 4.924576271 | Z207: 10.93898305 | AA207: 0 | AB207: 0 | AC207: 0
A208: 186 | B208: Реконструкция ВЛ-10 кВ Ф-2 ПС Колдыбань | C208: 0 | D208: 0.54 | K208: 0 | L208: 0.54 | M208: 0 | N208: 0 | O208: 0 | P208: 0 | Q208: 0 | R208: 0 | S208: 0 | T208: 0 | U208: 2.509322034 | W208: 0.3763983051 | X208: 0.8782627119 | Y208: 1.254661017 | Z208: 0 | AA208: 0 | AB208: 0 | AC208: 0
... 231 more rows

Sheet приложение 1.1
AW1: Приложение № 1.1
AW2: к приказу Минэнерго России
AW3: от «24» марта 2010 г. № 114
A5: Перечень инвестиционных проектов АО "Самарская сетевая компания" на период реализации инвестиционной программы и план их финансирования
A6: 2016 - 2020 г.г.
AT7: Утверждаю
AW8: Генеральный директор АО "ССК"
AW9: Мухаметшин В. С.
AS10: _____________
AR11: «___»______________ 2016 года
AR12: М.П.
A15: № | B15: Наименование объекта | C15: Стадия реализации проекта | D15: Проектная мощность/ протяженность сетей | I15: год начала сроительства | J15: год окончания строительства | K15: Полная стоимость строительства ** | L15: Остаточная стоимость строительства ** | M15: План финансирования текущего года
N16: План 2016 года | S16: План 2017 года | X16: План 2018 года | AC16: План 2019 года | AH16: План 2020 года | AM16: Итого | AR16: План 2016 года | AS16: План 2017 года | AT16: План 2018 года | AU16: План 2019 года | AV16: План 2020 года | AW16: Итого без НДС
C17: С/П* | D17: МВт/км/МВА | K17: млн.рублей | L17: млн.рублей | M17: млн.рублей | N17: МВт/км/МВА | S17: МВт/км/МВА | X17: МВт/км/МВА | AC17: МВт/км/МВА | AH17: МВт/км/МВА | AM17: МВт/км/МВА | AR17: млн.рублей | AS17: млн.рублей | AT17: млн.рублей | AU17: млн.рублей | AV17: млн.рублей | AW17: млн.рублей
A18: 1 | B18: 2 | C18: 3 | D18: 4 | I18: 5 | J18: 6 | K18: 7 | L18: 8 | M18: 9 | N18: 10 | S18: 11 | X18: 12 | AC18: 13 | AH18: 14 | AM18: 15 | AR18: 16 | AS18: 17 | AT18: 18 | AU18: 19 | AV18: 20 | AW18: 21
B19: ВСЕГО | D19: 44.61 | F19: 2335.88 | G19: / | H19: 639.799 | K19: 17818.3927 | N19: 9 | O19: / | P19: 264.88 | Q19: / | R19: 32.34 | S19: 7.98 | T19: / | U19: 537.24 | V19: / | W19: 80.35 | X19: 9.15 | Y19: / | Z19: 529.375 | AA19: / | AB19: 113.27 | AC19: 9.75 | AD19: / | AE19: 500.385 | AF19: / | AG19: 238.459 | AH19: 8.73 | AI19: / | AJ19: 504 | AK19: / | AL19: 175.38 | AM19: 44.61 | AN19: / | AO19: 2335.88 | AP19: / | AQ19: 639.799 | AR19: 1756.577823 | AS19: 2898.651847 | AT19: 3199.735424 | AU19: 3486.355932 | AV19: 3759.005508 | AW19: 15100.32653
A20: 1 | B20: Техническое перевооружение и реконструкция | F20: 2045.84 | G20: / | H20: 594.239 | K20: 15690.33022 | P20: 216.24 | Q20: / | R20: 18.18 | S20: 0 | T20: / | U20: 476.84 | V20: / | W20: 71.63 | X20: 0 | Y20: 0 | Z20: 465.975 | AA20: / | AB20: 106.07 | AC20: 0 | AD20: 0 | AE20: 436.585 | AF20: / | AG20: 230.519 | AH20: 0 | AI20: 0 | AJ20: 450.2 | AK20: / | AL20: 167.84 | AM20: 0 | AN20: 0 | AO20: 2045.84 | AP20: / | AQ20: 594.239 | AR20: 1381.885046 | AS20: 2578.511847 | AT20: 2828.225424 | AU20: 3102.955932 | AV20: 3405.305508 | AW20: 13296.88376
A21: 1.1. | B21: Энергосбережение и повышение энергетической эффективности | F21: 2045.84 | G21: / | H21: 594.239 | K21: 15236.63384 | P21: 216.24 | Q21: / | R21: 18.18 | S21: 0 | T21: / | U21: 476.84 | V21: / | W21: 71.63 | X21: 0 | Y21: 0 | Z21: 465.975 | AA21: / | AB21: 106.07 | AC21: 0 | AD21: 0 | AE21: 436.585 | AF21: / | AG21: 230.519 | AH21: 0 | AI21: 0 | AJ21: 450.2 | AK21: / | AL21: 167.84 | AM21: 0 | AN21: 0 | AO21: 2045.84 | AP21: / | AQ21: 594.239 | AR21: 1299.995301 | AS21: 2507.689831 | AT21: 2754.50339 | AU21: 3030.842373 | AV21: 3319.364407 | AW21: 12912.3953
A22: 1 | B22: Алексеевский район | BA22: 2017 | BB22: 2018 | BC22: 2019 | BD22: 2020
A23: 2 | B23: Реконструкция ВЛ-0,4кВ от КТП А 1917/160 кВА с заменой КТП на 250 кВА | F23: 3 | G23: / | H23: 0.25 | I23: 2016 | J23: 2016 | K23: 12.8 | P23: 3 | Q23: / | R23: 0.25 | U23: 0 | W23: 0 | Z23: 0 | AB23: 0 | AE23: 0 | AG23: 0 | AJ23: 0 | AL23: 0 | AO23: 3 | AP23: / | AQ23: 0.25 | AR23: 10.84745763 | AS23: 0 | AT23: 0 | AU23: 0 | AV23: 0 | AW23: 10.84745763 | BE23: =IF(ISNA(AZ23),IF(ISNA(BA23),IF(ISNA(BB23),IF(ISNA(BC23),IF(ISNA(BD23),"",BD23),BC23),BB23),BA23),AZ23) -> 0
A24: 3 | B24: Реконструкция ВЛ-10 кВ Ф-17 ПС Алексеевка | F24: 4.6 | G24: / | H24: 0 | I24: 2016 | J24: 2016 | K24: 10.679 | P24: 4.6 | Q24: / | R24: 0 | U24: 0 | W24: 0 | Z24: 0 | AB24: 0 | AE24: 0 | AG24: 0 | AJ24: 0 | AL24: 0 | AO24: 4.6 | AP24: / | AQ24: 0 | AR24: 9.05 | AS24: 0 | AT24: 0 | AU24: 0 | AV24: 0 | AW24: 9.05 | BE24: 2016
A25: 4 | B25: Реконструкция ВЛ-0,4кВ от КТП А 2109/160 кВА с заменой КТП | F25: 2.81 | G25: / | H25: 0.16 | I25: 2017 | J25: 2017 | K25: 9.068 | P25: 0 | R25: 0 | U25: 2.81 | V25: / | W25: 0.16 | Z25: 0 | AB25: 0 | AE25: 0 | AG25: 0 | AJ25: 0 | AL25: 0 | AO25: 2.81 | AP25: / | AQ25: 0.16 | AR25: 0 | AS25: 7.684745763 | AT25: 0 | AU25: 0 | AV25: 0 | AW25: 7.684745763
A26: 5 | B26: Реконструкция ВЛ-0,4кВ от КТП А 216/250 кВА с заменой КТП | F26: 4.52 | G26: / | H26: 0.25 | I26: 2017 | J26: 2017 | K26: 13.856 | P26: 0 | R26: 0 | U26: 4.52 | V26: / | W26: 0.25 | Z26: 0 | AB26: 0 | AE26: 0 | AG26: 0 | AJ26: 0 | AL26: 0 | AO26: 4.52 | AP26: / | AQ26: 0.25 | AR26: 0 | AS26: 11.74237288 | AT26: 0 | AU26: 0 | AV26: 0 | AW26: 11.74237288
A27: 6 | B27: Реконструкция ВЛ-0,4кВ от КТП А 207/250 кВА с заменой КТП | F27: 1.92 | G27: / | H27: 0.25 | I27: 2018 | J27: 2018 | K27: 6.576 | P27: 0 | R27: 0 | U27: 0 | W27: 0 | Z27: 1.92 | AA27: / | AB27: 0.25 | AE27: 0 | AG27: 0 | AJ27: 0 | AL27: 0 | AO27: 1.92 | AP27: / | AQ27: 0.25 | AR27: 0 | AS27: 0 | AT27: 5.572881356 | AU27: 0 | AV27: 0 | AW27: 5.572881356
A28: 7 | B28: Реконструкция ВЛ-0,4кВ от КТП А 203/250 кВА с заменой КТП | F28: 4.67 | G28: / | H28: 0.25 | I28: 2018 | J28: 2018 | K28: 14.276 | P28: 0 | R28: 0 | U28: 0 | W28: 0 | Z28: 4.67 | AA28: / | AB28: 0.25 | AE28: 0 | AG28: 0 | AJ28: 0 | AL28: 0 | AO28: 4.67 | AP28: / | AQ28: 0.25 | AR28: 0 | AS28: 0 | AT28: 12.09830508 | AU28: 0 | AV28: 0 | AW28: 12.09830508
A29: 8 | B29: Реконструкция ВЛ-0,4кВ от КТП А 2101/160 кВА с заменой КТП | F29: 2.92 | G29: / | H29: 0.16 | I29: 2019 | J29: 2019 | K29: 9.376 | P29: 0 | R29: 0 | U29: 0 | W29: 0 | Z29: 0 | AB29: 0 | AE29: 2.92 | AF29: / | AG29: 0.16 | AJ29: 0 | AL29: 0 | AO29: 2.92 | AP29: / | AQ29: 0.16 | AR29: 0 | AS29: 0 | AT29: 0 | AU29: 7.945762712 | AV29: 0 | AW29: 7.945762712
A30: 9 | B30: Реконструкция ВЛ-0,4кВ от КТП А 217/400 кВА с заменой КТП | F30: 3.08 | G30: / | H30: 0.4 | I30: 2019 | J30: 2019 | K30: 9.824 | P30: 0 | R30: 0 | U30: 0 | W30: 0 | Z30: 0 | AB30: 0 | AE30: 3.08 | AF30: / | AG30: 0.4 | AJ30: 0 | AL30: 0 | AO30: 3.08 | AP30: / | AQ30: 0.4 | AR30: 0 | AS30: 0 | AT30: 0 | AU30: 8.325423729 | AV30: 0 | AW30: 8.325423729
A31: 10 | B31: Реконструкция ВЛ-0,4кВ от КТП А 2003/400 кВА с заменой КТП | F31: 1.035 | G31: / | H31: 0.4 | I31: 2020 | J31: 2020 | K31: 4.098 | P31: 0 | R31: 0 | U31: 0 | W31: 0 | Z31: 0 | AB31: 0 | AE31: 0 | AG31: 0 | AJ31: 1.035 | AK31: / | AL31: 0.4 | AO31: 1.035 | AP31: / | AQ31: 0.4 | AR31: 0 | AS31: 0 | AT31: 0 | AU31: 0 | AV31: 3.472881356 | AW31: 3.472881356
A32: 11 | B32: Реконструкция ВЛ-0,4кВ от КТП А 2110/160 кВА с заменой КТП | F32: 1.6 | G32: / | H32: 0.16 | I32: 2020 | J32: 2020 | K32: 5.68 | P32: 0 | R32: 0 | U32: 0 | W32: 0 | Z32: 0 | AB32: 0 | AE32: 0 | AG32: 0 | AJ32: 1.6 | AK32: / | AL32: 0.16 | AO32: 1.6 | AP32: / | AQ32: 0.16 | AR32: 0 | AS32: 0 | AT32: 0 | AU32: 0 | AV32: 4.813559322 | AW32: 4.813559322
A33: 12 | B33: Больше-Черниговский район | F33: 0 | H33: 0 | I33: 0 | J33: 0 | K33: 0 | P33: 0 | R33: 0 | U33: 0 | W33: 0 | Z33: 0 | AB33: 0 | AE33: 0 | AG33: 0 | AJ33: 0 | AL33: 0 | AO33: 0 | AQ33: 0 | AR33: 0 | AS33: 0 | AT33: 0 | AU33: 0 | AV33: 0 | AW33: 0
A34: 13 | B34: Реконструкция ВЛ-0,4кВ от ЗТП 1208/400 кВА с заменой ЗТП на КТП | F34: 1.58 | G34: / | H34: 0.4 | I34: 2016 | J34: 2016 | K34: 7.076 | P34: 1.58 | Q34: / | R34: 0.4 | U34: 0 | W34: 0 | Z34: 0 | AB34: 0 | AE34: 0 | AG34: 0 | AJ34: 0 | AL34: 0 | AO34: 1.58 | AP34: / | AQ34: 0.4 | AR34: 5.996610169 | AS34: 0 | AT34: 0 | AU34: 0 | AV34: 0 | AW34: 5.996610169
A35: 14 | B35: Реконструкция ВЛ-0,4кВ от КТП 1204/400 кВА с заменой КТП | F35: 0.7 | G35: / | H35: 0.4 | I35: 2017 | J35: 2017 | K35: 3.16 | P35: 0 | R35: 0 | U35: 0.7 | V35: / | W35: 0.4 | Z35: 0 | AB35: 0 | AE35: 0 | AG35: 0 | AJ35: 0 | AL35: 0 | AO35: 0.7 | AP35: / | AQ35: 0.4 | AR35: 0 | AS35: 2.677966102 | AT35: 0 | AU35: 0 | AV35: 0 | AW35: 2.677966102
A36: 15 | B36: Реконструкция ВЛ-0,4кВ от КТП 1205/400 кВА с заменой КТП | F36: 1.68 | G36: / | H36: 0.4 | I36: 2017 | J36: 2017 | K36: 5.904 | P36: 0 | R36: 0 | U36: 1.68 | V36: / | W36: 0.4 | Z36: 0 | AB36: 0 | AE36: 0 | AG36: 0 | AJ36: 0 | AL36: 0 | AO36: 1.68 | AP36: / | AQ36: 0.4 | AR36: 0 | AS36: 5.003389831 | AT36: 0 | AU36: 0 | AV36: 0 | AW36: 5.003389831
A37: 16 | B37: Реконструкция ВЛ-0,4кВ от КТП 1206/160 кВА с заменой КТП | F37: 2.2 | G37: / | H37: 0.16 | I37: 2017 | J37: 2017 | K37: 7.36 | P37: 0 | R37: 0 | U37: 2.2 | V37: / | W37: 0.16 | Z37: 0 | AB37: 0 | AE37: 0 | AG37: 0 | AJ37: 0 | AL37: 0 | AO37: 2.2 | AP37: / | AQ37: 0.16 | AR37: 0 | AS37: 6.237288136 | AT37: 0 | AU37: 0 | AV37: 0 | AW37: 6.237288136
A38: 17 | B38: Реконструкция ВЛ-0,4кВ от КТП 415/250 кВА с заменой КТП | F38: 0.8 | G38: / | H38: 0.25 | I38: 2016 | J38: 2016 | K38: 3.44 | P38: 0 | R38: 0 | U38: 0.8 | V38: / | W38: 0.25 | Z38: 0 | AB38: 0 | AE38: 0 | AG38: 0 | AJ38: 0 | AL38: 0 | AO38: 0.8 | AP38: / | AQ38: 0.25 | AR38: 0 | AS38: 2.915254237 | AT38: 0 | AU38: 0 | AV38: 0 | AW38: 2.915254237
A39: 18 | B39: Реконструкция ВЛ-0,4кВ от КТП 709/250 кВА с заменой КТП | F39: 0.42 | G39: / | H39: 0.25 | I39: 2018 | J39: 2018 | K39: 2.376 | P39: 0 | R39: 0 | U39: 0 | W39: 0 | Z39: 0.42 | AA39: / | AB39: 0.25 | AE39: 0 | AG39: 0 | AJ39: 0 | AL39: 0 | AO39: 0.42 | AP39: / | AQ39: 0.25 | AR39: 0 | AS39: 0 | AT39: 2.013559322 | AU39: 0 | AV39: 0 | AW39: 2.013559322
A40: 19 | B40: Реконструкция ВЛ-0,4кВ от КТП 501/320 кВА с заменой КТП | F40: 0.42 | G40: / | H40: 0.32 | I40: 2018 | J40: 2018 | K40: 2.376 | P40: 0 | R40: 0 | U40: 0 | W40: 0 | Z40: 0.42 | AA40: / | AB40: 0.32 | AE40: 0 | AG40: 0 | AJ40: 0 | AL40: 0 | AO40: 0.42 | AP40: / | AQ40: 0.32 | AR40: 0 | AS40: 0 | AT40: 2.013559322 | AU40: 0 | AV40: 0 | AW40: 2.013559322
A41: 20 | B41: Реконструкция ВЛ-0,4кВ от КТП 809/100 кВА с заменой КТП | F41: 1.36 | G41: / | H41: 0.1 | I41: 2019 | J41: 2019 | K41: 5.008 | P41: 0 | R41: 0 | U41: 0 | W41: 0 | Z41: 0 | AB41: 0 | AE41: 1.36 | AF41: / | AG41: 0.1 | AJ41: 0 | AL41: 0 | AO41: 1.36 | AP41: / | AQ41: 0.1 | AR41: 0 | AS41: 0 | AT41: 0 | AU41: 4.244067797 | AV41: 0 | AW41: 4.244067797
A42: 21 | B42: Реконструкция ВЛ-0,4кВ от КТП 201/400 кВА с заменой КТП | F42: 1.6 | G42: / | H42: 0.4 | I42: 2019 | J42: 2019 | K42: 5.68 | P42: 0 | R42: 0 | U42: 0 | W42: 0 | Z42: 0 | AB42: 0 | AE42: 1.6 | AF42: / | AG42: 0.4 | AJ42: 0 | AL42: 0 | AO42: 1.6 | AP42: / | AQ42: 0.4 | AR42: 0 | AS42: 0 | AT42: 0 | AU42: 4.813559322 | AV42: 0 | AW42: 4.813559322
A43: 22 | B43: Реконструкция ВЛ-0,4кВ от КТП 109/400 кВА с заменой КТП | F43: 1.22 | G43: / | H43: 0.4 | I43: 2019 | J43: 2019 | K43: 4.616 | P43: 0 | R43: 0 | U43: 0 | W43: 0 | Z43: 0 | AB43: 0 | AE43: 1.22 | AF43: / | AG43: 0.4 | AJ43: 0 | AL43: 0 | AO43: 1.22 | AP43: / | AQ43: 0.4 | AR43: 0 | AS43: 0 | AT43: 0 | AU43: 3.911864407 | AV43: 0 | AW43: 3.911864407
A44: 23 | B44: Реконструкция ВЛ-0,4кВ от КТП 905/400 кВА с заменой КТП | F44: 1.62 | G44: / | H44: 0.4 | I44: 2019 | J44: 2019 | K44: 5.736 | P44: 0 | R44: 0 | U44: 0 | W44: 0 | Z44: 0 | AB44: 0 | AE44: 1.62 | AF44: / | AG44: 0.4 | AJ44: 0 | AL44: 0 | AO44: 1.62 | AP44: / | AQ44: 0.4 | AR44: 0 | AS44: 0 | AT44: 0 | AU44: 4.861016949 | AV44: 0 | AW44: 4.861016949
A45: 24 | B45: Реконструкция ВЛ-0,4кВ от КТП 114/400 кВА с заменой КТП | F45: 0.72 | G45: / | H45: 0.4 | I45: 2020 | J45: 2020 | K45: 3.216 | P45: 0 | R45: 0 | U45: 0 | W45: 0 | Z45: 0 | AB45: 0 | AE45: 0 | AG45: 0 | AJ45: 0.72 | AK45: / | AL45: 0.4 | AO45: 0.72 | AP45: / | AQ45: 0.4 | AR45: 0 | AS45: 0 | AT45: 0 | AU45: 0 | AV45: 2.725423729 | AW45: 2.725423729
A46: 25 | B46: Реконструкция ВЛ-0,4кВ от КТП 407/400 кВА с заменой КТП | F46: 0.52 | G46: / | H46: 0.4 | I46: 2020 | J46: 2020 | K46: 2.656 | P46: 0 | R46: 0 | U46: 0 | W46: 0 | Z46: 0 | AB46: 0 | AE46: 0 | AG46: 0 | AJ46: 0.52 | AK46: / | AL46: 0.4 | AO46: 0.52 | AP46: / | AQ46: 0.4 | AR46: 0 | AS46: 0 | AT46: 0 | AU46: 0 | AV46: 2.250847458 | AW46: 2.250847458
A47: 26 | B47: Реконструкция ВЛ-0,4кВ от КТП 122/400 кВА с заменой КТП | F47: 1.9 | G47: / | H47: 0.4 | I47: 2020 | J47: 2020 | K47: 2.656 | P47: 0 | R47: 0 | U47: 0 | W47: 0 | Z47: 0 | AB47: 0 | AE47: 0 | AG47: 0 | AJ47: 1.9 | AK47: / | AL47: 0.4 | AO47: 1.9 | AP47: / | AQ47: 0.4 | AR47: 0 | AS47: 0 | AT47: 0 | AU47: 0 | AV47: 2.250847458 | AW47: 2.250847458
A48: 27 | B48: Реконструкция ВЛ-0,4кВ от КТП 906/250 кВА с заменой КТП | F48: 3.85 | G48: / | H48: 0.25 | I48: 2020 | J48: 2020 | K48: 11.98 | P48: 0 | R48: 0 | U48: 0 | W48: 0 | Z48: 0 | AB48: 0 | AE48: 0 | AG48: 0 | AJ48: 3.85 | AK48: / | AL48: 0.25 | AO48: 3.85 | AP48: / | AQ48: 0.25 | AR48: 0 | AS48: 0 | AT48: 0 | AU48: 0 | AV48: 10.15254237 | AW48: 10.15254237
A49: 28 | B49: Волжский район | F49: 0 | H49: 0 | I49: 0 | J49: 0 | K49: 0 | P49: 0 | R49: 0 | U49: 0 | W49: 0 | Z49: 0 | AB49: 0 | AE49: 0 | AG49: 0 | AJ49: 0 | AL49: 0 | AO49: 0 | AQ49: 0 | AR49: 0 | AS49: 0 | AT49: 0 | AU49: 0 | AV49: 0 | AW49: 0
A50: 29 | B50: Повышение надежности энергоснабжения электросетевого района с. Лопатино | F50: 0 | G50: / | H50: 0 | I50: 2016 | J50: 2016 | K50: 13.076 | P50: 0 | R50: 0 | U50: 0 | W50: 0 | Z50: 0 | AB50: 0 | AE50: 0 | AG50: 0 | AJ50: 0 | AL50: 0 | AO50: 0 | AP50: / | AQ50: 0 | AR50: 11.08135593 | AS50: 0 | AT50: 0 | AU50: 0 | AV50: 0 | AW50: 11.08135593
A51: 30 | B51: Реконструкция ВЛ-0,4кВ от КТП Р 603/250 кВА с заменой КТП | F51: 2 | G51: / | H51: 0.25 | I51: 2016 | J51: 2016 | K51: 8.486 | P51: 2 | Q51: / | R51: 0.25 | U51: 0 | W51: 0 | Z51: 0 | AB51: 0 | AE51: 0 | AG51: 0 | AJ51: 0 | AL51: 0 | AO51: 2 | AP51: / | AQ51: 0.25 | AR51: 7.191525424 | AS51: 0 | AT51: 0 | AU51: 0 | AV51: 0 | AW51: 7.191525424
A52: 31 | B52: Реконструкция ВЛ-6 кВ Кур-9 | F52: 1.1 | G52: / | H52: 0 | I52: 2016 | J52: 2016 | K52: 3.582 | P52: 1.1 | Q52: / | R52: 0 | U52: 0 | W52: 0 | Z52: 0 | AB52: 0 | AE52: 0 | AG52: 0 | AJ52: 0 | AL52: 0 | AO52: 1.1 | AP52: / | AQ52: 0 | AR52: 3.03559322 | AS52: 0 | AT52: 0 | AU52: 0 | AV52: 0 | AW52: 3.03559322
A53: 32 | B53: Реконструкция ВЛ-6 кВ Кур-12 | F53: 0.17 | G53: / | H53: 0 | I53: 2016 | J53: 2016 | K53: 0.59 | P53: 0.17 | Q53: / | R53: 0 | U53: 0 | W53: 0 | Z53: 0 | AB53: 0 | AE53: 0 | AG53: 0 | AJ53: 0 | AL53: 0 | AO53: 0.17 | AP53: / | AQ53: 0 | AR53: 0.5 | AS53: 0 | AT53: 0 | AU53: 0 | AV53: 0 | AW53: 0.5
A54: 33 | B54: Реконструкция ВЛ-0,4кВ от ЗТП Кур 1621/160 кВА с заменой ЗТП на КТП 400 кВА | F54: 0.3 | G54: / | H54: 0.4 | I54: 2016 | J54: 2016 | K54: 3.102 | P54: 0.3 | Q54: / | R54: 0.4 | U54: 0 | W54: 0 | Z54: 0 | AB54: 0 | AE54: 0 | AG54: 0 | AJ54: 0 | AL54: 0 | AO54: 0.3 | AP54: / | AQ54: 0.4 | AR54: 2.628813559 | AS54: 0 | AT54: 0 | AU54: 0 | AV54: 0 | AW54: 2.628813559
A55: 34 | B55: Реконструкция ВЛ-10 кВ Ф-3 ПС Выползово | F55: 1.8 | G55: / | H55: 0 | I55: 2016 | J55: 2016 | K55: 4.975 | P55: 1.8 | Q55: / | R55: 0 | U55: 0 | W55: 0 | Z55: 0 | AB55: 0 | AE55: 0 | AG55: 0 | AJ55: 0 | AL55: 0 | AO55: 1.8 | AP55: / | AQ55: 0 | AR55: 4.216101695 | AS55: 0 | AT55: 0 | AU55: 0 | AV55: 0 | AW55: 4.216101695
A56: 35 | B56: Реконструкция ВЛ-0,4 кВ от КТП Р 306/250 кВА с заменой КТП | F56: 3.5 | G56: / | H56: 0.25 | I56: 2016 | J56: 2016 | K56: 8.35 | P56: 3.5 | Q56: / | R56: 0.25 | U56: 0 | W56: 0 | Z56: 0 | AB56: 0 | AE56: 0 | AG56: 0 | AJ56: 0 | AL56: 0 | AO56: 3.5 | AP56: / | AQ56: 0.25 | AR56: 7.07 | AS56: 0 | AT56: 0 | AU56: 0 | AV56: 0 | AW56: 7.07
A57: 36 | B57: Реконструкция ВЛ-0,4 кВ от КТП Р 213/100 кВА с заменой КТП на 160 кВА | F57: 0.95 | G57: / | H57: 0.16 | I57: 2016 | J57: 2016 | K57: 3.232 | P57: 0.95 | Q57: / | R57: 0.16 | U57: 0 | W57: 0 | Z57: 0 | AB57: 0 | AE57: 0 | AG57: 0 | AJ57: 0 | AL57: 0 | AO57: 0.95 | AP57: / | AQ57: 0.16 | AR57: 2.738983051 | AS57: 0 | AT57: 0 | AU57: 0 | AV57: 0 | AW57: 2.738983051
A58: 37 | B58: Реконструкция ВЛ-10 кВ Ф-21 от КТП 2106 до оп. №2100/26 с заменой КТП на 250 кВА | F58: 1 | G58: / | H58: 0.25 | I58: 2016 | J58: 2016 | K58: 3.501 | P58: 1 | Q58: / | R58: 0.25 | U58: 0 | W58: 0 | Z58: 0 | AB58: 0 | AE58: 0 | AG58: 0 | AJ58: 0 | AL58: 0 | AO58: 1 | AP58: / | AQ58: 0.25 | AR58: 2.966949153 | AS58: 0 | AT58: 0 | AU58: 0 | AV58: 0 | AW58: 2.966949153
A59: 38 | B59: Реконструкция ВЛ-10 кВ Ф-23 от КТП 2309 до оп №2300/8 с заменой КТП на 630 кВА | F59: 0.34 | G59: / | H59: 0.63 | I59: 2016 | J59: 2016 | K59: 3.349 | P59: 0.34 | Q59: / | R59: 0.63 | U59: 0 | W59: 0 | Z59: 0 | AB59: 0 | AE59: 0 | AG59: 0 | AJ59: 0 | AL59: 0 | AO59: 0.34 | AP59: / | AQ59: 0.63 | AR59: 2.838135593 | AS59: 0 | AT59: 0 | AU59: 0 | AV59: 0 | AW59: 2.838135593
A60: 39 | B60: Реконструкция ВЛ-6 кВ Ф-6 от ТП 603 до оп. № 613/1 с заменой КТП на 250 кВА | F60: 0.05 | G60: / | H60: 0.25 | I60: 2016 | J60: 2016 | K60: 1.566 | P60: 0.05 | Q60: / | R60: 0.25 | U60: 0 | W60: 0 | Z60: 0 | AB60: 0 | AE60: 0 | AG60: 0 | AJ60: 0 | AL60: 0 | AO60: 0.05 | AP60: / | AQ60: 0.25 | AR60: 1.327118644 | AS60: 0 | AT60: 0 | AU60: 0 | AV60: 0 | AW60: 1.327118644
A61: 40 | B61: Реконструкция ВЛ-6 кВ Ф-2 от ТП Подлесная до опоры № 201/1 с заменой КТП на 400 кВА | F61: 1.05 | G61: / | H61: 0.4 | I61: 2016 | J61: 2016 | K61: 4.052 | P61: 1.05 | Q61: / | R61: 0.4 | U61: 0 | W61: 0 | Z61: 0 | AB61: 0 | AE61: 0 | AG61: 0 | AJ61: 0 | AL61: 0 | AO61: 1.05 | AP61: / | AQ61: 0.4 | AR61: 3.433898305 | AS61: 0 | AT61: 0 | AU61: 0 | AV61: 0 | AW61: 3.433898305
A62: 41 | B62: Реконструкция ВЛ-6 кВ Ф-13 от ТП 21 до оп №1301/7 с заменой ТП на КТП 630 кВА и установкой дополнительной КТП 630 кВА | F62: 0.31 | G62: / | H62: 1.26 | I62: 2016 | J62: 2016 | K62: 4.597 | P62: 0.31 | Q62: / | R62: 1.26 | U62: 0 | W62: 0 | Z62: 0 | AB62: 0 | AE62: 0 | AG62: 0 | AJ62: 0 | AL62: 0 | AO62: 0.31 | AP62: / | AQ62: 1.26 | AR62: 3.895762712 | AS62: 0 | AT62: 0 | AU62: 0 | AV62: 0 | AW62: 3.895762712
A63: 42 | B63: Реконструкция ВЛ-10 кВ Ф-12 от оп №1200/62 до ТП 1205/250 кВА с заменой КТП 400 кВА | F63: 0.27 | G63: / | H63: 0.4 | I63: 2016 | J63: 2016 | K63: 2.619 | P63: 0.27 | Q63: / | R63: 0.4 | U63: 0 | W63: 0 | Z63: 0 | AB63: 0 | AE63: 0 | AG63: 0 | AJ63: 0 | AL63: 0 | AO63: 0.27 | AP63: / | AQ63: 0.4 | AR63: 2.219491525 | AS63: 0 | AT63: 0 | AU63: 0 | AV63: 0 | AW63: 2.219491525
A64: 43 | B64: Реконструкция ТП 24/160 кВА с заменой на КТП 250 кВА | F64: 0 | G64: / | H64: 0.25 | I64: 2016 | J64: 2016 | K64: 1.117 | P64: 0 | Q64: / | R64: 0.25 | U64: 0 | W64: 0 | Z64: 0 | AB64: 0 | AE64: 0 | AG64: 0 | AJ64: 0 | AL64: 0 | AO64: 0 | AP64: / | AQ64: 0.25 | AR64: 0.9466101695 | AS64: 0 | AT64: 0 | AU64: 0 | AV64: 0 | AW64: 0.9466101695
A65: 44 | B65: Реконструкция ВЛ-0,4 кВ от КТП 217 | F65: 4.29 | G65: / | H65: 0 | I65: 2016 | J65: 2016 | K65: 16.104 | P65: 4.29 | Q65: / | R65: 0 | U65: 0 | W65: 0 | Z65: 0 | AB65: 0 | AE65: 0 | AG65: 0 | AJ65: 0 | AL65: 0 | AO65: 4.29 | AP65: / | AQ65: 0 | AR65: 13.64745763 | AS65: 0 | AT65: 0 | AU65: 0 | AV65: 0 | AW65: 13.64745763
A66: 45 | B66: Реконструкция ВЛ-0,4 кВ от ЗТП 15/16 | F66: 4.82 | G66: / | H66: 0 | I66: 2016 | J66: 2016 | K66: 11.913 | P66: 4.82 | Q66: / | R66: 0 | U66: 0 | W66: 0 | Z66: 0 | AB66: 0 | AE66: 0 | AG66: 0 | AJ66: 0 | AL66: 0 | AO66: 4.82 | AP66: / | AQ66: 0 | AR66: 10.09576271 | AS66: 0 | AT66: 0 | AU66: 0 | AV66: 0 | AW66: 10.09576271
A67: 46 | B67: Реконструкция КЛ-6 кВ Ф-18 ПС ГПП "Коммунар" | F67: 0.85 | G67: / | H67: 0 | I67: 2016 | J67: 2016 | K67: 4.233 | P67: 0.85 | Q67: / | R67: 0 | U67: 0 | W67: 0 | Z67: 0 | AB67: 0 | AE67: 0 | AG67: 0 | AJ67: 0 | AL67: 0 | AO67: 0.85 | AP67: / | AQ67: 0 | AR67: 3.587288136 | AS67: 0 | AT67: 0 | AU67: 0 | AV67: 0 | AW67: 3.587288136
A68: 47 | B68: Реконструкция ВЛ-0,4 кВ от КТП 224 | F68: 4.3 | G68: / | H68: 0 | I68: 2016 | J68: 2016 | K68: 16.497 | P68: 4.3 | Q68: / | R68: 0 | U68: 0 | W68: 0 | Z68: 0 | AB68: 0 | AE68: 0 | AG68: 0 | AJ68: 0 | AL68: 0 | AO68: 4.3 | AP68: / | AQ68: 0 | AR68: 13.98050847 | AS68: 0 | AT68: 0 | AU68: 0 | AV68: 0 | AW68: 13.98050847
A69: 48 | B69: Реконструкция существующей инфраструктуры объектов электросетевого хозяйства в районе с. Ширяево в целях обеспечения надежности электроснабжения туристического комплекса "Жигулевская жемчужина" | F69: 74.1 | G69: / | H69: 35.66 | I69: 2017 | J69: 2017 | K69: 247.8 | P69: 0 | R69: 0 | U69: 2.1 | V69: / | W69: 1.26 | Z69: 42 | AA69: / | AB69: 2.4 | AE69: 15 | AF69: / | AG69: 16 | AJ69: 15 | AK69: / | AL69: 16 | AO69: 74.1 | AP69: / | AQ69: 35.66 | AR69: 0 | AS69: 20 | AT69: 50 | AU69: 60 | AV69: 80 | AW69: 210
A70: 49 | B70: Реконструкция, инфраструктуры объектов электросетевого хозяйства в г.о. Самара в целях обеспечения надежности электроснабжения объектов Южный город, Заречье в Волжском районе | F70: 72 | G70: / | H70: 247.6 | I70: 2017 | J70: 2017 | K70: 1297.2 | P70: 0 | R70: 0 | U70: 22 | V70: / | W70: 41.6 | Z70: 18 | AA70: / | AB70: 80 | AE70: 16 | AF70: / | AG70: 63 | AJ70: 16 | AK70: / | AL70: 63 | AO70: 72 | AP70: / | AQ70: 247.6 | AR70: 0 | AS70: 188.3898305 | AT70: 340 | AU70: 320.9322034 | AV70: 250 | AW70: 1099.322034
A71: 50 | B71: Реконструкция инфраструктуры объектов электросетевого хозяйства в целях обеспечения надежности электроснабжения п. Петра-Дубрава, п. Стройкерамика | F71: 22 | G71: / | H71: 9.72 | I71: 2016 | J71: 2016 | K71: 375.8 | P71: 0 | R71: 0 | U71: 2 | V71: / | W71: 1.26 | Z71: 2 | AA71: / | AB71: 1.26 | AE71: 6 | AF71: / | AG71: 2.4 | AJ71: 12 | AK71: / | AL71: 4.8 | AO71: 22 | AP71: / | AQ71: 9.72 | AR71: 50.84745763 | AS71: 25.59322034 | AT71: 25 | AU71: 60 | AV71: 157.0338983 | AW71: 318.4745763
A72: 51 | B72: Реконструкция ВЛ-0,4кВ от ЗТП Кур 904/250 кВА с заменой ЗТП на КТП | F72: 0.5 | G72: / | H72: 0.25 | I72: 2017 | J72: 2017 | K72: 2.6 | P72: 0 | R72: 0 | U72: 0.5 | V72: / | W72: 0.25 | Z72: 0 | AB72: 0 | AE72: 0 | AG72: 0 | AJ72: 0 | AL72: 0 | AO72: 0.5 | AP72: / | AQ72: 0.25 | AR72: 0 | AS72: 2.203389831 | AT72: 0 | AU72: 0 | AV72: 0 | AW72: 2.203389831
A73: 52 | B73: Реконструкция ВЛ-0,4кВ от ЗТП Кур 905/250 кВА с заменой ЗТП на КТП | F73: 2.4 | G73: / | H73: 0.25 | I73: 2017 | J73: 2017 | K73: 7.92 | P73: 0 | R73: 0 | U73: 2.4 | V73: / | W73: 0.25 | Z73: 0 | AB73: 0 | AE73: 0 | AG73: 0 | AJ73: 0 | AL73: 0 | AO73: 2.4 | AP73: / | AQ73: 0.25 | AR73: 0 | AS73: 6.711864407 | AT73: 0 | AU73: 0 | AV73: 0 | AW73: 6.711864407
A74: 53 | B74: Реконструкция ВЛ-0,4 кВ от КТП Р 601/250 кВА | F74: 2.5 | G74: / | H74: 0 | I74: 2017 | J74: 2017 | K74: 7 | P74: 0 | R74: 0 | U74: 2.5 | V74: / | W74: 0 | Z74: 0 | AB74: 0 | AE74: 0 | AG74: 0 | AJ74: 0 | AL74: 0 | AO74: 2.5 | AP74: / | AQ74: 0 | AR74: 0 | AS74: 5.93220339 | AT74: 0 | AU74: 0 | AV74: 0 | AW74: 5.93220339
A75: 54 | B75: Реконструкция ВЛ-0,4 кВ от КТП Р 603/250 кВА с заменой КТП на 400 кВА | F75: 2.65 | G75: / | H75: 0.4 | I75: 2017 | J75: 2017 | K75: 8.62 | P75: 0 | R75: 0 | U75: 2.65 | V75: / | W75: 0.4 | Z75: 0 | AB75: 0 | AE75: 0 | AG75: 0 | AJ75: 0 | AL75: 0 | AO75: 2.65 | AP75: / | AQ75: 0.4 | AR75: 0 | AS75: 7.305084746 | AT75: 0 | AU75: 0 | AV75: 0 | AW75: 7.305084746
A76: 55 | B76: Реконструкция ВЛ-0,4 кВ от КТП Пр 906/400 кВА с заменой КТП | F76: 3.5 | G76: / | H76: 0.4 | I76: 2017 | J76: 2017 | K76: 9.8 | P76: 0 | R76: 0 | U76: 3.5 | V76: / | W76: 0.4 | Z76: 0 | AB76: 0 | AE76: 0 | AG76: 0 | AJ76: 0 | AL76: 0 | AO76: 3.5 | AP76: / | AQ76: 0.4 | AR76: 0 | AS76: 8.305084746 | AT76: 0 | AU76: 0 | AV76: 0 | AW76: 8.305084746
A77: 56 | B77: Реконструкция ВЛ-0,4 кВ от КТП Ду 2127/160 кВА с заменой КТП | F77: 0.3 | G77: / | H77: 0.16 | I77: 2017 | J77: 2017 | K77: 2.04 | P77: 0 | R77: 0 | U77: 0.3 | V77: / | W77: 0.16 | Z77: 0 | AB77: 0 | AE77: 0 | AG77: 0 | AJ77: 0 | AL77: 0 | AO77: 0.3 | AP77: / | AQ77: 0.16 | AR77: 0 | AS77: 1.728813559 | AT77: 0 | AU77: 0 | AV77: 0 | AW77: 1.728813559
A78: 57 | B78: Реконструкция ВЛ-6 кВ от Ф-20 оп 2500/34 до ЗТП Л 2513/630 кВА | F78: 0.3 | G78: / | H78: 0 | I78: 2017 | J78: 2017 | K78: 0.84 | P78: 0 | R78: 0 | U78: 0.3 | V78: / | W78: 0 | Z78: 0 | AB78: 0 | AE78: 0 | AG78: 0 | AJ78: 0 | AL78: 0 | AO78: 0.3 | AP78: / | AQ78: 0 | AR78: 0 | AS78: 0.7118644068 | AT78: 0 | AU78: 0 | AV78: 0 | AW78: 0.7118644068
A79: 58 | B79: Реконструкция ВЛ-0,4 кВ от КТП 212 с перераспределением нагрузок от КТП 216 | F79: 1.5 | G79: / | H79: 0 | I79: 2017 | J79: 2017 | K79: 4.2 | P79: 0 | R79: 0 | U79: 1.5 | V79: / | W79: 0 | Z79: 0 | AB79: 0 | AE79: 0 | AG79: 0 | AJ79: 0 | AL79: 0 | AO79: 1.5 | AP79: / | AQ79: 0 | AR79: 0 | AS79: 3.559322034 | AT79: 0 | AU79: 0 | AV79: 0 | AW79: 3.559322034
A80: 59 | B80: Реконструкция КЛ-0,4кВ от ТП 404 | F80: 1.8 | G80: / | H80: 0 | I80: 2017 | J80: 2017 | K80: 7.2 | P80: 0 | R80: 0 | U80: 1.8 | V80: / | W80: 0 | Z80: 0 | AB80: 0 | AE80: 0 | AG80: 0 | AJ80: 0 | AL80: 0 | AO80: 1.8 | AP80: / | AQ80: 0 | AR80: 0 | AS80: 6.101694915 | AT80: 0 | AU80: 0 | AV80: 0 | AW80: 6.101694915
A81: 60 | B81: Реконструкция КЛ-0,4кВ от ТП 405 | F81: 1.7 | G81: / | H81: 0 | I81: 2017 | J81: 2017 | K81: 6.8 | P81: 0 | R81: 0 | U81: 1.7 | V81: / | W81: 0 | Z81: 0 | AB81: 0 | AE81: 0 | AG81: 0 | AJ81: 0 | AL81: 0 | AO81: 1.7 | AP81: / | AQ81: 0 | AR81: 0 | AS81: 5.762711864 | AT81: 0 | AU81: 0 | AV81: 0 | AW81: 5.762711864
A82: 61 | B82: Реконструкция КЛ-0,4кВ от ТП 406 | F82: 1 | G82: / | H82: 0 | I82: 2017 | J82: 2017 | K82: 4 | P82: 0 | R82: 0 | U82: 1 | V82: / | W82: 0 | Z82: 0 | AB82: 0 | AE82: 0 | AG82: 0 | AJ82: 0 | AL82: 0 | AO82: 1 | AP82: / | AQ82: 0 | AR82: 0 | AS82: 3.389830508 | AT82: 0 | AU82: 0 | AV82: 0 | AW82: 3.389830508
A83: 62 | B83: Реконструкция КЛ-0,4кВ от ТП 426 | F83: 1.7 | G83: / | H83: 0 | I83: 2017 | J83: 2017 | K83: 6.8 | P83: 0 | R83: 0 | U83: 1.7 | V83: / | W83: 0 | Z83: 0 | AB83: 0 | AE83: 0 | AG83: 0 | AJ83: 0 | AL83: 0 | AO83: 1.7 | AP83: / | AQ83: 0 | AR83: 0 | AS83: 5.762711864 | AT83: 0 | AU83: 0 | AV83: 0 | AW83: 5.762711864
A84: 63 | B84: Реконструкция КЛ-0,4кВ от КТП 603 | F84: 0.7 | G84: / | H84: 0 | I84: 2017 | J84: 2017 | K84: 2.8 | P84: 0 | R84: 0 | U84: 0.7 | V84: / | W84: 0 | Z84: 0 | AB84: 0 | AE84: 0 | AG84: 0 | AJ84: 0 | AL84: 0 | AO84: 0.7 | AP84: / | AQ84: 0 | AR84: 0 | AS84: 2.372881356 | AT84: 0 | AU84: 0 | AV84: 0 | AW84: 2.372881356
A85: 64 | B85: Реконструкция КЛ-0,4кВ от КТП 605 | F85: 0.1 | G85: / | H85: 0 | I85: 2017 | J85: 2017 | K85: 0.4 | P85: 0 | R85: 0 | U85: 0.1 | V85: / | W85: 0 | Z85: 0 | AB85: 0 | AE85: 0 | AG85: 0 | AJ85: 0 | AL85: 0 | AO85: 0.1 | AP85: / | AQ85: 0 | AR85: 0 | AS85: 0.3389830508 | AT85: 0 | AU85: 0 | AV85: 0 | AW85: 0.3389830508
A86: 65 | B86: Реконструкция КЛ-0,4кВ от ЗТП10 | F86: 0.95 | G86: / | H86: 0 | I86: 2017 | J86: 2017 | K86: 4 | P86: 0 | R86: 0 | U86: 0.95 | V86: / | W86: 0 | Z86: 0 | AB86: 0 | AE86: 0 | AG86: 0 | AJ86: 0 | AL86: 0 | AO86: 0.95 | AP86: / | AQ86: 0 | AR86: 0 | AS86: 3.389830508 | AT86: 0 | AU86: 0 | AV86: 0 | AW86: 3.389830508
A87: 66 | B87: Реконструкция КЛ-0,4кВ от ЗТП20 | F87: 0.3 | G87: / | H87: 0 | I87: 2017 | J87: 2017 | K87: 1.2 | P87: 0 | R87: 0 | U87: 0.3 | V87: / | W87: 0 | Z87: 0 | AB87: 0 | AE87: 0 | AG87: 0 | AJ87: 0 | AL87: 0 | AO87: 0.3 | AP87: / | AQ87: 0 | AR87: 0 | AS87: 1.016949153 | AT87: 0 | AU87: 0 | AV87: 0 | AW87: 1.016949153
A88: 67 | B88: Реконструкция КЛ-0,4кВ Ф-8 ЗТП5 от оп№800/10 до оп№800/11 (под ж/д) | F88: 0.9 | G88: / | H88: 0 | I88: 2017 | J88: 2017 | K88: 3.6 | P88: 0 | R88: 0 | U88: 0.9 | V88: / | W88: 0 | Z88: 0 | AB88: 0 | AE88: 0 | AG88: 0 | AJ88: 0 | AL88: 0 | AO88: 0.9 | AP88: / | AQ88: 0 | AR88: 0 | AS88: 3.050847458 | AT88: 0 | AU88: 0 | AV88: 0 | AW88: 3.050847458
A89: 68 | B89: Реконструкция КЛ-0,4кВ от КТП 215 | F89: 0.25 | G89: / | H89: 0 | I89: 2017 | J89: 2017 | K89: 1.2 | P89: 0 | R89: 0 | U89: 0.25 | V89: / | W89: 0 | Z89: 0 | AB89: 0 | AE89: 0 | AG89: 0 | AJ89: 0 | AL89: 0 | AO89: 0.25 | AP89: / | AQ89: 0 | AR89: 0 | AS89: 1.016949153 | AT89: 0 | AU89: 0 | AV89: 0 | AW89: 1.016949153
A90: 69 | B90: Реконструкция КЛ-0,4кВ от КТП 218 | F90: 0.26 | G90: / | H90: 0 | I90: 2017 | J90: 2017 | K90: 1.2 | P90: 0 | R90: 0 | U90: 0.26 | V90: / | W90: 0 | Z90: 0 | AB90: 0 | AE90: 0 | AG90: 0 | AJ90: 0 | AL90: 0 | AO90: 0.26 | AP90: / | AQ90: 0 | AR90: 0 | AS90: 1.016949153 | AT90: 0 | AU90: 0 | AV90: 0 | AW90: 1.016949153
A91: 70 | B91: Реконструкция КЛ-0,4кВ от КТП 213 | F91: 0.3 | G91: / | H91: 0 | I91: 2017 | J91: 2017 | K91: 1.2 | P91: 0 | R91: 0 | U91: 0.3 | V91: / | W91: 0 | Z91: 0 | AB91: 0 | AE91: 0 | AG91: 0 | AJ91: 0 | AL91: 0 | AO91: 0.3 | AP91: / | AQ91: 0 | AR91: 0 | AS91: 1.016949153 | AT91: 0 | AU91: 0 | AV91: 0 | AW91: 1.016949153
A92: 71 | B92: Реконструкция КЛ-0,4кВ от КТП 211 | F92: 0.48 | G92: / | H92: 0 | I92: 2017 | J92: 2017 | K92: 2 | P92: 0 | R92: 0 | U92: 0.48 | V92: / | W92: 0 | Z92: 0 | AB92: 0 | AE92: 0 | AG92: 0 | AJ92: 0 | AL92: 0 | AO92: 0.48 | AP92: / | AQ92: 0 | AR92: 0 | AS92: 1.694915254 | AT92: 0 | AU92: 0 | AV92: 0 | AW92: 1.694915254
A93: 72 | B93: Реконструкция ВЛ-0,4кВ КТП 228 | F93: 3.4 | G93: / | H93: 0 | I93: 2017 | J93: 2017 | K93: 9.52 | P93: 0 | R93: 0 | U93: 3.4 | V93: / | W93: 0 | Z93: 0 | AB93: 0 | AE93: 0 | AG93: 0 | AJ93: 0 | AL93: 0 | AO93: 3.4 | AP93: / | AQ93: 0 | AR93: 0 | AS93: 8.06779661 | AT93: 0 | AU93: 0 | AV93: 0 | AW93: 8.06779661
A94: 73 | B94: Реконструкция КЛ-0,4кВ от КТП 602 | F94: 0.4 | G94: / | H94: 0 | I94: 2017 | J94: 2017 | K94: 1.6 | P94: 0 | R94: 0 | U94: 0.4 | V94: / | W94: 0 | Z94: 0 | AB94: 0 | AE94: 0 | AG94: 0 | AJ94: 0 | AL94: 0 | AO94: 0.4 | AP94: / | AQ94: 0 | AR94: 0 | AS94: 1.355932203 | AT94: 0 | AU94: 0 | AV94: 0 | AW94: 1.355932203
A95: 74 | B95: Реконструкция ВЛ-0,4кВ от ЗТП Кур 906/400 кВА с заменой ЗТП на КТП | F95: 0.85 | G95: / | H95: 0.4 | I95: 2018 | J95: 2018 | K95: 3.58 | P95: 0 | R95: 0 | U95: 0 | W95: 0 | Z95: 0.85 | AA95: / | AB95: 0.4 | AE95: 0 | AG95: 0 | AJ95: 0 | AL95: 0 | AO95: 0.85 | AP95: / | AQ95: 0.4 | AR95: 0 | AS95: 0 | AT95: 3.033898305 | AU95: 0 | AV95: 0 | AW95: 3.033898305
A96: 75 | B96: Реконструкция ВЛ-0,4кВ от ЗТП Кур 901/250 кВА с заменой ЗТП на КТП | F96: 1.4 | G96: / | H96: 0.25 | I96: 2018 | J96: 2018 | K96: 5.12 | P96: 0 | R96: 0 | U96: 0 | W96: 0 | Z96: 1.4 | AA96: / | AB96: 0.25 | AE96: 0 | AG96: 0 | AJ96: 0 | AL96: 0 | AO96: 1.4 | AP96: / | AQ96: 0.25 | AR96: 0 | AS96: 0 | AT96: 4.338983051 | AU96: 0 | AV96: 0 | AW96: 4.338983051
A97: 76 | B97: Реконструкция ВЛ-0,4 кВ от КТП Р 402/400 кВА | F97: 1 | G97: / | H97: 0 | I97: 2018 | J97: 2018 | K97: 2.8 | P97: 0 | R97: 0 | U97: 0 | W97: 0 | Z97: 1 | AA97: / | AB97: 0 | AE97: 0 | AG97: 0 | AJ97: 0 | AL97: 0 | AO97: 1 | AP97: / | AQ97: 0 | AR97: 0 | AS97: 0 | AT97: 2.372881356 | AU97: 0 | AV97: 0 | AW97: 2.372881356
A98: 77 | B98: Реконструкция ВЛ-10 кВ Ф-8 отпайка к КТП Пм 802/100 кВА с заменой КТП | F98: 3.6 | G98: / | H98: 0.1 | I98: 2018 | J98: 2018 | K98: 11 | P98: 0 | R98: 0 | U98: 0 | W98: 0 | Z98: 3.6 | AA98: / | AB98: 0.1 | AE98: 0 | AG98: 0 | AJ98: 0 | AL98: 0 | AO98: 3.6 | AP98: / | AQ98: 0.1 | AR98: 0 | AS98: 0 | AT98: 9.322033898 | AU98: 0 | AV98: 0 | AW98: 9.322033898
A99: 78 | B99: Реконструкция ВЛ-0,4 кВ Ф-1 КТП Л 2502/320 кВА | F99: 0.7 | G99: / | H99: 0 | I99: 2018 | J99: 2018 | K99: 1.96 | P99: 0 | R99: 0 | U99: 0 | W99: 0 | Z99: 0.7 | AA99: / | AB99: 0 | AE99: 0 | AG99: 0 | AJ99: 0 | AL99: 0 | AO99: 0.7 | AP99: / | AQ99: 0 | AR99: 0 | AS99: 0 | AT99: 1.661016949 | AU99: 0 | AV99: 0 | AW99: 1.661016949
A100: 79 | B100: Реконструкция ВЛ-0,4 кВ от КТП 211/250 кВА с заменой КТП на 400 кВА. | F100: 1.5 | G100: / | H100: 0.4 | I100: 2018 | J100: 2018 | K100: 5.4 | P100: 0 | R100: 0 | U100: 0 | W100: 0 | Z100: 1.5 | AA100: / | AB100: 0.4 | AE100: 0 | AG100: 0 | AJ100: 0 | AL100: 0 | AO100: 1.5 | AP100: / | AQ100: 0.4 | AR100: 0 | AS100: 0 | AT100: 4.576271186 | AU100: 0 | AV100: 0 | AW100: 4.576271186
A101: 80 | B101: Реконструкция ВЛ-0,4 кВ от КТП 213 | F101: 1.8 | G101: / | H101: 0 | I101: 2018 | J101: 2018 | K101: 5.04 | P101: 0 | R101: 0 | U101: 0 | W101: 0 | Z101: 1.8 | AA101: / | AB101: 0 | AE101: 0 | AG101: 0 | AJ101: 0 | AL101: 0 | AO101: 1.8 | AP101: / | AQ101: 0 | AR101: 0 | AS101: 0 | AT101: 4.271186441 | AU101: 0 | AV101: 0 | AW101: 4.271186441
A102: 81 | B102: Реконструкция ВЛ-0,4 кВ от КТП Р 106/400 кВА с заменой КТП | F102: 3.2 | G102: / | H102: 0.4 | I102: 2019 | J102: 2019 | K102: 10.16 | P102: 0 | R102: 0 | U102: 0 | W102: 0 | Z102: 0 | AB102: 0 | AE102: 3.2 | AF102: / | AG102: 0.4 | AJ102: 0 | AL102: 0 | AO102: 3.2 | AP102: / | AQ102: 0.4 | AR102: 0 | AS102: 0 | AT102: 0 | AU102: 8.610169492 | AV102: 0 | AW102: 8.610169492
A103: 82 | B103: Реконструкция ВЛ-6 кВ Ф-30 ПС Овощная отпайка до КТП Ов 3008/250 кВА с заменой КТП на 400 кВА | F103: 0.36 | G103: / | H103: 0.4 | I103: 2019 | J103: 2019 | K103: 2.208 | P103: 0 | R103: 0 | U103: 0 | W103: 0 | Z103: 0 | AB103: 0 | AE103: 0.36 | AF103: / | AG103: 0.4 | AJ103: 0 | AL103: 0 | AO103: 0.36 | AP103: / | AQ103: 0.4 | AR103: 0 | AS103: 0 | AT103: 0 | AU103: 1.871186441 | AV103: 0 | AW103: 1.871186441
A104: 83 | B104: Реконструкция ВЛ-6 кВ Ф-1 отпайка до КТП Пм 102/250 кВА с заменой КТП | F104: 0.06 | G104: / | H104: 0.25 | I104: 2019 | J104: 2019 | K104: 1.368 | P104: 0 | R104: 0 | U104: 0 | W104: 0 | Z104: 0 | AB104: 0 | AE104: 0.06 | AF104: / | AG104: 0.25 | AJ104: 0 | AL104: 0 | AO104: 0.06 | AP104: / | AQ104: 0.25 | AR104: 0 | AS104: 0 | AT104: 0 | AU104: 1.159322034 | AV104: 0 | AW104: 1.159322034
A105: 84 | B105: Реконструкция ВЛ-0,4 кВ от КТП 215 | F105: 1.6 | G105: / | H105: 0 | I105: 2019 | J105: 2019 | K105: 4.48 | P105: 0 | R105: 0 | U105: 0 | W105: 0 | Z105: 0 | AB105: 0 | AE105: 1.6 | AF105: / | AG105: 0 | AJ105: 0 | AL105: 0 | AO105: 1.6 | AP105: / | AQ105: 0 | AR105: 0 | AS105: 0 | AT105: 0 | AU105: 3.796610169 | AV105: 0 | AW105: 3.796610169
A106: 85 | B106: Реконструкция ВЛ-0,4 кВ от КТП 218 | F106: 0.8 | G106: / | H106: 0 | I106: 2019 | J106: 2019 | K106: 2.24 | P106: 0 | R106: 0 | U106: 0 | W106: 0 | Z106: 0 | AB106: 0 | AE106: 0.8 | AF106: / | AG106: 0 | AJ106: 0 | AL106: 0 | AO106: 0.8 | AP106: / | AQ106: 0 | AR106: 0 | AS106: 0 | AT106: 0 | AU106: 1.898305085 | AV106: 0 | AW106: 1.898305085
A107: 86 | B107: Реконструкция ВЛ-0,4 кВ от КТП Р 304/400 кВА с заменой КТП | F107: 1.8 | G107: / | H107: 0.4 | I107: 2020 | J107: 2020 | K107: 6.24 | P107: 0 | R107: 0 | U107: 0 | W107: 0 | Z107: 0 | AB107: 0 | AE107: 0 | AG107: 0 | AJ107: 1.8 | AK107: / | AL107: 0.4 | AO107: 1.8 | AP107: / | AQ107: 0.4 | AR107: 0 | AS107: 0 | AT107: 0 | AU107: 0 | AV107: 5.288135593 | AW107: 5.288135593
A108: 87 | B108: Елховский район | F108: 0 | H108: 0 | I108: 0 | J108: 0 | K108: 0 | P108: 0 | R108: 0 | U108: 0 | W108: 0 | Z108: 0 | AB108: 0 | AE108: 0 | AG108: 0 | AJ108: 0 | AL108: 0 | AO108: 0 | AQ108: 0 | AR108: 0 | AS108: 0 | AT108: 0 | AU108: 0 | AV108: 0 | AW108: 0
A109: 88 | B109: Реконструкция ВЛ-0,4кВ от КТП КМ 304/630 кВА с заменой КТП на 250 кВА | F109: 1.2 | G109: / | H109: 0.25 | I109: 2016 | J109: 2016 | K109: 4.853 | P109: 1.2 | Q109: / | R109: 0.25 | U109: 0 | W109: 0 | Z109: 0 | AB109: 0 | AE109: 0 | AG109: 0 | AJ109: 0 | AL109: 0 | AO109: 1.2 | AP109: / | AQ109: 0.25 | AR109: 4.112711864 | AS109: 0 | AT109: 0 | AU109: 0 | AV109: 0 | AW109: 4.112711864
A110: 89 | B110: Реконструкция ВЛ-0,4кВ от КТП КМ 603/400 кВА с заменой КТП на 250 кВА | F110: 1 | G110: / | H110: 0.25 | I110: 2016 | J110: 2016 | K110: 4.385 | P110: 1 | Q110: / | R110: 0.25 | U110: 0 | W110: 0 | Z110: 0 | AB110: 0 | AE110: 0 | AG110: 0 | AJ110: 0 | AL110: 0 | AO110: 1 | AP110: / | AQ110: 0.25 | AR110: 3.716101695 | AS110: 0 | AT110: 0 | AU110: 0 | AV110: 0 | AW110: 3.716101695
A111: 90 | B111: Реконструкция ВЛ-0,4кВ от КТП КМ 810/100 кВА с заменой КТП | F111: 0.92 | G111: / | H111: 0.1 | I111: 2017 | J111: 2017 | K111: 3.776 | P111: 0 | R111: 0 | U111: 0.92 | V111: / | W111: 0.1 | Z111: 0 | AB111: 0 | AE111: 0 | AG111: 0 | AJ111: 0 | AL111: 0 | AO111: 0.92 | AP111: / | AQ111: 0.1 | AR111: 0 | AS111: 3.2 | AT111: 0 | AU111: 0 | AV111: 0 | AW111: 3.2
A112: 91 | B112: Реконструкция ВЛ-0,4кВ от КТП КМ 811/160 кВА с заменой КТП | F112: 0.92 | G112: / | H112: 0.16 | I112: 2017 | J112: 2017 | K112: 3.776 | P112: 0 | R112: 0 | U112: 0.92 | V112: / | W112: 0.16 | Z112: 0 | AB112: 0 | AE112: 0 | AG112: 0 | AJ112: 0 | AL112: 0 | AO112: 0.92 | AP112: / | AQ112: 0.16 | AR112: 0 | AS112: 3.2 | AT112: 0 | AU112: 0 | AV112: 0 | AW112: 3.2
A113: 92 | B113: Реконструкция ВЛ-0,4кВ от КТП Елх 713/400 кВА с заменой КТП | F113: 0.64 | G113: / | H113: 0.4 | I113: 2018 | J113: 2018 | K113: 2.992 | P113: 0 | R113: 0 | U113: 0 | W113: 0 | Z113: 0.64 | AA113: / | AB113: 0.4 | AE113: 0 | AG113: 0 | AJ113: 0 | AL113: 0 | AO113: 0.64 | AP113: / | AQ113: 0.4 | AR113: 0 | AS113: 0 | AT113: 2.53559322 | AU113: 0 | AV113: 0 | AW113: 2.53559322
A114: 93 | B114: Реконструкция ВЛ-0,4кВ от КТП Елх 403/160 кВА с заменой КТП | F114: 0.48 | G114: / | H114: 0.16 | I114: 2018 | J114: 2018 | K114: 2.544 | P114: 0 | R114: 0 | U114: 0 | W114: 0 | Z114: 0.48 | AA114: / | AB114: 0.16 | AE114: 0 | AG114: 0 | AJ114: 0 | AL114: 0 | AO114: 0.48 | AP114: / | AQ114: 0.16 | AR114: 0 | AS114: 0 | AT114: 2.155932203 | AU114: 0 | AV114: 0 | AW114: 2.155932203
A115: 94 | B115: Камышлинский район | F115: 0 | H115: 0 | I115: 0 | J115: 0 | K115: 0 | P115: 0 | R115: 0 | U115: 0 | W115: 0 | Z115: 0 | AB115: 0 | AE115: 0 | AG115: 0 | AJ115: 0 | AL115: 0 | AO115: 0 | AQ115: 0 | AR115: 0 | AS115: 0 | AT115: 0 | AU115: 0 | AV115: 0 | AW115: 0
A116: 95 | B116: Реконструкция ВЛ-0,4 кВ от КТП КМШ 502/250 кВА с заменой КТП на 400 кВА | F116: 6.6 | G116: / | H116: 0.4 | I116: 2016 | J116: 2016 | K116: 26.783 | P116: 6.6 | Q116: / | R116: 0.4 | U116: 0 | W116: 0 | Z116: 0 | AB116: 0 | AE116: 0 | AG116: 0 | AJ116: 0 | AL116: 0 | AO116: 6.6 | AP116: / | AQ116: 0.4 | AR116: 22.69745763 | AS116: 0 | AT116: 0 | AU116: 0 | AV116: 0 | AW116: 22.69745763
A117: 96 | B117: Реконструкция ВЛ-6 кВ УС-2 ПС "Байтуган" | F117: 1.4 | G117: / | H117: 0 | I117: 2016 | J117: 2016 | K117: 3.086 | P117: 1.4 | Q117: / | R117: 0 | U117: 0 | W117: 0 | Z117: 0 | AB117: 0 | AE117: 0 | AG117: 0 | AJ117: 0 | AL117: 0 | AO117: 1.4 | AP117: / | AQ117: 0 | AR117: 2.615254237 | AS117: 0 | AT117: 0 | AU117: 0 | AV117: 0 | AW117: 2.615254237
A118: 97 | B118: Кинель-Черкасский район | F118: 0 | H118: 0 | I118: 0 | J118: 0 | K118: 0 | P118: 0 | R118: 0 | U118: 0 | W118: 0 | Z118: 0 | AB118: 0 | AE118: 0 | AG118: 0 | AJ118: 0 | AL118: 0 | AO118: 0 | AQ118: 0 | AR118: 0 | AS118: 0 | AT118: 0 | AU118: 0 | AV118: 0 | AW118: 0
A119: 98 | B119: Реконструкция ВЛ-0,4 кВ от КТП СИД 311/250 кВА с заменой КТП | F119: 4.06 | G119: / | H119: 0.25 | I119: 2016 | J119: 2016 | K119: 15.035 | P119: 4.06 | Q119: / | R119: 0.25 | U119: 0 | W119: 0 | Z119: 0 | AB119: 0 | AE119: 0 | AG119: 0 | AJ119: 0 | AL119: 0 | AO119: 4.06 | AP119: / | AQ119: 0.25 | AR119: 12.74152542 | AS119: 0 | AT119: 0 | AU119: 0 | AV119: 0 | AW119: 12.74152542
A120: 99 | B120: Реконструкция ВЛ-6 кВ Кр-9 | F120: 7.52 | G120: / | H120: 0 | I120: 2016 | J120: 2016 | K120: 30.312 | P120: 7.52 | Q120: / | R120: 0 | U120: 0 | W120: 0 | Z120: 0 | AB120: 0 | AE120: 0 | AG120: 0 | AJ120: 0 | AL120: 0 | AO120: 7.52 | AP120: / | AQ120: 0 | AR120: 25.68813559 | AS120: 0 | AT120: 0 | AU120: 0 | AV120: 0 | AW120: 25.68813559
A121: 100 | B121: Реконструкция ВЛ-0,4 кВ от КТП Ч 1710/250 кВА с заменой КТП | F121: 2.3 | G121: / | H121: 0.25 | I121: 2017 | J121: 2017 | K121: 7.64 | P121: 0 | R121: 0 | U121: 2.3 | V121: / | W121: 0.25 | Z121: 0 | AB121: 0 | AE121: 0 | AG121: 0 | AJ121: 0 | AL121: 0 | AO121: 2.3 | AP121: / | AQ121: 0.25 | AR121: 0 | AS121: 6.474576271 | AT121: 0 | AU121: 0 | AV121: 0 | AW121: 6.474576271
A122: 101 | B122: Реконструкция ВЛ-0,4 кВ от КТП Ч 416/250 кВА | F122: 4.32 | G122: / | H122: 0 | I122: 2017 | J122: 2017 | K122: 12.096 | P122: 0 | R122: 0 | U122: 4.32 | V122: / | W122: 0 | Z122: 0 | AB122: 0 | AE122: 0 | AG122: 0 | AJ122: 0 | AL122: 0 | AO122: 4.32 | AP122: / | AQ122: 0 | AR122: 0 | AS122: 10.25084746 | AT122: 0 | AU122: 0 | AV122: 0 | AW122: 10.25084746
A123: 102 | B123: Реконструкция ВЛ-0,4 кВ от ЗТП Кр 907/400 кВА | F123: 2.5 | G123: / | H123: 0 | I123: 2017 | J123: 2017 | K123: 7 | P123: 0 | R123: 0 | U123: 2.5 | V123: / | W123: 0 | Z123: 0 | AB123: 0 | AE123: 0 | AG123: 0 | AJ123: 0 | AL123: 0 | AO123: 2.5 | AP123: / | AQ123: 0 | AR123: 0 | AS123: 5.93220339 | AT123: 0 | AU123: 0 | AV123: 0 | AW123: 5.93220339
A124: 103 | B124: Реконструкция ВЛ-0,4 кВ от КТП Ку 1309/250 кВА | F124: 6 | G124: / | H124: 0 | I124: 2017 | J124: 2017 | K124: 16.8 | P124: 0 | R124: 0 | U124: 6 | V124: / | W124: 0 | Z124: 0 | AB124: 0 | AE124: 0 | AG124: 0 | AJ124: 0 | AL124: 0 | AO124: 6 | AP124: / | AQ124: 0 | AR124: 0 | AS124: 14.23728814 | AT124: 0 | AU124: 0 | AV124: 0 | AW124: 14.23728814
A125: 104 | B125: Реконструкция ВЛ-0,4кВ от КТП Ку 1316/400кВА с заменой КТП | F125: 1.6 | G125: / | H125: 0.4 | I125: 2017 | J125: 2017 | K125: 5.68 | P125: 0 | R125: 0 | U125: 1.6 | V125: / | W125: 0.4 | Z125: 0 | AB125: 0 | AE125: 0 | AG125: 0 | AJ125: 0 | AL125: 0 | AO125: 1.6 | AP125: / | AQ125: 0.4 | AR125: 0 | AS125: 4.813559322 | AT125: 0 | AU125: 0 | AV125: 0 | AW125: 4.813559322
A126: 105 | B126: Реконструкция ВЛ-0,4 кВ от ЗТП Ч 1703/400 кВА | F126: 7.6 | G126: / | H126: 0 | I126: 2018 | J126: 2018 | K126: 21.28 | P126: 0 | R126: 0 | U126: 0 | W126: 0 | Z126: 7.6 | AA126: / | AB126: 0 | AE126: 0 | AG126: 0 | AJ126: 0 | AL126: 0 | AO126: 7.6 | AP126: / | AQ126: 0 | AR126: 0 | AS126: 0 | AT126: 18.03389831 | AU126: 0 | AV126: 0 | AW126: 18.03389831
A127: 106 | B127: Реконструкция ВЛ-0,4 кВ от КТП Ч 417/250 кВА | F127: 3.4 | G127: / | H127: 0 | I127: 2018 | J127: 2018 | K127: 9.52 | P127: 0 | R127: 0 | U127: 0 | W127: 0 | Z127: 3.4 | AA127: / | AB127: 0 | AE127: 0 | AG127: 0 | AJ127: 0 | AL127: 0 | AO127: 3.4 | AP127: / | AQ127: 0 | AR127: 0 | AS127: 0 | AT127: 8.06779661 | AU127: 0 | AV127: 0 | AW127: 8.06779661
A128: 107 | B128: Реконструкция ВЛ-0,4 кВ от КТП Ку 1312/250 кВА | F128: 2.5 | G128: / | H128: 0 | I128: 2018 | J128: 2018 | K128: 7 | P128: 0 | R128: 0 | U128: 0 | W128: 0 | Z128: 2.5 | AA128: / | AB128: 0 | AE128: 0 | AG128: 0 | AJ128: 0 | AL128: 0 | AO128: 2.5 | AP128: / | AQ128: 0 | AR128: 0 | AS128: 0 | AT128: 5.93220339 | AU128: 0 | AV128: 0 | AW128: 5.93220339
A129: 108 | B129: Реконструкция ВЛ-0,4 кВ от КТП Кр 1906/400 кВА | F129: 2.5 | G129: / | H129: 0 | I129: 2018 | J129: 2018 | K129: 7 | P129: 0 | R129: 0 | U129: 0 | W129: 0 | Z129: 2.5 | AA129: / | AB129: 0 | AE129: 0 | AG129: 0 | AJ129: 0 | AL129: 0 | AO129: 2.5 | AP129: / | AQ129: 0 | AR129: 0 | AS129: 0 | AT129: 5.93220339 | AU129: 0 | AV129: 0 | AW129: 5.93220339
A130: 109 | B130: Реконструкция ВЛ-0,4 кВ от КТП Кр 1914/250 кВА | F130: 1.6 | G130: / | H130: 0 | I130: 2018 | J130: 2018 | K130: 4.48 | P130: 0 | R130: 0 | U130: 0 | W130: 0 | Z130: 1.6 | AA130: / | AB130: 0 | AE130: 0 | AG130: 0 | AJ130: 0 | AL130: 0 | AO130: 1.6 | AP130: / | AQ130: 0 | AR130: 0 | AS130: 0 | AT130: 3.796610169 | AU130: 0 | AV130: 0 | AW130: 3.796610169
A131: 110 | B131: Реконструкция ВЛ-0,4 кВ от КТП Кр 1909/400 кВА | F131: 1.6 | G131: / | H131: 0 | I131: 2018 | J131: 2018 | K131: 4.48 | P131: 0 | R131: 0 | U131: 0 | W131: 0 | Z131: 1.6 | AA131: / | AB131: 0 | AE131: 0 | AG131: 0 | AJ131: 0 | AL131: 0 | AO131: 1.6 | AP131: / | AQ131: 0 | AR131: 0 | AS131: 0 | AT131: 3.796610169 | AU131: 0 | AV131: 0 | AW131: 3.796610169
A132: 111 | B132: Реконструкция ВЛ-0,4 кВ от КТП Сид 305/250 кВА | F132: 3.4 | G132: / | H132: 0 | I132: 2019 | J132: 2019 | K132: 9.52 | P132: 0 | R132: 0 | U132: 0 | W132: 0 | Z132: 0 | AB132: 0 | AE132: 3.4 | AF132: / | AG132: 0 | AJ132: 0 | AL132: 0 | AO132: 3.4 | AP132: / | AQ132: 0 | AR132: 0 | AS132: 0 | AT132: 0 | AU132: 8.06779661 | AV132: 0 | AW132: 8.06779661
A133: 112 | B133: Реконструкция ВЛ-0,4 кВ от КТП Сид 316/160 кВА с заменой КТП | F133: 1.5 | G133: / | H133: 0.16 | I133: 2019 | J133: 2019 | K133: 5.4 | P133: 0 | R133: 0 | U133: 0 | W133: 0 | Z133: 0 | AB133: 0 | AE133: 1.5 | AF133: / | AG133: 0.16 | AJ133: 0 | AL133: 0 | AO133: 1.5 | AP133: / | AQ133: 0.16 | AR133: 0 | AS133: 0 | AT133: 0 | AU133: 4.576271186 | AV133: 0 | AW133: 4.576271186
A134: 113 | B134: Реконструкция ВЛ-0,4 кВ от ЗТП Ку 801/250 кВА | F134: 2 | G134: / | H134: 0 | I134: 2019 | J134: 2019 | K134: 5.6 | P134: 0 | R134: 0 | U134: 0 | W134: 0 | Z134: 0 | AB134: 0 | AE134: 2 | AF134: / | AG134: 0 | AJ134: 0 | AL134: 0 | AO134: 2 | AP134: / | AQ134: 0 | AR134: 0 | AS134: 0 | AT134: 0 | AU134: 4.745762712 | AV134: 0 | AW134: 4.745762712
A135: 114 | B135: Реконструкция ВЛ-0,4 кВ от ЗТП Ку 802/250 кВА с заменой трансформатора | F135: 1 | G135: / | H135: 0.25 | I135: 2019 | J135: 2019 | K135: 4 | P135: 0 | R135: 0 | U135: 0 | W135: 0 | Z135: 0 | AB135: 0 | AE135: 1 | AF135: / | AG135: 0.25 | AJ135: 0 | AL135: 0 | AO135: 1 | AP135: / | AQ135: 0.25 | AR135: 0 | AS135: 0 | AT135: 0 | AU135: 3.389830508 | AV135: 0 | AW135: 3.389830508
A136: 115 | B136: Реконструкция ВЛ-0,4 кВ от ЗТП Ку 803/250 кВА | F136: 1.2 | G136: / | H136: 0 | I136: 2019 | J136: 2019 | K136: 3.36 | P136: 0 | R136: 0 | U136: 0 | W136: 0 | Z136: 0 | AB136: 0 | AE136: 1.2 | AF136: / | AG136: 0 | AJ136: 0 | AL136: 0 | AO136: 1.2 | AP136: / | AQ136: 0 | AR136: 0 | AS136: 0 | AT136: 0 | AU136: 2.847457627 | AV136: 0 | AW136: 2.847457627
A137: 116 | B137: Реконструкция ВЛ-0,4 кВ от КТП Ку 703/250 кВА с заменой КТП | F137: 1.2 | G137: / | H137: 0.25 | I137: 2019 | J137: 2019 | K137: 4.56 | P137: 0 | R137: 0 | U137: 0 | W137: 0 | Z137: 0 | AB137: 0 | AE137: 1.2 | AF137: / | AG137: 0.25 | AJ137: 0 | AL137: 0 | AO137: 1.2 | AP137: / | AQ137: 0.25 | AR137: 0 | AS137: 0 | AT137: 0 | AU137: 3.86440678 | AV137: 0 | AW137: 3.86440678
A138: 117 | B138: Реконструкция ВЛ-0,4 кВ от КТП Ч 112/400 кВА с заменой КТП | F138: 3.6 | G138: / | H138: 0.4 | I138: 2020 | J138: 2020 | K138: 11.28 | P138: 0 | R138: 0 | U138: 0 | W138: 0 | Z138: 0 | AB138: 0 | AE138: 0 | AG138: 0 | AJ138: 3.6 | AK138: / | AL138: 0.4 | AO138: 3.6 | AP138: / | AQ138: 0.4 | AR138: 0 | AS138: 0 | AT138: 0 | AU138: 0 | AV138: 9.559322034 | AW138: 9.559322034
A139: 118 | B139: Реконструкция ВЛ-0,4 кВ от КТП Ч 1701/160 кВА | F139: 2 | G139: / | H139: 0 | I139: 2020 | J139: 2020 | K139: 5.6 | P139: 0 | R139: 0 | U139: 0 | W139: 0 | Z139: 0 | AB139: 0 | AE139: 0 | AG139: 0 | AJ139: 2 | AK139: / | AL139: 0 | AO139: 2 | AP139: / | AQ139: 0 | AR139: 0 | AS139: 0 | AT139: 0 | AU139: 0 | AV139: 4.745762712 | AW139: 4.745762712
A140: 119 | B140: Реконструкция ВЛ-0,4 кВ от КТП Ч 303/400 кВА | F140: 2.4 | G140: / | H140: 0 | I140: 2020 | J140: 2020 | K140: 6.72 | P140: 0 | R140: 0 | U140: 0 | W140: 0 | Z140: 0 | AB140: 0 | AE140: 0 | AG140: 0 | AJ140: 2.4 | AK140: / | AL140: 0 | AO140: 2.4 | AP140: / | AQ140: 0 | AR140: 0 | AS140: 0 | AT140: 0 | AU140: 0 | AV140: 5.694915254 | AW140: 5.694915254
A141: 120 | B141: Реконструкция ВЛ-0,4 кВ от ЗТП Ку 1601/160 кВА с заменой трансформатора на 250 кВА | F141: 1 | G141: / | H141: 0.25 | I141: 2020 | J141: 2020 | K141: 4 | P141: 0 | R141: 0 | U141: 0 | W141: 0 | Z141: 0 | AB141: 0 | AE141: 0 | AG141: 0 | AJ141: 1 | AK141: / | AL141: 0.25 | AO141: 1 | AP141: / | AQ141: 0.25 | AR141: 0 | AS141: 0 | AT141: 0 | AU141: 0 | AV141: 3.389830508 | AW141: 3.389830508
A142: 121 | B142: Реконструкция КЛ-0,4 кВ от ЗТП Ку 1602/2х250 кВА | F142: 0.6 | G142: / | H142: 0 | I142: 2020 | J142: 2020 | K142: 2.4 | P142: 0 | R142: 0 | U142: 0 | W142: 0 | Z142: 0 | AB142: 0 | AE142: 0 | AG142: 0 | AJ142: 0.6 | AK142: / | AL142: 0 | AO142: 0.6 | AP142: / | AQ142: 0 | AR142: 0 | AS142: 0 | AT142: 0 | AU142: 0 | AV142: 2.033898305 | AW142: 2.033898305
A143: 122 | B143: Реконструкция ВКЛ-0,4 кВ от ЗТП Ку 1603/630 кВА | F143: 2.6 | G143: / | H143: 0 | I143: 2020 | J143: 2020 | K143: 8 | P143: 0 | R143: 0 | U143: 0 | W143: 0 | Z143: 0 | AB143: 0 | AE143: 0 | AG143: 0 | AJ143: 2.6 | AK143: / | AL143: 0 | AO143: 2.6 | AP143: / | AQ143: 0 | AR143: 0 | AS143: 0 | AT143: 0 | AU143: 0 | AV143: 6.779661017 | AW143: 6.779661017
A144: 123 | B144: Кинельский район | F144: 0 | H144: 0 | I144: 0 | J144: 0 | K144: 0 | P144: 0 | R144: 0 | U144: 0 | W144: 0 | Z144: 0 | AB144: 0 | AE144: 0 | AG144: 0 | AJ144: 0 | AL144: 0 | AO144: 0 | AQ144: 0 | AR144: 0 | AS144: 0 | AT144: 0 | AU144: 0 | AV144: 0 | AW144: 0
A145: 124 | B145: Реконструкция ВЛ-0,4 кВ от КТП Гр 1610/160 кВА с заменой КТП | F145: 2.03 | G145: / | H145: 0.16 | I145: 2016 | J145: 2016 | K145: 7.336 | P145: 2.03 | Q145: / | R145: 0.16 | U145: 0 | W145: 0 | Z145: 0 | AB145: 0 | AE145: 0 | AG145: 0 | AJ145: 0 | AL145: 0 | AO145: 2.03 | AP145: / | AQ145: 0.16 | AR145: 6.216949153 | AS145: 0 | AT145: 0 | AU145: 0 | AV145: 0 | AW145: 6.216949153
A146: 125 | B146: Реконструкция ВЛ-0,4 кВ от КТП Ком 2004/250кВА с заменой КТП | F146: 1.8 | G146: / | H146: 0.25 | I146: 2016 | J146: 2016 | K146: 8.13 | P146: 1.8 | Q146: / | R146: 0.25 | U146: 0 | W146: 0 | Z146: 0 | AB146: 0 | AE146: 0 | AG146: 0 | AJ146: 0 | AL146: 0 | AO146: 1.8 | AP146: / | AQ146: 0.25 | AR146: 6.889830508 | AS146: 0 | AT146: 0 | AU146: 0 | AV146: 0 | AW146: 6.889830508
A147: 126 | B147: Реконструкция ВЛ-0,4кВ от ЗТП ММ 213/250 кВА | F147: 2.4 | G147: / | H147: 0 | I147: 2016 | J147: 2016 | K147: 8.682 | P147: 2.4 | Q147: / | R147: 0 | U147: 0 | W147: 0 | Z147: 0 | AB147: 0 | AE147: 0 | AG147: 0 | AJ147: 0 | AL147: 0 | AO147: 2.4 | AP147: / | AQ147: 0 | AR147: 7.357627119 | AS147: 0 | AT147: 0 | AU147: 0 | AV147: 0 | AW147: 7.357627119
A148: 127 | B148: Реконструкция ВЛ-0,4 кВ от КТП ММ 612/400кВА с заменой КТП | F148: 1.48 | G148: / | H148: 0.4 | I148: 2016 | J148: 2016 | K148: 6.054 | P148: 1.48 | Q148: / | R148: 0.4 | U148: 0 | W148: 0 | Z148: 0 | AB148: 0 | AE148: 0 | AG148: 0 | AJ148: 0 | AL148: 0 | AO148: 1.48 | AP148: / | AQ148: 0.4 | AR148: 5.130508475 | AS148: 0 | AT148: 0 | AU148: 0 | AV148: 0 | AW148: 5.130508475
A149: 128 | B149: Реконструкция ВЛ-0,4 кВ от КТП Алк 54/250 кВА с заменой на КТП 400 кВА | F149: 1.8 | G149: / | H149: 0.4 | I149: 2017 | J149: 2017 | K149: 6.24 | P149: 0 | R149: 0 | U149: 1.8 | V149: / | W149: 0.4 | Z149: 0 | AB149: 0 | AE149: 0 | AG149: 0 | AJ149: 0 | AL149: 0 | AO149: 1.8 | AP149: / | AQ149: 0.4 | AR149: 0 | AS149: 5.288135593 | AT149: 0 | AU149: 0 | AV149: 0 | AW149: 5.288135593
A150: 129 | B150: Реконструкция ВЛ-0,4 кВ от КТП Алк 30/160 кВА с заменой на КТП 250 кВА | F150: 1.45 | G150: / | H150: 0.25 | I150: 2017 | J150: 2017 | K150: 5.26 | P150: 0 | R150: 0 | U150: 1.45 | V150: / | W150: 0.25 | Z150: 0 | AB150: 0 | AE150: 0 | AG150: 0 | AJ150: 0 | AL150: 0 | AO150: 1.45 | AP150: / | AQ150: 0.25 | AR150: 0 | AS150: 4.457627119 | AT150: 0 | AU150: 0 | AV150: 0 | AW150: 4.457627119
A151: 130 | B151: Реконструкция ВЛ-0,4кВ от КТП Шев 208/250 кВА | F151: 2.22 | G151: / | H151: 0 | I151: 2017 | J151: 2017 | K151: 6.216 | P151: 0 | R151: 0 | U151: 2.22 | V151: / | W151: 0 | Z151: 0 | AB151: 0 | AE151: 0 | AG151: 0 | AJ151: 0 | AL151: 0 | AO151: 2.22 | AP151: / | AQ151: 0 | AR151: 0 | AS151: 5.26779661 | AT151: 0 | AU151: 0 | AV151: 0 | AW151: 5.26779661
A152: 131 | B152: Реконструкция ВЛ-0,4кВ от МТП Кр 903/100 кВА с заменой КТП | F152: 1.25 | G152: / | H152: 0.1 | I152: 2018 | J152: 2018 | K152: 4.7 | P152: 0 | R152: 0 | U152: 0 | W152: 0 | Z152: 1.25 | AA152: / | AB152: 0.1 | AE152: 0 | AG152: 0 | AJ152: 0 | AL152: 0 | AO152: 1.25 | AP152: / | AQ152: 0.1 | AR152: 0 | AS152: 0 | AT152: 3.983050847 | AU152: 0 | AV152: 0 | AW152: 3.983050847
A153: 132 | B153: Реконструкция ВЛ-0,4кВ от МТП 704/250 кВА с заменой КТП | F153: 1 | G153: / | H153: 0.25 | I153: 2018 | J153: 2018 | K153: 4 | P153: 0 | R153: 0 | U153: 0 | W153: 0 | Z153: 1 | AA153: / | AB153: 0.25 | AE153: 0 | AG153: 0 | AJ153: 0 | AL153: 0 | AO153: 1 | AP153: / | AQ153: 0.25 | AR153: 0 | AS153: 0 | AT153: 3.389830508 | AU153: 0 | AV153: 0 | AW153: 3.389830508
A154: 133 | B154: Реконструкция ВЛ-0,4кВ от КТП 210/160 кВА | F154: 1.45 | G154: / | H154: 0 | I154: 2018 | J154: 2018 | K154: 4.06 | P154: 0 | R154: 0 | U154: 0 | W154: 0 | Z154: 1.45 | AA154: / | AB154: 0 | AE154: 0 | AG154: 0 | AJ154: 0 | AL154: 0 | AO154: 1.45 | AP154: / | AQ154: 0 | AR154: 0 | AS154: 0 | AT154: 3.440677966 | AU154: 0 | AV154: 0 | AW154: 3.440677966
A155: 134 | B155: Реконструкция ВЛ-0,4 кВ от КТП Алк 90/160 кВА с заменой КТП | F155: 1 | G155: / | H155: 0.16 | I155: 2019 | J155: 2019 | K155: 4 | P155: 0 | R155: 0 | U155: 0 | W155: 0 | Z155: 0 | AB155: 0 | AE155: 1 | AF155: / | AG155: 0.16 | AJ155: 0 | AL155: 0 | AO155: 1 | AP155: / | AQ155: 0.16 | AR155: 0 | AS155: 0 | AT155: 0 | AU155: 3.389830508 | AV155: 0 | AW155: 3.389830508
A156: 135 | B156: Реконструкция ВЛ-0,4 кВ от КТП Алк 91/160 кВА с заменой КТП | F156: 0.65 | G156: / | H156: 0.16 | I156: 2019 | J156: 2019 | K156: 3.02 | P156: 0 | R156: 0 | U156: 0 | W156: 0 | Z156: 0 | AB156: 0 | AE156: 0.65 | AF156: / | AG156: 0.16 | AJ156: 0 | AL156: 0 | AO156: 0.65 | AP156: / | AQ156: 0.16 | AR156: 0 | AS156: 0 | AT156: 0 | AU156: 2.559322034 | AV156: 0 | AW156: 2.559322034
A157: 136 | B157: Реконструкция ВЛ-0,4 кВ от ЗТП Ком 2007/400 кВА | F157: 2 | G157: / | H157: 0 | I157: 2019 | J157: 2019 | K157: 5.6 | P157: 0 | R157: 0 | U157: 0 | W157: 0 | Z157: 0 | AB157: 0 | AE157: 2 | AF157: / | AG157: 0 | AJ157: 0 | AL157: 0 | AO157: 2 | AP157: / | AQ157: 0 | AR157: 0 | AS157: 0 | AT157: 0 | AU157: 4.745762712 | AV157: 0 | AW157: 4.745762712
A158: 137 | B158: Реконструкция ВЛ-0,4 кВ от КТП Тур 717/160 кВА с заменой КТП | F158: 0.86 | G158: / | H158: 0.16 | I158: 2020 | J158: 2020 | K158: 3.608 | P158: 0 | R158: 0 | U158: 0 | W158: 0 | Z158: 0 | AB158: 0 | AE158: 0 | AG158: 0 | AJ158: 0.86 | AK158: / | AL158: 0.16 | AO158: 0.86 | AP158: / | AQ158: 0.16 | AR158: 0 | AS158: 0 | AT158: 0 | AU158: 0 | AV158: 3.057627119 | AW158: 3.057627119
A159: 138 | B159: Клявлинский район | F159: 0 | H159: 0 | I159: 0 | J159: 0 | K159: 0 | P159: 0 | R159: 0 | U159: 0 | W159: 0 | Z159: 0 | AB159: 0 | AE159: 0 | AG159: 0 | AJ159: 0 | AL159: 0 | AO159: 0 | AQ159: 0 | AR159: 0 | AS159: 0 | AT159: 0 | AU159: 0 | AV159: 0 | AW159: 0
A160: 139 | B160: Реконструкция ВЛ-10 кВ Ф-17 КЛВ | F160: 0.4 | G160: / | H160: 0 | I160: 2016 | J160: 2016 | K160: 1.936 | P160: 0.4 | Q160: / | R160: 0 | U160: 0 | W160: 0 | Z160: 0 | AB160: 0 | AE160: 0 | AG160: 0 | AJ160: 0 | AL160: 0 | AO160: 0.4 | AP160: / | AQ160: 0 | AR160: 1.640677966 | AS160: 0 | AT160: 0 | AU160: 0 | AV160: 0 | AW160: 1.640677966
A161: 140 | B161: Реконструкция КЛ-6 кВ ЕЛЗ-4 | F161: 1.04 | G161: / | H161: 0 | I161: 2016 | J161: 2016 | K161: 4.995 | P161: 1.04 | Q161: / | R161: 0 | U161: 0 | W161: 0 | Z161: 0 | AB161: 0 | AE161: 0 | AG161: 0 | AJ161: 0 | AL161: 0 | AO161: 1.04 | AP161: / | AQ161: 0 | AR161: 4.233050847 | AS161: 0 | AT161: 0 | AU161: 0 | AV161: 0 | AW161: 4.233050847
A162: 141 | B162: Реконструкция ВЛ-0,4кВ от КТП КЛВ 418/250кВА с заменой КТП и установкой дополнительной КТП 250кВА для перераспределения нагрузки | F162: 3.56 | G162: / | H162: 0.5 | I162: 2016 | J162: 2016 | K162: 14.47 | P162: 3.56 | Q162: / | R162: 0.5 | U162: 0 | W162: 0 | Z162: 0 | AB162: 0 | AE162: 0 | AG162: 0 | AJ162: 0 | AL162: 0 | AO162: 3.56 | AP162: / | AQ162: 0.5 | AR162: 12.26271186 | AS162: 0 | AT162: 0 | AU162: 0 | AV162: 0 | AW162: 12.26271186
A163: 142 | B163: Реконструкция ВЛ-0,4кВ от КТП КЛВ 1206/400 кВА с заменой КТП и установкой дополнительной КТП 250 кВА для перераспределения нагрузки | F163: 1.3 | G163: / | H163: 0.65 | I163: 2017 | J163: 2017 | K163: 6.04 | P163: 0 | R163: 0 | U163: 1.3 | V163: / | W163: 0.65 | Z163: 0 | AB163: 0 | AE163: 0 | AG163: 0 | AJ163: 0 | AL163: 0 | AO163: 1.3 | AP163: / | AQ163: 0.65 | AR163: 0 | AS163: 5.118644068 | AT163: 0 | AU163: 0 | AV163: 0 | AW163: 5.118644068
A164: 143 | B164: Реконструкция ВЛ-0,4кВ от КТП КЛВ1208/160 кВА с переключением на КТП КЛВ 1206/400 кВА | F164: 0.95 | G164: / | H164: 0 | I164: 2017 | J164: 2017 | K164: 2.66 | P164: 0 | R164: 0 | U164: 0.95 | V164: / | W164: 0 | Z164: 0 | AB164: 0 | AE164: 0 | AG164: 0 | AJ164: 0 | AL164: 0 | AO164: 0.95 | AP164: / | AQ164: 0 | AR164: 0 | AS164: 2.254237288 | AT164: 0 | AU164: 0 | AV164: 0 | AW164: 2.254237288
A165: 144 | B165: Реконструкция ВЛ-0,4кВ от КТП КЛВ 1209/250 кВА с заменой КТП | F165: 2.1 | G165: / | H165: 0.25 | I165: 2017 | J165: 2017 | K165: 7.08 | P165: 0 | R165: 0 | U165: 2.1 | V165: / | W165: 0.25 | Z165: 0 | AB165: 0 | AE165: 0 | AG165: 0 | AJ165: 0 | AL165: 0 | AO165: 2.1 | AP165: / | AQ165: 0.25 | AR165: 0 | AS165: 6 | AT165: 0 | AU165: 0 | AV165: 0 | AW165: 6
A166: 145 | B166: Реконструкция ВЛ-0,4кВ от КТП КЛВ 1207/250 кВА | F166: 1.5 | G166: / | H166: 0 | I166: 2017 | J166: 2017 | K166: 4.2 | P166: 0 | R166: 0 | U166: 1.5 | V166: / | W166: 0 | Z166: 0 | AB166: 0 | AE166: 0 | AG166: 0 | AJ166: 0 | AL166: 0 | AO166: 1.5 | AP166: / | AQ166: 0 | AR166: 0 | AS166: 3.559322034 | AT166: 0 | AU166: 0 | AV166: 0 | AW166: 3.559322034
A167: 146 | B167: Реконструкция ВЛ-0,4кВ от КТП 416/100 кВА с заменой КТП | F167: 2.1 | G167: / | H167: 0.1 | I167: 2017 | J167: 2017 | K167: 7.08 | P167: 0 | R167: 0 | U167: 2.1 | V167: / | W167: 0.1 | Z167: 0 | AB167: 0 | AE167: 0 | AG167: 0 | AJ167: 0 | AL167: 0 | AO167: 2.1 | AP167: / | AQ167: 0.1 | AR167: 0 | AS167: 6 | AT167: 0 | AU167: 0 | AV167: 0 | AW167: 6
A168: 147 | B168: Реконструкция ВЛ-0,4кВ от КТП КЛВ 421/160 кВА с заменой КТП | F168: 3.1 | G168: / | H168: 0.16 | I168: 2018 | J168: 2018 | K168: 9.88 | P168: 0 | R168: 0 | U168: 0 | W168: 0 | Z168: 3.1 | AA168: / | AB168: 0.16 | AE168: 0 | AG168: 0 | AJ168: 0 | AL168: 0 | AO168: 3.1 | AP168: / | AQ168: 0.16 | AR168: 0 | AS168: 0 | AT168: 8.372881356 | AU168: 0 | AV168: 0 | AW168: 8.372881356
A169: 148 | B169: Реконструкция ВЛ-0,4кВ от КТП КЛВ 1404/160 кВА с заменой КТП | F169: 3.1 | G169: / | H169: 0.16 | I169: 2018 | J169: 2018 | K169: 9.88 | P169: 0 | R169: 0 | U169: 0 | W169: 0 | Z169: 3.1 | AA169: / | AB169: 0.16 | AE169: 0 | AG169: 0 | AJ169: 0 | AL169: 0 | AO169: 3.1 | AP169: / | AQ169: 0.16 | AR169: 0 | AS169: 0 | AT169: 8.372881356 | AU169: 0 | AV169: 0 | AW169: 8.372881356
A170: 149 | B170: Реконструкция ВЛ-0,4кВ от КТП КЛВ 1412/100 кВА | F170: 1.78 | G170: / | H170: 0 | I170: 2018 | J170: 2018 | K170: 4.984 | P170: 0 | R170: 0 | U170: 0 | W170: 0 | Z170: 1.78 | AA170: / | AB170: 0 | AE170: 0 | AG170: 0 | AJ170: 0 | AL170: 0 | AO170: 1.78 | AP170: / | AQ170: 0 | AR170: 0 | AS170: 0 | AT170: 4.223728814 | AU170: 0 | AV170: 0 | AW170: 4.223728814
A171: 150 | B171: Реконструкция ВЛ-0,4кВ от КТП КЛВ 1411/160 кВА | F171: 2.1 | G171: / | H171: 0 | I171: 2018 | J171: 2018 | K171: 5.88 | P171: 0 | R171: 0 | U171: 0 | W171: 0 | Z171: 2.1 | AA171: / | AB171: 0 | AE171: 0 | AG171: 0 | AJ171: 0 | AL171: 0 | AO171: 2.1 | AP171: / | AQ171: 0 | AR171: 0 | AS171: 0 | AT171: 4.983050847 | AU171: 0 | AV171: 0 | AW171: 4.983050847
A172: 151 | B172: Реконструкция ВЛ-0,4кВ от КТП ЕЛЗ 401/100 кВА | F172: 0.5 | G172: / | H172: 0 | I172: 2018 | J172: 2018 | K172: 1.4 | P172: 0 | R172: 0 | U172: 0 | W172: 0 | Z172: 0.5 | AA172: / | AB172: 0 | AE172: 0 | AG172: 0 | AJ172: 0 | AL172: 0 | AO172: 0.5 | AP172: / | AQ172: 0 | AR172: 0 | AS172: 0 | AT172: 1.186440678 | AU172: 0 | AV172: 0 | AW172: 1.186440678
A173: 152 | B173: Реконструкция ВЛ-0,4кВ от КТП КЛВ1407/250 кВА с заменой КТП | F173: 1.07 | G173: / | H173: 0.25 | I173: 2019 | J173: 2019 | K173: 4.196 | P173: 0 | R173: 0 | U173: 0 | W173: 0 | Z173: 0 | AB173: 0 | AE173: 1.07 | AF173: / | AG173: 0.25 | AJ173: 0 | AL173: 0 | AO173: 1.07 | AP173: / | AQ173: 0.25 | AR173: 0 | AS173: 0 | AT173: 0 | AU173: 3.555932203 | AV173: 0 | AW173: 3.555932203
A174: 153 | B174: Реконструкция ВЛ-0,4кВ от КТП КЛВ422/160 кВА с заменой КТП | F174: 1.6 | G174: / | H174: 0.16 | I174: 2019 | J174: 2019 | K174: 5.68 | P174: 0 | R174: 0 | U174: 0 | W174: 0 | Z174: 0 | AB174: 0 | AE174: 1.6 | AF174: / | AG174: 0.16 | AJ174: 0 | AL174: 0 | AO174: 1.6 | AP174: / | AQ174: 0.16 | AR174: 0 | AS174: 0 | AT174: 0 | AU174: 4.813559322 | AV174: 0 | AW174: 4.813559322
A175: 154 | B175: Реконструкция ВЛ-0,4кВ от КТП КЛВ1408/160 кВА с заменой КТП | F175: 2.3 | G175: / | H175: 0.16 | I175: 2019 | J175: 2019 | K175: 7.64 | P175: 0 | R175: 0 | U175: 0 | W175: 0 | Z175: 0 | AB175: 0 | AE175: 2.3 | AF175: / | AG175: 0.16 | AJ175: 0 | AL175: 0 | AO175: 2.3 | AP175: / | AQ175: 0.16 | AR175: 0 | AS175: 0 | AT175: 0 | AU175: 6.474576271 | AV175: 0 | AW175: 6.474576271
A176: 155 | B176: Реконструкция ВЛ-0,4кВ от КТП КЛВ1017/400 кВА с заменой КТП | F176: 1.1 | G176: / | H176: 0.4 | I176: 2019 | J176: 2019 | K176: 4.28 | P176: 0 | R176: 0 | U176: 0 | W176: 0 | Z176: 0 | AB176: 0 | AE176: 1.1 | AF176: / | AG176: 0.4 | AJ176: 0 | AL176: 0 | AO176: 1.1 | AP176: / | AQ176: 0.4 | AR176: 0 | AS176: 0 | AT176: 0 | AU176: 3.627118644 | AV176: 0 | AW176: 3.627118644
A177: 156 | B177: Реконструкция ВЛ-0,4кВ от КТП КЛВ1027/160 кВА с заменой КТП | F177: 0.81 | G177: / | H177: 0.16 | I177: 2019 | J177: 2019 | K177: 3.468 | P177: 0 | R177: 0 | U177: 0 | W177: 0 | Z177: 0 | AB177: 0 | AE177: 0.81 | AF177: / | AG177: 0.16 | AJ177: 0 | AL177: 0 | AO177: 0.81 | AP177: / | AQ177: 0.16 | AR177: 0 | AS177: 0 | AT177: 0 | AU177: 2.938983051 | AV177: 0 | AW177: 2.938983051
A178: 157 | B178: Реконструкция ВЛ-0,4кВ от КТП ЧКЛ 703/100 кВА с заменой КТП | F178: 4.8 | G178: / | H178: 0.1 | I178: 2020 | J178: 2020 | K178: 14.64 | P178: 0 | R178: 0 | U178: 0 | W178: 0 | Z178: 0 | AB178: 0 | AE178: 0 | AG178: 0 | AJ178: 4.8 | AK178: / | AL178: 0.1 | AO178: 4.8 | AP178: / | AQ178: 0.1 | AR178: 0 | AS178: 0 | AT178: 0 | AU178: 0 | AV178: 12.40677966 | AW178: 12.40677966
A179: 158 | B179: Реконструкция ВЛ-0,4кВ от КТП ЧКЛ 705/160 кВА с заменой КТП | F179: 0.65 | G179: / | H179: 0.16 | I179: 2020 | J179: 2020 | K179: 3.02 | P179: 0 | R179: 0 | U179: 0 | W179: 0 | Z179: 0 | AB179: 0 | AE179: 0 | AG179: 0 | AJ179: 0.65 | AK179: / | AL179: 0.16 | AO179: 0.65 | AP179: / | AQ179: 0.16 | AR179: 0 | AS179: 0 | AT179: 0 | AU179: 0 | AV179: 2.559322034 | AW179: 2.559322034
A180: 159 | B180: Реконструкция ВЛ-0,4кВ от КТП ЧКЛ 707/160 кВА с заменой КТП | F180: 0.98 | G180: / | H180: 0.16 | I180: 2020 | J180: 2020 | K180: 3.944 | P180: 0 | R180: 0 | U180: 0 | W180: 0 | Z180: 0 | AB180: 0 | AE180: 0 | AG180: 0 | AJ180: 0.98 | AK180: / | AL180: 0.16 | AO180: 0.98 | AP180: / | AQ180: 0.16 | AR180: 0 | AS180: 0 | AT180: 0 | AU180: 0 | AV180: 3.342372881 | AW180: 3.342372881
A181: 160 | B181: Реконструкция ВЛ-0,4кВ от КТП ЧКЛ 708/100 кВА с заменой КТП | F181: 3.03 | G181: / | H181: 0.1 | I181: 2020 | J181: 2020 | K181: 9.684 | P181: 0 | R181: 0 | U181: 0 | W181: 0 | Z181: 0 | AB181: 0 | AE181: 0 | AG181: 0 | AJ181: 3.03 | AK181: / | AL181: 0.1 | AO181: 3.03 | AP181: / | AQ181: 0.1 | AR181: 0 | AS181: 0 | AT181: 0 | AU181: 0 | AV181: 8.206779661 | AW181: 8.206779661
A182: 161 | B182: Реконструкция ВЛ-0,4кВ от КТП КЛВ 818/160 кВА с заменой КТП | F182: 1.52 | G182: / | H182: 0.16 | I182: 2020 | J182: 2020 | K182: 5.456 | P182: 0 | R182: 0 | U182: 0 | W182: 0 | Z182: 0 | AB182: 0 | AE182: 0 | AG182: 0 | AJ182: 1.52 | AK182: / | AL182: 0.16 | AO182: 1.52 | AP182: / | AQ182: 0.16 | AR182: 0 | AS182: 0 | AT182: 0 | AU182: 0 | AV182: 4.623728814 | AW182: 4.623728814
A183: 162 | B183: Кошкинский район | F183: 0 | H183: 0 | I183: 0 | J183: 0 | K183: 0 | P183: 0 | R183: 0 | U183: 0 | W183: 0 | Z183: 0 | AB183: 0 | AE183: 0 | AG183: 0 | AJ183: 0 | AL183: 0 | AO183: 0 | AQ183: 0 | AR183: 0 | AS183: 0 | AT183: 0 | AU183: 0 | AV183: 0 | AW183: 0
A184: 163 | B184: Реконструкция ВЛ-10кВ КШК-7 | F184: 6 | G184: / | H184: 0 | I184: 2016 | J184: 2016 | K184: 20.723 | P184: 6 | Q184: / | R184: 0 | U184: 0 | W184: 0 | Z184: 0 | AB184: 0 | AE184: 0 | AG184: 0 | AJ184: 0 | AL184: 0 | AO184: 6 | AP184: / | AQ184: 0 | AR184: 17.56186441 | AS184: 0 | AT184: 0 | AU184: 0 | AV184: 0 | AW184: 17.56186441
A185: 164 | B185: Реконструкция ВЛ-10кВ КШК-5 | F185: 12.1 | G185: / | H185: 0 | I185: 2016 | J185: 2016 | K185: 38.729 | P185: 12.1 | Q185: / | R185: 0 | U185: 0 | W185: 0 | Z185: 0 | AB185: 0 | AE185: 0 | AG185: 0 | AJ185: 0 | AL185: 0 | AO185: 12.1 | AP185: / | AQ185: 0 | AR185: 32.82118644 | AS185: 0 | AT185: 0 | AU185: 0 | AV185: 0 | AW185: 32.82118644
A186: 165 | B186: Реконструкция ВЛ-0,4 кВ от КТП КРМ 408/160 кВА с заменой КТП на 250 кВА | F186: 2.4 | G186: / | H186: 0.25 | I186: 2016 | J186: 2016 | K186: 8.244 | P186: 2.4 | Q186: / | R186: 0.25 | U186: 0 | W186: 0 | Z186: 0 | AB186: 0 | AE186: 0 | AG186: 0 | AJ186: 0 | AL186: 0 | AO186: 2.4 | AP186: / | AQ186: 0.25 | AR186: 6.986440678 | AS186: 0 | AT186: 0 | AU186: 0 | AV186: 0 | AW186: 6.986440678
A187: 166 | B187: Реконструкция ВЛ-0,4 кВ от КТП КШК 702/250 кВА с заменой КТП | F187: 0.8 | G187: / | H187: 0.25 | I187: 2016 | J187: 2016 | K187: 5.372 | P187: 0.8 | Q187: / | R187: 0.25 | U187: 0 | W187: 0 | Z187: 0 | AB187: 0 | AE187: 0 | AG187: 0 | AJ187: 0 | AL187: 0 | AO187: 0.8 | AP187: / | AQ187: 0.25 | AR187: 4.552542373 | AS187: 0 | AT187: 0 | AU187: 0 | AV187: 0 | AW187: 4.552542373
A188: 167 | B188: Реконструкция ВЛ-10 кВ КШК-11 | F188: 3.47 | G188: / | H188: 0 | I188: 2017 | J188: 2017 | K188: 9.716 | P188: 0 | R188: 0 | U188: 3.47 | V188: / | W188: 0 | Z188: 0 | AB188: 0 | AE188: 0 | AG188: 0 | AJ188: 0 | AL188: 0 | AO188: 3.47 | AP188: / | AQ188: 0 | AR188: 0 | AS188: 8.233898305 | AT188: 0 | AU188: 0 | AV188: 0 | AW188: 8.233898305
A189: 168 | B189: Реконструкция ВЛ-0,4 кВ от КТП КШК 510/160 кВА с заменой на КТП 250 кВА | F189: 2.68 | G189: / | H189: 0.25 | I189: 2017 | J189: 2017 | K189: 8.704 | P189: 0 | R189: 0 | U189: 2.68 | V189: / | W189: 0.25 | Z189: 0 | AB189: 0 | AE189: 0 | AG189: 0 | AJ189: 0 | AL189: 0 | AO189: 2.68 | AP189: / | AQ189: 0.25 | AR189: 0 | AS189: 7.376271186 | AT189: 0 | AU189: 0 | AV189: 0 | AW189: 7.376271186
A190: 169 | B190: Реконструкция ВЛ-0,4 кВ от КТП КШК 1103/400 кВА с заменой КТП 400 кВА | F190: 2.03 | G190: / | H190: 0.4 | I190: 2017 | J190: 2017 | K190: 6.884 | P190: 0 | R190: 0 | U190: 2.03 | V190: / | W190: 0.4 | Z190: 0 | AB190: 0 | AE190: 0 | AG190: 0 | AJ190: 0 | AL190: 0 | AO190: 2.03 | AP190: / | AQ190: 0.4 | AR190: 0 | AS190: 5.833898305 | AT190: 0 | AU190: 0 | AV190: 0 | AW190: 5.833898305
A191: 170 | B191: Реконструкция ВЛ-0,4 кВ от КТП КРМ 304/100 кВА с заменой на КТП 160 кВА | F191: 2 | G191: / | H191: 0.16 | I191: 2017 | J191: 2017 | K191: 6.8 | P191: 0 | R191: 0 | U191: 2 | V191: / | W191: 0.16 | Z191: 0 | AB191: 0 | AE191: 0 | AG191: 0 | AJ191: 0 | AL191: 0 | AO191: 2 | AP191: / | AQ191: 0.16 | AR191: 0 | AS191: 5.762711864 | AT191: 0 | AU191: 0 | AV191: 0 | AW191: 5.762711864
A192: 171 | B192: Реконструкция ВЛ-0,4 кВ от КТП КШК 1108/160 с заменой на КТП 250 кВА | F192: 2.3 | G192: / | H192: 0.25 | I192: 2017 | J192: 2017 | K192: 7.64 | P192: 0 | R192: 0 | U192: 2.3 | V192: / | W192: 0.25 | Z192: 0 | AB192: 0 | AE192: 0 | AG192: 0 | AJ192: 0 | AL192: 0 | AO192: 2.3 | AP192: / | AQ192: 0.25 | AR192: 0 | AS192: 6.474576271 | AT192: 0 | AU192: 0 | AV192: 0 | AW192: 6.474576271
A193: 172 | B193: Реконструкция ВЛ-0,4 кВ от КТП САД 709/160 кВА с заменой КТП на 250 кВА | F193: 1.3 | G193: / | H193: 0.25 | I193: 2017 | J193: 2017 | K193: 4.84 | P193: 0 | R193: 0 | U193: 1.3 | V193: / | W193: 0.25 | Z193: 0 | AB193: 0 | AE193: 0 | AG193: 0 | AJ193: 0 | AL193: 0 | AO193: 1.3 | AP193: / | AQ193: 0.25 | AR193: 0 | AS193: 4.101694915 | AT193: 0 | AU193: 0 | AV193: 0 | AW193: 4.101694915
A194: 173 | B194: Реконструкция ВЛ-0,4 кВ от КТП КШК 109/160 с заменой ЗТП на КТП 160 кВА | F194: 0.4 | G194: / | H194: 0.16 | I194: 2018 | J194: 2018 | K194: 2.32 | P194: 0 | R194: 0 | U194: 0 | W194: 0 | Z194: 0.4 | AA194: / | AB194: 0.16 | AE194: 0 | AG194: 0 | AJ194: 0 | AL194: 0 | AO194: 0.4 | AP194: / | AQ194: 0.16 | AR194: 0 | AS194: 0 | AT194: 1.966101695 | AU194: 0 | AV194: 0 | AW194: 1.966101695
A195: 174 | B195: Реконструкция ВЛ-0,4 кВ от КТП КШК 1115/250 с заменой КТП | F195: 1.2 | G195: / | H195: 0.25 | I195: 2018 | J195: 2018 | K195: 4.56 | P195: 0 | R195: 0 | U195: 0 | W195: 0 | Z195: 1.2 | AA195: / | AB195: 0.25 | AE195: 0 | AG195: 0 | AJ195: 0 | AL195: 0 | AO195: 1.2 | AP195: / | AQ195: 0.25 | AR195: 0 | AS195: 0 | AT195: 3.86440678 | AU195: 0 | AV195: 0 | AW195: 3.86440678
A196: 175 | B196: Реконструкция ВЛ-0,4 кВ от КТП КШК 1113/250 кВА с заменой КТП | F196: 1.1 | G196: / | H196: 0.25 | I196: 2018 | J196: 2018 | K196: 4.28 | P196: 0 | R196: 0 | U196: 0 | W196: 0 | Z196: 1.1 | AA196: / | AB196: 0.25 | AE196: 0 | AG196: 0 | AJ196: 0 | AL196: 0 | AO196: 1.1 | AP196: / | AQ196: 0.25 | AR196: 0 | AS196: 0 | AT196: 3.627118644 | AU196: 0 | AV196: 0 | AW196: 3.627118644
A197: 176 | B197: Реконструкция ВЛ-0,4 кВ от КТП КШК 504/160 с заменой КТП на 250 кВА | F197: 2.5 | G197: / | H197: 0.25 | I197: 2018 | J197: 2018 | K197: 8.2 | P197: 0 | R197: 0 | U197: 0 | W197: 0 | Z197: 2.5 | AA197: / | AB197: 0.25 | AE197: 0 | AG197: 0 | AJ197: 0 | AL197: 0 | AO197: 2.5 | AP197: / | AQ197: 0.25 | AR197: 0 | AS197: 0 | AT197: 6.949152542 | AU197: 0 | AV197: 0 | AW197: 6.949152542
A198: 177 | B198: Реконструкция ВЛ-0,4 кВ от КТП КРМ 502/100 кВА с заменой КТП на 63 кВА | F198: 0.2 | G198: / | H198: 0.063 | I198: 2019 | J198: 2019 | K198: 1.76 | P198: 0 | R198: 0 | U198: 0 | W198: 0 | Z198: 0 | AB198: 0 | AE198: 0.2 | AF198: / | AG198: 0.063 | AJ198: 0 | AL198: 0 | AO198: 0.2 | AP198: / | AQ198: 0.063 | AR198: 0 | AS198: 0 | AT198: 0 | AU198: 1.491525424 | AV198: 0 | AW198: 1.491525424
A199: 178 | B199: Реконструкция ВЛ-0,4 кВ от КТП КШК 1204/63 кВА с переносом и заменой на КТП | F199: 0.2 | G199: / | H199: 0.063 | I199: 2019 | J199: 2019 | K199: 1.76 | P199: 0 | R199: 0 | U199: 0 | W199: 0 | Z199: 0 | AB199: 0 | AE199: 0.2 | AF199: / | AG199: 0.063 | AJ199: 0 | AL199: 0 | AO199: 0.2 | AP199: / | AQ199: 0.063 | AR199: 0 | AS199: 0 | AT199: 0 | AU199: 1.491525424 | AV199: 0 | AW199: 1.491525424
A200: 179 | B200: Реконструкция ВЛ-0,4 кВ от ЗТП САД 703/400 кВА с заменой КТП на 400 кВА | F200: 0.1 | G200: / | H200: 0.4 | I200: 2019 | J200: 2019 | K200: 1.48 | P200: 0 | R200: 0 | U200: 0 | W200: 0 | Z200: 0 | AB200: 0 | AE200: 0.1 | AF200: / | AG200: 0.4 | AJ200: 0 | AL200: 0 | AO200: 0.1 | AP200: / | AQ200: 0.4 | AR200: 0 | AS200: 0 | AT200: 0 | AU200: 1.254237288 | AV200: 0 | AW200: 1.254237288
A201: 180 | B201: Реконструкция ВЛ-0,4 кВ от КТП НБК 117/160 кВА с заменой КТП на 63 кВА | F201: 0.5 | G201: / | H201: 0.063 | I201: 2019 | J201: 2019 | K201: 2.6 | P201: 0 | R201: 0 | U201: 0 | W201: 0 | Z201: 0 | AB201: 0 | AE201: 0.5 | AF201: / | AG201: 0.063 | AJ201: 0 | AL201: 0 | AO201: 0.5 | AP201: / | AQ201: 0.063 | AR201: 0 | AS201: 0 | AT201: 0 | AU201: 2.203389831 | AV201: 0 | AW201: 2.203389831
A202: 181 | B202: Реконструкция ВЛ-0,4 кВ от ЗТП КШК 1301/400*2 с заменой ЗТП на КТП 400/*2 кВА | F202: 0.75 | G202: / | H202: 0.8 | I202: 2020 | J202: 2020 | K202: 3.3 | P202: 0 | R202: 0 | U202: 0 | W202: 0 | Z202: 0 | AB202: 0 | AE202: 0 | AG202: 0 | AJ202: 0.75 | AK202: / | AL202: 0.8 | AO202: 0.75 | AP202: / | AQ202: 0.8 | AR202: 0 | AS202: 0 | AT202: 0 | AU202: 0 | AV202: 2.796610169 | AW202: 2.796610169
A203: 182 | B203: Реконструкция ВЛ-0,4 кВ от КТП КШК 506/250 кВА с заменой КТП | F203: 2.7 | G203: / | H203: 0.25 | I203: 2020 | J203: 2020 | K203: 8.76 | P203: 0 | R203: 0 | U203: 0 | W203: 0 | Z203: 0 | AB203: 0 | AE203: 0 | AG203: 0 | AJ203: 2.7 | AK203: / | AL203: 0.25 | AO203: 2.7 | AP203: / | AQ203: 0.25 | AR203: 0 | AS203: 0 | AT203: 0 | AU203: 0 | AV203: 7.423728814 | AW203: 7.423728814
... 235 more rows

Sheet приложение 1.3
BJ2: Приложение № 1.3
BI3: к приказу Минэнерго России
BI4: от «24» марта 2010 г. № 114
BH7: Утверждаю
BG8: Генеральный директор АО " ССК"
BF9: Мухаметшин В.С.
BG11: «___»______________ 2016 года
BG12: М.П.
A13: Прогноз ввода/вывода объектов АО "Самарская сетевая компания" на 2016 - 2020 г.г.
A15: № | B15: Наименование объекта | C15: Ввод мощностей* | I15: Вывод мощностей | AA15: Первоначальная стоимость вводимых основных средств (Без НДС)** | AB15: Ввод основных средств
AB16: План 2016 года | AQ16: План 2017 года | AT16: План 2018 года | AW16: План 2019 года | AZ16: План 2020 года | BC16: Итого | BF16: План 2016 года | BK16: План 2017 года | BL16: План 2018 года | BM16: План 2019 года | BN16: План 2020 года | BO16: Итого без НДС
C17: МВт/км/МВА | I17: км/МВА | AB17: I кв. | AE17: II кв. | AH17: III кв. | AK17: IV кв. | AN17: итого | BF17: I кв. | BG17: II кв. | BH17: III кв. | BI17: IV кв. | BJ17: итого
C18: 2016 | D18: 2017 | E18: 2018 | F18: 2019 | G18: 2020 | H18: итого | I18: 2016 | L18: 2017 | O18: 2018 | R18: 2019 | U18: 2020 | X18: итого | AA18: млн. руб. | AB18: км/МВА | BF18: млн. руб.
A19: 1 | B19: 2 | C19: 3 | D19: 4 | E19: 5 | F19: 6 | G19: 7 | H19: 8 | I19: 9 | L19: 10 | O19: 11 | R19: 12 | U19: 13 | X19: 14 | AA19: 15 | AB19: 16 | AE19: 17 | AH19: 18 | AK19: 19 | AN19: 20 | AQ19: 21 | AT19: 22 | AW19: 23 | AZ19: 24 | BC19: 25 | BF19: 26 | BG19: 27 | BH19: 28 | BI19: 29 | BJ19: 30 | BK19: 31 | BL19: 32 | BM19: 33 | BN19: 34 | BO19: 35
B20: ВСЕГО | I20: 216.34 | J20: / | K20: 17.803 | L20: 334 | M20: / | N20: 8.635 | O20: 255.105 | P20: / | Q20: 7.25 | R20: 335.255 | S20: / | T20: 87.413 | U20: 269.237 | V20: / | W20: 7.58 | X20: 1409.937 | Y20: / | Z20: 128.681 | AA20: 13296.88375 | AK20: 264.88 | AL20: / | AM20: 32.34 | AN20: 264.88 | AO20: / | AP20: 32.34 | AQ20: 537.24 | AR20: / | AS20: 80.35 | AT20: 529.375 | AU20: / | AV20: 113.27 | AW20: 500.385 | AX20: / | AY20: 238.459 | AZ20: 504 | BA20: / | BB20: 175.38 | BC20: 2335.88 | BD20: / | BE20: 639.799 | BF20: 0 | BG20: 263.4866721 | BH20: 614.802235 | BI20: 878.2889072 | BJ20: 1756.577814 | BK20: 2898.651847 | BL20: 3199.735424 | BM20: 3486.355932 | BN20: 3759.005508 | BO20: 15100.32653
A21: 1 | B21: Техническое перевооружение и реконструкция | I21: 216.34 | J21: / | K21: 17.803 | L21: 334 | M21: / | N21: 8.635 | O21: 255.105 | P21: / | Q21: 7.25 | R21: 335.255 | S21: / | T21: 87.413 | U21: 269.237 | V21: / | W21: 7.58 | X21: 1409.937 | Y21: / | Z21: 128.681 | AA21: 13296.88375 | AB21: 0 | AC21: 0 | AD21: 0 | AE21: 0 | AF21: 0 | AG21: 0 | AH21: 0 | AI21: 0 | AJ21: 0 | AK21: 216.24 | AL21: / | AM21: 18.18 | AN21: 216.24 | AO21: / | AP21: 18.18 | AQ21: 476.84 | AR21: / | AS21: 71.63 | AT21: 465.975 | AU21: / | AV21: 106.07 | AW21: 436.585 | AX21: / | AY21: 230.519 | AZ21: 450.2 | BA21: / | BB21: 167.84 | BC21: 2045.84 | BD21: / | BE21: 594.239 | BF21: 0 | BG21: 207.2827557 | BH21: 483.6597632 | BI21: 690.9425189 | BJ21: 1381.885038 | BK21: 2578.511847 | BL21: 2828.225424 | BM21: 3102.955932 | BN21: 3405.305508 | BO21: 13296.88375
A22: 1.1. | B22: Энергосбережение и повышение энергетической эффективности | I22: 216.34 | J22: / | K22: 17.803 | L22: 334 | M22: / | N22: 8.635 | O22: 255.105 | P22: / | Q22: 7.25 | R22: 335.255 | S22: / | T22: 87.413 | U22: 269.237 | V22: / | W22: 7.58 | X22: 1409.937 | Y22: / | Z22: 128.681 | AA22: 12912.39529 | AB22: 0 | AC22: 0 | AD22: 0 | AE22: 0 | AF22: 0 | AG22: 0 | AH22: 0 | AI22: 0 | AJ22: 0 | AK22: 216.24 | AL22: / | AM22: 18.18 | AN22: 216.24 | AO22: / | AP22: 18.18 | AQ22: 476.84 | AR22: / | AS22: 71.63 | AT22: 465.975 | AU22: / | AV22: 106.07 | AW22: 436.585 | AX22: / | AY22: 230.519 | AZ22: 450.2 | BA22: / | BB22: 167.84 | BC22: 2045.84 | BD22: / | BE22: 594.239 | BF22: 0 | BG22: 194.9992938 | BH22: 454.9983522 | BI22: 649.997646 | BJ22: 1299.995292 | BK22: 2507.689831 | BL22: 2754.50339 | BM22: 3030.842373 | BN22: 3319.364407 | BO22: 12912.39529
A23: 1 | B23: Алексеевский район
A24: 2 | B24: Реконструкция ВЛ-0,4кВ от КТП А 1917/160 кВА с заменой КТП на 250 кВА | I24: 3 | J24: / | K24: 0.16 | L24: 0 | N24: 0 | O24: 0 | Q24: 0 | R24: 0 | T24: 0 | U24: 0 | W24: 0 | X24: 3 | Y24: / | Z24: 0.16 | AA24: 10.84745763 | AB24: 0 | AD24: 0 | AE24: 0 | AG24: 0 | AH24: 0 | AJ24: 0 | AK24: 3 | AL24: / | AM24: 0.25 | AN24: 3 | AO24: / | AP24: 0.25 | AQ24: 0 | AS24: 0 | AT24: 0 | AV24: 0 | AW24: 0 | AY24: 0 | AZ24: 0 | BB24: 0 | BC24: 3 | BD24: / | BE24: 0.25 | BF24: 0 | BG24: 1.627118644 | BH24: 3.796610169 | BI24: 5.423728814 | BJ24: 10.84745763 | BK24: 0 | BL24: 0 | BM24: 0 | BN24: 0 | BO24: 10.84745763
A25: 3 | B25: Реконструкция ВЛ-10 кВ Ф-17 ПС Алексеевка | I25: 4.6 | J25: / | K25: 0 | L25: 0 | N25: 0 | O25: 0 | Q25: 0 | R25: 0 | T25: 0 | U25: 0 | W25: 0 | X25: 4.6 | Y25: / | Z25: 0 | AA25: 9.05 | AB25: 0 | AD25: 0 | AE25: 0 | AG25: 0 | AH25: 0 | AJ25: 0 | AK25: 4.6 | AL25: / | AM25: 0 | AN25: 4.6 | AO25: / | AP25: 0 | AQ25: 0 | AS25: 0 | AT25: 0 | AV25: 0 | AW25: 0 | AY25: 0 | AZ25: 0 | BB25: 0 | BC25: 4.6 | BD25: / | BE25: 0 | BF25: 0 | BG25: 1.3575 | BH25: 3.1675 | BI25: 4.525 | BJ25: 9.05 | BK25: 0 | BL25: 0 | BM25: 0 | BN25: 0 | BO25: 9.05
A26: 4 | B26: Реконструкция ВЛ-0,4кВ от КТП А 2109/160 кВА с заменой КТП | I26: 0 | K26: 0 | L26: 2.81 | M26: / | N26: 0.16 | O26: 0 | Q26: 0 | R26: 0 | T26: 0 | U26: 0 | W26: 0 | X26: 2.81 | Y26: / | Z26: 0.16 | AA26: 7.684745763 | AB26: 0 | AD26: 0 | AE26: 0 | AG26: 0 | AH26: 0 | AJ26: 0 | AK26: 0 | AM26: 0 | AN26: 0 | AO26: / | AP26: 0 | AQ26: 2.81 | AR26: / | AS26: 0.16 | AT26: 0 | AV26: 0 | AW26: 0 | AY26: 0 | AZ26: 0 | BB26: 0 | BC26: 2.81 | BD26: / | BE26: 0.16 | BF26: 0 | BG26: 0 | BH26: 0 | BI26: 0 | BJ26: 0 | BK26: 7.684745763 | BL26: 0 | BM26: 0 | BN26: 0 | BO26: 7.684745763
A27: 5 | B27: Реконструкция ВЛ-0,4кВ от КТП А 216/250 кВА с заменой КТП | I27: 0 | K27: 0 | L27: 4.52 | M27: / | N27: 0.25 | O27: 0 | Q27: 0 | R27: 0 | T27: 0 | U27: 0 | W27: 0 | X27: 4.52 | Y27: / | Z27: 0.25 | AA27: 11.74237288 | AB27: 0 | AD27: 0 | AE27: 0 | AG27: 0 | AH27: 0 | AJ27: 0 | AK27: 0 | AM27: 0 | AN27: 0 | AO27: / | AP27: 0 | AQ27: 4.52 | AR27: / | AS27: 0.25 | AT27: 0 | AV27: 0 | AW27: 0 | AY27: 0 | AZ27: 0 | BB27: 0 | BC27: 4.52 | BD27: / | BE27: 0.25 | BF27: 0 | BG27: 0 | BH27: 0 | BI27: 0 | BJ27: 0 | BK27: 11.74237288 | BL27: 0 | BM27: 0 | BN27: 0 | BO27: 11.74237288
A28: 6 | B28: Реконструкция ВЛ-0,4кВ от КТП А 207/250 кВА с заменой КТП | I28: 0 | K28: 0 | L28: 0 | N28: 0 | O28: 1.92 | P28: / | Q28: 0.25 | R28: 0 | T28: 0 | U28: 0 | W28: 0 | X28: 1.92 | Y28: / | Z28: 0.25 | AA28: 5.572881356 | AB28: 0 | AD28: 0 | AE28: 0 | AG28: 0 | AH28: 0 | AJ28: 0 | AK28: 0 | AM28: 0 | AN28: 0 | AO28: / | AP28: 0 | AQ28: 0 | AS28: 0 | AT28: 1.92 | AU28: / | AV28: 0.25 | AW28: 0 | AY28: 0 | AZ28: 0 | BB28: 0 | BC28: 1.92 | BD28: / | BE28: 0.25 | BF28: 0 | BG28: 0 | BH28: 0 | BI28: 0 | BJ28: 0 | BK28: 0 | BL28: 5.572881356 | BM28: 0 | BN28: 0 | BO28: 5.572881356
A29: 7 | B29: Реконструкция ВЛ-0,4кВ от КТП А 203/250 кВА с заменой КТП | I29: 0 | K29: 0 | L29: 0 | N29: 0 | O29: 4.67 | P29: / | Q29: 0.25 | R29: 0 | T29: 0 | U29: 0 | W29: 0 | X29: 4.67 | Y29: / | Z29: 0.25 | AA29: 12.09830508 | AB29: 0 | AD29: 0 | AE29: 0 | AG29: 0 | AH29: 0 | AJ29: 0 | AK29: 0 | AM29: 0 | AN29: 0 | AO29: / | AP29: 0 | AQ29: 0 | AS29: 0 | AT29: 4.67 | AU29: / | AV29: 0.25 | AW29: 0 | AY29: 0 | AZ29: 0 | BB29: 0 | BC29: 4.67 | BD29: / | BE29: 0.25 | BF29: 0 | BG29: 0 | BH29: 0 | BI29: 0 | BJ29: 0 | BK29: 0 | BL29: 12.09830508 | BM29: 0 | BN29: 0 | BO29: 12.09830508
A30: 8 | B30: Реконструкция ВЛ-0,4кВ от КТП А 2101/160 кВА с заменой КТП | I30: 0 | K30: 0 | L30: 0 | N30: 0 | O30: 0 | Q30: 0 | R30: 2.92 | S30: / | T30: 0.16 | U30: 0 | W30: 0 | X30: 2.92 | Y30: / | Z30: 0.16 | AA30: 7.945762712 | AB30: 0 | AD30: 0 | AE30: 0 | AG30: 0 | AH30: 0 | AJ30: 0 | AK30: 0 | AM30: 0 | AN30: 0 | AO30: / | AP30: 0 | AQ30: 0 | AS30: 0 | AT30: 0 | AV30: 0 | AW30: 2.92 | AX30: / | AY30: 0.16 | AZ30: 0 | BB30: 0 | BC30: 2.92 | BD30: / | BE30: 0.16 | BF30: 0 | BG30: 0 | BH30: 0 | BI30: 0 | BJ30: 0 | BK30: 0 | BL30: 0 | BM30: 7.945762712 | BN30: 0 | BO30: 7.945762712
A31: 9 | B31: Реконструкция ВЛ-0,4кВ от КТП А 217/400 кВА с заменой КТП | I31: 0 | K31: 0 | L31: 0 | N31: 0 | O31: 0 | Q31: 0 | R31: 3.08 | S31: / | T31: 0.4 | U31: 0 | W31: 0 | X31: 3.08 | Y31: / | Z31: 0.4 | AA31: 8.325423729 | AB31: 0 | AD31: 0 | AE31: 0 | AG31: 0 | AH31: 0 | AJ31: 0 | AK31: 0 | AM31: 0 | AN31: 0 | AO31: / | AP31: 0 | AQ31: 0 | AS31: 0 | AT31: 0 | AV31: 0 | AW31: 3.08 | AX31: / | AY31: 0.4 | AZ31: 0 | BB31: 0 | BC31: 3.08 | BD31: / | BE31: 0.4 | BF31: 0 | BG31: 0 | BH31: 0 | BI31: 0 | BJ31: 0 | BK31: 0 | BL31: 0 | BM31: 8.325423729 | BN31: 0 | BO31: 8.325423729
A32: 10 | B32: Реконструкция ВЛ-0,4кВ от КТП А 2003/400 кВА с заменой КТП | I32: 0 | K32: 0 | L32: 0 | N32: 0 | O32: 0 | Q32: 0 | R32: 0 | T32: 0 | U32: 1.035 | V32: / | W32: 0.4 | X32: 1.035 | Y32: / | Z32: 0.4 | AA32: 3.472881356 | AB32: 0 | AD32: 0 | AE32: 0 | AG32: 0 | AH32: 0 | AJ32: 0 | AK32: 0 | AM32: 0 | AN32: 0 | AO32: / | AP32: 0 | AQ32: 0 | AS32: 0 | AT32: 0 | AV32: 0 | AW32: 0 | AY32: 0 | AZ32: 1.035 | BA32: / | BB32: 0.4 | BC32: 1.035 | BD32: / | BE32: 0.4 | BF32: 0 | BG32: 0 | BH32: 0 | BI32: 0 | BJ32: 0 | BK32: 0 | BL32: 0 | BM32: 0 | BN32: 3.472881356 | BO32: 3.472881356
A33: 11 | B33: Реконструкция ВЛ-0,4кВ от КТП А 2110/160 кВА с заменой КТП | I33: 0 | K33: 0 | L33: 0 | N33: 0 | O33: 0 | Q33: 0 | R33: 0 | T33: 0 | U33: 1.6 | V33: / | W33: 0.16 | X33: 1.6 | Y33: / | Z33: 0.16 | AA33: 4.813559322 | AB33: 0 | AD33: 0 | AE33: 0 | AG33: 0 | AH33: 0 | AJ33: 0 | AK33: 0 | AM33: 0 | AN33: 0 | AO33: / | AP33: 0 | AQ33: 0 | AS33: 0 | AT33: 0 | AV33: 0 | AW33: 0 | AY33: 0 | AZ33: 1.6 | BA33: / | BB33: 0.16 | BC33: 1.6 | BD33: / | BE33: 0.16 | BF33: 0 | BG33: 0 | BH33: 0 | BI33: 0 | BJ33: 0 | BK33: 0 | BL33: 0 | BM33: 0 | BN33: 4.813559322 | BO33: 4.813559322
A34: 12 | B34: Больше-Черниговский район | I34: 0 | K34: 0 | L34: 0 | N34: 0 | O34: 0 | Q34: 0 | R34: 0 | T34: 0 | U34: 0 | W34: 0 | X34: 0 | Y34: / | Z34: 0 | AA34: 0 | AB34: 0 | AD34: 0 | AE34: 0 | AG34: 0 | AH34: 0 | AJ34: 0 | AK34: 0 | AM34: 0 | AN34: 0 | AO34: / | AP34: 0 | AQ34: 0 | AS34: 0 | AT34: 0 | AV34: 0 | AW34: 0 | AY34: 0 | AZ34: 0 | BB34: 0 | BC34: 0 | BD34: / | BE34: 0 | BF34: 0 | BG34: 0 | BH34: 0 | BI34: 0 | BJ34: 0 | BK34: 0 | BL34: 0 | BM34: 0 | BN34: 0 | BO34: 0
A35: 13 | B35: Реконструкция ВЛ-0,4кВ от ЗТП 1208/400 кВА с заменой ЗТП на КТП | I35: 1.58 | J35: / | K35: 0.4 | L35: 0 | N35: 0 | O35: 0 | Q35: 0 | R35: 0 | T35: 0 | U35: 0 | W35: 0 | X35: 1.58 | Y35: / | Z35: 0.4 | AA35: 5.996610169 | AB35: 0 | AD35: 0 | AE35: 0 | AG35: 0 | AH35: 0 | AJ35: 0 | AK35: 1.58 | AL35: / | AM35: 0.4 | AN35: 1.58 | AO35: / | AP35: 0.4 | AQ35: 0 | AS35: 0 | AT35: 0 | AV35: 0 | AW35: 0 | AY35: 0 | AZ35: 0 | BB35: 0 | BC35: 1.58 | BD35: / | BE35: 0.4 | BF35: 0 | BG35: 0.8994915254 | BH35: 2.098813559 | BI35: 2.998305085 | BJ35: 5.996610169 | BK35: 0 | BL35: 0 | BM35: 0 | BN35: 0 | BO35: 5.996610169
A36: 14 | B36: Реконструкция ВЛ-0,4кВ от КТП 1204/400 кВА с заменой КТП | I36: 0 | K36: 0 | L36: 0.7 | M36: / | N36: 0.4 | O36: 0 | Q36: 0 | R36: 0 | T36: 0 | U36: 0 | W36: 0 | X36: 0.7 | Y36: / | Z36: 0.4 | AA36: 2.677966102 | AB36: 0 | AD36: 0 | AE36: 0 | AG36: 0 | AH36: 0 | AJ36: 0 | AK36: 0 | AM36: 0 | AN36: 0 | AO36: / | AP36: 0 | AQ36: 0.7 | AR36: / | AS36: 0.4 | AT36: 0 | AV36: 0 | AW36: 0 | AY36: 0 | AZ36: 0 | BB36: 0 | BC36: 0.7 | BD36: / | BE36: 0.4 | BF36: 0 | BG36: 0 | BH36: 0 | BI36: 0 | BJ36: 0 | BK36: 2.677966102 | BL36: 0 | BM36: 0 | BN36: 0 | BO36: 2.677966102
A37: 15 | B37: Реконструкция ВЛ-0,4кВ от КТП 1205/400 кВА с заменой КТП | I37: 0 | K37: 0 | L37: 1.68 | M37: / | N37: 0.4 | O37: 0 | Q37: 0 | R37: 0 | T37: 0 | U37: 0 | W37: 0 | X37: 1.68 | Y37: / | Z37: 0.4 | AA37: 5.003389831 | AB37: 0 | AD37: 0 | AE37: 0 | AG37: 0 | AH37: 0 | AJ37: 0 | AK37: 0 | AM37: 0 | AN37: 0 | AO37: / | AP37: 0 | AQ37: 1.68 | AR37: / | AS37: 0.4 | AT37: 0 | AV37: 0 | AW37: 0 | AY37: 0 | AZ37: 0 | BB37: 0 | BC37: 1.68 | BD37: / | BE37: 0.4 | BF37: 0 | BG37: 0 | BH37: 0 | BI37: 0 | BJ37: 0 | BK37: 5.003389831 | BL37: 0 | BM37: 0 | BN37: 0 | BO37: 5.003389831
A38: 16 | B38: Реконструкция ВЛ-0,4кВ от КТП 1206/160 кВА с заменой КТП | I38: 0 | K38: 0 | L38: 2.2 | M38: / | N38: 0.16 | O38: 0 | Q38: 0 | R38: 0 | T38: 0 | U38: 0 | W38: 0 | X38: 2.2 | Y38: / | Z38: 0.16 | AA38: 6.237288136 | AB38: 0 | AD38: 0 | AE38: 0 | AG38: 0 | AH38: 0 | AJ38: 0 | AK38: 0 | AM38: 0 | AN38: 0 | AO38: / | AP38: 0 | AQ38: 2.2 | AR38: / | AS38: 0.16 | AT38: 0 | AV38: 0 | AW38: 0 | AY38: 0 | AZ38: 0 | BB38: 0 | BC38: 2.2 | BD38: / | BE38: 0.16 | BF38: 0 | BG38: 0 | BH38: 0 | BI38: 0 | BJ38: 0 | BK38: 6.237288136 | BL38: 0 | BM38: 0 | BN38: 0 | BO38: 6.237288136
A39: 17 | B39: Реконструкция ВЛ-0,4кВ от КТП 415/250 кВА с заменой КТП | L39: 0.8 | M39: / | N39: 0.25 | O39: 0 | Q39: 0 | R39: 0 | T39: 0 | U39: 0 | W39: 0 | X39: 0.8 | Y39: / | Z39: 0.25 | AA39: 2.915254237 | AB39: 0 | AD39: 0 | AE39: 0 | AG39: 0 | AH39: 0 | AJ39: 0 | AK39: 0 | AM39: 0 | AN39: 0 | AO39: / | AP39: 0 | AQ39: 0.8 | AR39: / | AS39: 0.25 | AT39: 0 | AV39: 0 | AW39: 0 | AY39: 0 | AZ39: 0 | BB39: 0 | BC39: 0.8 | BD39: / | BE39: 0.25 | BF39: 0 | BG39: 0 | BH39: 0 | BI39: 0 | BJ39: 0 | BK39: 2.915254237 | BL39: 0 | BM39: 0 | BN39: 0 | BO39: 2.915254237
A40: 18 | B40: Реконструкция ВЛ-0,4кВ от КТП 709/250 кВА с заменой КТП | I40: 0 | K40: 0 | L40: 0 | N40: 0 | O40: 0.42 | P40: / | Q40: 0.25 | R40: 0 | T40: 0 | U40: 0 | W40: 0 | X40: 0.42 | Y40: / | Z40: 0.25 | AA40: 2.013559322 | AB40: 0 | AD40: 0 | AE40: 0 | AG40: 0 | AH40: 0 | AJ40: 0 | AK40: 0 | AM40: 0 | AN40: 0 | AO40: / | AP40: 0 | AQ40: 0 | AS40: 0 | AT40: 0.42 | AU40: / | AV40: 0.25 | AW40: 0 | AY40: 0 | AZ40: 0 | BB40: 0 | BC40: 0.42 | BD40: / | BE40: 0.25 | BF40: 0 | BG40: 0 | BH40: 0 | BI40: 0 | BJ40: 0 | BK40: 0 | BL40: 2.013559322 | BM40: 0 | BN40: 0 | BO40: 2.013559322
A41: 19 | B41: Реконструкция ВЛ-0,4кВ от КТП 501/320 кВА с заменой КТП | I41: 0 | K41: 0 | L41: 0 | N41: 0 | O41: 0.42 | P41: / | Q41: 0.32 | R41: 0 | T41: 0 | U41: 0 | W41: 0 | X41: 0.42 | Y41: / | Z41: 0.32 | AA41: 2.013559322 | AB41: 0 | AD41: 0 | AE41: 0 | AG41: 0 | AH41: 0 | AJ41: 0 | AK41: 0 | AM41: 0 | AN41: 0 | AO41: / | AP41: 0 | AQ41: 0 | AS41: 0 | AT41: 0.42 | AU41: / | AV41: 0.32 | AW41: 0 | AY41: 0 | AZ41: 0 | BB41: 0 | BC41: 0.42 | BD41: / | BE41: 0.32 | BF41: 0 | BG41: 0 | BH41: 0 | BI41: 0 | BJ41: 0 | BK41: 0 | BL41: 2.013559322 | BM41: 0 | BN41: 0 | BO41: 2.013559322
A42: 20 | B42: Реконструкция ВЛ-0,4кВ от КТП 809/100 кВА с заменой КТП | I42: 0 | K42: 0 | L42: 0 | N42: 0 | O42: 0 | Q42: 0 | R42: 1.36 | S42: / | T42: 0.1 | U42: 0 | W42: 0 | X42: 1.36 | Y42: / | Z42: 0.1 | AA42: 4.244067797 | AB42: 0 | AD42: 0 | AE42: 0 | AG42: 0 | AH42: 0 | AJ42: 0 | AK42: 0 | AM42: 0 | AN42: 0 | AO42: / | AP42: 0 | AQ42: 0 | AS42: 0 | AT42: 0 | AV42: 0 | AW42: 1.36 | AX42: / | AY42: 0.1 | AZ42: 0 | BB42: 0 | BC42: 1.36 | BD42: / | BE42: 0.1 | BF42: 0 | BG42: 0 | BH42: 0 | BI42: 0 | BJ42: 0 | BK42: 0 | BL42: 0 | BM42: 4.244067797 | BN42: 0 | BO42: 4.244067797
A43: 21 | B43: Реконструкция ВЛ-0,4кВ от КТП 201/400 кВА с заменой КТП | I43: 0 | K43: 0 | L43: 0 | N43: 0 | O43: 0 | Q43: 0 | R43: 1.6 | S43: / | T43: 0.4 | U43: 0 | W43: 0 | X43: 1.6 | Y43: / | Z43: 0.4 | AA43: 4.813559322 | AB43: 0 | AD43: 0 | AE43: 0 | AG43: 0 | AH43: 0 | AJ43: 0 | AK43: 0 | AM43: 0 | AN43: 0 | AO43: / | AP43: 0 | AQ43: 0 | AS43: 0 | AT43: 0 | AV43: 0 | AW43: 1.6 | AX43: / | AY43: 0.4 | AZ43: 0 | BB43: 0 | BC43: 1.6 | BD43: / | BE43: 0.4 | BF43: 0 | BG43: 0 | BH43: 0 | BI43: 0 | BJ43: 0 | BK43: 0 | BL43: 0 | BM43: 4.813559322 | BN43: 0 | BO43: 4.813559322
A44: 22 | B44: Реконструкция ВЛ-0,4кВ от КТП 109/400 кВА с заменой КТП | I44: 0 | K44: 0 | L44: 0 | N44: 0 | O44: 0 | Q44: 0 | R44: 1.22 | S44: / | T44: 0.4 | U44: 0 | W44: 0 | X44: 1.22 | Y44: / | Z44: 0.4 | AA44: 3.911864407 | AB44: 0 | AD44: 0 | AE44: 0 | AG44: 0 | AH44: 0 | AJ44: 0 | AK44: 0 | AM44: 0 | AN44: 0 | AO44: / | AP44: 0 | AQ44: 0 | AS44: 0 | AT44: 0 | AV44: 0 | AW44: 1.22 | AX44: / | AY44: 0.4 | AZ44: 0 | BB44: 0 | BC44: 1.22 | BD44: / | BE44: 0.4 | BF44: 0 | BG44: 0 | BH44: 0 | BI44: 0 | BJ44: 0 | BK44: 0 | BL44: 0 | BM44: 3.911864407 | BN44: 0 | BO44: 3.911864407
A45: 23 | B45: Реконструкция ВЛ-0,4кВ от КТП 905/400 кВА с заменой КТП | I45: 0 | K45: 0 | L45: 0 | N45: 0 | O45: 0 | Q45: 0 | R45: 1.62 | S45: / | T45: 0.4 | U45: 0 | W45: 0 | X45: 1.62 | Y45: / | Z45: 0.4 | AA45: 4.861016949 | AB45: 0 | AD45: 0 | AE45: 0 | AG45: 0 | AH45: 0 | AJ45: 0 | AK45: 0 | AM45: 0 | AN45: 0 | AO45: / | AP45: 0 | AQ45: 0 | AS45: 0 | AT45: 0 | AV45: 0 | AW45: 1.62 | AX45: / | AY45: 0.4 | AZ45: 0 | BB45: 0 | BC45: 1.62 | BD45: / | BE45: 0.4 | BF45: 0 | BG45: 0 | BH45: 0 | BI45: 0 | BJ45: 0 | BK45: 0 | BL45: 0 | BM45: 4.861016949 | BN45: 0 | BO45: 4.861016949
A46: 24 | B46: Реконструкция ВЛ-0,4кВ от КТП 114/400 кВА с заменой КТП | I46: 0 | K46: 0 | L46: 0 | N46: 0 | O46: 0 | Q46: 0 | R46: 0 | T46: 0 | U46: 0.72 | V46: / | W46: 0.4 | X46: 0.72 | Y46: / | Z46: 0.4 | AA46: 2.725423729 | AB46: 0 | AD46: 0 | AE46: 0 | AG46: 0 | AH46: 0 | AJ46: 0 | AK46: 0 | AM46: 0 | AN46: 0 | AO46: / | AP46: 0 | AQ46: 0 | AS46: 0 | AT46: 0 | AV46: 0 | AW46: 0 | AY46: 0 | AZ46: 0.72 | BA46: / | BB46: 0.4 | BC46: 0.72 | BD46: / | BE46: 0.4 | BF46: 0 | BG46: 0 | BH46: 0 | BI46: 0 | BJ46: 0 | BK46: 0 | BL46: 0 | BM46: 0 | BN46: 2.725423729 | BO46: 2.725423729
A47: 25 | B47: Реконструкция ВЛ-0,4кВ от КТП 407/400 кВА с заменой КТП | I47: 0 | K47: 0 | L47: 0 | N47: 0 | O47: 0 | Q47: 0 | R47: 0 | T47: 0 | U47: 0.52 | V47: / | W47: 0.4 | X47: 0.52 | Y47: / | Z47: 0.4 | AA47: 2.250847458 | AB47: 0 | AD47: 0 | AE47: 0 | AG47: 0 | AH47: 0 | AJ47: 0 | AK47: 0 | AM47: 0 | AN47: 0 | AO47: / | AP47: 0 | AQ47: 0 | AS47: 0 | AT47: 0 | AV47: 0 | AW47: 0 | AY47: 0 | AZ47: 0.52 | BA47: / | BB47: 0.4 | BC47: 0.52 | BD47: / | BE47: 0.4 | BF47: 0 | BG47: 0 | BH47: 0 | BI47: 0 | BJ47: 0 | BK47: 0 | BL47: 0 | BM47: 0 | BN47: 2.250847458 | BO47: 2.250847458
A48: 26 | B48: Реконструкция ВЛ-0,4кВ от КТП 122/400 кВА с заменой КТП | I48: 0 | K48: 0 | L48: 0 | N48: 0 | O48: 0 | Q48: 0 | R48: 0 | T48: 0 | U48: 1.9 | V48: / | W48: 0.4 | X48: 1.9 | Y48: / | Z48: 0.4 | AA48: 2.250847458 | AB48: 0 | AD48: 0 | AE48: 0 | AG48: 0 | AH48: 0 | AJ48: 0 | AK48: 0 | AM48: 0 | AN48: 0 | AO48: / | AP48: 0 | AQ48: 0 | AS48: 0 | AT48: 0 | AV48: 0 | AW48: 0 | AY48: 0 | AZ48: 1.9 | BA48: / | BB48: 0.4 | BC48: 1.9 | BD48: / | BE48: 0.4 | BF48: 0 | BG48: 0 | BH48: 0 | BI48: 0 | BJ48: 0 | BK48: 0 | BL48: 0 | BM48: 0 | BN48: 2.250847458 | BO48: 2.250847458
A49: 27 | B49: Реконструкция ВЛ-0,4кВ от КТП 906/250 кВА с заменой КТП | I49: 0 | K49: 0 | L49: 0 | N49: 0 | O49: 0 | Q49: 0 | R49: 0 | T49: 0 | U49: 3.85 | V49: / | W49: 0.25 | X49: 3.85 | Y49: / | Z49: 0.25 | AA49: 10.15254237 | AB49: 0 | AD49: 0 | AE49: 0 | AG49: 0 | AH49: 0 | AJ49: 0 | AK49: 0 | AM49: 0 | AN49: 0 | AO49: / | AP49: 0 | AQ49: 0 | AS49: 0 | AT49: 0 | AV49: 0 | AW49: 0 | AY49: 0 | AZ49: 3.85 | BA49: / | BB49: 0.25 | BC49: 3.85 | BD49: / | BE49: 0.25 | BF49: 0 | BG49: 0 | BH49: 0 | BI49: 0 | BJ49: 0 | BK49: 0 | BL49: 0 | BM49: 0 | BN49: 10.15254237 | BO49: 10.15254237
A50: 28 | B50: Волжский район | I50: 0 | K50: 0 | L50: 0 | N50: 0 | O50: 0 | Q50: 0 | R50: 0 | T50: 0 | U50: 0 | W50: 0 | X50: 0 | Y50: / | Z50: 0 | AA50: 0 | AB50: 0 | AD50: 0 | AE50: 0 | AG50: 0 | AH50: 0 | AJ50: 0 | AK50: 0 | AM50: 0 | AN50: 0 | AO50: / | AP50: 0 | AQ50: 0 | AS50: 0 | AT50: 0 | AV50: 0 | AW50: 0 | AY50: 0 | AZ50: 0 | BB50: 0 | BC50: 0 | BD50: / | BE50: 0 | BF50: 0 | BG50: 0 | BH50: 0 | BI50: 0 | BJ50: 0 | BK50: 0 | BL50: 0 | BM50: 0 | BN50: 0 | BO50: 0
A51: 29 | B51: Повышение надежности энергоснабжения электросетевого района с. Лопатино | I51: 0 | J51: / | K51: 3.793 | L51: 0 | N51: 0 | O51: 0 | Q51: 0 | R51: 0 | T51: 0 | U51: 0 | W51: 0 | X51: 0 | Y51: / | Z51: 3.793 | AA51: 11.08135593 | AB51: 0 | AD51: 0 | AE51: 0 | AG51: 0 | AH51: 0 | AJ51: 0 | AK51: 0 | AM51: 0 | AN51: 0 | AO51: / | AP51: 0 | AQ51: 0 | AS51: 0 | AT51: 0 | AV51: 0 | AW51: 0 | AY51: 0 | AZ51: 0 | BB51: 0 | BC51: 0 | BD51: / | BE51: 0 | BF51: 0 | BG51: 1.66220339 | BH51: 3.878474576 | BI51: 5.540677966 | BJ51: 11.08135593 | BK51: 0 | BL51: 0 | BM51: 0 | BN51: 0 | BO51: 11.08135593
A52: 30 | B52: Реконструкция ВЛ-0,4кВ от КТП Р 603/250 кВА с заменой КТП | I52: 2 | J52: / | K52: 0.25 | L52: 0 | N52: 0 | O52: 0 | Q52: 0 | R52: 0 | T52: 0 | U52: 0 | W52: 0 | X52: 2 | Y52: / | Z52: 0.25 | AA52: 7.191525424 | AB52: 0 | AD52: 0 | AE52: 0 | AG52: 0 | AH52: 0 | AJ52: 0 | AK52: 2 | AL52: / | AM52: 0.25 | AN52: 2 | AO52: / | AP52: 0.25 | AQ52: 0 | AS52: 0 | AT52: 0 | AV52: 0 | AW52: 0 | AY52: 0 | AZ52: 0 | BB52: 0 | BC52: 2 | BD52: / | BE52: 0.25 | BF52: 0 | BG52: 1.078728814 | BH52: 2.517033898 | BI52: 3.595762712 | BJ52: 7.191525424 | BK52: 0 | BL52: 0 | BM52: 0 | BN52: 0 | BO52: 7.191525424
A53: 31 | B53: Реконструкция ВЛ-6 кВ Кур-9 | I53: 1.1 | J53: / | K53: 0 | L53: 0 | N53: 0 | O53: 0 | Q53: 0 | R53: 0 | T53: 0 | U53: 0 | W53: 0 | X53: 1.1 | Y53: / | Z53: 0 | AA53: 3.03559322 | AB53: 0 | AD53: 0 | AE53: 0 | AG53: 0 | AH53: 0 | AJ53: 0 | AK53: 1.1 | AL53: / | AM53: 0 | AN53: 1.1 | AO53: / | AP53: 0 | AQ53: 0 | AS53: 0 | AT53: 0 | AV53: 0 | AW53: 0 | AY53: 0 | AZ53: 0 | BB53: 0 | BC53: 1.1 | BD53: / | BE53: 0 | BF53: 0 | BG53: 0.4553389831 | BH53: 1.062457627 | BI53: 1.51779661 | BJ53: 3.03559322 | BK53: 0 | BL53: 0 | BM53: 0 | BN53: 0 | BO53: 3.03559322
A54: 32 | B54: Реконструкция ВЛ-6 кВ Кур-12 | I54: 0.17 | J54: / | K54: 0 | L54: 0 | N54: 0 | O54: 0 | Q54: 0 | R54: 0 | T54: 0 | U54: 0 | W54: 0 | X54: 0.17 | Y54: / | Z54: 0 | AA54: 0.5 | AB54: 0 | AD54: 0 | AE54: 0 | AG54: 0 | AH54: 0 | AJ54: 0 | AK54: 0.17 | AL54: / | AM54: 0 | AN54: 0.17 | AO54: / | AP54: 0 | AQ54: 0 | AS54: 0 | AT54: 0 | AV54: 0 | AW54: 0 | AY54: 0 | AZ54: 0 | BB54: 0 | BC54: 0.17 | BD54: / | BE54: 0 | BF54: 0 | BG54: 0.075 | BH54: 0.175 | BI54: 0.25 | BJ54: 0.5 | BK54: 0 | BL54: 0 | BM54: 0 | BN54: 0 | BO54: 0.5
A55: 33 | B55: Реконструкция ВЛ-0,4кВ от ЗТП Кур 1621/160 кВА с заменой ЗТП на КТП 400 кВА | I55: 0.3 | J55: / | K55: 0.16 | L55: 0 | N55: 0 | O55: 0 | Q55: 0 | R55: 0 | T55: 0 | U55: 0 | W55: 0 | X55: 0.3 | Y55: / | Z55: 0.16 | AA55: 2.628813559 | AB55: 0 | AD55: 0 | AE55: 0 | AG55: 0 | AH55: 0 | AJ55: 0 | AK55: 0.3 | AL55: / | AM55: 0.4 | AN55: 0.3 | AO55: / | AP55: 0.4 | AQ55: 0 | AS55: 0 | AT55: 0 | AV55: 0 | AW55: 0 | AY55: 0 | AZ55: 0 | BB55: 0 | BC55: 0.3 | BD55: / | BE55: 0.4 | BF55: 0 | BG55: 0.3943220339 | BH55: 0.9200847458 | BI55: 1.31440678 | BJ55: 2.628813559 | BK55: 0 | BL55: 0 | BM55: 0 | BN55: 0 | BO55: 2.628813559
A56: 34 | B56: Реконструкция ВЛ-10 кВ Ф-3 ПС Выползово | I56: 1.8 | J56: / | K56: 0 | L56: 0 | N56: 0 | O56: 0 | Q56: 0 | R56: 0 | T56: 0 | U56: 0 | W56: 0 | X56: 1.8 | Y56: / | Z56: 0 | AA56: 4.216101695 | AB56: 0 | AD56: 0 | AE56: 0 | AG56: 0 | AH56: 0 | AJ56: 0 | AK56: 1.8 | AL56: / | AM56: 0 | AN56: 1.8 | AO56: / | AP56: 0 | AQ56: 0 | AS56: 0 | AT56: 0 | AV56: 0 | AW56: 0 | AY56: 0 | AZ56: 0 | BB56: 0 | BC56: 1.8 | BD56: / | BE56: 0 | BF56: 0 | BG56: 0.6324152542 | BH56: 1.475635593 | BI56: 2.108050847 | BJ56: 4.216101695 | BK56: 0 | BL56: 0 | BM56: 0 | BN56: 0 | BO56: 4.216101695
A57: 35 | B57: Реконструкция ВЛ-0,4 кВ от КТП Р 306/250 кВА с заменой КТП | I57: 3.5 | J57: / | K57: 0.25 | L57: 0 | N57: 0 | O57: 0 | Q57: 0 | R57: 0 | T57: 0 | U57: 0 | W57: 0 | X57: 3.5 | Y57: / | Z57: 0.25 | AA57: 7.07 | AB57: 0 | AD57: 0 | AE57: 0 | AG57: 0 | AH57: 0 | AJ57: 0 | AK57: 3.5 | AL57: / | AM57: 0.25 | AN57: 3.5 | AO57: / | AP57: 0.25 | AQ57: 0 | AS57: 0 | AT57: 0 | AV57: 0 | AW57: 0 | AY57: 0 | AZ57: 0 | BB57: 0 | BC57: 3.5 | BD57: / | BE57: 0.25 | BF57: 0 | BG57: 1.0605 | BH57: 2.4745 | BI57: 3.535 | BJ57: 7.07 | BK57: 0 | BL57: 0 | BM57: 0 | BN57: 0 | BO57: 7.07
A58: 36 | B58: Реконструкция ВЛ-0,4 кВ от КТП Р 213/100 кВА с заменой КТП на 160 кВА | I58: 0.95 | J58: / | K58: 0.1 | L58: 0 | N58: 0 | O58: 0 | Q58: 0 | R58: 0 | T58: 0 | U58: 0 | W58: 0 | X58: 0.95 | Y58: / | Z58: 0.1 | AA58: 2.738983051 | AB58: 0 | AD58: 0 | AE58: 0 | AG58: 0 | AH58: 0 | AJ58: 0 | AK58: 0.95 | AL58: / | AM58: 0.16 | AN58: 0.95 | AO58: / | AP58: 0.16 | AQ58: 0 | AS58: 0 | AT58: 0 | AV58: 0 | AW58: 0 | AY58: 0 | AZ58: 0 | BB58: 0 | BC58: 0.95 | BD58: / | BE58: 0.16 | BF58: 0 | BG58: 0.4108474576 | BH58: 0.9586440678 | BI58: 1.369491525 | BJ58: 2.738983051 | BK58: 0 | BL58: 0 | BM58: 0 | BN58: 0 | BO58: 2.738983051
A59: 37 | B59: Реконструкция ВЛ-10 кВ Ф-21 от КТП 2106 до оп. №2100/26 с заменой КТП на 250 кВА | I59: 1 | J59: / | K59: 0.16 | L59: 0 | N59: 0 | O59: 0 | Q59: 0 | R59: 0 | T59: 0 | U59: 0 | W59: 0 | X59: 1 | Y59: / | Z59: 0.16 | AA59: 2.966949153 | AB59: 0 | AD59: 0 | AE59: 0 | AG59: 0 | AH59: 0 | AJ59: 0 | AK59: 1 | AL59: / | AM59: 0.25 | AN59: 1 | AO59: / | AP59: 0.25 | AQ59: 0 | AS59: 0 | AT59: 0 | AV59: 0 | AW59: 0 | AY59: 0 | AZ59: 0 | BB59: 0 | BC59: 1 | BD59: / | BE59: 0.25 | BF59: 0 | BG59: 0.4450423729 | BH59: 1.038432203 | BI59: 1.483474576 | BJ59: 2.966949153 | BK59: 0 | BL59: 0 | BM59: 0 | BN59: 0 | BO59: 2.966949153
A60: 38 | B60: Реконструкция ВЛ-10 кВ Ф-23 от КТП 2309 до оп №2300/8 с заменой КТП на 630 кВА | I60: 0.34 | J60: / | K60: 0.4 | L60: 0 | N60: 0 | O60: 0 | Q60: 0 | R60: 0 | T60: 0 | U60: 0 | W60: 0 | X60: 0.34 | Y60: / | Z60: 0.4 | AA60: 2.838135593 | AB60: 0 | AD60: 0 | AE60: 0 | AG60: 0 | AH60: 0 | AJ60: 0 | AK60: 0.34 | AL60: / | AM60: 0.63 | AN60: 0.34 | AO60: / | AP60: 0.63 | AQ60: 0 | AS60: 0 | AT60: 0 | AV60: 0 | AW60: 0 | AY60: 0 | AZ60: 0 | BB60: 0 | BC60: 0.34 | BD60: / | BE60: 0.63 | BF60: 0 | BG60: 0.425720339 | BH60: 0.9933474576 | BI60: 1.419067797 | BJ60: 2.838135593 | BK60: 0 | BL60: 0 | BM60: 0 | BN60: 0 | BO60: 2.838135593
A61: 39 | B61: Реконструкция ВЛ-6 кВ Ф-6 от ТП 603 до оп. № 613/1 с заменой КТП на 250 кВА | I61: 0.05 | J61: / | K61: 0.16 | L61: 0 | N61: 0 | O61: 0 | Q61: 0 | R61: 0 | T61: 0 | U61: 0 | W61: 0 | X61: 0.05 | Y61: / | Z61: 0.16 | AA61: 1.327118644 | AB61: 0 | AD61: 0 | AE61: 0 | AG61: 0 | AH61: 0 | AJ61: 0 | AK61: 0.05 | AL61: / | AM61: 0.25 | AN61: 0.05 | AO61: / | AP61: 0.25 | AQ61: 0 | AS61: 0 | AT61: 0 | AV61: 0 | AW61: 0 | AY61: 0 | AZ61: 0 | BB61: 0 | BC61: 0.05 | BD61: / | BE61: 0.25 | BF61: 0 | BG61: 0.1990677966 | BH61: 0.4644915254 | BI61: 0.663559322 | BJ61: 1.327118644 | BK61: 0 | BL61: 0 | BM61: 0 | BN61: 0 | BO61: 1.327118644
A62: 40 | B62: Реконструкция ВЛ-6 кВ Ф-2 от ТП Подлесная до опоры № 201/1 с заменой КТП на 400 кВА | I62: 1.05 | J62: / | K62: 0.25 | L62: 0 | N62: 0 | O62: 0 | Q62: 0 | R62: 0 | T62: 0 | U62: 0 | W62: 0 | X62: 1.05 | Y62: / | Z62: 0.25 | AA62: 3.433898305 | AB62: 0 | AD62: 0 | AE62: 0 | AG62: 0 | AH62: 0 | AJ62: 0 | AK62: 1.05 | AL62: / | AM62: 0.4 | AN62: 1.05 | AO62: / | AP62: 0.4 | AQ62: 0 | AS62: 0 | AT62: 0 | AV62: 0 | AW62: 0 | AY62: 0 | AZ62: 0 | BB62: 0 | BC62: 1.05 | BD62: / | BE62: 0.4 | BF62: 0 | BG62: 0.5150847458 | BH62: 1.201864407 | BI62: 1.716949153 | BJ62: 3.433898305 | BK62: 0 | BL62: 0 | BM62: 0 | BN62: 0 | BO62: 3.433898305
A63: 41 | B63: Реконструкция ВЛ-6 кВ Ф-13 от ТП 21 до оп №1301/7 с заменой ТП на КТП 630 кВА и установкой дополнительной КТП 630 кВА | I63: 0.31 | J63: / | K63: 0.25 | L63: 0 | N63: 0 | O63: 0 | Q63: 0 | R63: 0 | T63: 0 | U63: 0 | W63: 0 | X63: 0.31 | Y63: / | Z63: 0.25 | AA63: 3.895762712 | AB63: 0 | AD63: 0 | AE63: 0 | AG63: 0 | AH63: 0 | AJ63: 0 | AK63: 0.31 | AL63: / | AM63: 1.26 | AN63: 0.31 | AO63: / | AP63: 1.26 | AQ63: 0 | AS63: 0 | AT63: 0 | AV63: 0 | AW63: 0 | AY63: 0 | AZ63: 0 | BB63: 0 | BC63: 0.31 | BD63: / | BE63: 1.26 | BF63: 0 | BG63: 0.5843644068 | BH63: 1.363516949 | BI63: 1.947881356 | BJ63: 3.895762712 | BK63: 0 | BL63: 0 | BM63: 0 | BN63: 0 | BO63: 3.895762712
A64: 42 | B64: Реконструкция ВЛ-10 кВ Ф-12 от оп №1200/62 до ТП 1205/250 кВА с заменой КТП 400 кВА | I64: 0.27 | J64: / | K64: 0.25 | L64: 0 | N64: 0 | O64: 0 | Q64: 0 | R64: 0 | T64: 0 | U64: 0 | W64: 0 | X64: 0.27 | Y64: / | Z64: 0.25 | AA64: 2.219491525 | AB64: 0 | AD64: 0 | AE64: 0 | AG64: 0 | AH64: 0 | AJ64: 0 | AK64: 0.27 | AL64: / | AM64: 0.4 | AN64: 0.27 | AO64: / | AP64: 0.4 | AQ64: 0 | AS64: 0 | AT64: 0 | AV64: 0 | AW64: 0 | AY64: 0 | AZ64: 0 | BB64: 0 | BC64: 0.27 | BD64: / | BE64: 0.4 | BF64: 0 | BG64: 0.3329237288 | BH64: 0.7768220339 | BI64: 1.109745763 | BJ64: 2.219491525 | BK64: 0 | BL64: 0 | BM64: 0 | BN64: 0 | BO64: 2.219491525
A65: 43 | B65: Реконструкция ТП 24/160 кВА с заменой на КТП 250 кВА | I65: 0 | J65: / | K65: 0.16 | L65: 0 | N65: 0 | O65: 0 | Q65: 0 | R65: 0 | T65: 0 | U65: 0 | W65: 0 | X65: 0 | Y65: / | Z65: 0.16 | AA65: 0.9466101695 | AB65: 0 | AD65: 0 | AE65: 0 | AG65: 0 | AH65: 0 | AJ65: 0 | AK65: 0 | AL65: / | AM65: 0.25 | AN65: 0 | AO65: / | AP65: 0.25 | AQ65: 0 | AS65: 0 | AT65: 0 | AV65: 0 | AW65: 0 | AY65: 0 | AZ65: 0 | BB65: 0 | BC65: 0 | BD65: / | BE65: 0.25 | BF65: 0 | BG65: 0.1419915254 | BH65: 0.3313135593 | BI65: 0.4733050847 | BJ65: 0.9466101695 | BK65: 0 | BL65: 0 | BM65: 0 | BN65: 0 | BO65: 0.9466101695
A66: 44 | B66: Реконструкция ВЛ-0,4 кВ от КТП 217 | I66: 4.29 | J66: / | K66: 0 | L66: 0 | N66: 0 | O66: 0 | Q66: 0 | R66: 0 | T66: 0 | U66: 0 | W66: 0 | X66: 4.29 | Y66: / | Z66: 0 | AA66: 13.64745763 | AB66: 0 | AD66: 0 | AE66: 0 | AG66: 0 | AH66: 0 | AJ66: 0 | AK66: 4.29 | AL66: / | AM66: 0 | AN66: 4.29 | AO66: / | AP66: 0 | AQ66: 0 | AS66: 0 | AT66: 0 | AV66: 0 | AW66: 0 | AY66: 0 | AZ66: 0 | BB66: 0 | BC66: 4.29 | BD66: / | BE66: 0 | BF66: 0 | BG66: 2.047118644 | BH66: 4.776610169 | BI66: 6.823728814 | BJ66: 13.64745763 | BK66: 0 | BL66: 0 | BM66: 0 | BN66: 0 | BO66: 13.64745763
A67: 45 | B67: Реконструкция ВЛ-0,4 кВ от ЗТП 15/16 | I67: 4.82 | J67: / | K67: 0 | L67: 0 | N67: 0 | O67: 0 | Q67: 0 | R67: 0 | T67: 0 | U67: 0 | W67: 0 | X67: 4.82 | Y67: / | Z67: 0 | AA67: 10.09576271 | AB67: 0 | AD67: 0 | AE67: 0 | AG67: 0 | AH67: 0 | AJ67: 0 | AK67: 4.82 | AL67: / | AM67: 0 | AN67: 4.82 | AO67: / | AP67: 0 | AQ67: 0 | AS67: 0 | AT67: 0 | AV67: 0 | AW67: 0 | AY67: 0 | AZ67: 0 | BB67: 0 | BC67: 4.82 | BD67: / | BE67: 0 | BF67: 0 | BG67: 1.514364407 | BH67: 3.533516949 | BI67: 5.047881356 | BJ67: 10.09576271 | BK67: 0 | BL67: 0 | BM67: 0 | BN67: 0 | BO67: 10.09576271
A68: 46 | B68: Реконструкция КЛ-6 кВ Ф-18 ПС ГПП "Коммунар" | I68: 0.85 | J68: / | K68: 0 | L68: 0 | N68: 0 | O68: 0 | Q68: 0 | R68: 0 | T68: 0 | U68: 0 | W68: 0 | X68: 0.85 | Y68: / | Z68: 0 | AA68: 3.587288136 | AB68: 0 | AD68: 0 | AE68: 0 | AG68: 0 | AH68: 0 | AJ68: 0 | AK68: 0.85 | AL68: / | AM68: 0 | AN68: 0.85 | AO68: / | AP68: 0 | AQ68: 0 | AS68: 0 | AT68: 0 | AV68: 0 | AW68: 0 | AY68: 0 | AZ68: 0 | BB68: 0 | BC68: 0.85 | BD68: / | BE68: 0 | BF68: 0 | BG68: 0.5380932203 | BH68: 1.255550847 | BI68: 1.793644068 | BJ68: 3.587288136 | BK68: 0 | BL68: 0 | BM68: 0 | BN68: 0 | BO68: 3.587288136
A69: 47 | B69: Реконструкция ВЛ-0,4 кВ от КТП 224 | I69: 4.3 | J69: / | K69: 0 | L69: 0 | N69: 0 | O69: 0 | Q69: 0 | R69: 0 | T69: 0 | U69: 0 | W69: 0 | X69: 4.3 | Y69: / | Z69: 0 | AA69: 13.98050847 | AB69: 0 | AD69: 0 | AE69: 0 | AG69: 0 | AH69: 0 | AJ69: 0 | AK69: 4.3 | AL69: / | AM69: 0 | AN69: 4.3 | AO69: / | AP69: 0 | AQ69: 0 | AS69: 0 | AT69: 0 | AV69: 0 | AW69: 0 | AY69: 0 | AZ69: 0 | BB69: 0 | BC69: 4.3 | BD69: / | BE69: 0 | BF69: 0 | BG69: 2.097076271 | BH69: 4.893177966 | BI69: 6.990254237 | BJ69: 13.98050847 | BK69: 0 | BL69: 0 | BM69: 0 | BN69: 0 | BO69: 13.98050847
A70: 48 | B70: Реконструкция существующей инфраструктуры объектов электросетевого хозяйства в районе с. Ширяево в целях обеспечения надежности электроснабжения туристического комплекса "Жигулевская жемчужина" | I70: 0 | K70: 0 | L70: 0 | N70: 0 | O70: 0 | Q70: 0 | R70: 15 | S70: / | T70: 0 | U70: 0 | W70: 0 | X70: 15 | Y70: / | Z70: 0 | AA70: 210 | AB70: 0 | AD70: 0 | AE70: 0 | AG70: 0 | AH70: 0 | AJ70: 0 | AK70: 0 | AM70: 0 | AN70: 0 | AO70: / | AP70: 0 | AQ70: 2.1 | AR70: / | AS70: 1.26 | AT70: 42 | AU70: / | AV70: 2.4 | AW70: 15 | AX70: / | AY70: 16 | AZ70: 15 | BA70: / | BB70: 16 | BC70: 74.1 | BD70: / | BE70: 35.66 | BF70: 0 | BG70: 0 | BH70: 0 | BI70: 0 | BJ70: 0 | BK70: 20 | BL70: 50 | BM70: 60 | BN70: 80 | BO70: 210
A71: 49 | B71: Реконструкция, инфраструктуры объектов электросетевого хозяйства в г.о. Самара в целях обеспечения надежности электроснабжения объектов Южный город, Заречье в Волжском районе | I71: 0 | K71: 0 | L71: 0 | N71: 0 | O71: 0 | Q71: 0 | R71: 16 | S71: / | T71: 0 | U71: 0 | W71: 0 | X71: 16 | Y71: / | Z71: 0 | AA71: 1099.322034 | AB71: 0 | AD71: 0 | AE71: 0 | AG71: 0 | AH71: 0 | AJ71: 0 | AK71: 0 | AM71: 0 | AN71: 0 | AO71: / | AP71: 0 | AQ71: 22 | AR71: / | AS71: 41.6 | AT71: 18 | AU71: / | AV71: 80 | AW71: 16 | AX71: / | AY71: 63 | AZ71: 16 | BA71: / | BB71: 63 | BC71: 72 | BD71: / | BE71: 247.6 | BF71: 0 | BG71: 0 | BH71: 0 | BI71: 0 | BJ71: 0 | BK71: 188.3898305 | BL71: 340 | BM71: 320.9322034 | BN71: 250 | BO71: 1099.322034
A72: 50 | B72: Реконструкция инфраструктуры объектов электросетевого хозяйства в целях обеспечения надежности электроснабжения п. Петра-Дубрава, п. Стройкерамика | I72: 0 | K72: 0 | L72: 0 | N72: 0 | O72: 0 | Q72: 0 | R72: 6 | S72: / | T72: 0 | U72: 0 | W72: 0 | X72: 6 | Y72: / | Z72: 0 | AA72: 318.4745763 | AB72: 0 | AD72: 0 | AE72: 0 | AG72: 0 | AH72: 0 | AJ72: 0 | AK72: 0 | AM72: 0 | AN72: 0 | AO72: / | AP72: 0 | AQ72: 2 | AR72: / | AS72: 1.26 | AT72: 2 | AU72: / | AV72: 1.26 | AW72: 6 | AX72: / | AY72: 2.4 | AZ72: 12 | BA72: / | BB72: 4.8 | BC72: 22 | BD72: / | BE72: 9.72 | BF72: 0 | BG72: 7.627118644 | BH72: 17.79661017 | BI72: 25.42372881 | BJ72: 50.84745763 | BK72: 25.59322034 | BL72: 25 | BM72: 60 | BN72: 157.0338983 | BO72: 318.4745763
A73: 51 | B73: Реконструкция ВЛ-0,4кВ от ЗТП Кур 904/250 кВА с заменой ЗТП на КТП | I73: 0 | K73: 0 | L73: 0.5 | M73: / | N73: 0.25 | O73: 0 | Q73: 0 | R73: 0 | T73: 0 | U73: 0 | W73: 0 | X73: 0.5 | Y73: / | Z73: 0.25 | AA73: 2.203389831 | AB73: 0 | AD73: 0 | AE73: 0 | AG73: 0 | AH73: 0 | AJ73: 0 | AK73: 0 | AM73: 0 | AN73: 0 | AO73: / | AP73: 0 | AQ73: 0.5 | AR73: / | AS73: 0.25 | AT73: 0 | AV73: 0 | AW73: 0 | AY73: 0 | AZ73: 0 | BB73: 0 | BC73: 0.5 | BD73: / | BE73: 0.25 | BF73: 0 | BG73: 0 | BH73: 0 | BI73: 0 | BJ73: 0 | BK73: 2.203389831 | BL73: 0 | BM73: 0 | BN73: 0 | BO73: 2.203389831
A74: 52 | B74: Реконструкция ВЛ-0,4кВ от ЗТП Кур 905/250 кВА с заменой ЗТП на КТП | I74: 0 | K74: 0 | L74: 2.4 | M74: / | N74: 0.25 | O74: 0 | Q74: 0 | R74: 0 | T74: 0 | U74: 0 | W74: 0 | X74: 2.4 | Y74: / | Z74: 0.25 | AA74: 6.711864407 | AB74: 0 | AD74: 0 | AE74: 0 | AG74: 0 | AH74: 0 | AJ74: 0 | AK74: 0 | AM74: 0 | AN74: 0 | AO74: / | AP74: 0 | AQ74: 2.4 | AR74: / | AS74: 0.25 | AT74: 0 | AV74: 0 | AW74: 0 | AY74: 0 | AZ74: 0 | BB74: 0 | BC74: 2.4 | BD74: / | BE74: 0.25 | BF74: 0 | BG74: 0 | BH74: 0 | BI74: 0 | BJ74: 0 | BK74: 6.711864407 | BL74: 0 | BM74: 0 | BN74: 0 | BO74: 6.711864407
A75: 53 | B75: Реконструкция ВЛ-0,4 кВ от КТП Р 601/250 кВА | I75: 0 | K75: 0 | L75: 2.5 | M75: / | N75: 0 | O75: 0 | Q75: 0 | R75: 0 | T75: 0 | U75: 0 | W75: 0 | X75: 2.5 | Y75: / | Z75: 0 | AA75: 5.93220339 | AB75: 0 | AD75: 0 | AE75: 0 | AG75: 0 | AH75: 0 | AJ75: 0 | AK75: 0 | AM75: 0 | AN75: 0 | AO75: / | AP75: 0 | AQ75: 2.5 | AR75: / | AS75: 0 | AT75: 0 | AV75: 0 | AW75: 0 | AY75: 0 | AZ75: 0 | BB75: 0 | BC75: 2.5 | BD75: / | BE75: 0 | BF75: 0 | BG75: 0 | BH75: 0 | BI75: 0 | BJ75: 0 | BK75: 5.93220339 | BL75: 0 | BM75: 0 | BN75: 0 | BO75: 5.93220339
A76: 54 | B76: Реконструкция ВЛ-0,4 кВ от КТП Р 603/250 кВА с заменой КТП на 400 кВА | I76: 0 | K76: 0 | L76: 2.65 | M76: / | N76: 0.25 | O76: 0 | Q76: 0 | R76: 0 | T76: 0 | U76: 0 | W76: 0 | X76: 2.65 | Y76: / | Z76: 0.25 | AA76: 7.305084746 | AB76: 0 | AD76: 0 | AE76: 0 | AG76: 0 | AH76: 0 | AJ76: 0 | AK76: 0 | AM76: 0 | AN76: 0 | AO76: / | AP76: 0 | AQ76: 2.65 | AR76: / | AS76: 0.4 | AT76: 0 | AV76: 0 | AW76: 0 | AY76: 0 | AZ76: 0 | BB76: 0 | BC76: 2.65 | BD76: / | BE76: 0.4 | BF76: 0 | BG76: 0 | BH76: 0 | BI76: 0 | BJ76: 0 | BK76: 7.305084746 | BL76: 0 | BM76: 0 | BN76: 0 | BO76: 7.305084746
A77: 55 | B77: Реконструкция ВЛ-0,4 кВ от КТП Пр 906/400 кВА с заменой КТП | I77: 0 | K77: 0 | L77: 3.5 | M77: / | N77: 0.4 | O77: 0 | Q77: 0 | R77: 0 | T77: 0 | U77: 0 | W77: 0 | X77: 3.5 | Y77: / | Z77: 0.4 | AA77: 8.305084746 | AB77: 0 | AD77: 0 | AE77: 0 | AG77: 0 | AH77: 0 | AJ77: 0 | AK77: 0 | AM77: 0 | AN77: 0 | AO77: / | AP77: 0 | AQ77: 3.5 | AR77: / | AS77: 0.4 | AT77: 0 | AV77: 0 | AW77: 0 | AY77: 0 | AZ77: 0 | BB77: 0 | BC77: 3.5 | BD77: / | BE77: 0.4 | BF77: 0 | BG77: 0 | BH77: 0 | BI77: 0 | BJ77: 0 | BK77: 8.305084746 | BL77: 0 | BM77: 0 | BN77: 0 | BO77: 8.305084746
A78: 56 | B78: Реконструкция ВЛ-0,4 кВ от КТП Ду 2127/160 кВА с заменой КТП | I78: 0 | K78: 0 | L78: 0.3 | M78: / | N78: 0.16 | O78: 0 | Q78: 0 | R78: 0 | T78: 0 | U78: 0 | W78: 0 | X78: 0.3 | Y78: / | Z78: 0.16 | AA78: 1.728813559 | AB78: 0 | AD78: 0 | AE78: 0 | AG78: 0 | AH78: 0 | AJ78: 0 | AK78: 0 | AM78: 0 | AN78: 0 | AO78: / | AP78: 0 | AQ78: 0.3 | AR78: / | AS78: 0.16 | AT78: 0 | AV78: 0 | AW78: 0 | AY78: 0 | AZ78: 0 | BB78: 0 | BC78: 0.3 | BD78: / | BE78: 0.16 | BF78: 0 | BG78: 0 | BH78: 0 | BI78: 0 | BJ78: 0 | BK78: 1.728813559 | BL78: 0 | BM78: 0 | BN78: 0 | BO78: 1.728813559
A79: 57 | B79: Реконструкция ВЛ-6 кВ от Ф-20 оп 2500/34 до ЗТП Л 2513/630 кВА | I79: 0 | K79: 0 | L79: 0.3 | M79: / | N79: 0 | O79: 0 | Q79: 0 | R79: 0 | T79: 0 | U79: 0 | W79: 0 | X79: 0.3 | Y79: / | Z79: 0 | AA79: 0.7118644068 | AB79: 0 | AD79: 0 | AE79: 0 | AG79: 0 | AH79: 0 | AJ79: 0 | AK79: 0 | AM79: 0 | AN79: 0 | AO79: / | AP79: 0 | AQ79: 0.3 | AR79: / | AS79: 0 | AT79: 0 | AV79: 0 | AW79: 0 | AY79: 0 | AZ79: 0 | BB79: 0 | BC79: 0.3 | BD79: / | BE79: 0 | BF79: 0 | BG79: 0 | BH79: 0 | BI79: 0 | BJ79: 0 | BK79: 0.7118644068 | BL79: 0 | BM79: 0 | BN79: 0 | BO79: 0.7118644068
A80: 58 | B80: Реконструкция ВЛ-0,4 кВ от КТП 212 с перераспределением нагрузок от КТП 216 | I80: 0 | K80: 0 | L80: 1.5 | M80: / | N80: 0 | O80: 0 | Q80: 0 | R80: 0 | T80: 0 | U80: 0 | W80: 0 | X80: 1.5 | Y80: / | Z80: 0 | AA80: 3.559322034 | AB80: 0 | AD80: 0 | AE80: 0 | AG80: 0 | AH80: 0 | AJ80: 0 | AK80: 0 | AM80: 0 | AN80: 0 | AO80: / | AP80: 0 | AQ80: 1.5 | AR80: / | AS80: 0 | AT80: 0 | AV80: 0 | AW80: 0 | AY80: 0 | AZ80: 0 | BB80: 0 | BC80: 1.5 | BD80: / | BE80: 0 | BF80: 0 | BG80: 0 | BH80: 0 | BI80: 0 | BJ80: 0 | BK80: 3.559322034 | BL80: 0 | BM80: 0 | BN80: 0 | BO80: 3.559322034
A81: 59 | B81: Реконструкция КЛ-0,4кВ от ТП 404 | I81: 0 | K81: 0 | L81: 1.8 | M81: / | N81: 0 | O81: 0 | Q81: 0 | R81: 0 | T81: 0 | U81: 0 | W81: 0 | X81: 1.8 | Y81: / | Z81: 0 | AA81: 6.101694915 | AB81: 0 | AD81: 0 | AE81: 0 | AG81: 0 | AH81: 0 | AJ81: 0 | AK81: 0 | AM81: 0 | AN81: 0 | AO81: / | AP81: 0 | AQ81: 1.8 | AR81: / | AS81: 0 | AT81: 0 | AV81: 0 | AW81: 0 | AY81: 0 | AZ81: 0 | BB81: 0 | BC81: 1.8 | BD81: / | BE81: 0 | BF81: 0 | BG81: 0 | BH81: 0 | BI81: 0 | BJ81: 0 | BK81: 6.101694915 | BL81: 0 | BM81: 0 | BN81: 0 | BO81: 6.101694915
A82: 60 | B82: Реконструкция КЛ-0,4кВ от ТП 405 | I82: 0 | K82: 0 | L82: 1.7 | M82: / | N82: 0 | O82: 0 | Q82: 0 | R82: 0 | T82: 0 | U82: 0 | W82: 0 | X82: 1.7 | Y82: / | Z82: 0 | AA82: 5.762711864 | AB82: 0 | AD82: 0 | AE82: 0 | AG82: 0 | AH82: 0 | AJ82: 0 | AK82: 0 | AM82: 0 | AN82: 0 | AO82: / | AP82: 0 | AQ82: 1.7 | AR82: / | AS82: 0 | AT82: 0 | AV82: 0 | AW82: 0 | AY82: 0 | AZ82: 0 | BB82: 0 | BC82: 1.7 | BD82: / | BE82: 0 | BF82: 0 | BG82: 0 | BH82: 0 | BI82: 0 | BJ82: 0 | BK82: 5.762711864 | BL82: 0 | BM82: 0 | BN82: 0 | BO82: 5.762711864
A83: 61 | B83: Реконструкция КЛ-0,4кВ от ТП 406 | I83: 0 | K83: 0 | L83: 1 | M83: / | N83: 0 | O83: 0 | Q83: 0 | R83: 0 | T83: 0 | U83: 0 | W83: 0 | X83: 1 | Y83: / | Z83: 0 | AA83: 3.389830508 | AB83: 0 | AD83: 0 | AE83: 0 | AG83: 0 | AH83: 0 | AJ83: 0 | AK83: 0 | AM83: 0 | AN83: 0 | AO83: / | AP83: 0 | AQ83: 1 | AR83: / | AS83: 0 | AT83: 0 | AV83: 0 | AW83: 0 | AY83: 0 | AZ83: 0 | BB83: 0 | BC83: 1 | BD83: / | BE83: 0 | BF83: 0 | BG83: 0 | BH83: 0 | BI83: 0 | BJ83: 0 | BK83: 3.389830508 | BL83: 0 | BM83: 0 | BN83: 0 | BO83: 3.389830508
A84: 62 | B84: Реконструкция КЛ-0,4кВ от ТП 426 | I84: 0 | K84: 0 | L84: 1.7 | M84: / | N84: 0 | O84: 0 | Q84: 0 | R84: 0 | T84: 0 | U84: 0 | W84: 0 | X84: 1.7 | Y84: / | Z84: 0 | AA84: 5.762711864 | AB84: 0 | AD84: 0 | AE84: 0 | AG84: 0 | AH84: 0 | AJ84: 0 | AK84: 0 | AM84: 0 | AN84: 0 | AO84: / | AP84: 0 | AQ84: 1.7 | AR84: / | AS84: 0 | AT84: 0 | AV84: 0 | AW84: 0 | AY84: 0 | AZ84: 0 | BB84: 0 | BC84: 1.7 | BD84: / | BE84: 0 | BF84: 0 | BG84: 0 | BH84: 0 | BI84: 0 | BJ84: 0 | BK84: 5.762711864 | BL84: 0 | BM84: 0 | BN84: 0 | BO84: 5.762711864
A85: 63 | B85: Реконструкция КЛ-0,4кВ от КТП 603 | I85: 0 | K85: 0 | L85: 0.7 | M85: / | N85: 0 | O85: 0 | Q85: 0 | R85: 0 | T85: 0 | U85: 0 | W85: 0 | X85: 0.7 | Y85: / | Z85: 0 | AA85: 2.372881356 | AB85: 0 | AD85: 0 | AE85: 0 | AG85: 0 | AH85: 0 | AJ85: 0 | AK85: 0 | AM85: 0 | AN85: 0 | AO85: / | AP85: 0 | AQ85: 0.7 | AR85: / | AS85: 0 | AT85: 0 | AV85: 0 | AW85: 0 | AY85: 0 | AZ85: 0 | BB85: 0 | BC85: 0.7 | BD85: / | BE85: 0 | BF85: 0 | BG85: 0 | BH85: 0 | BI85: 0 | BJ85: 0 | BK85: 2.372881356 | BL85: 0 | BM85: 0 | BN85: 0 | BO85: 2.372881356
A86: 64 | B86: Реконструкция КЛ-0,4кВ от КТП 605 | I86: 0 | K86: 0 | L86: 0.1 | M86: / | N86: 0 | O86: 0 | Q86: 0 | R86: 0 | T86: 0 | U86: 0 | W86: 0 | X86: 0.1 | Y86: / | Z86: 0 | AA86: 0.3389830508 | AB86: 0 | AD86: 0 | AE86: 0 | AG86: 0 | AH86: 0 | AJ86: 0 | AK86: 0 | AM86: 0 | AN86: 0 | AO86: / | AP86: 0 | AQ86: 0.1 | AR86: / | AS86: 0 | AT86: 0 | AV86: 0 | AW86: 0 | AY86: 0 | AZ86: 0 | BB86: 0 | BC86: 0.1 | BD86: / | BE86: 0 | BF86: 0 | BG86: 0 | BH86: 0 | BI86: 0 | BJ86: 0 | BK86: 0.3389830508 | BL86: 0 | BM86: 0 | BN86: 0 | BO86: 0.3389830508
A87: 65 | B87: Реконструкция КЛ-0,4кВ от ЗТП10 | I87: 0 | K87: 0 | L87: 0.95 | M87: / | N87: 0 | O87: 0 | Q87: 0 | R87: 0 | T87: 0 | U87: 0 | W87: 0 | X87: 0.95 | Y87: / | Z87: 0 | AA87: 3.389830508 | AB87: 0 | AD87: 0 | AE87: 0 | AG87: 0 | AH87: 0 | AJ87: 0 | AK87: 0 | AM87: 0 | AN87: 0 | AO87: / | AP87: 0 | AQ87: 0.95 | AR87: / | AS87: 0 | AT87: 0 | AV87: 0 | AW87: 0 | AY87: 0 | AZ87: 0 | BB87: 0 | BC87: 0.95 | BD87: / | BE87: 0 | BF87: 0 | BG87: 0 | BH87: 0 | BI87: 0 | BJ87: 0 | BK87: 3.389830508 | BL87: 0 | BM87: 0 | BN87: 0 | BO87: 3.389830508
A88: 66 | B88: Реконструкция КЛ-0,4кВ от ЗТП20 | I88: 0 | K88: 0 | L88: 0.3 | M88: / | N88: 0 | O88: 0 | Q88: 0 | R88: 0 | T88: 0 | U88: 0 | W88: 0 | X88: 0.3 | Y88: / | Z88: 0 | AA88: 1.016949153 | AB88: 0 | AD88: 0 | AE88: 0 | AG88: 0 | AH88: 0 | AJ88: 0 | AK88: 0 | AM88: 0 | AN88: 0 | AO88: / | AP88: 0 | AQ88: 0.3 | AR88: / | AS88: 0 | AT88: 0 | AV88: 0 | AW88: 0 | AY88: 0 | AZ88: 0 | BB88: 0 | BC88: 0.3 | BD88: / | BE88: 0 | BF88: 0 | BG88: 0 | BH88: 0 | BI88: 0 | BJ88: 0 | BK88: 1.016949153 | BL88: 0 | BM88: 0 | BN88: 0 | BO88: 1.016949153
A89: 67 | B89: Реконструкция КЛ-0,4кВ Ф-8 ЗТП5 от оп№800/10 до оп№800/11 (под ж/д) | I89: 0 | K89: 0 | L89: 0.9 | M89: / | N89: 0 | O89: 0 | Q89: 0 | R89: 0 | T89: 0 | U89: 0 | W89: 0 | X89: 0.9 | Y89: / | Z89: 0 | AA89: 3.050847458 | AB89: 0 | AD89: 0 | AE89: 0 | AG89: 0 | AH89: 0 | AJ89: 0 | AK89: 0 | AM89: 0 | AN89: 0 | AO89: / | AP89: 0 | AQ89: 0.9 | AR89: / | AS89: 0 | AT89: 0 | AV89: 0 | AW89: 0 | AY89: 0 | AZ89: 0 | BB89: 0 | BC89: 0.9 | BD89: / | BE89: 0 | BF89: 0 | BG89: 0 | BH89: 0 | BI89: 0 | BJ89: 0 | BK89: 3.050847458 | BL89: 0 | BM89: 0 | BN89: 0 | BO89: 3.050847458
A90: 68 | B90: Реконструкция КЛ-0,4кВ от КТП 215 | I90: 0 | K90: 0 | L90: 0.25 | M90: / | N90: 0 | O90: 0 | Q90: 0 | R90: 0 | T90: 0 | U90: 0 | W90: 0 | X90: 0.25 | Y90: / | Z90: 0 | AA90: 1.016949153 | AB90: 0 | AD90: 0 | AE90: 0 | AG90: 0 | AH90: 0 | AJ90: 0 | AK90: 0 | AM90: 0 | AN90: 0 | AO90: / | AP90: 0 | AQ90: 0.25 | AR90: / | AS90: 0 | AT90: 0 | AV90: 0 | AW90: 0 | AY90: 0 | AZ90: 0 | BB90: 0 | BC90: 0.25 | BD90: / | BE90: 0 | BF90: 0 | BG90: 0 | BH90: 0 | BI90: 0 | BJ90: 0 | BK90: 1.016949153 | BL90: 0 | BM90: 0 | BN90: 0 | BO90: 1.016949153
A91: 69 | B91: Реконструкция КЛ-0,4кВ от КТП 218 | I91: 0 | K91: 0 | L91: 0.26 | M91: / | N91: 0 | O91: 0 | Q91: 0 | R91: 0 | T91: 0 | U91: 0 | W91: 0 | X91: 0.26 | Y91: / | Z91: 0 | AA91: 1.016949153 | AB91: 0 | AD91: 0 | AE91: 0 | AG91: 0 | AH91: 0 | AJ91: 0 | AK91: 0 | AM91: 0 | AN91: 0 | AO91: / | AP91: 0 | AQ91: 0.26 | AR91: / | AS91: 0 | AT91: 0 | AV91: 0 | AW91: 0 | AY91: 0 | AZ91: 0 | BB91: 0 | BC91: 0.26 | BD91: / | BE91: 0 | BF91: 0 | BG91: 0 | BH91: 0 | BI91: 0 | BJ91: 0 | BK91: 1.016949153 | BL91: 0 | BM91: 0 | BN91: 0 | BO91: 1.016949153
A92: 70 | B92: Реконструкция КЛ-0,4кВ от КТП 213 | I92: 0 | K92: 0 | L92: 0.3 | M92: / | N92: 0 | O92: 0 | Q92: 0 | R92: 0 | T92: 0 | U92: 0 | W92: 0 | X92: 0.3 | Y92: / | Z92: 0 | AA92: 1.016949153 | AB92: 0 | AD92: 0 | AE92: 0 | AG92: 0 | AH92: 0 | AJ92: 0 | AK92: 0 | AM92: 0 | AN92: 0 | AO92: / | AP92: 0 | AQ92: 0.3 | AR92: / | AS92: 0 | AT92: 0 | AV92: 0 | AW92: 0 | AY92: 0 | AZ92: 0 | BB92: 0 | BC92: 0.3 | BD92: / | BE92: 0 | BF92: 0 | BG92: 0 | BH92: 0 | BI92: 0 | BJ92: 0 | BK92: 1.016949153 | BL92: 0 | BM92: 0 | BN92: 0 | BO92: 1.016949153
A93: 71 | B93: Реконструкция КЛ-0,4кВ от КТП 211 | I93: 0 | K93: 0 | L93: 0.48 | M93: / | N93: 0 | O93: 0 | Q93: 0 | R93: 0 | T93: 0 | U93: 0 | W93: 0 | X93: 0.48 | Y93: / | Z93: 0 | AA93: 1.694915254 | AB93: 0 | AD93: 0 | AE93: 0 | AG93: 0 | AH93: 0 | AJ93: 0 | AK93: 0 | AM93: 0 | AN93: 0 | AO93: / | AP93: 0 | AQ93: 0.48 | AR93: / | AS93: 0 | AT93: 0 | AV93: 0 | AW93: 0 | AY93: 0 | AZ93: 0 | BB93: 0 | BC93: 0.48 | BD93: / | BE93: 0 | BF93: 0 | BG93: 0 | BH93: 0 | BI93: 0 | BJ93: 0 | BK93: 1.694915254 | BL93: 0 | BM93: 0 | BN93: 0 | BO93: 1.694915254
A94: 72 | B94: Реконструкция ВЛ-0,4кВ КТП 228 | I94: 0 | K94: 0 | L94: 3.4 | M94: / | N94: 0 | O94: 0 | Q94: 0 | R94: 0 | T94: 0 | U94: 0 | W94: 0 | X94: 3.4 | Y94: / | Z94: 0 | AA94: 8.06779661 | AB94: 0 | AD94: 0 | AE94: 0 | AG94: 0 | AH94: 0 | AJ94: 0 | AK94: 0 | AM94: 0 | AN94: 0 | AO94: / | AP94: 0 | AQ94: 3.4 | AR94: / | AS94: 0 | AT94: 0 | AV94: 0 | AW94: 0 | AY94: 0 | AZ94: 0 | BB94: 0 | BC94: 3.4 | BD94: / | BE94: 0 | BF94: 0 | BG94: 0 | BH94: 0 | BI94: 0 | BJ94: 0 | BK94: 8.06779661 | BL94: 0 | BM94: 0 | BN94: 0 | BO94: 8.06779661
A95: 73 | B95: Реконструкция КЛ-0,4кВ от КТП 602 | I95: 0 | K95: 0 | L95: 0.4 | M95: / | N95: 0 | O95: 0 | Q95: 0 | R95: 0 | T95: 0 | U95: 0 | W95: 0 | X95: 0.4 | Y95: / | Z95: 0 | AA95: 1.355932203 | AB95: 0 | AD95: 0 | AE95: 0 | AG95: 0 | AH95: 0 | AJ95: 0 | AK95: 0 | AM95: 0 | AN95: 0 | AO95: / | AP95: 0 | AQ95: 0.4 | AR95: / | AS95: 0 | AT95: 0 | AV95: 0 | AW95: 0 | AY95: 0 | AZ95: 0 | BB95: 0 | BC95: 0.4 | BD95: / | BE95: 0 | BF95: 0 | BG95: 0 | BH95: 0 | BI95: 0 | BJ95: 0 | BK95: 1.355932203 | BL95: 0 | BM95: 0 | BN95: 0 | BO95: 1.355932203
A96: 74 | B96: Реконструкция ВЛ-0,4кВ от ЗТП Кур 906/400 кВА с заменой ЗТП на КТП | I96: 0 | K96: 0 | L96: 0 | N96: 0 | O96: 0.85 | P96: / | Q96: 0.4 | R96: 0 | T96: 0 | U96: 0 | W96: 0 | X96: 0.85 | Y96: / | Z96: 0.4 | AA96: 3.033898305 | AB96: 0 | AD96: 0 | AE96: 0 | AG96: 0 | AH96: 0 | AJ96: 0 | AK96: 0 | AM96: 0 | AN96: 0 | AO96: / | AP96: 0 | AQ96: 0 | AS96: 0 | AT96: 0.85 | AU96: / | AV96: 0.4 | AW96: 0 | AY96: 0 | AZ96: 0 | BB96: 0 | BC96: 0.85 | BD96: / | BE96: 0.4 | BF96: 0 | BG96: 0 | BH96: 0 | BI96: 0 | BJ96: 0 | BK96: 0 | BL96: 3.033898305 | BM96: 0 | BN96: 0 | BO96: 3.033898305
A97: 75 | B97: Реконструкция ВЛ-0,4кВ от ЗТП Кур 901/250 кВА с заменой ЗТП на КТП | I97: 0 | K97: 0 | L97: 0 | N97: 0 | O97: 1.4 | P97: / | Q97: 0.25 | R97: 0 | T97: 0 | U97: 0 | W97: 0 | X97: 1.4 | Y97: / | Z97: 0.25 | AA97: 4.338983051 | AB97: 0 | AD97: 0 | AE97: 0 | AG97: 0 | AH97: 0 | AJ97: 0 | AK97: 0 | AM97: 0 | AN97: 0 | AO97: / | AP97: 0 | AQ97: 0 | AS97: 0 | AT97: 1.4 | AU97: / | AV97: 0.25 | AW97: 0 | AY97: 0 | AZ97: 0 | BB97: 0 | BC97: 1.4 | BD97: / | BE97: 0.25 | BF97: 0 | BG97: 0 | BH97: 0 | BI97: 0 | BJ97: 0 | BK97: 0 | BL97: 4.338983051 | BM97: 0 | BN97: 0 | BO97: 4.338983051
A98: 76 | B98: Реконструкция ВЛ-0,4 кВ от КТП Р 402/400 кВА | I98: 0 | K98: 0 | L98: 0 | N98: 0 | O98: 1 | P98: / | Q98: 0 | R98: 0 | T98: 0 | U98: 0 | W98: 0 | X98: 1 | Y98: / | Z98: 0 | AA98: 2.372881356 | AB98: 0 | AD98: 0 | AE98: 0 | AG98: 0 | AH98: 0 | AJ98: 0 | AK98: 0 | AM98: 0 | AN98: 0 | AO98: / | AP98: 0 | AQ98: 0 | AS98: 0 | AT98: 1 | AU98: / | AV98: 0 | AW98: 0 | AY98: 0 | AZ98: 0 | BB98: 0 | BC98: 1 | BD98: / | BE98: 0 | BF98: 0 | BG98: 0 | BH98: 0 | BI98: 0 | BJ98: 0 | BK98: 0 | BL98: 2.372881356 | BM98: 0 | BN98: 0 | BO98: 2.372881356
A99: 77 | B99: Реконструкция ВЛ-10 кВ Ф-8 отпайка к КТП Пм 802/100 кВА с заменой КТП | I99: 0 | K99: 0 | L99: 0 | N99: 0 | O99: 3.6 | P99: / | Q99: 0.1 | R99: 0 | T99: 0 | U99: 0 | W99: 0 | X99: 3.6 | Y99: / | Z99: 0.1 | AA99: 9.322033898 | AB99: 0 | AD99: 0 | AE99: 0 | AG99: 0 | AH99: 0 | AJ99: 0 | AK99: 0 | AM99: 0 | AN99: 0 | AO99: / | AP99: 0 | AQ99: 0 | AS99: 0 | AT99: 3.6 | AU99: / | AV99: 0.1 | AW99: 0 | AY99: 0 | AZ99: 0 | BB99: 0 | BC99: 3.6 | BD99: / | BE99: 0.1 | BF99: 0 | BG99: 0 | BH99: 0 | BI99: 0 | BJ99: 0 | BK99: 0 | BL99: 9.322033898 | BM99: 0 | BN99: 0 | BO99: 9.322033898
A100: 78 | B100: Реконструкция ВЛ-0,4 кВ Ф-1 КТП Л 2502/320 кВА | I100: 0 | K100: 0 | L100: 0 | N100: 0 | O100: 0.7 | P100: / | Q100: 0 | R100: 0 | T100: 0 | U100: 0 | W100: 0 | X100: 0.7 | Y100: / | Z100: 0 | AA100: 1.661016949 | AB100: 0 | AD100: 0 | AE100: 0 | AG100: 0 | AH100: 0 | AJ100: 0 | AK100: 0 | AM100: 0 | AN100: 0 | AO100: / | AP100: 0 | AQ100: 0 | AS100: 0 | AT100: 0.7 | AU100: / | AV100: 0 | AW100: 0 | AY100: 0 | AZ100: 0 | BB100: 0 | BC100: 0.7 | BD100: / | BE100: 0 | BF100: 0 | BG100: 0 | BH100: 0 | BI100: 0 | BJ100: 0 | BK100: 0 | BL100: 1.661016949 | BM100: 0 | BN100: 0 | BO100: 1.661016949
A101: 79 | B101: Реконструкция ВЛ-0,4 кВ от КТП 211/250 кВА с заменой КТП на 400 кВА. | I101: 0 | K101: 0 | L101: 0 | N101: 0 | O101: 1.5 | P101: / | Q101: 0.25 | R101: 0 | T101: 0 | U101: 0 | W101: 0 | X101: 1.5 | Y101: / | Z101: 0.25 | AA101: 4.576271186 | AB101: 0 | AD101: 0 | AE101: 0 | AG101: 0 | AH101: 0 | AJ101: 0 | AK101: 0 | AM101: 0 | AN101: 0 | AO101: / | AP101: 0 | AQ101: 0 | AS101: 0 | AT101: 1.5 | AU101: / | AV101: 0.4 | AW101: 0 | AY101: 0 | AZ101: 0 | BB101: 0 | BC101: 1.5 | BD101: / | BE101: 0.4 | BF101: 0 | BG101: 0 | BH101: 0 | BI101: 0 | BJ101: 0 | BK101: 0 | BL101: 4.576271186 | BM101: 0 | BN101: 0 | BO101: 4.576271186
A102: 80 | B102: Реконструкция ВЛ-0,4 кВ от КТП 213 | I102: 0 | K102: 0 | L102: 0 | N102: 0 | O102: 1.8 | P102: / | Q102: 0 | R102: 0 | T102: 0 | U102: 0 | W102: 0 | X102: 1.8 | Y102: / | Z102: 0 | AA102: 4.271186441 | AB102: 0 | AD102: 0 | AE102: 0 | AG102: 0 | AH102: 0 | AJ102: 0 | AK102: 0 | AM102: 0 | AN102: 0 | AO102: / | AP102: 0 | AQ102: 0 | AS102: 0 | AT102: 1.8 | AU102: / | AV102: 0 | AW102: 0 | AY102: 0 | AZ102: 0 | BB102: 0 | BC102: 1.8 | BD102: / | BE102: 0 | BF102: 0 | BG102: 0 | BH102: 0 | BI102: 0 | BJ102: 0 | BK102: 0 | BL102: 4.271186441 | BM102: 0 | BN102: 0 | BO102: 4.271186441
A103: 81 | B103: Реконструкция ВЛ-0,4 кВ от КТП Р 106/400 кВА с заменой КТП | I103: 0 | K103: 0 | L103: 0 | N103: 0 | O103: 0 | Q103: 0 | R103: 3.2 | S103: / | T103: 0.4 | U103: 0 | W103: 0 | X103: 3.2 | Y103: / | Z103: 0.4 | AA103: 8.610169492 | AB103: 0 | AD103: 0 | AE103: 0 | AG103: 0 | AH103: 0 | AJ103: 0 | AK103: 0 | AM103: 0 | AN103: 0 | AO103: / | AP103: 0 | AQ103: 0 | AS103: 0 | AT103: 0 | AV103: 0 | AW103: 3.2 | AX103: / | AY103: 0.4 | AZ103: 0 | BB103: 0 | BC103: 3.2 | BD103: / | BE103: 0.4 | BF103: 0 | BG103: 0 | BH103: 0 | BI103: 0 | BJ103: 0 | BK103: 0 | BL103: 0 | BM103: 8.610169492 | BN103: 0 | BO103: 8.610169492
A104: 82 | B104: Реконструкция ВЛ-6 кВ Ф-30 ПС Овощная отпайка до КТП Ов 3008/250 кВА с заменой КТП на 400 кВА | I104: 0 | K104: 0 | L104: 0 | N104: 0 | O104: 0 | Q104: 0 | R104: 0.36 | S104: / | T104: 0.25 | U104: 0 | W104: 0 | X104: 0.36 | Y104: / | Z104: 0.25 | AA104: 1.871186441 | AB104: 0 | AD104: 0 | AE104: 0 | AG104: 0 | AH104: 0 | AJ104: 0 | AK104: 0 | AM104: 0 | AN104: 0 | AO104: / | AP104: 0 | AQ104: 0 | AS104: 0 | AT104: 0 | AV104: 0 | AW104: 0.36 | AX104: / | AY104: 0.4 | AZ104: 0 | BB104: 0 | BC104: 0.36 | BD104: / | BE104: 0.4 | BF104: 0 | BG104: 0 | BH104: 0 | BI104: 0 | BJ104: 0 | BK104: 0 | BL104: 0 | BM104: 1.871186441 | BN104: 0 | BO104: 1.871186441
A105: 83 | B105: Реконструкция ВЛ-6 кВ Ф-1 отпайка до КТП Пм 102/250 кВА с заменой КТП | I105: 0 | K105: 0 | L105: 0 | N105: 0 | O105: 0 | Q105: 0 | R105: 0.06 | S105: / | T105: 0.25 | U105: 0 | W105: 0 | X105: 0.06 | Y105: / | Z105: 0.25 | AA105: 1.159322034 | AB105: 0 | AD105: 0 | AE105: 0 | AG105: 0 | AH105: 0 | AJ105: 0 | AK105: 0 | AM105: 0 | AN105: 0 | AO105: / | AP105: 0 | AQ105: 0 | AS105: 0 | AT105: 0 | AV105: 0 | AW105: 0.06 | AX105: / | AY105: 0.25 | AZ105: 0 | BB105: 0 | BC105: 0.06 | BD105: / | BE105: 0.25 | BF105: 0 | BG105: 0 | BH105: 0 | BI105: 0 | BJ105: 0 | BK105: 0 | BL105: 0 | BM105: 1.159322034 | BN105: 0 | BO105: 1.159322034
A106: 84 | B106: Реконструкция ВЛ-0,4 кВ от КТП 215 | I106: 0 | K106: 0 | L106: 0 | N106: 0 | O106: 0 | Q106: 0 | R106: 1.6 | S106: / | T106: 0 | U106: 0 | W106: 0 | X106: 1.6 | Y106: / | Z106: 0 | AA106: 3.796610169 | AB106: 0 | AD106: 0 | AE106: 0 | AG106: 0 | AH106: 0 | AJ106: 0 | AK106: 0 | AM106: 0 | AN106: 0 | AO106: / | AP106: 0 | AQ106: 0 | AS106: 0 | AT106: 0 | AV106: 0 | AW106: 1.6 | AX106: / | AY106: 0 | AZ106: 0 | BB106: 0 | BC106: 1.6 | BD106: / | BE106: 0 | BF106: 0 | BG106: 0 | BH106: 0 | BI106: 0 | BJ106: 0 | BK106: 0 | BL106: 0 | BM106: 3.796610169 | BN106: 0 | BO106: 3.796610169
A107: 85 | B107: Реконструкция ВЛ-0,4 кВ от КТП 218 | I107: 0 | K107: 0 | L107: 0 | N107: 0 | O107: 0 | Q107: 0 | R107: 0.8 | S107: / | T107: 0 | U107: 0 | W107: 0 | X107: 0.8 | Y107: / | Z107: 0 | AA107: 1.898305085 | AB107: 0 | AD107: 0 | AE107: 0 | AG107: 0 | AH107: 0 | AJ107: 0 | AK107: 0 | AM107: 0 | AN107: 0 | AO107: / | AP107: 0 | AQ107: 0 | AS107: 0 | AT107: 0 | AV107: 0 | AW107: 0.8 | AX107: / | AY107: 0 | AZ107: 0 | BB107: 0 | BC107: 0.8 | BD107: / | BE107: 0 | BF107: 0 | BG107: 0 | BH107: 0 | BI107: 0 | BJ107: 0 | BK107: 0 | BL107: 0 | BM107: 1.898305085 | BN107: 0 | BO107: 1.898305085
A108: 86 | B108: Реконструкция ВЛ-0,4 кВ от КТП Р 304/400 кВА с заменой КТП | I108: 0 | K108: 0 | L108: 0 | N108: 0 | O108: 0 | Q108: 0 | R108: 0 | T108: 0 | U108: 1.8 | V108: / | W108: 0.4 | X108: 1.8 | Y108: / | Z108: 0.4 | AA108: 5.288135593 | AB108: 0 | AD108: 0 | AE108: 0 | AG108: 0 | AH108: 0 | AJ108: 0 | AK108: 0 | AM108: 0 | AN108: 0 | AO108: / | AP108: 0 | AQ108: 0 | AS108: 0 | AT108: 0 | AV108: 0 | AW108: 0 | AY108: 0 | AZ108: 1.8 | BA108: / | BB108: 0.4 | BC108: 1.8 | BD108: / | BE108: 0.4 | BF108: 0 | BG108: 0 | BH108: 0 | BI108: 0 | BJ108: 0 | BK108: 0 | BL108: 0 | BM108: 0 | BN108: 5.288135593 | BO108: 5.288135593
A109: 87 | B109: Елховский район | I109: 0 | K109: 0 | L109: 0 | N109: 0 | O109: 0 | Q109: 0 | R109: 0 | T109: 0 | U109: 0 | W109: 0 | X109: 0 | Y109: / | Z109: 0 | AA109: 0 | AB109: 0 | AD109: 0 | AE109: 0 | AG109: 0 | AH109: 0 | AJ109: 0 | AK109: 0 | AM109: 0 | AN109: 0 | AO109: / | AP109: 0 | AQ109: 0 | AS109: 0 | AT109: 0 | AV109: 0 | AW109: 0 | AY109: 0 | AZ109: 0 | BB109: 0 | BC109: 0 | BD109: / | BE109: 0 | BF109: 0 | BG109: 0 | BH109: 0 | BI109: 0 | BJ109: 0 | BK109: 0 | BL109: 0 | BM109: 0 | BN109: 0 | BO109: 0
A110: 88 | B110: Реконструкция ВЛ-0,4кВ от КТП КМ 304/630 кВА с заменой КТП на 250 кВА | I110: 1.2 | J110: / | K110: 0.63 | L110: 0 | N110: 0 | O110: 0 | Q110: 0 | R110: 0 | T110: 0 | U110: 0 | W110: 0 | X110: 1.2 | Y110: / | Z110: 0.63 | AA110: 4.112711864 | AB110: 0 | AD110: 0 | AE110: 0 | AG110: 0 | AH110: 0 | AJ110: 0 | AK110: 1.2 | AL110: / | AM110: 0.25 | AN110: 1.2 | AO110: / | AP110: 0.25 | AQ110: 0 | AS110: 0 | AT110: 0 | AV110: 0 | AW110: 0 | AY110: 0 | AZ110: 0 | BB110: 0 | BC110: 1.2 | BD110: / | BE110: 0.25 | BF110: 0 | BG110: 0.6169067797 | BH110: 1.439449153 | BI110: 2.056355932 | BJ110: 4.112711864 | BK110: 0 | BL110: 0 | BM110: 0 | BN110: 0 | BO110: 4.112711864
A111: 89 | B111: Реконструкция ВЛ-0,4кВ от КТП КМ 603/400 кВА с заменой КТП на 250 кВА | I111: 1.1 | J111: / | K111: 0.4 | L111: 0 | N111: 0 | O111: 0 | Q111: 0 | R111: 0 | T111: 0 | U111: 0 | W111: 0 | X111: 1.1 | Y111: / | Z111: 0.4 | AA111: 3.716101695 | AB111: 0 | AD111: 0 | AE111: 0 | AG111: 0 | AH111: 0 | AJ111: 0 | AK111: 1 | AL111: / | AM111: 0.25 | AN111: 1 | AO111: / | AP111: 0.25 | AQ111: 0 | AS111: 0 | AT111: 0 | AV111: 0 | AW111: 0 | AY111: 0 | AZ111: 0 | BB111: 0 | BC111: 1 | BD111: / | BE111: 0.25 | BF111: 0 | BG111: 0.5574152542 | BH111: 1.300635593 | BI111: 1.858050847 | BJ111: 3.716101695 | BK111: 0 | BL111: 0 | BM111: 0 | BN111: 0 | BO111: 3.716101695
A112: 90 | B112: Реконструкция ВЛ-0,4кВ от КТП КМ 810/100 кВА с заменой КТП | I112: 0 | K112: 0 | L112: 0 | M112: / | N112: 0.1 | O112: 0 | Q112: 0 | R112: 0 | T112: 0 | U112: 0 | W112: 0 | X112: 0 | Y112: / | Z112: 0.1 | AA112: 3.2 | AB112: 0 | AD112: 0 | AE112: 0 | AG112: 0 | AH112: 0 | AJ112: 0 | AK112: 0 | AM112: 0 | AN112: 0 | AO112: / | AP112: 0 | AQ112: 0.92 | AR112: / | AS112: 0.1 | AT112: 0 | AV112: 0 | AW112: 0 | AY112: 0 | AZ112: 0 | BB112: 0 | BC112: 0.92 | BD112: / | BE112: 0.1 | BF112: 0 | BG112: 0 | BH112: 0 | BI112: 0 | BJ112: 0 | BK112: 3.2 | BL112: 0 | BM112: 0 | BN112: 0 | BO112: 3.2
A113: 91 | B113: Реконструкция ВЛ-0,4кВ от КТП КМ 811/160 кВА с заменой КТП | I113: 0 | K113: 0 | L113: 0 | M113: / | N113: 0.16 | O113: 0 | Q113: 0 | R113: 0 | T113: 0 | U113: 0 | W113: 0 | X113: 0 | Y113: / | Z113: 0.16 | AA113: 3.2 | AB113: 0 | AD113: 0 | AE113: 0 | AG113: 0 | AH113: 0 | AJ113: 0 | AK113: 0 | AM113: 0 | AN113: 0 | AO113: / | AP113: 0 | AQ113: 0.92 | AR113: / | AS113: 0.16 | AT113: 0 | AV113: 0 | AW113: 0 | AY113: 0 | AZ113: 0 | BB113: 0 | BC113: 0.92 | BD113: / | BE113: 0.16 | BF113: 0 | BG113: 0 | BH113: 0 | BI113: 0 | BJ113: 0 | BK113: 3.2 | BL113: 0 | BM113: 0 | BN113: 0 | BO113: 3.2
A114: 92 | B114: Реконструкция ВЛ-0,4кВ от КТП Елх 713/400 кВА с заменой КТП | I114: 0 | K114: 0 | L114: 0 | N114: 0 | O114: 0.64 | P114: / | Q114: 0.4 | R114: 0 | T114: 0 | U114: 0 | W114: 0 | X114: 0.64 | Y114: / | Z114: 0.4 | AA114: 2.53559322 | AB114: 0 | AD114: 0 | AE114: 0 | AG114: 0 | AH114: 0 | AJ114: 0 | AK114: 0 | AM114: 0 | AN114: 0 | AO114: / | AP114: 0 | AQ114: 0 | AS114: 0 | AT114: 0.64 | AU114: / | AV114: 0.4 | AW114: 0 | AY114: 0 | AZ114: 0 | BB114: 0 | BC114: 0.64 | BD114: / | BE114: 0.4 | BF114: 0 | BG114: 0 | BH114: 0 | BI114: 0 | BJ114: 0 | BK114: 0 | BL114: 2.53559322 | BM114: 0 | BN114: 0 | BO114: 2.53559322
A115: 93 | B115: Реконструкция ВЛ-0,4кВ от КТП Елх 403/160 кВА с заменой КТП | I115: 0 | K115: 0 | L115: 0 | N115: 0 | O115: 0.48 | P115: / | Q115: 0.16 | R115: 0 | T115: 0 | U115: 0 | W115: 0 | X115: 0.48 | Y115: / | Z115: 0.16 | AA115: 2.155932203 | AB115: 0 | AD115: 0 | AE115: 0 | AG115: 0 | AH115: 0 | AJ115: 0 | AK115: 0 | AM115: 0 | AN115: 0 | AO115: / | AP115: 0 | AQ115: 0 | AS115: 0 | AT115: 0.48 | AU115: / | AV115: 0.16 | AW115: 0 | AY115: 0 | AZ115: 0 | BB115: 0 | BC115: 0.48 | BD115: / | BE115: 0.16 | BF115: 0 | BG115: 0 | BH115: 0 | BI115: 0 | BJ115: 0 | BK115: 0 | BL115: 2.155932203 | BM115: 0 | BN115: 0 | BO115: 2.155932203
A116: 94 | B116: Камышлинский район | I116: 0 | K116: 0 | L116: 0 | N116: 0 | O116: 0 | Q116: 0 | R116: 0 | T116: 0 | U116: 0 | W116: 0 | X116: 0 | Y116: / | Z116: 0 | AA116: 0 | AB116: 0 | AD116: 0 | AE116: 0 | AG116: 0 | AH116: 0 | AJ116: 0 | AK116: 0 | AM116: 0 | AN116: 0 | AO116: / | AP116: 0 | AQ116: 0 | AS116: 0 | AT116: 0 | AV116: 0 | AW116: 0 | AY116: 0 | AZ116: 0 | BB116: 0 | BC116: 0 | BD116: / | BE116: 0 | BF116: 0 | BG116: 0 | BH116: 0 | BI116: 0 | BJ116: 0 | BK116: 0 | BL116: 0 | BM116: 0 | BN116: 0 | BO116: 0
A117: 95 | B117: Реконструкция ВЛ-0,4 кВ от КТП КМШ 502/250 кВА с заменой КТП на 400 кВА | I117: 6.6 | J117: / | K117: 0.25 | L117: 0 | N117: 0 | O117: 0 | Q117: 0 | R117: 0 | T117: 0 | U117: 0 | W117: 0 | X117: 6.6 | Y117: / | Z117: 0.25 | AA117: 22.69745763 | AB117: 0 | AD117: 0 | AE117: 0 | AG117: 0 | AH117: 0 | AJ117: 0 | AK117: 6.6 | AL117: / | AM117: 0.4 | AN117: 6.6 | AO117: / | AP117: 0.4 | AQ117: 0 | AS117: 0 | AT117: 0 | AV117: 0 | AW117: 0 | AY117: 0 | AZ117: 0 | BB117: 0 | BC117: 6.6 | BD117: / | BE117: 0.4 | BF117: 0 | BG117: 3.404618644 | BH117: 7.944110169 | BI117: 11.34872881 | BJ117: 22.69745763 | BK117: 0 | BL117: 0 | BM117: 0 | BN117: 0 | BO117: 22.69745763
A118: 96 | B118: Реконструкция ВЛ-6 кВ УС-2 ПС "Байтуган" | I118: 1.4 | J118: / | K118: 0 | L118: 0 | N118: 0 | O118: 0 | Q118: 0 | R118: 0 | T118: 0 | U118: 0 | W118: 0 | X118: 1.4 | Y118: / | Z118: 0 | AA118: 2.615254237 | AB118: 0 | AD118: 0 | AE118: 0 | AG118: 0 | AH118: 0 | AJ118: 0 | AK118: 1.4 | AL118: / | AM118: 0 | AN118: 1.4 | AO118: / | AP118: 0 | AQ118: 0 | AS118: 0 | AT118: 0 | AV118: 0 | AW118: 0 | AY118: 0 | AZ118: 0 | BB118: 0 | BC118: 1.4 | BD118: / | BE118: 0 | BF118: 0 | BG118: 0.3922881356 | BH118: 0.9153389831 | BI118: 1.307627119 | BJ118: 2.615254237 | BK118: 0 | BL118: 0 | BM118: 0 | BN118: 0 | BO118: 2.615254237
A119: 97 | B119: Кинель-Черкасский район | I119: 0 | K119: 0 | L119: 0 | N119: 0 | O119: 0 | Q119: 0 | R119: 0 | T119: 0 | U119: 0 | W119: 0 | X119: 0 | Y119: / | Z119: 0 | AA119: 0 | AB119: 0 | AD119: 0 | AE119: 0 | AG119: 0 | AH119: 0 | AJ119: 0 | AK119: 0 | AM119: 0 | AN119: 0 | AO119: / | AP119: 0 | AQ119: 0 | AS119: 0 | AT119: 0 | AV119: 0 | AW119: 0 | AY119: 0 | AZ119: 0 | BB119: 0 | BC119: 0 | BD119: / | BE119: 0 | BF119: 0 | BG119: 0 | BH119: 0 | BI119: 0 | BJ119: 0 | BK119: 0 | BL119: 0 | BM119: 0 | BN119: 0 | BO119: 0
A120: 98 | B120: Реконструкция ВЛ-0,4 кВ от КТП СИД 311/250 кВА с заменой КТП | I120: 4.06 | J120: / | K120: 0.25 | L120: 0 | N120: 0 | O120: 0 | Q120: 0 | R120: 0 | T120: 0 | U120: 0 | W120: 0 | X120: 4.06 | Y120: / | Z120: 0.25 | AA120: 12.74152542 | AB120: 0 | AD120: 0 | AE120: 0 | AG120: 0 | AH120: 0 | AJ120: 0 | AK120: 4.06 | AL120: / | AM120: 0.25 | AN120: 4.06 | AO120: / | AP120: 0.25 | AQ120: 0 | AS120: 0 | AT120: 0 | AV120: 0 | AW120: 0 | AY120: 0 | AZ120: 0 | BB120: 0 | BC120: 4.06 | BD120: / | BE120: 0.25 | BF120: 0 | BG120: 1.911228814 | BH120: 4.459533898 | BI120: 6.370762712 | BJ120: 12.74152542 | BK120: 0 | BL120: 0 | BM120: 0 | BN120: 0 | BO120: 12.74152542
A121: 99 | B121: Реконструкция ВЛ-6 кВ Кр-9 | I121: 7.52 | J121: / | K121: 0 | L121: 0 | N121: 0 | O121: 0 | Q121: 0 | R121: 0 | T121: 0 | U121: 0 | W121: 0 | X121: 7.52 | Y121: / | Z121: 0 | AA121: 25.68813559 | AB121: 0 | AD121: 0 | AE121: 0 | AG121: 0 | AH121: 0 | AJ121: 0 | AK121: 7.52 | AL121: / | AM121: 0 | AN121: 7.52 | AO121: / | AP121: 0 | AQ121: 0 | AS121: 0 | AT121: 0 | AV121: 0 | AW121: 0 | AY121: 0 | AZ121: 0 | BB121: 0 | BC121: 7.52 | BD121: / | BE121: 0 | BF121: 0 | BG121: 3.853220339 | BH121: 8.990847458 | BI121: 12.8440678 | BJ121: 25.68813559 | BK121: 0 | BL121: 0 | BM121: 0 | BN121: 0 | BO121: 25.68813559
A122: 100 | B122: Реконструкция ВЛ-0,4 кВ от КТП Ч 1710/250 кВА с заменой КТП | I122: 0 | K122: 0 | L122: 2.3 | M122: / | N122: 0.25 | O122: 0 | Q122: 0 | R122: 0 | T122: 0 | U122: 0 | W122: 0 | X122: 2.3 | Y122: / | Z122: 0.25 | AA122: 6.474576271 | AB122: 0 | AD122: 0 | AE122: 0 | AG122: 0 | AH122: 0 | AJ122: 0 | AK122: 0 | AM122: 0 | AN122: 0 | AO122: / | AP122: 0 | AQ122: 2.3 | AR122: / | AS122: 0.25 | AT122: 0 | AV122: 0 | AW122: 0 | AY122: 0 | AZ122: 0 | BB122: 0 | BC122: 2.3 | BD122: / | BE122: 0.25 | BF122: 0 | BG122: 0 | BH122: 0 | BI122: 0 | BJ122: 0 | BK122: 6.474576271 | BL122: 0 | BM122: 0 | BN122: 0 | BO122: 6.474576271
A123: 101 | B123: Реконструкция ВЛ-0,4 кВ от КТП Ч 416/250 кВА | I123: 0 | K123: 0 | L123: 4.32 | M123: / | N123: 0 | O123: 0 | Q123: 0 | R123: 0 | T123: 0 | U123: 0 | W123: 0 | X123: 4.32 | Y123: / | Z123: 0 | AA123: 10.25084746 | AB123: 0 | AD123: 0 | AE123: 0 | AG123: 0 | AH123: 0 | AJ123: 0 | AK123: 0 | AM123: 0 | AN123: 0 | AO123: / | AP123: 0 | AQ123: 4.32 | AR123: / | AS123: 0 | AT123: 0 | AV123: 0 | AW123: 0 | AY123: 0 | AZ123: 0 | BB123: 0 | BC123: 4.32 | BD123: / | BE123: 0 | BF123: 0 | BG123: 0 | BH123: 0 | BI123: 0 | BJ123: 0 | BK123: 10.25084746 | BL123: 0 | BM123: 0 | BN123: 0 | BO123: 10.25084746
A124: 102 | B124: Реконструкция ВЛ-0,4 кВ от ЗТП Кр 907/400 кВА | I124: 0 | K124: 0 | L124: 2.5 | M124: / | N124: 0 | O124: 0 | Q124: 0 | R124: 0 | T124: 0 | U124: 0 | W124: 0 | X124: 2.5 | Y124: / | Z124: 0 | AA124: 5.93220339 | AB124: 0 | AD124: 0 | AE124: 0 | AG124: 0 | AH124: 0 | AJ124: 0 | AK124: 0 | AM124: 0 | AN124: 0 | AO124: / | AP124: 0 | AQ124: 2.5 | AR124: / | AS124: 0 | AT124: 0 | AV124: 0 | AW124: 0 | AY124: 0 | AZ124: 0 | BB124: 0 | BC124: 2.5 | BD124: / | BE124: 0 | BF124: 0 | BG124: 0 | BH124: 0 | BI124: 0 | BJ124: 0 | BK124: 5.93220339 | BL124: 0 | BM124: 0 | BN124: 0 | BO124: 5.93220339
A125: 103 | B125: Реконструкция ВЛ-0,4 кВ от КТП Ку 1309/250 кВА | I125: 0 | K125: 0 | L125: 6 | M125: / | N125: 0 | O125: 0 | Q125: 0 | R125: 0 | T125: 0 | U125: 0 | W125: 0 | X125: 6 | Y125: / | Z125: 0 | AA125: 14.23728814 | AB125: 0 | AD125: 0 | AE125: 0 | AG125: 0 | AH125: 0 | AJ125: 0 | AK125: 0 | AM125: 0 | AN125: 0 | AO125: / | AP125: 0 | AQ125: 6 | AR125: / | AS125: 0 | AT125: 0 | AV125: 0 | AW125: 0 | AY125: 0 | AZ125: 0 | BB125: 0 | BC125: 6 | BD125: / | BE125: 0 | BF125: 0 | BG125: 0 | BH125: 0 | BI125: 0 | BJ125: 0 | BK125: 14.23728814 | BL125: 0 | BM125: 0 | BN125: 0 | BO125: 14.23728814
A126: 104 | B126: Реконструкция ВЛ-0,4кВ от КТП Ку 1316/400кВА с заменой КТП | I126: 0 | K126: 0 | L126: 1.6 | M126: / | N126: 0.4 | O126: 0 | Q126: 0 | R126: 0 | T126: 0 | U126: 0 | W126: 0 | X126: 1.6 | Y126: / | Z126: 0.4 | AA126: 4.813559322 | AB126: 0 | AD126: 0 | AE126: 0 | AG126: 0 | AH126: 0 | AJ126: 0 | AK126: 0 | AM126: 0 | AN126: 0 | AO126: / | AP126: 0 | AQ126: 1.6 | AR126: / | AS126: 0.4 | AT126: 0 | AV126: 0 | AW126: 0 | AY126: 0 | AZ126: 0 | BB126: 0 | BC126: 1.6 | BD126: / | BE126: 0.4 | BF126: 0 | BG126: 0 | BH126: 0 | BI126: 0 | BJ126: 0 | BK126: 4.813559322 | BL126: 0 | BM126: 0 | BN126: 0 | BO126: 4.813559322
A127: 105 | B127: Реконструкция ВЛ-0,4 кВ от ЗТП Ч 1703/400 кВА | I127: 0 | K127: 0 | L127: 0 | N127: 0 | O127: 7.6 | P127: / | Q127: 0 | R127: 0 | T127: 0 | U127: 0 | W127: 0 | X127: 7.6 | Y127: / | Z127: 0 | AA127: 18.03389831 | AB127: 0 | AD127: 0 | AE127: 0 | AG127: 0 | AH127: 0 | AJ127: 0 | AK127: 0 | AM127: 0 | AN127: 0 | AO127: / | AP127: 0 | AQ127: 0 | AS127: 0 | AT127: 7.6 | AU127: / | AV127: 0 | AW127: 0 | AY127: 0 | AZ127: 0 | BB127: 0 | BC127: 7.6 | BD127: / | BE127: 0 | BF127: 0 | BG127: 0 | BH127: 0 | BI127: 0 | BJ127: 0 | BK127: 0 | BL127: 18.03389831 | BM127: 0 | BN127: 0 | BO127: 18.03389831
A128: 106 | B128: Реконструкция ВЛ-0,4 кВ от КТП Ч 417/250 кВА | I128: 0 | K128: 0 | L128: 0 | N128: 0 | O128: 3.4 | P128: / | Q128: 0 | R128: 0 | T128: 0 | U128: 0 | W128: 0 | X128: 3.4 | Y128: / | Z128: 0 | AA128: 8.06779661 | AB128: 0 | AD128: 0 | AE128: 0 | AG128: 0 | AH128: 0 | AJ128: 0 | AK128: 0 | AM128: 0 | AN128: 0 | AO128: / | AP128: 0 | AQ128: 0 | AS128: 0 | AT128: 3.4 | AU128: / | AV128: 0 | AW128: 0 | AY128: 0 | AZ128: 0 | BB128: 0 | BC128: 3.4 | BD128: / | BE128: 0 | BF128: 0 | BG128: 0 | BH128: 0 | BI128: 0 | BJ128: 0 | BK128: 0 | BL128: 8.06779661 | BM128: 0 | BN128: 0 | BO128: 8.06779661
A129: 107 | B129: Реконструкция ВЛ-0,4 кВ от КТП Ку 1312/250 кВА | I129: 0 | K129: 0 | L129: 0 | N129: 0 | O129: 2.5 | P129: / | Q129: 0 | R129: 0 | T129: 0 | U129: 0 | W129: 0 | X129: 2.5 | Y129: / | Z129: 0 | AA129: 5.93220339 | AB129: 0 | AD129: 0 | AE129: 0 | AG129: 0 | AH129: 0 | AJ129: 0 | AK129: 0 | AM129: 0 | AN129: 0 | AO129: / | AP129: 0 | AQ129: 0 | AS129: 0 | AT129: 2.5 | AU129: / | AV129: 0 | AW129: 0 | AY129: 0 | AZ129: 0 | BB129: 0 | BC129: 2.5 | BD129: / | BE129: 0 | BF129: 0 | BG129: 0 | BH129: 0 | BI129: 0 | BJ129: 0 | BK129: 0 | BL129: 5.93220339 | BM129: 0 | BN129: 0 | BO129: 5.93220339
A130: 108 | B130: Реконструкция ВЛ-0,4 кВ от КТП Кр 1906/400 кВА | I130: 0 | K130: 0 | L130: 0 | N130: 0 | O130: 2.5 | P130: / | Q130: 0 | R130: 0 | T130: 0 | U130: 0 | W130: 0 | X130: 2.5 | Y130: / | Z130: 0 | AA130: 5.93220339 | AB130: 0 | AD130: 0 | AE130: 0 | AG130: 0 | AH130: 0 | AJ130: 0 | AK130: 0 | AM130: 0 | AN130: 0 | AO130: / | AP130: 0 | AQ130: 0 | AS130: 0 | AT130: 2.5 | AU130: / | AV130: 0 | AW130: 0 | AY130: 0 | AZ130: 0 | BB130: 0 | BC130: 2.5 | BD130: / | BE130: 0 | BF130: 0 | BG130: 0 | BH130: 0 | BI130: 0 | BJ130: 0 | BK130: 0 | BL130: 5.93220339 | BM130: 0 | BN130: 0 | BO130: 5.93220339
A131: 109 | B131: Реконструкция ВЛ-0,4 кВ от КТП Кр 1914/250 кВА | I131: 0 | K131: 0 | L131: 0 | N131: 0 | O131: 1.6 | P131: / | Q131: 0 | R131: 0 | T131: 0 | U131: 0 | W131: 0 | X131: 1.6 | Y131: / | Z131: 0 | AA131: 3.796610169 | AB131: 0 | AD131: 0 | AE131: 0 | AG131: 0 | AH131: 0 | AJ131: 0 | AK131: 0 | AM131: 0 | AN131: 0 | AO131: / | AP131: 0 | AQ131: 0 | AS131: 0 | AT131: 1.6 | AU131: / | AV131: 0 | AW131: 0 | AY131: 0 | AZ131: 0 | BB131: 0 | BC131: 1.6 | BD131: / | BE131: 0 | BF131: 0 | BG131: 0 | BH131: 0 | BI131: 0 | BJ131: 0 | BK131: 0 | BL131: 3.796610169 | BM131: 0 | BN131: 0 | BO131: 3.796610169
A132: 110 | B132: Реконструкция ВЛ-0,4 кВ от КТП Кр 1909/400 кВА | I132: 0 | K132: 0 | L132: 0 | N132: 0 | O132: 1.6 | P132: / | Q132: 0 | R132: 0 | T132: 0 | U132: 0 | W132: 0 | X132: 1.6 | Y132: / | Z132: 0 | AA132: 3.796610169 | AB132: 0 | AD132: 0 | AE132: 0 | AG132: 0 | AH132: 0 | AJ132: 0 | AK132: 0 | AM132: 0 | AN132: 0 | AO132: / | AP132: 0 | AQ132: 0 | AS132: 0 | AT132: 1.6 | AU132: / | AV132: 0 | AW132: 0 | AY132: 0 | AZ132: 0 | BB132: 0 | BC132: 1.6 | BD132: / | BE132: 0 | BF132: 0 | BG132: 0 | BH132: 0 | BI132: 0 | BJ132: 0 | BK132: 0 | BL132: 3.796610169 | BM132: 0 | BN132: 0 | BO132: 3.796610169
A133: 111 | B133: Реконструкция ВЛ-0,4 кВ от КТП Сид 305/250 кВА | I133: 0 | K133: 0 | L133: 0 | N133: 0 | O133: 0 | Q133: 0 | R133: 3.4 | S133: / | T133: 0 | U133: 0 | W133: 0 | X133: 3.4 | Y133: / | Z133: 0 | AA133: 8.06779661 | AB133: 0 | AD133: 0 | AE133: 0 | AG133: 0 | AH133: 0 | AJ133: 0 | AK133: 0 | AM133: 0 | AN133: 0 | AO133: / | AP133: 0 | AQ133: 0 | AS133: 0 | AT133: 0 | AV133: 0 | AW133: 3.4 | AX133: / | AY133: 0 | AZ133: 0 | BB133: 0 | BC133: 3.4 | BD133: / | BE133: 0 | BF133: 0 | BG133: 0 | BH133: 0 | BI133: 0 | BJ133: 0 | BK133: 0 | BL133: 0 | BM133: 8.06779661 | BN133: 0 | BO133: 8.06779661
A134: 112 | B134: Реконструкция ВЛ-0,4 кВ от КТП Сид 316/160 кВА с заменой КТП | I134: 0 | K134: 0 | L134: 0 | N134: 0 | O134: 0 | Q134: 0 | R134: 1.5 | S134: / | T134: 0 | U134: 0 | W134: 0 | X134: 1.5 | Y134: / | Z134: 0 | AA134: 4.576271186 | AB134: 0 | AD134: 0 | AE134: 0 | AG134: 0 | AH134: 0 | AJ134: 0 | AK134: 0 | AM134: 0 | AN134: 0 | AO134: / | AP134: 0 | AQ134: 0 | AS134: 0 | AT134: 0 | AV134: 0 | AW134: 1.5 | AX134: / | AY134: 0.16 | AZ134: 0 | BB134: 0 | BC134: 1.5 | BD134: / | BE134: 0.16 | BF134: 0 | BG134: 0 | BH134: 0 | BI134: 0 | BJ134: 0 | BK134: 0 | BL134: 0 | BM134: 4.576271186 | BN134: 0 | BO134: 4.576271186
A135: 113 | B135: Реконструкция ВЛ-0,4 кВ от ЗТП Ку 801/250 кВА | I135: 0 | K135: 0 | L135: 0 | N135: 0 | O135: 0 | Q135: 0 | R135: 2 | S135: / | T135: 0 | U135: 0 | W135: 0 | X135: 2 | Y135: / | Z135: 0 | AA135: 4.745762712 | AB135: 0 | AD135: 0 | AE135: 0 | AG135: 0 | AH135: 0 | AJ135: 0 | AK135: 0 | AM135: 0 | AN135: 0 | AO135: / | AP135: 0 | AQ135: 0 | AS135: 0 | AT135: 0 | AV135: 0 | AW135: 2 | AX135: / | AY135: 0 | AZ135: 0 | BB135: 0 | BC135: 2 | BD135: / | BE135: 0 | BF135: 0 | BG135: 0 | BH135: 0 | BI135: 0 | BJ135: 0 | BK135: 0 | BL135: 0 | BM135: 4.745762712 | BN135: 0 | BO135: 4.745762712
A136: 114 | B136: Реконструкция ВЛ-0,4 кВ от ЗТП Ку 802/250 кВА с заменой трансформатора | I136: 0 | K136: 0 | L136: 0 | N136: 0 | O136: 0 | Q136: 0 | R136: 1 | S136: / | T136: 0 | U136: 0 | W136: 0 | X136: 1 | Y136: / | Z136: 0 | AA136: 3.389830508 | AB136: 0 | AD136: 0 | AE136: 0 | AG136: 0 | AH136: 0 | AJ136: 0 | AK136: 0 | AM136: 0 | AN136: 0 | AO136: / | AP136: 0 | AQ136: 0 | AS136: 0 | AT136: 0 | AV136: 0 | AW136: 1 | AX136: / | AY136: 0.25 | AZ136: 0 | BB136: 0 | BC136: 1 | BD136: / | BE136: 0.25 | BF136: 0 | BG136: 0 | BH136: 0 | BI136: 0 | BJ136: 0 | BK136: 0 | BL136: 0 | BM136: 3.389830508 | BN136: 0 | BO136: 3.389830508
A137: 115 | B137: Реконструкция ВЛ-0,4 кВ от ЗТП Ку 803/250 кВА | I137: 0 | K137: 0 | L137: 0 | N137: 0 | O137: 0 | Q137: 0 | R137: 1.2 | S137: / | T137: 0 | U137: 0 | W137: 0 | X137: 1.2 | Y137: / | Z137: 0 | AA137: 2.847457627 | AB137: 0 | AD137: 0 | AE137: 0 | AG137: 0 | AH137: 0 | AJ137: 0 | AK137: 0 | AM137: 0 | AN137: 0 | AO137: / | AP137: 0 | AQ137: 0 | AS137: 0 | AT137: 0 | AV137: 0 | AW137: 1.2 | AX137: / | AY137: 0 | AZ137: 0 | BB137: 0 | BC137: 1.2 | BD137: / | BE137: 0 | BF137: 0 | BG137: 0 | BH137: 0 | BI137: 0 | BJ137: 0 | BK137: 0 | BL137: 0 | BM137: 2.847457627 | BN137: 0 | BO137: 2.847457627
A138: 116 | B138: Реконструкция ВЛ-0,4 кВ от КТП Ку 703/250 кВА с заменой КТП | I138: 0 | K138: 0 | L138: 0 | N138: 0 | O138: 0 | Q138: 0 | R138: 1.2 | S138: / | T138: 0 | U138: 0 | W138: 0 | X138: 1.2 | Y138: / | Z138: 0 | AA138: 3.86440678 | AB138: 0 | AD138: 0 | AE138: 0 | AG138: 0 | AH138: 0 | AJ138: 0 | AK138: 0 | AM138: 0 | AN138: 0 | AO138: / | AP138: 0 | AQ138: 0 | AS138: 0 | AT138: 0 | AV138: 0 | AW138: 1.2 | AX138: / | AY138: 0.25 | AZ138: 0 | BB138: 0 | BC138: 1.2 | BD138: / | BE138: 0.25 | BF138: 0 | BG138: 0 | BH138: 0 | BI138: 0 | BJ138: 0 | BK138: 0 | BL138: 0 | BM138: 3.86440678 | BN138: 0 | BO138: 3.86440678
A139: 117 | B139: Реконструкция ВЛ-0,4 кВ от КТП Ч 112/400 кВА с заменой КТП | I139: 0 | K139: 0 | L139: 0 | N139: 0 | O139: 0 | Q139: 0 | R139: 0 | T139: 0 | U139: 3.6 | V139: / | W139: 0.4 | X139: 3.6 | Y139: / | Z139: 0.4 | AA139: 9.559322034 | AB139: 0 | AD139: 0 | AE139: 0 | AG139: 0 | AH139: 0 | AJ139: 0 | AK139: 0 | AM139: 0 | AN139: 0 | AO139: / | AP139: 0 | AQ139: 0 | AS139: 0 | AT139: 0 | AV139: 0 | AW139: 0 | AY139: 0 | AZ139: 3.6 | BA139: / | BB139: 0.4 | BC139: 3.6 | BD139: / | BE139: 0.4 | BF139: 0 | BG139: 0 | BH139: 0 | BI139: 0 | BJ139: 0 | BK139: 0 | BL139: 0 | BM139: 0 | BN139: 9.559322034 | BO139: 9.559322034
A140: 118 | B140: Реконструкция ВЛ-0,4 кВ от КТП Ч 1701/160 кВА | I140: 0 | K140: 0 | L140: 0 | N140: 0 | O140: 0 | Q140: 0 | R140: 0 | T140: 0 | U140: 2 | V140: / | W140: 0 | X140: 2 | Y140: / | Z140: 0 | AA140: 4.745762712 | AB140: 0 | AD140: 0 | AE140: 0 | AG140: 0 | AH140: 0 | AJ140: 0 | AK140: 0 | AM140: 0 | AN140: 0 | AO140: / | AP140: 0 | AQ140: 0 | AS140: 0 | AT140: 0 | AV140: 0 | AW140: 0 | AY140: 0 | AZ140: 2 | BA140: / | BB140: 0 | BC140: 2 | BD140: / | BE140: 0 | BF140: 0 | BG140: 0 | BH140: 0 | BI140: 0 | BJ140: 0 | BK140: 0 | BL140: 0 | BM140: 0 | BN140: 4.745762712 | BO140: 4.745762712
A141: 119 | B141: Реконструкция ВЛ-0,4 кВ от КТП Ч 303/400 кВА | I141: 0 | K141: 0 | L141: 0 | N141: 0 | O141: 0 | Q141: 0 | R141: 0 | T141: 0 | U141: 2.4 | V141: / | W141: 0 | X141: 2.4 | Y141: / | Z141: 0 | AA141: 5.694915254 | AB141: 0 | AD141: 0 | AE141: 0 | AG141: 0 | AH141: 0 | AJ141: 0 | AK141: 0 | AM141: 0 | AN141: 0 | AO141: / | AP141: 0 | AQ141: 0 | AS141: 0 | AT141: 0 | AV141: 0 | AW141: 0 | AY141: 0 | AZ141: 2.4 | BA141: / | BB141: 0 | BC141: 2.4 | BD141: / | BE141: 0 | BF141: 0 | BG141: 0 | BH141: 0 | BI141: 0 | BJ141: 0 | BK141: 0 | BL141: 0 | BM141: 0 | BN141: 5.694915254 | BO141: 5.694915254
A142: 120 | B142: Реконструкция ВЛ-0,4 кВ от ЗТП Ку 1601/160 кВА с заменой трансформатора на 250 кВА | I142: 0 | K142: 0 | L142: 0 | N142: 0 | O142: 0 | Q142: 0 | R142: 0 | T142: 0 | U142: 1 | V142: / | W142: 0.16 | X142: 1 | Y142: / | Z142: 0.16 | AA142: 3.389830508 | AB142: 0 | AD142: 0 | AE142: 0 | AG142: 0 | AH142: 0 | AJ142: 0 | AK142: 0 | AM142: 0 | AN142: 0 | AO142: / | AP142: 0 | AQ142: 0 | AS142: 0 | AT142: 0 | AV142: 0 | AW142: 0 | AY142: 0 | AZ142: 1 | BA142: / | BB142: 0.25 | BC142: 1 | BD142: / | BE142: 0.25 | BF142: 0 | BG142: 0 | BH142: 0 | BI142: 0 | BJ142: 0 | BK142: 0 | BL142: 0 | BM142: 0 | BN142: 3.389830508 | BO142: 3.389830508
A143: 121 | B143: Реконструкция КЛ-0,4 кВ от ЗТП Ку 1602/2х250 кВА | I143: 0 | K143: 0 | L143: 0 | N143: 0 | O143: 0 | Q143: 0 | R143: 0 | T143: 0 | U143: 0.6 | V143: / | W143: 0 | X143: 0.6 | Y143: / | Z143: 0 | AA143: 2.033898305 | AB143: 0 | AD143: 0 | AE143: 0 | AG143: 0 | AH143: 0 | AJ143: 0 | AK143: 0 | AM143: 0 | AN143: 0 | AO143: / | AP143: 0 | AQ143: 0 | AS143: 0 | AT143: 0 | AV143: 0 | AW143: 0 | AY143: 0 | AZ143: 0.6 | BA143: / | BB143: 0 | BC143: 0.6 | BD143: / | BE143: 0 | BF143: 0 | BG143: 0 | BH143: 0 | BI143: 0 | BJ143: 0 | BK143: 0 | BL143: 0 | BM143: 0 | BN143: 2.033898305 | BO143: 2.033898305
A144: 122 | B144: Реконструкция ВКЛ-0,4 кВ от ЗТП Ку 1603/630 кВА | I144: 0 | K144: 0 | L144: 0 | N144: 0 | O144: 0 | Q144: 0 | R144: 0 | T144: 0 | U144: 2.6 | V144: / | W144: 0 | X144: 2.6 | Y144: / | Z144: 0 | AA144: 6.779661017 | AB144: 0 | AD144: 0 | AE144: 0 | AG144: 0 | AH144: 0 | AJ144: 0 | AK144: 0 | AM144: 0 | AN144: 0 | AO144: / | AP144: 0 | AQ144: 0 | AS144: 0 | AT144: 0 | AV144: 0 | AW144: 0 | AY144: 0 | AZ144: 2.6 | BA144: / | BB144: 0 | BC144: 2.6 | BD144: / | BE144: 0 | BF144: 0 | BG144: 0 | BH144: 0 | BI144: 0 | BJ144: 0 | BK144: 0 | BL144: 0 | BM144: 0 | BN144: 6.779661017 | BO144: 6.779661017
A145: 123 | B145: Кинельский район | I145: 0 | K145: 0 | L145: 0 | N145: 0 | O145: 0 | Q145: 0 | R145: 0 | T145: 0 | U145: 0 | W145: 0 | X145: 0 | Y145: / | Z145: 0 | AA145: 0 | AB145: 0 | AD145: 0 | AE145: 0 | AG145: 0 | AH145: 0 | AJ145: 0 | AK145: 0 | AM145: 0 | AN145: 0 | AO145: / | AP145: 0 | AQ145: 0 | AS145: 0 | AT145: 0 | AV145: 0 | AW145: 0 | AY145: 0 | AZ145: 0 | BB145: 0 | BC145: 0 | BD145: / | BE145: 0 | BF145: 0 | BG145: 0 | BH145: 0 | BI145: 0 | BJ145: 0 | BK145: 0 | BL145: 0 | BM145: 0 | BN145: 0 | BO145: 0
A146: 124 | B146: Реконструкция ВЛ-0,4 кВ от КТП Гр 1610/160 кВА с заменой КТП | I146: 2.03 | J146: / | K146: 0.16 | L146: 0 | N146: 0 | O146: 0 | Q146: 0 | R146: 0 | T146: 0 | U146: 0 | W146: 0 | X146: 2.03 | Y146: / | Z146: 0.16 | AA146: 6.216949153 | AB146: 0 | AD146: 0 | AE146: 0 | AG146: 0 | AH146: 0 | AJ146: 0 | AK146: 2.03 | AL146: / | AM146: 0.16 | AN146: 2.03 | AO146: / | AP146: 0.16 | AQ146: 0 | AS146: 0 | AT146: 0 | AV146: 0 | AW146: 0 | AY146: 0 | AZ146: 0 | BB146: 0 | BC146: 2.03 | BD146: / | BE146: 0.16 | BF146: 0 | BG146: 0.9325423729 | BH146: 2.175932203 | BI146: 3.108474576 | BJ146: 6.216949153 | BK146: 0 | BL146: 0 | BM146: 0 | BN146: 0 | BO146: 6.216949153
A147: 125 | B147: Реконструкция ВЛ-0,4 кВ от КТП Ком 2004/250кВА с заменой КТП | I147: 1.8 | J147: / | K147: 0.25 | L147: 0 | N147: 0 | O147: 0 | Q147: 0 | R147: 0 | T147: 0 | U147: 0 | W147: 0 | X147: 1.8 | Y147: / | Z147: 0.25 | AA147: 6.889830508 | AB147: 0 | AD147: 0 | AE147: 0 | AG147: 0 | AH147: 0 | AJ147: 0 | AK147: 1.8 | AL147: / | AM147: 0.25 | AN147: 1.8 | AO147: / | AP147: 0.25 | AQ147: 0 | AS147: 0 | AT147: 0 | AV147: 0 | AW147: 0 | AY147: 0 | AZ147: 0 | BB147: 0 | BC147: 1.8 | BD147: / | BE147: 0.25 | BF147: 0 | BG147: 1.033474576 | BH147: 2.411440678 | BI147: 3.444915254 | BJ147: 6.889830508 | BK147: 0 | BL147: 0 | BM147: 0 | BN147: 0 | BO147: 6.889830508
A148: 126 | B148: Реконструкция ВЛ-0,4кВ от ЗТП ММ 213/250 кВА | I148: 2.4 | J148: / | K148: 0 | L148: 0 | N148: 0 | O148: 0 | Q148: 0 | R148: 0 | T148: 0 | U148: 0 | W148: 0 | X148: 2.4 | Y148: / | Z148: 0 | AA148: 7.357627119 | AB148: 0 | AD148: 0 | AE148: 0 | AG148: 0 | AH148: 0 | AJ148: 0 | AK148: 2.4 | AL148: / | AM148: 0 | AN148: 2.4 | AO148: / | AP148: 0 | AQ148: 0 | AS148: 0 | AT148: 0 | AV148: 0 | AW148: 0 | AY148: 0 | AZ148: 0 | BB148: 0 | BC148: 2.4 | BD148: / | BE148: 0 | BF148: 0 | BG148: 1.103644068 | BH148: 2.575169492 | BI148: 3.678813559 | BJ148: 7.357627119 | BK148: 0 | BL148: 0 | BM148: 0 | BN148: 0 | BO148: 7.357627119
A149: 127 | B149: Реконструкция ВЛ-0,4 кВ от КТП ММ 612/400кВА с заменой КТП | I149: 1.48 | J149: / | K149: 0.4 | L149: 0 | N149: 0 | O149: 0 | Q149: 0 | R149: 0 | T149: 0 | U149: 0 | W149: 0 | X149: 1.48 | Y149: / | Z149: 0.4 | AA149: 5.130508475 | AB149: 0 | AD149: 0 | AE149: 0 | AG149: 0 | AH149: 0 | AJ149: 0 | AK149: 1.48 | AL149: / | AM149: 0.4 | AN149: 1.48 | AO149: / | AP149: 0.4 | AQ149: 0 | AS149: 0 | AT149: 0 | AV149: 0 | AW149: 0 | AY149: 0 | AZ149: 0 | BB149: 0 | BC149: 1.48 | BD149: / | BE149: 0.4 | BF149: 0 | BG149: 0.7695762712 | BH149: 1.795677966 | BI149: 2.565254237 | BJ149: 5.130508475 | BK149: 0 | BL149: 0 | BM149: 0 | BN149: 0 | BO149: 5.130508475
A150: 128 | B150: Реконструкция ВЛ-0,4 кВ от КТП Алк 54/250 кВА с заменой на КТП 400 кВА | I150: 0 | K150: 0 | L150: 1.8 | M150: / | N150: 0.25 | O150: 0 | Q150: 0 | R150: 0 | T150: 0 | U150: 0 | W150: 0 | X150: 1.8 | Y150: / | Z150: 0.25 | AA150: 5.288135593 | AB150: 0 | AD150: 0 | AE150: 0 | AG150: 0 | AH150: 0 | AJ150: 0 | AK150: 0 | AM150: 0 | AN150: 0 | AO150: / | AP150: 0 | AQ150: 1.8 | AR150: / | AS150: 0.4 | AT150: 0 | AV150: 0 | AW150: 0 | AY150: 0 | AZ150: 0 | BB150: 0 | BC150: 1.8 | BD150: / | BE150: 0.4 | BF150: 0 | BG150: 0 | BH150: 0 | BI150: 0 | BJ150: 0 | BK150: 5.288135593 | BL150: 0 | BM150: 0 | BN150: 0 | BO150: 5.288135593
A151: 129 | B151: Реконструкция ВЛ-0,4 кВ от КТП Алк 30/160 кВА с заменой на КТП 250 кВА | I151: 0 | K151: 0 | L151: 1.45 | M151: / | N151: 0.16 | O151: 0 | Q151: 0 | R151: 0 | T151: 0 | U151: 0 | W151: 0 | X151: 1.45 | Y151: / | Z151: 0.16 | AA151: 4.457627119 | AB151: 0 | AD151: 0 | AE151: 0 | AG151: 0 | AH151: 0 | AJ151: 0 | AK151: 0 | AM151: 0 | AN151: 0 | AO151: / | AP151: 0 | AQ151: 1.45 | AR151: / | AS151: 0.25 | AT151: 0 | AV151: 0 | AW151: 0 | AY151: 0 | AZ151: 0 | BB151: 0 | BC151: 1.45 | BD151: / | BE151: 0.25 | BF151: 0 | BG151: 0 | BH151: 0 | BI151: 0 | BJ151: 0 | BK151: 4.457627119 | BL151: 0 | BM151: 0 | BN151: 0 | BO151: 4.457627119
A152: 130 | B152: Реконструкция ВЛ-0,4кВ от КТП Шев 208/250 кВА | I152: 0 | K152: 0 | L152: 2.22 | M152: / | N152: 0 | O152: 0 | Q152: 0 | R152: 0 | T152: 0 | U152: 0 | W152: 0 | X152: 2.22 | Y152: / | Z152: 0 | AA152: 5.26779661 | AB152: 0 | AD152: 0 | AE152: 0 | AG152: 0 | AH152: 0 | AJ152: 0 | AK152: 0 | AM152: 0 | AN152: 0 | AO152: / | AP152: 0 | AQ152: 2.22 | AR152: / | AS152: 0 | AT152: 0 | AV152: 0 | AW152: 0 | AY152: 0 | AZ152: 0 | BB152: 0 | BC152: 2.22 | BD152: / | BE152: 0 | BF152: 0 | BG152: 0 | BH152: 0 | BI152: 0 | BJ152: 0 | BK152: 5.26779661 | BL152: 0 | BM152: 0 | BN152: 0 | BO152: 5.26779661
A153: 131 | B153: Реконструкция ВЛ-0,4кВ от МТП Кр 903/100 кВА с заменой КТП | I153: 0 | K153: 0 | L153: 0 | N153: 0 | O153: 1.25 | P153: / | Q153: 0.1 | R153: 0 | T153: 0 | U153: 0 | W153: 0 | X153: 1.25 | Y153: / | Z153: 0.1 | AA153: 3.983050847 | AB153: 0 | AD153: 0 | AE153: 0 | AG153: 0 | AH153: 0 | AJ153: 0 | AK153: 0 | AM153: 0 | AN153: 0 | AO153: / | AP153: 0 | AQ153: 0 | AS153: 0 | AT153: 1.25 | AU153: / | AV153: 0.1 | AW153: 0 | AY153: 0 | AZ153: 0 | BB153: 0 | BC153: 1.25 | BD153: / | BE153: 0.1 | BF153: 0 | BG153: 0 | BH153: 0 | BI153: 0 | BJ153: 0 | BK153: 0 | BL153: 3.983050847 | BM153: 0 | BN153: 0 | BO153: 3.983050847
A154: 132 | B154: Реконструкция ВЛ-0,4кВ от МТП 704/250 кВА с заменой КТП | I154: 0 | K154: 0 | L154: 0 | N154: 0 | O154: 1 | P154: / | Q154: 0.25 | R154: 0 | T154: 0 | U154: 0 | W154: 0 | X154: 1 | Y154: / | Z154: 0.25 | AA154: 3.389830508 | AB154: 0 | AD154: 0 | AE154: 0 | AG154: 0 | AH154: 0 | AJ154: 0 | AK154: 0 | AM154: 0 | AN154: 0 | AO154: / | AP154: 0 | AQ154: 0 | AS154: 0 | AT154: 1 | AU154: / | AV154: 0.25 | AW154: 0 | AY154: 0 | AZ154: 0 | BB154: 0 | BC154: 1 | BD154: / | BE154: 0.25 | BF154: 0 | BG154: 0 | BH154: 0 | BI154: 0 | BJ154: 0 | BK154: 0 | BL154: 3.389830508 | BM154: 0 | BN154: 0 | BO154: 3.389830508
A155: 133 | B155: Реконструкция ВЛ-0,4кВ от КТП 210/160 кВА | I155: 0 | K155: 0 | L155: 0 | N155: 0 | O155: 1.45 | P155: / | Q155: 0 | R155: 0 | T155: 0 | U155: 0 | W155: 0 | X155: 1.45 | Y155: / | Z155: 0 | AA155: 3.440677966 | AB155: 0 | AD155: 0 | AE155: 0 | AG155: 0 | AH155: 0 | AJ155: 0 | AK155: 0 | AM155: 0 | AN155: 0 | AO155: / | AP155: 0 | AQ155: 0 | AS155: 0 | AT155: 1.45 | AU155: / | AV155: 0 | AW155: 0 | AY155: 0 | AZ155: 0 | BB155: 0 | BC155: 1.45 | BD155: / | BE155: 0 | BF155: 0 | BG155: 0 | BH155: 0 | BI155: 0 | BJ155: 0 | BK155: 0 | BL155: 3.440677966 | BM155: 0 | BN155: 0 | BO155: 3.440677966
A156: 134 | B156: Реконструкция ВЛ-0,4 кВ от КТП Алк 90/160 кВА с заменой КТП | I156: 0 | K156: 0 | L156: 0 | N156: 0 | O156: 0 | Q156: 0 | R156: 1 | S156: / | T156: 0.16 | U156: 0 | W156: 0 | X156: 1 | Y156: / | Z156: 0.16 | AA156: 3.389830508 | AB156: 0 | AD156: 0 | AE156: 0 | AG156: 0 | AH156: 0 | AJ156: 0 | AK156: 0 | AM156: 0 | AN156: 0 | AO156: / | AP156: 0 | AQ156: 0 | AS156: 0 | AT156: 0 | AV156: 0 | AW156: 1 | AX156: / | AY156: 0.16 | AZ156: 0 | BB156: 0 | BC156: 1 | BD156: / | BE156: 0.16 | BF156: 0 | BG156: 0 | BH156: 0 | BI156: 0 | BJ156: 0 | BK156: 0 | BL156: 0 | BM156: 3.389830508 | BN156: 0 | BO156: 3.389830508
A157: 135 | B157: Реконструкция ВЛ-0,4 кВ от КТП Алк 91/160 кВА с заменой КТП | I157: 0 | K157: 0 | L157: 0 | N157: 0 | O157: 0 | Q157: 0 | R157: 0.65 | S157: / | T157: 0.16 | U157: 0 | W157: 0 | X157: 0.65 | Y157: / | Z157: 0.16 | AA157: 2.559322034 | AB157: 0 | AD157: 0 | AE157: 0 | AG157: 0 | AH157: 0 | AJ157: 0 | AK157: 0 | AM157: 0 | AN157: 0 | AO157: / | AP157: 0 | AQ157: 0 | AS157: 0 | AT157: 0 | AV157: 0 | AW157: 0.65 | AX157: / | AY157: 0.16 | AZ157: 0 | BB157: 0 | BC157: 0.65 | BD157: / | BE157: 0.16 | BF157: 0 | BG157: 0 | BH157: 0 | BI157: 0 | BJ157: 0 | BK157: 0 | BL157: 0 | BM157: 2.559322034 | BN157: 0 | BO157: 2.559322034
A158: 136 | B158: Реконструкция ВЛ-0,4 кВ от ЗТП Ком 2007/400 кВА | I158: 0 | K158: 0 | L158: 0 | N158: 0 | O158: 0 | Q158: 0 | R158: 2 | S158: / | T158: 0 | U158: 0 | W158: 0 | X158: 2 | Y158: / | Z158: 0 | AA158: 4.745762712 | AB158: 0 | AD158: 0 | AE158: 0 | AG158: 0 | AH158: 0 | AJ158: 0 | AK158: 0 | AM158: 0 | AN158: 0 | AO158: / | AP158: 0 | AQ158: 0 | AS158: 0 | AT158: 0 | AV158: 0 | AW158: 2 | AX158: / | AY158: 0 | AZ158: 0 | BB158: 0 | BC158: 2 | BD158: / | BE158: 0 | BF158: 0 | BG158: 0 | BH158: 0 | BI158: 0 | BJ158: 0 | BK158: 0 | BL158: 0 | BM158: 4.745762712 | BN158: 0 | BO158: 4.745762712
A159: 137 | B159: Реконструкция ВЛ-0,4 кВ от КТП Тур 717/160 кВА с заменой КТП | I159: 0 | K159: 0 | L159: 0 | N159: 0 | O159: 0 | Q159: 0 | R159: 0 | T159: 0 | U159: 0.86 | V159: / | W159: 0.16 | X159: 0.86 | Y159: / | Z159: 0.16 | AA159: 3.057627119 | AB159: 0 | AD159: 0 | AE159: 0 | AG159: 0 | AH159: 0 | AJ159: 0 | AK159: 0 | AM159: 0 | AN159: 0 | AO159: / | AP159: 0 | AQ159: 0 | AS159: 0 | AT159: 0 | AV159: 0 | AW159: 0 | AY159: 0 | AZ159: 0.86 | BA159: / | BB159: 0.16 | BC159: 0.86 | BD159: / | BE159: 0.16 | BF159: 0 | BG159: 0 | BH159: 0 | BI159: 0 | BJ159: 0 | BK159: 0 | BL159: 0 | BM159: 0 | BN159: 3.057627119 | BO159: 3.057627119
A160: 138 | B160: Клявлинский район | I160: 0 | K160: 0 | L160: 0 | N160: 0 | O160: 0 | Q160: 0 | R160: 0 | T160: 0 | U160: 0 | W160: 0 | X160: 0 | Y160: / | Z160: 0 | AA160: 0 | AB160: 0 | AD160: 0 | AE160: 0 | AG160: 0 | AH160: 0 | AJ160: 0 | AK160: 0 | AM160: 0 | AN160: 0 | AO160: / | AP160: 0 | AQ160: 0 | AS160: 0 | AT160: 0 | AV160: 0 | AW160: 0 | AY160: 0 | AZ160: 0 | BB160: 0 | BC160: 0 | BD160: / | BE160: 0 | BF160: 0 | BG160: 0 | BH160: 0 | BI160: 0 | BJ160: 0 | BK160: 0 | BL160: 0 | BM160: 0 | BN160: 0 | BO160: 0
A161: 139 | B161: Реконструкция ВЛ-10 кВ Ф-17 КЛВ | I161: 0.4 | J161: / | K161: 0 | L161: 0 | N161: 0 | O161: 0 | Q161: 0 | R161: 0 | T161: 0 | U161: 0 | W161: 0 | X161: 0.4 | Y161: / | Z161: 0 | AA161: 1.640677966 | AB161: 0 | AD161: 0 | AE161: 0 | AG161: 0 | AH161: 0 | AJ161: 0 | AK161: 0.4 | AL161: / | AM161: 0 | AN161: 0.4 | AO161: / | AP161: 0 | AQ161: 0 | AS161: 0 | AT161: 0 | AV161: 0 | AW161: 0 | AY161: 0 | AZ161: 0 | BB161: 0 | BC161: 0.4 | BD161: / | BE161: 0 | BF161: 0 | BG161: 0.2461016949 | BH161: 0.5742372881 | BI161: 0.8203389831 | BJ161: 1.640677966 | BK161: 0 | BL161: 0 | BM161: 0 | BN161: 0 | BO161: 1.640677966
A162: 140 | B162: Реконструкция КЛ-6 кВ ЕЛЗ-4 | I162: 0.9 | J162: / | K162: 0 | L162: 0 | N162: 0 | O162: 0 | Q162: 0 | R162: 0 | T162: 0 | U162: 0 | W162: 0 | X162: 0.9 | Y162: / | Z162: 0 | AA162: 4.233050847 | AB162: 0 | AD162: 0 | AE162: 0 | AG162: 0 | AH162: 0 | AJ162: 0 | AK162: 1.04 | AL162: / | AM162: 0 | AN162: 1.04 | AO162: / | AP162: 0 | AQ162: 0 | AS162: 0 | AT162: 0 | AV162: 0 | AW162: 0 | AY162: 0 | AZ162: 0 | BB162: 0 | BC162: 1.04 | BD162: / | BE162: 0 | BF162: 0 | BG162: 0.6349576271 | BH162: 1.481567797 | BI162: 2.116525424 | BJ162: 4.233050847 | BK162: 0 | BL162: 0 | BM162: 0 | BN162: 0 | BO162: 4.233050847
A163: 141 | B163: Реконструкция ВЛ-0,4кВ от КТП КЛВ 418/250кВА с заменой КТП и установкой дополнительной КТП 250кВА для перераспределения нагрузки | I163: 3.56 | J163: / | K163: 0.25 | L163: 0 | N163: 0 | O163: 0 | Q163: 0 | R163: 0 | T163: 0 | U163: 0 | W163: 0 | X163: 3.56 | Y163: / | Z163: 0.25 | AA163: 12.26271186 | AB163: 0 | AD163: 0 | AE163: 0 | AG163: 0 | AH163: 0 | AJ163: 0 | AK163: 3.56 | AL163: / | AM163: 0.5 | AN163: 3.56 | AO163: / | AP163: 0.5 | AQ163: 0 | AS163: 0 | AT163: 0 | AV163: 0 | AW163: 0 | AY163: 0 | AZ163: 0 | BB163: 0 | BC163: 3.56 | BD163: / | BE163: 0.5 | BF163: 0 | BG163: 1.83940678 | BH163: 4.291949153 | BI163: 6.131355932 | BJ163: 12.26271186 | BK163: 0 | BL163: 0 | BM163: 0 | BN163: 0 | BO163: 12.26271186
A164: 142 | B164: Реконструкция ВЛ-0,4кВ от КТП КЛВ 1206/400 кВА с заменой КТП и установкой дополнительной КТП 250 кВА для перераспределения нагрузки | I164: 0 | K164: 0 | L164: 1.3 | M164: / | N164: 0.4 | O164: 0 | Q164: 0 | R164: 0 | T164: 0 | U164: 0 | W164: 0 | X164: 1.3 | Y164: / | Z164: 0.4 | AA164: 5.118644068 | AB164: 0 | AD164: 0 | AE164: 0 | AG164: 0 | AH164: 0 | AJ164: 0 | AK164: 0 | AM164: 0 | AN164: 0 | AO164: / | AP164: 0 | AQ164: 1.3 | AR164: / | AS164: 0.65 | AT164: 0 | AV164: 0 | AW164: 0 | AY164: 0 | AZ164: 0 | BB164: 0 | BC164: 1.3 | BD164: / | BE164: 0.65 | BF164: 0 | BG164: 0 | BH164: 0 | BI164: 0 | BJ164: 0 | BK164: 5.118644068 | BL164: 0 | BM164: 0 | BN164: 0 | BO164: 5.118644068
A165: 143 | B165: Реконструкция ВЛ-0,4кВ от КТП КЛВ1208/160 кВА с переключением на КТП КЛВ 1206/400 кВА | I165: 0 | K165: 0 | L165: 0.95 | M165: / | N165: 0 | O165: 0 | Q165: 0 | R165: 0 | T165: 0 | U165: 0 | W165: 0 | X165: 0.95 | Y165: / | Z165: 0 | AA165: 2.254237288 | AB165: 0 | AD165: 0 | AE165: 0 | AG165: 0 | AH165: 0 | AJ165: 0 | AK165: 0 | AM165: 0 | AN165: 0 | AO165: / | AP165: 0 | AQ165: 0.95 | AR165: / | AS165: 0 | AT165: 0 | AV165: 0 | AW165: 0 | AY165: 0 | AZ165: 0 | BB165: 0 | BC165: 0.95 | BD165: / | BE165: 0 | BF165: 0 | BG165: 0 | BH165: 0 | BI165: 0 | BJ165: 0 | BK165: 2.254237288 | BL165: 0 | BM165: 0 | BN165: 0 | BO165: 2.254237288
A166: 144 | B166: Реконструкция ВЛ-0,4кВ от КТП КЛВ 1209/250 кВА с заменой КТП | I166: 0 | K166: 0 | L166: 2.1 | M166: / | N166: 0.25 | O166: 0 | Q166: 0 | R166: 0 | T166: 0 | U166: 0 | W166: 0 | X166: 2.1 | Y166: / | Z166: 0.25 | AA166: 6 | AB166: 0 | AD166: 0 | AE166: 0 | AG166: 0 | AH166: 0 | AJ166: 0 | AK166: 0 | AM166: 0 | AN166: 0 | AO166: / | AP166: 0 | AQ166: 2.1 | AR166: / | AS166: 0.25 | AT166: 0 | AV166: 0 | AW166: 0 | AY166: 0 | AZ166: 0 | BB166: 0 | BC166: 2.1 | BD166: / | BE166: 0.25 | BF166: 0 | BG166: 0 | BH166: 0 | BI166: 0 | BJ166: 0 | BK166: 6 | BL166: 0 | BM166: 0 | BN166: 0 | BO166: 6
A167: 145 | B167: Реконструкция ВЛ-0,4кВ от КТП КЛВ 1207/250 кВА | I167: 0 | K167: 0 | L167: 1.5 | M167: / | N167: 0 | O167: 0 | Q167: 0 | R167: 0 | T167: 0 | U167: 0 | W167: 0 | X167: 1.5 | Y167: / | Z167: 0 | AA167: 3.559322034 | AB167: 0 | AD167: 0 | AE167: 0 | AG167: 0 | AH167: 0 | AJ167: 0 | AK167: 0 | AM167: 0 | AN167: 0 | AO167: / | AP167: 0 | AQ167: 1.5 | AR167: / | AS167: 0 | AT167: 0 | AV167: 0 | AW167: 0 | AY167: 0 | AZ167: 0 | BB167: 0 | BC167: 1.5 | BD167: / | BE167: 0 | BF167: 0 | BG167: 0 | BH167: 0 | BI167: 0 | BJ167: 0 | BK167: 3.559322034 | BL167: 0 | BM167: 0 | BN167: 0 | BO167: 3.559322034
A168: 146 | B168: Реконструкция ВЛ-0,4кВ от КТП 416/100 кВА с заменой КТП | I168: 0 | K168: 0 | L168: 2.1 | M168: / | N168: 0.1 | O168: 0 | Q168: 0 | R168: 0 | T168: 0 | U168: 0 | W168: 0 | X168: 2.1 | Y168: / | Z168: 0.1 | AA168: 6 | AB168: 0 | AD168: 0 | AE168: 0 | AG168: 0 | AH168: 0 | AJ168: 0 | AK168: 0 | AM168: 0 | AN168: 0 | AO168: / | AP168: 0 | AQ168: 2.1 | AR168: / | AS168: 0.1 | AT168: 0 | AV168: 0 | AW168: 0 | AY168: 0 | AZ168: 0 | BB168: 0 | BC168: 2.1 | BD168: / | BE168: 0.1 | BF168: 0 | BG168: 0 | BH168: 0 | BI168: 0 | BJ168: 0 | BK168: 6 | BL168: 0 | BM168: 0 | BN168: 0 | BO168: 6
A169: 147 | B169: Реконструкция ВЛ-0,4кВ от КТП КЛВ 421/160 кВА с заменой КТП | I169: 0 | K169: 0 | L169: 0 | N169: 0 | O169: 3.1 | P169: / | Q169: 0.16 | R169: 0 | T169: 0 | U169: 0 | W169: 0 | X169: 3.1 | Y169: / | Z169: 0.16 | AA169: 8.372881356 | AB169: 0 | AD169: 0 | AE169: 0 | AG169: 0 | AH169: 0 | AJ169: 0 | AK169: 0 | AM169: 0 | AN169: 0 | AO169: / | AP169: 0 | AQ169: 0 | AS169: 0 | AT169: 3.1 | AU169: / | AV169: 0.16 | AW169: 0 | AY169: 0 | AZ169: 0 | BB169: 0 | BC169: 3.1 | BD169: / | BE169: 0.16 | BF169: 0 | BG169: 0 | BH169: 0 | BI169: 0 | BJ169: 0 | BK169: 0 | BL169: 8.372881356 | BM169: 0 | BN169: 0 | BO169: 8.372881356
A170: 148 | B170: Реконструкция ВЛ-0,4кВ от КТП КЛВ 1404/160 кВА с заменой КТП | I170: 0 | K170: 0 | L170: 0 | N170: 0 | O170: 3.1 | P170: / | Q170: 0.16 | R170: 0 | T170: 0 | U170: 0 | W170: 0 | X170: 3.1 | Y170: / | Z170: 0.16 | AA170: 8.372881356 | AB170: 0 | AD170: 0 | AE170: 0 | AG170: 0 | AH170: 0 | AJ170: 0 | AK170: 0 | AM170: 0 | AN170: 0 | AO170: / | AP170: 0 | AQ170: 0 | AS170: 0 | AT170: 3.1 | AU170: / | AV170: 0.16 | AW170: 0 | AY170: 0 | AZ170: 0 | BB170: 0 | BC170: 3.1 | BD170: / | BE170: 0.16 | BF170: 0 | BG170: 0 | BH170: 0 | BI170: 0 | BJ170: 0 | BK170: 0 | BL170: 8.372881356 | BM170: 0 | BN170: 0 | BO170: 8.372881356
A171: 149 | B171: Реконструкция ВЛ-0,4кВ от КТП КЛВ 1412/100 кВА | I171: 0 | K171: 0 | L171: 0 | N171: 0 | O171: 1.78 | P171: / | Q171: 0 | R171: 0 | T171: 0 | U171: 0 | W171: 0 | X171: 1.78 | Y171: / | Z171: 0 | AA171: 4.223728814 | AB171: 0 | AD171: 0 | AE171: 0 | AG171: 0 | AH171: 0 | AJ171: 0 | AK171: 0 | AM171: 0 | AN171: 0 | AO171: / | AP171: 0 | AQ171: 0 | AS171: 0 | AT171: 1.78 | AU171: / | AV171: 0 | AW171: 0 | AY171: 0 | AZ171: 0 | BB171: 0 | BC171: 1.78 | BD171: / | BE171: 0 | BF171: 0 | BG171: 0 | BH171: 0 | BI171: 0 | BJ171: 0 | BK171: 0 | BL171: 4.223728814 | BM171: 0 | BN171: 0 | BO171: 4.223728814
A172: 150 | B172: Реконструкция ВЛ-0,4кВ от КТП КЛВ 1411/160 кВА | I172: 0 | K172: 0 | L172: 0 | N172: 0 | O172: 2.1 | P172: / | Q172: 0 | R172: 0 | T172: 0 | U172: 0 | W172: 0 | X172: 2.1 | Y172: / | Z172: 0 | AA172: 4.983050847 | AB172: 0 | AD172: 0 | AE172: 0 | AG172: 0 | AH172: 0 | AJ172: 0 | AK172: 0 | AM172: 0 | AN172: 0 | AO172: / | AP172: 0 | AQ172: 0 | AS172: 0 | AT172: 2.1 | AU172: / | AV172: 0 | AW172: 0 | AY172: 0 | AZ172: 0 | BB172: 0 | BC172: 2.1 | BD172: / | BE172: 0 | BF172: 0 | BG172: 0 | BH172: 0 | BI172: 0 | BJ172: 0 | BK172: 0 | BL172: 4.983050847 | BM172: 0 | BN172: 0 | BO172: 4.983050847
A173: 151 | B173: Реконструкция ВЛ-0,4кВ от КТП ЕЛЗ 401/100 кВА | I173: 0 | K173: 0 | L173: 0 | N173: 0 | O173: 0.5 | P173: / | Q173: 0 | R173: 0 | T173: 0 | U173: 0 | W173: 0 | X173: 0.5 | Y173: / | Z173: 0 | AA173: 1.186440678 | AB173: 0 | AD173: 0 | AE173: 0 | AG173: 0 | AH173: 0 | AJ173: 0 | AK173: 0 | AM173: 0 | AN173: 0 | AO173: / | AP173: 0 | AQ173: 0 | AS173: 0 | AT173: 0.5 | AU173: / | AV173: 0 | AW173: 0 | AY173: 0 | AZ173: 0 | BB173: 0 | BC173: 0.5 | BD173: / | BE173: 0 | BF173: 0 | BG173: 0 | BH173: 0 | BI173: 0 | BJ173: 0 | BK173: 0 | BL173: 1.186440678 | BM173: 0 | BN173: 0 | BO173: 1.186440678
A174: 152 | B174: Реконструкция ВЛ-0,4кВ от КТП КЛВ1407/250 кВА с заменой КТП | I174: 0 | K174: 0 | L174: 0 | N174: 0 | O174: 0 | Q174: 0 | R174: 1.07 | S174: / | T174: 0.25 | U174: 0 | W174: 0 | X174: 1.07 | Y174: / | Z174: 0.25 | AA174: 3.555932203 | AB174: 0 | AD174: 0 | AE174: 0 | AG174: 0 | AH174: 0 | AJ174: 0 | AK174: 0 | AM174: 0 | AN174: 0 | AO174: / | AP174: 0 | AQ174: 0 | AS174: 0 | AT174: 0 | AV174: 0 | AW174: 1.07 | AX174: / | AY174: 0.25 | AZ174: 0 | BB174: 0 | BC174: 1.07 | BD174: / | BE174: 0.25 | BF174: 0 | BG174: 0 | BH174: 0 | BI174: 0 | BJ174: 0 | BK174: 0 | BL174: 0 | BM174: 3.555932203 | BN174: 0 | BO174: 3.555932203
A175: 153 | B175: Реконструкция ВЛ-0,4кВ от КТП КЛВ422/160 кВА с заменой КТП | I175: 0 | K175: 0 | L175: 0 | N175: 0 | O175: 0 | Q175: 0 | R175: 1.6 | S175: / | T175: 0.16 | U175: 0 | W175: 0 | X175: 1.6 | Y175: / | Z175: 0.16 | AA175: 4.813559322 | AB175: 0 | AD175: 0 | AE175: 0 | AG175: 0 | AH175: 0 | AJ175: 0 | AK175: 0 | AM175: 0 | AN175: 0 | AO175: / | AP175: 0 | AQ175: 0 | AS175: 0 | AT175: 0 | AV175: 0 | AW175: 1.6 | AX175: / | AY175: 0.16 | AZ175: 0 | BB175: 0 | BC175: 1.6 | BD175: / | BE175: 0.16 | BF175: 0 | BG175: 0 | BH175: 0 | BI175: 0 | BJ175: 0 | BK175: 0 | BL175: 0 | BM175: 4.813559322 | BN175: 0 | BO175: 4.813559322
A176: 154 | B176: Реконструкция ВЛ-0,4кВ от КТП КЛВ1408/160 кВА с заменой КТП | I176: 0 | K176: 0 | L176: 0 | N176: 0 | O176: 0 | Q176: 0 | R176: 2.3 | S176: / | T176: 0.16 | U176: 0 | W176: 0 | X176: 2.3 | Y176: / | Z176: 0.16 | AA176: 6.474576271 | AB176: 0 | AD176: 0 | AE176: 0 | AG176: 0 | AH176: 0 | AJ176: 0 | AK176: 0 | AM176: 0 | AN176: 0 | AO176: / | AP176: 0 | AQ176: 0 | AS176: 0 | AT176: 0 | AV176: 0 | AW176: 2.3 | AX176: / | AY176: 0.16 | AZ176: 0 | BB176: 0 | BC176: 2.3 | BD176: / | BE176: 0.16 | BF176: 0 | BG176: 0 | BH176: 0 | BI176: 0 | BJ176: 0 | BK176: 0 | BL176: 0 | BM176: 6.474576271 | BN176: 0 | BO176: 6.474576271
A177: 155 | B177: Реконструкция ВЛ-0,4кВ от КТП КЛВ1017/400 кВА с заменой КТП | I177: 0 | K177: 0 | L177: 0 | N177: 0 | O177: 0 | Q177: 0 | R177: 1.1 | S177: / | T177: 0.4 | U177: 0 | W177: 0 | X177: 1.1 | Y177: / | Z177: 0.4 | AA177: 3.627118644 | AB177: 0 | AD177: 0 | AE177: 0 | AG177: 0 | AH177: 0 | AJ177: 0 | AK177: 0 | AM177: 0 | AN177: 0 | AO177: / | AP177: 0 | AQ177: 0 | AS177: 0 | AT177: 0 | AV177: 0 | AW177: 1.1 | AX177: / | AY177: 0.4 | AZ177: 0 | BB177: 0 | BC177: 1.1 | BD177: / | BE177: 0.4 | BF177: 0 | BG177: 0 | BH177: 0 | BI177: 0 | BJ177: 0 | BK177: 0 | BL177: 0 | BM177: 3.627118644 | BN177: 0 | BO177: 3.627118644
A178: 156 | B178: Реконструкция ВЛ-0,4кВ от КТП КЛВ1027/160 кВА с заменой КТП | I178: 0 | K178: 0 | L178: 0 | N178: 0 | O178: 0 | Q178: 0 | R178: 0.81 | S178: / | T178: 0.16 | U178: 0 | W178: 0 | X178: 0.81 | Y178: / | Z178: 0.16 | AA178: 2.938983051 | AB178: 0 | AD178: 0 | AE178: 0 | AG178: 0 | AH178: 0 | AJ178: 0 | AK178: 0 | AM178: 0 | AN178: 0 | AO178: / | AP178: 0 | AQ178: 0 | AS178: 0 | AT178: 0 | AV178: 0 | AW178: 0.81 | AX178: / | AY178: 0.16 | AZ178: 0 | BB178: 0 | BC178: 0.81 | BD178: / | BE178: 0.16 | BF178: 0 | BG178: 0 | BH178: 0 | BI178: 0 | BJ178: 0 | BK178: 0 | BL178: 0 | BM178: 2.938983051 | BN178: 0 | BO178: 2.938983051
A179: 157 | B179: Реконструкция ВЛ-0,4кВ от КТП ЧКЛ 703/100 кВА с заменой КТП | I179: 0 | K179: 0 | L179: 0 | N179: 0 | O179: 0 | Q179: 0 | R179: 0 | T179: 0 | U179: 4.8 | V179: / | W179: 0.1 | X179: 4.8 | Y179: / | Z179: 0.1 | AA179: 12.40677966 | AB179: 0 | AD179: 0 | AE179: 0 | AG179: 0 | AH179: 0 | AJ179: 0 | AK179: 0 | AM179: 0 | AN179: 0 | AO179: / | AP179: 0 | AQ179: 0 | AS179: 0 | AT179: 0 | AV179: 0 | AW179: 0 | AY179: 0 | AZ179: 4.8 | BA179: / | BB179: 0.1 | BC179: 4.8 | BD179: / | BE179: 0.1 | BF179: 0 | BG179: 0 | BH179: 0 | BI179: 0 | BJ179: 0 | BK179: 0 | BL179: 0 | BM179: 0 | BN179: 12.40677966 | BO179: 12.40677966
A180: 158 | B180: Реконструкция ВЛ-0,4кВ от КТП ЧКЛ 705/160 кВА с заменой КТП | I180: 0 | K180: 0 | L180: 0 | N180: 0 | O180: 0 | Q180: 0 | R180: 0 | T180: 0 | U180: 0.65 | V180: / | W180: 0.16 | X180: 0.65 | Y180: / | Z180: 0.16 | AA180: 2.559322034 | AB180: 0 | AD180: 0 | AE180: 0 | AG180: 0 | AH180: 0 | AJ180: 0 | AK180: 0 | AM180: 0 | AN180: 0 | AO180: / | AP180: 0 | AQ180: 0 | AS180: 0 | AT180: 0 | AV180: 0 | AW180: 0 | AY180: 0 | AZ180: 0.65 | BA180: / | BB180: 0.16 | BC180: 0.65 | BD180: / | BE180: 0.16 | BF180: 0 | BG180: 0 | BH180: 0 | BI180: 0 | BJ180: 0 | BK180: 0 | BL180: 0 | BM180: 0 | BN180: 2.559322034 | BO180: 2.559322034
A181: 159 | B181: Реконструкция ВЛ-0,4кВ от КТП ЧКЛ 707/160 кВА с заменой КТП | I181: 0 | K181: 0 | L181: 0 | N181: 0 | O181: 0 | Q181: 0 | R181: 0 | T181: 0 | U181: 0.98 | V181: / | W181: 0.16 | X181: 0.98 | Y181: / | Z181: 0.16 | AA181: 3.342372881 | AB181: 0 | AD181: 0 | AE181: 0 | AG181: 0 | AH181: 0 | AJ181: 0 | AK181: 0 | AM181: 0 | AN181: 0 | AO181: / | AP181: 0 | AQ181: 0 | AS181: 0 | AT181: 0 | AV181: 0 | AW181: 0 | AY181: 0 | AZ181: 0.98 | BA181: / | BB181: 0.16 | BC181: 0.98 | BD181: / | BE181: 0.16 | BF181: 0 | BG181: 0 | BH181: 0 | BI181: 0 | BJ181: 0 | BK181: 0 | BL181: 0 | BM181: 0 | BN181: 3.342372881 | BO181: 3.342372881
A182: 160 | B182: Реконструкция ВЛ-0,4кВ от КТП ЧКЛ 708/100 кВА с заменой КТП | I182: 0 | K182: 0 | L182: 0 | N182: 0 | O182: 0 | Q182: 0 | R182: 0 | T182: 0 | U182: 3.03 | V182: / | W182: 0.1 | X182: 3.03 | Y182: / | Z182: 0.1 | AA182: 8.206779661 | AB182: 0 | AD182: 0 | AE182: 0 | AG182: 0 | AH182: 0 | AJ182: 0 | AK182: 0 | AM182: 0 | AN182: 0 | AO182: / | AP182: 0 | AQ182: 0 | AS182: 0 | AT182: 0 | AV182: 0 | AW182: 0 | AY182: 0 | AZ182: 3.03 | BA182: / | BB182: 0.1 | BC182: 3.03 | BD182: / | BE182: 0.1 | BF182: 0 | BG182: 0 | BH182: 0 | BI182: 0 | BJ182: 0 | BK182: 0 | BL182: 0 | BM182: 0 | BN182: 8.206779661 | BO182: 8.206779661
A183: 161 | B183: Реконструкция ВЛ-0,4кВ от КТП КЛВ 818/160 кВА с заменой КТП | I183: 0 | K183: 0 | L183: 0 | N183: 0 | O183: 0 | Q183: 0 | R183: 0 | T183: 0 | U183: 1.52 | V183: / | W183: 0.16 | X183: 1.52 | Y183: / | Z183: 0.16 | AA183: 4.623728814 | AB183: 0 | AD183: 0 | AE183: 0 | AG183: 0 | AH183: 0 | AJ183: 0 | AK183: 0 | AM183: 0 | AN183: 0 | AO183: / | AP183: 0 | AQ183: 0 | AS183: 0 | AT183: 0 | AV183: 0 | AW183: 0 | AY183: 0 | AZ183: 1.52 | BA183: / | BB183: 0.16 | BC183: 1.52 | BD183: / | BE183: 0.16 | BF183: 0 | BG183: 0 | BH183: 0 | BI183: 0 | BJ183: 0 | BK183: 0 | BL183: 0 | BM183: 0 | BN183: 4.623728814 | BO183: 4.623728814
A184: 162 | B184: Кошкинский район | I184: 0 | K184: 0 | L184: 0 | N184: 0 | O184: 0 | Q184: 0 | R184: 0 | T184: 0 | U184: 0 | W184: 0 | X184: 0 | Y184: / | Z184: 0 | AA184: 0 | AB184: 0 | AD184: 0 | AE184: 0 | AG184: 0 | AH184: 0 | AJ184: 0 | AK184: 0 | AM184: 0 | AN184: 0 | AO184: / | AP184: 0 | AQ184: 0 | AS184: 0 | AT184: 0 | AV184: 0 | AW184: 0 | AY184: 0 | AZ184: 0 | BB184: 0 | BC184: 0 | BD184: / | BE184: 0 | BF184: 0 | BG184: 0 | BH184: 0 | BI184: 0 | BJ184: 0 | BK184: 0 | BL184: 0 | BM184: 0 | BN184: 0 | BO184: 0
A185: 163 | B185: Реконструкция ВЛ-10кВ КШК-7 | I185: 6 | J185: / | K185: 0 | L185: 0 | N185: 0 | O185: 0 | Q185: 0 | R185: 0 | T185: 0 | U185: 0 | W185: 0 | X185: 6 | Y185: / | Z185: 0 | AA185: 17.56186441 | AB185: 0 | AD185: 0 | AE185: 0 | AG185: 0 | AH185: 0 | AJ185: 0 | AK185: 6 | AL185: / | AM185: 0 | AN185: 6 | AO185: / | AP185: 0 | AQ185: 0 | AS185: 0 | AT185: 0 | AV185: 0 | AW185: 0 | AY185: 0 | AZ185: 0 | BB185: 0 | BC185: 6 | BD185: / | BE185: 0 | BF185: 0 | BG185: 2.634279661 | BH185: 6.146652542 | BI185: 8.780932203 | BJ185: 17.56186441 | BK185: 0 | BL185: 0 | BM185: 0 | BN185: 0 | BO185: 17.56186441
A186: 164 | B186: Реконструкция ВЛ-10кВ КШК-5 | I186: 12.1 | J186: / | K186: 0 | L186: 0 | N186: 0 | O186: 0 | Q186: 0 | R186: 0 | T186: 0 | U186: 0 | W186: 0 | X186: 12.1 | Y186: / | Z186: 0 | AA186: 32.82118644 | AB186: 0 | AD186: 0 | AE186: 0 | AG186: 0 | AH186: 0 | AJ186: 0 | AK186: 12.1 | AL186: / | AM186: 0 | AN186: 12.1 | AO186: / | AP186: 0 | AQ186: 0 | AS186: 0 | AT186: 0 | AV186: 0 | AW186: 0 | AY186: 0 | AZ186: 0 | BB186: 0 | BC186: 12.1 | BD186: / | BE186: 0 | BF186: 0 | BG186: 4.923177966 | BH186: 11.48741525 | BI186: 16.41059322 | BJ186: 32.82118644 | BK186: 0 | BL186: 0 | BM186: 0 | BN186: 0 | BO186: 32.82118644
A187: 165 | B187: Реконструкция ВЛ-0,4 кВ от КТП КРМ 408/160 кВА с заменой КТП на 250 кВА | I187: 2.4 | J187: / | K187: 0.16 | L187: 0 | N187: 0 | O187: 0 | Q187: 0 | R187: 0 | T187: 0 | U187: 0 | W187: 0 | X187: 2.4 | Y187: / | Z187: 0.16 | AA187: 6.986440678 | AB187: 0 | AD187: 0 | AE187: 0 | AG187: 0 | AH187: 0 | AJ187: 0 | AK187: 2.4 | AL187: / | AM187: 0.25 | AN187: 2.4 | AO187: / | AP187: 0.25 | AQ187: 0 | AS187: 0 | AT187: 0 | AV187: 0 | AW187: 0 | AY187: 0 | AZ187: 0 | BB187: 0 | BC187: 2.4 | BD187: / | BE187: 0.25 | BF187: 0 | BG187: 1.047966102 | BH187: 2.445254237 | BI187: 3.493220339 | BJ187: 6.986440678 | BK187: 0 | BL187: 0 | BM187: 0 | BN187: 0 | BO187: 6.986440678
A188: 166 | B188: Реконструкция ВЛ-0,4 кВ от КТП КШК 702/250 кВА с заменой КТП | I188: 0.8 | J188: / | K188: 0.25 | L188: 0 | N188: 0 | O188: 0 | Q188: 0 | R188: 0 | T188: 0 | U188: 0 | W188: 0 | X188: 0.8 | Y188: / | Z188: 0.25 | AA188: 4.552542373 | AB188: 0 | AD188: 0 | AE188: 0 | AG188: 0 | AH188: 0 | AJ188: 0 | AK188: 0.8 | AL188: / | AM188: 0.25 | AN188: 0.8 | AO188: / | AP188: 0.25 | AQ188: 0 | AS188: 0 | AT188: 0 | AV188: 0 | AW188: 0 | AY188: 0 | AZ188: 0 | BB188: 0 | BC188: 0.8 | BD188: / | BE188: 0.25 | BF188: 0 | BG188: 0.6828813559 | BH188: 1.593389831 | BI188: 2.276271186 | BJ188: 4.552542373 | BK188: 0 | BL188: 0 | BM188: 0 | BN188: 0 | BO188: 4.552542373
A189: 167 | B189: Реконструкция ВЛ-10 кВ КШК-11 | I189: 0 | K189: 0 | L189: 3.47 | M189: / | N189: 0 | O189: 0 | Q189: 0 | R189: 0 | T189: 0 | U189: 0 | W189: 0 | X189: 3.47 | Y189: / | Z189: 0 | AA189: 8.233898305 | AB189: 0 | AD189: 0 | AE189: 0 | AG189: 0 | AH189: 0 | AJ189: 0 | AK189: 0 | AM189: 0 | AN189: 0 | AO189: / | AP189: 0 | AQ189: 3.47 | AR189: / | AS189: 0 | AT189: 0 | AV189: 0 | AW189: 0 | AY189: 0 | AZ189: 0 | BB189: 0 | BC189: 3.47 | BD189: / | BE189: 0 | BF189: 0 | BG189: 0 | BH189: 0 | BI189: 0 | BJ189: 0 | BK189: 8.233898305 | BL189: 0 | BM189: 0 | BN189: 0 | BO189: 8.233898305
A190: 168 | B190: Реконструкция ВЛ-0,4 кВ от КТП КШК 510/160 кВА с заменой на КТП 250 кВА | I190: 0 | K190: 0 | L190: 2.68 | M190: / | N190: 0.16 | O190: 0 | Q190: 0 | R190: 0 | T190: 0 | U190: 0 | W190: 0 | X190: 2.68 | Y190: / | Z190: 0.16 | AA190: 7.376271186 | AB190: 0 | AD190: 0 | AE190: 0 | AG190: 0 | AH190: 0 | AJ190: 0 | AK190: 0 | AM190: 0 | AN190: 0 | AO190: / | AP190: 0 | AQ190: 2.68 | AR190: / | AS190: 0.25 | AT190: 0 | AV190: 0 | AW190: 0 | AY190: 0 | AZ190: 0 | BB190: 0 | BC190: 2.68 | BD190: / | BE190: 0.25 | BF190: 0 | BG190: 0 | BH190: 0 | BI190: 0 | BJ190: 0 | BK190: 7.376271186 | BL190: 0 | BM190: 0 | BN190: 0 | BO190: 7.376271186
A191: 169 | B191: Реконструкция ВЛ-0,4 кВ от КТП КШК 1103/400 кВА с заменой КТП 400 кВА | I191: 0 | K191: 0 | L191: 2.03 | M191: / | N191: 0.4 | O191: 0 | Q191: 0 | R191: 0 | T191: 0 | U191: 0 | W191: 0 | X191: 2.03 | Y191: / | Z191: 0.4 | AA191: 5.833898305 | AB191: 0 | AD191: 0 | AE191: 0 | AG191: 0 | AH191: 0 | AJ191: 0 | AK191: 0 | AM191: 0 | AN191: 0 | AO191: / | AP191: 0 | AQ191: 2.03 | AR191: / | AS191: 0.4 | AT191: 0 | AV191: 0 | AW191: 0 | AY191: 0 | AZ191: 0 | BB191: 0 | BC191: 2.03 | BD191: / | BE191: 0.4 | BF191: 0 | BG191: 0 | BH191: 0 | BI191: 0 | BJ191: 0 | BK191: 5.833898305 | BL191: 0 | BM191: 0 | BN191: 0 | BO191: 5.833898305
A192: 170 | B192: Реконструкция ВЛ-0,4 кВ от КТП КРМ 304/100 кВА с заменой на КТП 160 кВА | I192: 0 | K192: 0 | L192: 2 | M192: / | N192: 0.1 | O192: 0 | Q192: 0 | R192: 0 | T192: 0 | U192: 0 | W192: 0 | X192: 2 | Y192: / | Z192: 0.1 | AA192: 5.762711864 | AB192: 0 | AD192: 0 | AE192: 0 | AG192: 0 | AH192: 0 | AJ192: 0 | AK192: 0 | AM192: 0 | AN192: 0 | AO192: / | AP192: 0 | AQ192: 2 | AR192: / | AS192: 0.16 | AT192: 0 | AV192: 0 | AW192: 0 | AY192: 0 | AZ192: 0 | BB192: 0 | BC192: 2 | BD192: / | BE192: 0.16 | BF192: 0 | BG192: 0 | BH192: 0 | BI192: 0 | BJ192: 0 | BK192: 5.762711864 | BL192: 0 | BM192: 0 | BN192: 0 | BO192: 5.762711864
A193: 171 | B193: Реконструкция ВЛ-0,4 кВ от КТП КШК 1108/160 с заменой на КТП 250 кВА | I193: 0 | K193: 0 | L193: 2.3 | M193: / | N193: 0.16 | O193: 0 | Q193: 0 | R193: 0 | T193: 0 | U193: 0 | W193: 0 | X193: 2.3 | Y193: / | Z193: 0.16 | AA193: 6.474576271 | AB193: 0 | AD193: 0 | AE193: 0 | AG193: 0 | AH193: 0 | AJ193: 0 | AK193: 0 | AM193: 0 | AN193: 0 | AO193: / | AP193: 0 | AQ193: 2.3 | AR193: / | AS193: 0.25 | AT193: 0 | AV193: 0 | AW193: 0 | AY193: 0 | AZ193: 0 | BB193: 0 | BC193: 2.3 | BD193: / | BE193: 0.25 | BF193: 0 | BG193: 0 | BH193: 0 | BI193: 0 | BJ193: 0 | BK193: 6.474576271 | BL193: 0 | BM193: 0 | BN193: 0 | BO193: 6.474576271
A194: 172 | B194: Реконструкция ВЛ-0,4 кВ от КТП САД 709/160 кВА с заменой КТП на 250 кВА | I194: 0 | K194: 0 | L194: 1.3 | M194: / | N194: 0.16 | O194: 0 | Q194: 0 | R194: 0 | T194: 0 | U194: 0 | W194: 0 | X194: 1.3 | Y194: / | Z194: 0.16 | AA194: 4.101694915 | AB194: 0 | AD194: 0 | AE194: 0 | AG194: 0 | AH194: 0 | AJ194: 0 | AK194: 0 | AM194: 0 | AN194: 0 | AO194: / | AP194: 0 | AQ194: 1.3 | AR194: / | AS194: 0.25 | AT194: 0 | AV194: 0 | AW194: 0 | AY194: 0 | AZ194: 0 | BB194: 0 | BC194: 1.3 | BD194: / | BE194: 0.25 | BF194: 0 | BG194: 0 | BH194: 0 | BI194: 0 | BJ194: 0 | BK194: 4.101694915 | BL194: 0 | BM194: 0 | BN194: 0 | BO194: 4.101694915
A195: 173 | B195: Реконструкция ВЛ-0,4 кВ от КТП КШК 109/160 с заменой ЗТП на КТП 160 кВА | I195: 0 | K195: 0 | L195: 0 | N195: 0 | O195: 0.4 | P195: / | Q195: 0.16 | R195: 0 | T195: 0 | U195: 0 | W195: 0 | X195: 0.4 | Y195: / | Z195: 0.16 | AA195: 1.966101695 | AB195: 0 | AD195: 0 | AE195: 0 | AG195: 0 | AH195: 0 | AJ195: 0 | AK195: 0 | AM195: 0 | AN195: 0 | AO195: / | AP195: 0 | AQ195: 0 | AS195: 0 | AT195: 0.4 | AU195: / | AV195: 0.16 | AW195: 0 | AY195: 0 | AZ195: 0 | BB195: 0 | BC195: 0.4 | BD195: / | BE195: 0.16 | BF195: 0 | BG195: 0 | BH195: 0 | BI195: 0 | BJ195: 0 | BK195: 0 | BL195: 1.966101695 | BM195: 0 | BN195: 0 | BO195: 1.966101695
A196: 174 | B196: Реконструкция ВЛ-0,4 кВ от КТП КШК 1115/250 с заменой КТП | I196: 0 | K196: 0 | L196: 0 | N196: 0 | O196: 1.2 | P196: / | Q196: 0.25 | R196: 0 | T196: 0 | U196: 0 | W196: 0 | X196: 1.2 | Y196: / | Z196: 0.25 | AA196: 3.86440678 | AB196: 0 | AD196: 0 | AE196: 0 | AG196: 0 | AH196: 0 | AJ196: 0 | AK196: 0 | AM196: 0 | AN196: 0 | AO196: / | AP196: 0 | AQ196: 0 | AS196: 0 | AT196: 1.2 | AU196: / | AV196: 0.25 | AW196: 0 | AY196: 0 | AZ196: 0 | BB196: 0 | BC196: 1.2 | BD196: / | BE196: 0.25 | BF196: 0 | BG196: 0 | BH196: 0 | BI196: 0 | BJ196: 0 | BK196: 0 | BL196: 3.86440678 | BM196: 0 | BN196: 0 | BO196: 3.86440678
A197: 175 | B197: Реконструкция ВЛ-0,4 кВ от КТП КШК 1113/250 кВА с заменой КТП | I197: 0 | K197: 0 | L197: 0 | N197: 0 | O197: 1.1 | P197: / | Q197: 0.25 | R197: 0 | T197: 0 | U197: 0 | W197: 0 | X197: 1.1 | Y197: / | Z197: 0.25 | AA197: 3.627118644 | AB197: 0 | AD197: 0 | AE197: 0 | AG197: 0 | AH197: 0 | AJ197: 0 | AK197: 0 | AM197: 0 | AN197: 0 | AO197: / | AP197: 0 | AQ197: 0 | AS197: 0 | AT197: 1.1 | AU197: / | AV197: 0.25 | AW197: 0 | AY197: 0 | AZ197: 0 | BB197: 0 | BC197: 1.1 | BD197: / | BE197: 0.25 | BF197: 0 | BG197: 0 | BH197: 0 | BI197: 0 | BJ197: 0 | BK197: 0 | BL197: 3.627118644 | BM197: 0 | BN197: 0 | BO197: 3.627118644
A198: 176 | B198: Реконструкция ВЛ-0,4 кВ от КТП КШК 504/160 с заменой КТП на 250 кВА | I198: 0 | K198: 0 | L198: 0 | N198: 0 | O198: 2.5 | P198: / | Q198: 0.16 | R198: 0 | T198: 0 | U198: 0 | W198: 0 | X198: 2.5 | Y198: / | Z198: 0.16 | AA198: 6.949152542 | AB198: 0 | AD198: 0 | AE198: 0 | AG198: 0 | AH198: 0 | AJ198: 0 | AK198: 0 | AM198: 0 | AN198: 0 | AO198: / | AP198: 0 | AQ198: 0 | AS198: 0 | AT198: 2.5 | AU198: / | AV198: 0.25 | AW198: 0 | AY198: 0 | AZ198: 0 | BB198: 0 | BC198: 2.5 | BD198: / | BE198: 0.25 | BF198: 0 | BG198: 0 | BH198: 0 | BI198: 0 | BJ198: 0 | BK198: 0 | BL198: 6.949152542 | BM198: 0 | BN198: 0 | BO198: 6.949152542
A199: 177 | B199: Реконструкция ВЛ-0,4 кВ от КТП КРМ 502/100 кВА с заменой КТП на 63 кВА | I199: 0 | K199: 0 | L199: 0 | N199: 0 | O199: 0 | Q199: 0 | R199: 0.2 | S199: / | T199: 0.1 | U199: 0 | W199: 0 | X199: 0.2 | Y199: / | Z199: 0.1 | AA199: 1.491525424 | AB199: 0 | AD199: 0 | AE199: 0 | AG199: 0 | AH199: 0 | AJ199: 0 | AK199: 0 | AM199: 0 | AN199: 0 | AO199: / | AP199: 0 | AQ199: 0 | AS199: 0 | AT199: 0 | AV199: 0 | AW199: 0.2 | AX199: / | AY199: 0.063 | AZ199: 0 | BB199: 0 | BC199: 0.2 | BD199: / | BE199: 0.063 | BF199: 0 | BG199: 0 | BH199: 0 | BI199: 0 | BJ199: 0 | BK199: 0 | BL199: 0 | BM199: 1.491525424 | BN199: 0 | BO199: 1.491525424
A200: 178 | B200: Реконструкция ВЛ-0,4 кВ от КТП КШК 1204/63 кВА с переносом и заменой на КТП | I200: 0 | K200: 0 | L200: 0 | N200: 0 | O200: 0 | Q200: 0 | R200: 0.2 | S200: / | T200: 0.063 | U200: 0 | W200: 0 | X200: 0.2 | Y200: / | Z200: 0.063 | AA200: 1.491525424 | AB200: 0 | AD200: 0 | AE200: 0 | AG200: 0 | AH200: 0 | AJ200: 0 | AK200: 0 | AM200: 0 | AN200: 0 | AO200: / | AP200: 0 | AQ200: 0 | AS200: 0 | AT200: 0 | AV200: 0 | AW200: 0.2 | AX200: / | AY200: 0.063 | AZ200: 0 | BB200: 0 | BC200: 0.2 | BD200: / | BE200: 0.063 | BF200: 0 | BG200: 0 | BH200: 0 | BI200: 0 | BJ200: 0 | BK200: 0 | BL200: 0 | BM200: 1.491525424 | BN200: 0 | BO200: 1.491525424
A201: 179 | B201: Реконструкция ВЛ-0,4 кВ от ЗТП САД 703/400 кВА с заменой КТП на 400 кВА | I201: 0 | K201: 0 | L201: 0 | N201: 0 | O201: 0 | Q201: 0 | R201: 0.1 | S201: / | T201: 0.4 | U201: 0 | W201: 0 | X201: 0.1 | Y201: / | Z201: 0.4 | AA201: 1.254237288 | AB201: 0 | AD201: 0 | AE201: 0 | AG201: 0 | AH201: 0 | AJ201: 0 | AK201: 0 | AM201: 0 | AN201: 0 | AO201: / | AP201: 0 | AQ201: 0 | AS201: 0 | AT201: 0 | AV201: 0 | AW201: 0.1 | AX201: / | AY201: 0.4 | AZ201: 0 | BB201: 0 | BC201: 0.1 | BD201: / | BE201: 0.4 | BF201: 0 | BG201: 0 | BH201: 0 | BI201: 0 | BJ201: 0 | BK201: 0 | BL201: 0 | BM201: 1.254237288 | BN201: 0 | BO201: 1.254237288
A202: 180 | B202: Реконструкция ВЛ-0,4 кВ от КТП НБК 117/160 кВА с заменой КТП на 63 кВА | I202: 0 | K202: 0 | L202: 0 | N202: 0 | O202: 0 | Q202: 0 | R202: 0.5 | S202: / | T202: 0.16 | U202: 0 | W202: 0 | X202: 0.5 | Y202: / | Z202: 0.16 | AA202: 2.203389831 | AB202: 0 | AD202: 0 | AE202: 0 | AG202: 0 | AH202: 0 | AJ202: 0 | AK202: 0 | AM202: 0 | AN202: 0 | AO202: / | AP202: 0 | AQ202: 0 | AS202: 0 | AT202: 0 | AV202: 0 | AW202: 0.5 | AX202: / | AY202: 0.063 | AZ202: 0 | BB202: 0 | BC202: 0.5 | BD202: / | BE202: 0.063 | BF202: 0 | BG202: 0 | BH202: 0 | BI202: 0 | BJ202: 0 | BK202: 0 | BL202: 0 | BM202: 2.203389831 | BN202: 0 | BO202: 2.203389831
A203: 181 | B203: Реконструкция ВЛ-0,4 кВ от ЗТП КШК 1301/400*2 с заменой ЗТП на КТП 400/*2 кВА | I203: 0 | K203: 0 | L203: 0 | N203: 0 | O203: 0 | Q203: 0 | R203: 0 | T203: 0 | U203: 0.75 | V203: / | W203: 0.8 | X203: 0.75 | Y203: / | Z203: 0.8 | AA203: 2.796610169 | AB203: 0 | AD203: 0 | AE203: 0 | AG203: 0 | AH203: 0 | AJ203: 0 | AK203: 0 | AM203: 0 | AN203: 0 | AO203: / | AP203: 0 | AQ203: 0 | AS203: 0 | AT203: 0 | AV203: 0 | AW203: 0 | AY203: 0 | AZ203: 0.75 | BA203: / | BB203: 0.8 | BC203: 0.75 | BD203: / | BE203: 0.8 | BF203: 0 | BG203: 0 | BH203: 0 | BI203: 0 | BJ203: 0 | BK203: 0 | BL203: 0 | BM203: 0 | BN203: 2.796610169 | BO203: 2.796610169
A204: 182 | B204: Реконструкция ВЛ-0,4 кВ от КТП КШК 506/250 кВА с заменой КТП | I204: 0 | K204: 0 | L204: 0 | N204: 0 | O204: 0 | Q204: 0 | R204: 0 | T204: 0 | U204: 2.7 | V204: / | W204: 0.25 | X204: 2.7 | Y204: / | Z204: 0.25 | AA204: 7.423728814 | AB204: 0 | AD204: 0 | AE204: 0 | AG204: 0 | AH204: 0 | AJ204: 0 | AK204: 0 | AM204: 0 | AN204: 0 | AO204: / | AP204: 0 | AQ204: 0 | AS204: 0 | AT204: 0 | AV204: 0 | AW204: 0 | AY204: 0 | AZ204: 2.7 | BA204: / | BB204: 0.25 | BC204: 2.7 | BD204: / | BE204: 0.25 | BF204: 0 | BG204: 0 | BH204: 0 | BI204: 0 | BJ204: 0 | BK204: 0 | BL204: 0 | BM204: 0 | BN204: 7.423728814 | BO204: 7.423728814
A205: 183 | B205: Реконструкция ВЛ-0,4 кВ от КТП КШК 908/100 кВА с заменой КТП на 250 кВА | I205: 0 | K205: 0 | L205: 0 | N205: 0 | O205: 0 | Q205: 0 | R205: 0 | T205: 0 | U205: 0.2 | V205: / | W205: 0.1 | X205: 0.2 | Y205: / | Z205: 0.1 | AA205: 1.491525424 | AB205: 0 | AD205: 0 | AE205: 0 | AG205: 0 | AH205: 0 | AJ205: 0 | AK205: 0 | AM205: 0 | AN205: 0 | AO205: / | AP205: 0 | AQ205: 0 | AS205: 0 | AT205: 0 | AV205: 0 | AW205: 0 | AY205: 0 | AZ205: 0.2 | BA205: / | BB205: 0.25 | BC205: 0.2 | BD205: / | BE205: 0.25 | BF205: 0 | BG205: 0 | BH205: 0 | BI205: 0 | BJ205: 0 | BK205: 0 | BL205: 0 | BM205: 0 | BN205: 1.491525424 | BO205: 1.491525424
... 235 more rows
